Workbook

Sheet GUIDE
B1: Panduan Penggunaan
B2: Silahkan unduh file di sini

Sheet BIODATA
A1: BIODATA SISWA
A2: NO. URUT | B2: NO SERI RAPOR | C2: NAMA SISWA | D2: NIS | E2: NISN | F2: Tempat, Tanggal Lahir | G2: Jenis Kelamin | H2: Agama | I2: Status dalam Keluarga | J2: Anak Ke | K2: Alamat Siswa | M2: No. Telp. Siswa/ Rumah | N2: Sekolah Asal | O2: Diterima di Sekolah ini | Q2: Nama Orang Tua | S2: Alamat Orang Tua | U2: No.Telp. Rumah/Ortu | V2: Pekerjaan Orang Tua | X2: Nama Wali Siswa | Y2: Alamat Wali Siswa | AA2: No.Telp. Wali Siswa | AB2: Pekerjaan Wali Siswa
K3: Jl. & Kelurahan | L3: Kecamatan & Kabupaten | O3: Di Kelas | P3: Pada Tanggal | Q3: Ayah | R3: Ibu | S3: Jln & Kelurahan | T3: Kecamatan & Kabupaten | V3: Ayah | W3: Ibu | Y3: Jln & Kelurahan | Z3: Kecamatan & Kabupaten
A4: 1 | B4: =A4+1 -> 2 | C4: =B4+1 -> 3 | D4: =C4+1 -> 4 | E4: 5 | F4: 6 | G4: 7 | H4: 8 | I4: 9 | J4: 10 | K4: 11 | L4: 12 | M4: 13 | N4: 14 | O4: 15 | P4: 16 | Q4: 17 | R4: 18 | S4: 19 | T4: 20 | U4: 21 | V4: 22 | W4: 23 | X4: 24 | Y4: 25 | Z4: 26 | AA4: 27 | AB4: 28
A5: 1 | C5: ADAM ADIYAT HARTANTO | D5: 16170535 | E5: 0016930017 | F5: Jakarta, 27 Januari 2001 | G5: L | H5: Islam | X5: - | Y5: - | Z5: - | AA5: - | AB5: -
A6: 2 | C6: ADAM MAULANA RIZALDI | D6: 16170449 | E6: 0013261209 | F6: Karawang, 04 Oktober 2001 | G6: L | H6: Islam | X6: - | Y6: - | Z6: - | AA6: - | AB6: -
A7: 3 | C7: BAGAS ADJI PRIANTOMO | D7: 16170371 | E7: 0019580311 | F7: Nganjuk, 05 Juni 2001 | G7: L | H7: Islam | X7: - | Y7: - | Z7: - | AA7: - | AB7: -
A8: 4 | C8: CARWAN HIDAYAT | D8: 16170585 | E8: 0019597659 | F8: Karawang, 09 Januari 2001 | G8: L | H8: Islam | X8: - | Y8: - | Z8: - | AA8: - | AB8: -
A9: 5 | C9: CEPI YANWARI | D9: 16170586 | E9: 0005649538 | F9: Karawang, 23 Januari 2000 | G9: L | H9: Islam | X9: - | Y9: - | Z9: - | AA9: - | AB9: -
A10: 6 | C10: DEDE MAULANA RUSDIANTA | D10: 16170414 | E10: 0003630521 | F10: Karawang, 12 April 2000 | G10: L | H10: Islam | X10: - | Y10: - | Z10: - | AA10: - | AB10: -
A11: 7 | C11: DEDI ROCHMAN | D11: 16170457 | E11: 0015649236 | F11: Karawang, 11 Mei 2001 | G11: L | H11: Islam | X11: - | Y11: - | Z11: - | AA11: - | AB11: -
A12: 8 | C12: DIMAS YOGA AJI SETIAWAN | D12: 16170546 | E12: 0011378424 | F12: Sukoharjo, 04 Oktober 2001 | G12: L | H12: Islam | X12: - | Y12: - | Z12: - | AA12: - | AB12: -
A13: 9 | C13: ERIK PRIHASABA PEBRIANSYAH | D13: 16170547 | E13: 0011377302 | F13: Karawang, 14 Februari 2001 | G13: L | H13: Islam | X13: - | Y13: - | Z13: - | AA13: - | AB13: -
A14: 10 | C14: GALIH RAKASIWI | D14: 16170464 | E14: 0010714284 | F14: Karawang, 14 Februari 2001 | G14: L | H14: Islam | X14: - | Y14: - | Z14: - | AA14: - | AB14: -
A15: 11 | C15: JOHANI | D15: 16170468 | E15: 0005244096 | F15: Karawang, 25 Agustus 2000 | G15: L | H15: Islam | X15: - | Y15: - | Z15: - | AA15: - | AB15: -
A16: 12 | C16: LATHIF FERIANSYAH | D16: 16170675 | E16: 0019362514 | F16: Sleman, 27 Maret 2001 | G16: L | H16: Islam | X16: - | Y16: - | Z16: - | AA16: - | AB16: -
A17: 13 | C17: MAULANA JUHRI | D17: 16170423 | E17: 0011731733 | F17: Karawang, 06 Juli 2001 | G17: L | H17: Islam | X17: - | Y17: - | Z17: - | AA17: - | AB17: -
A18: 14 | C18: MOHAMMAD HERRY ALFAJRI | D18: 16170473 | E18: 0017676894 | F18: Karawang, 02 Oktober 2001 | G18: L | H18: Islam | X18: - | Y18: - | Z18: - | AA18: - | AB18: -
A19: 15 | C19: MUHAMAD SIDI | D19: 16170426 | E19: 0015367437 | F19: Karawang, 16 Agustus 2001 | G19: L | H19: Islam | X19: - | Y19: - | Z19: - | AA19: - | AB19: -
A20: 16 | C20: MUHAMMAD ARDI RUHYAT | D20: 16170427 | E20: 0004508658 | F20: Karawang, 14 April 2000 | G20: L | H20: Islam | X20: - | Y20: - | Z20: - | AA20: - | AB20: -
A21: 17 | C21: MUHAMMAD FIKRI AWALUDIN | D21: 16170429 | E21: 0019120403 | F21: Bekasi, 06 Januari 2001 | G21: L | H21: Islam | X21: - | Y21: - | Z21: - | AA21: - | AB21: -
A22: 18 | C22: MUHAMMAD PADILAH | D22: 16170428 | E22: 0016712994 | F22: Karawang, 22 Desember 2001 | G22: L | H22: Islam | X22: - | Y22: - | Z22: - | AA22: - | AB22: -
A23: 19 | C23: MUHIBU FATHURROHMAN | D23: 16170430 | E23: 0009866153 | F23: Karawang, 14 Mei 2001 | G23: L | H23: Islam | X23: - | Y23: - | Z23: - | AA23: - | AB23: -
A24: 20 | C24: OKKE KINDI ADI PANGESTU | D24: 16170391 | E24: 0008910187 | F24: Karawang, 28 Oktober 2000 | G24: L | H24: Islam | X24: - | Y24: - | Z24: - | AA24: - | AB24: -
A25: 21 | C25: RAMADHAN | D25: 16170480 | E25: 0014167315 | F25: Karawang, 25 November 2001 | G25: L | H25: Islam | X25: - | Y25: - | Z25: - | AA25: - | AB25: -
A26: 22 | C26: RENDY RAHMADI | D26: 16170683 | E26: 0019013791 | F26: Karawang, 08 Agustus 2001 | G26: L | H26: Islam | X26: - | Y26: - | Z26: - | AA26: - | AB26: -
A27: 23 | C27: RIFAN BAGUS ALDIANSYAH | D27: 16170433 | E27: 0010555545 | F27: Karawang, 08 Agustus 2001 | G27: L | H27: Islam | X27: - | Y27: - | Z27: - | AA27: - | AB27: -
A28: 24 | C28: RIVAL MAULANA | D28: 16170601 | E28: 0023281618 | F28: Karawang, 02 Agustus 2002 | G28: L | H28: Islam | X28: - | Y28: - | Z28: - | AA28: - | AB28: -
A29: 25 | C29: RIZKY FADHILAH | D29: 16170643 | E29: 0014900955 | F29: Karawang, 06 Oktober 2001 | G29: L | H29: Islam | X29: - | Y29: - | Z29: - | AA29: - | AB29: -
A30: 26 | C30: ROHMADI MUCHTAR | D30: 16170642 | E30: 0013234474 | F30: Jakarta, 12 Desember 2001 | G30: L | H30: Islam | X30: - | Y30: - | Z30: - | AA30: - | AB30: -
A31: 27 | C31: TANGGUH PRASETIA SUHARNA | D31: 16170605 | E31: 0001666938 | F31: Karawang, 07 September 2000 | G31: L | H31: Islam | X31: - | Y31: - | Z31: - | AA31: - | AB31: -
A32: 28 | C32: TARIZ MAULIZIDANE FAZILLA | D32: 16170606 | E32: 0011668169 | F32: Bekasi, 29 Juli 2001 | G32: L | H32: Islam | X32: - | Y32: - | Z32: - | AA32: - | AB32: -
A33: 29 | C33: TUBAGUS AJANG SUMBOGA | D33: 16170443 | E33: 0003631350 | F33: Karawang, 07 Agustus 2000 | G33: L | H33: Islam | X33: - | Y33: - | Z33: - | AA33: - | AB33: -
A34: 30 | C34: WIKSAN ZUJALIS | D34: 16170611 | E34: 0019468411 | F34: Karawang, 24 Juli 2001 | G34: L | H34: Islam | X34: - | Y34: - | Z34: - | AA34: - | AB34: -
A35: 31 | C35: YUNAN DWI SASONGKO | D35: 16170448 | E35: 0016919553 | F35: Karawang, 26 Juni 2001 | G35: L | H35: Islam | X35: - | Y35: - | Z35: - | AA35: - | AB35: -
A36: - | X36: - | Y36: - | Z36: - | AA36: - | AB36: -
A37: - | X37: - | Y37: - | Z37: - | AA37: - | AB37: -
A38: - | X38: - | Y38: - | Z38: - | AA38: - | AB38: -
A39: - | X39: - | Y39: - | Z39: - | AA39: - | AB39: -
A40: - | X40: - | Y40: - | Z40: - | AA40: - | AB40: -
A41: - | X41: - | Y41: - | Z41: - | AA41: - | AB41: -
A42: - | X42: - | Y42: - | Z42: - | AA42: - | AB42: -
A43: - | X43: - | Y43: - | Z43: - | AA43: - | AB43: -
A44: - | X44: - | Y44: - | Z44: - | AA44: - | AB44: -

Sheet COVER
D2: KARTU HASIL STUDI (KHS)
D3: SEKOLAH MENENGAH KEJURUAN
D4: (SMK)
L6: HALAMAN CETAK
L7: Dari data ke | M7: 12
L9: Sampai data ke | M9: 12
L13: TAMPILAN DATA
L14: Nomor Urut | M14: 9
A23: Nama Siswa :
A25: =VLOOKUP($M$14,TAB_BIODATA,BIODATA!C4) -> ERIK PRIHASABA PEBRIANSYAH
A30: NIS / NISN :
A32: =IF(VLOOKUP($M$14,TAB_BIODATA,BIODATA!E4)="",VLOOKUP($M$14,TAB_BIODATA,BIODATA!D4),VLOOKUP($M$14,TAB_BIODATA,BIODATA!D4)&" / "&VLOOKUP($M$14,TAB_BIODATA,BIODATA!E4)) -> 16170547 / 0011377302
L37: ="Nomor Urut "&M14 -> Nomor Urut 9

Sheet KET.PETUNJUK
D1: =COVER!D2 -> KARTU HASIL STUDI (KHS) | J1: PETUNJUK PENGISIAN | AB1: KETERANGAN TENTANG DIRI SISWA
D2: =COVER!D3 -> SEKOLAH MENENGAH KEJURUAN
D3: =COVER!D4 -> (SMK) | S3: 16 | T3: Laporan Ekstrakurikuler diisi berdasarkan kegiatan ekstrakurikuler yang diikuti oleh siswa; | AB3: 1. | AC3: Nama Siswa (Lengkap) | AE3: : | AF3: =VLOOKUP($AO$14,TAB_BIODATA,BIODATA!C4) -> ADAM MAULANA RIZALDI
J4: 1 | K4: Rapor merupakan ringkasan hasil penilaian terhadap seluruh aktivitas pembelajaran yang dilakukan siswa dalam kurun waktu tertentu; | S4: 17 | T4: Saran-saran wali kelas diisi berdasarkan kegiatan yang perlu mendapatkan perhatian siswa; | AB4: 2. | AC4: Nomor Induk Siswa/NISN | AE4: : | AF4: =IF(VLOOKUP($AO$14,TAB_BIODATA,BIODATA!E4)="",VLOOKUP($AO$14,TAB_BIODATA,BIODATA!D4),VLOOKUP($AO$14,TAB_BIODATA,BIODATA!D4)&" / "&VLOOKUP($AO$14,TAB_BIODATA,BIODATA!E4)) -> 16170449 / 0013261209
S5: 18 | T5: Prestasi diisi dengan prestasi yang dicapai oleh siswa dalam bidang akademik dan non akademik; | AB5: 3. | AC5: Tempat Tanggal Lahir | AE5: : | AF5: =VLOOKUP($AO$14,TAB_BIODATA,BIODATA!F4) -> Karawang, 04 Oktober 2001 | AH5: =VLOOKUP($AO$14,TABBIODATA,BIODATA!D6) ->  | AI5: =VLOOKUP($AO$14,TABBIODATA,BIODATA!E6) ->  | AJ5: =VLOOKUP($AO$14,TABBIODATA,BIODATA!G6) -> 
J6: 2 | K6: Rapor dipergunakan selama siswa yang bersangkutan mengikuti seluruh program pembelajaran di Sekolah Menengah Kejuruan tersebut; | AB6: 4. | AC6: Jenis Kelamin | AE6: : | AF6: =VLOOKUP($AO$14,TAB_BIODATA,BIODATA!G4) -> L | AH6: =VLOOKUP($AO$14,TABBIODATA,BIODATA!D7) ->  | AI6: =VLOOKUP($AO$14,TABBIODATA,BIODATA!E7) ->  | AJ6: =VLOOKUP($AO$14,TABBIODATA,BIODATA!G7) ->  | AN6: HALAMAN CETAK
S7: 19 | T7: Ketidakhadiran diisi dengan data akumulasi ketidakhadiran siswa karena sakit, izin, atau tanpa keterangan selama satu semester. | AB7: 5. | AC7: Agama | AE7: : | AF7: =VLOOKUP($AO$14,TAB_BIODATA,BIODATA!H4) -> Islam | AH7: =VLOOKUP($AO$14,TABBIODATA,BIODATA!D8) ->  | AI7: =VLOOKUP($AO$14,TABBIODATA,BIODATA!E8) ->  | AJ7: =VLOOKUP($AO$14,TABBIODATA,BIODATA!G8) ->  | AN7: Dari data ke | AO7: 12
J8: 3 | K8: Identitas Sekolah diisi dengan data yang sesuai dengan keberadaan Sekolah Menengah Kejuruan; | AB8: 6. | AC8: Status dalam Keluarga | AE8: : | AF8: =VLOOKUP($AO$14,TAB_BIODATA,BIODATA!I4) -> 0 | AH8: =VLOOKUP($AO$14,TABBIODATA,BIODATA!D9) ->  | AI8: =VLOOKUP($AO$14,TABBIODATA,BIODATA!E9) ->  | AJ8: =VLOOKUP($AO$14,TABBIODATA,BIODATA!G9) -> 
S9: 20 | T9: Tanggapan orang tua/wali adalah tanggapan atas pencapaian hasil belajar siswa. | AB9: 7. | AC9: Anak ke | AE9: : | AF9: =VLOOKUP($AO$14,TAB_BIODATA,BIODATA!J4) -> 0 | AH9: =VLOOKUP($AO$14,TABBIODATA,BIODATA!D10) ->  | AI9: =VLOOKUP($AO$14,TABBIODATA,BIODATA!E10) ->  | AJ9: =VLOOKUP($AO$14,TABBIODATA,BIODATA!G10) ->  | AN9: Sampai data ke | AO9: 12
J10: 4 | K10: Keterangan tentang diri Siswa diisi lengkap; | S10: 21 | T10: Keterangan pindah keluar sekolah diisi dengan alasan kepindahan. Sedangkan pindah masuk diisi dengan sekolah asal. | AB10: 8. | AC10: Alamat Siswa | AE10: : | AF10: =VLOOKUP($AO$14,TAB_BIODATA,BIODATA!K4) -> 0 | AH10: =VLOOKUP($AO$14,TABBIODATA,BIODATA!D11) ->  | AI10: =VLOOKUP($AO$14,TABBIODATA,BIODATA!E11) ->  | AJ10: =VLOOKUP($AO$14,TABBIODATA,BIODATA!G11) -> 
J11: 5 | K11: Rapor harus dilengkapi dengan pas foto berwarna (3 x 4) dan pengisiannya dilakukan oleh Wali Kelas; | AF11: =VLOOKUP($AO$14,TAB_BIODATA,BIODATA!L4) -> 0 | AH11: =VLOOKUP($AO$14,TABBIODATA,BIODATA!D12) ->  | AI11: =VLOOKUP($AO$14,TABBIODATA,BIODATA!E12) ->  | AJ11: =VLOOKUP($AO$14,TABBIODATA,BIODATA!G12) -> 
AB12: 9. | AC12: Nomor Telepon Rumah | AE12: : | AF12: =VLOOKUP($AO$14,TAB_BIODATA,BIODATA!M4) -> 0 | AH12: =VLOOKUP($AO$14,TABBIODATA,BIODATA!D13) ->  | AI12: =VLOOKUP($AO$14,TABBIODATA,BIODATA!E13) ->  | AJ12: =VLOOKUP($AO$14,TABBIODATA,BIODATA!G13) -> 
J13: 6 | K13: Deskripsi sikap spiritual diambil dari hasil observasi terutama pada mata pelajaran Pendidikan Agama dan Budi pekerti, dan PPKn; | AB13: 10. | AC13: Sekolah Asal | AE13: : | AF13: =VLOOKUP($AO$14,TAB_BIODATA,BIODATA!N4) -> 0 | AH13: =VLOOKUP($AO$14,TABBIODATA,BIODATA!D14) ->  | AI13: =VLOOKUP($AO$14,TABBIODATA,BIODATA!E14) ->  | AJ13: =VLOOKUP($AO$14,TABBIODATA,BIODATA!G14) ->  | AN13: TAMPILAN DATA
AB14: 11. | AC14: Diterima di sekolah ini | AN14: Nomor Urut | AO14: 2
J15: 7 | K15: Deskripsi sikap sosial diambil dari hasil observasi pada semua mata pelajaran; | AC15: Di kelas | AE15: : | AF15: =VLOOKUP($AO$14,TAB_BIODATA,BIODATA!O4) -> 0 | AH15: =VLOOKUP($AO$14,TABBIODATA,BIODATA!D16) ->  | AI15: =VLOOKUP($AO$14,TABBIODATA,BIODATA!E16) ->  | AJ15: =VLOOKUP($AO$14,TABBIODATA,BIODATA!G16) -> 
J16: 8 | K16: Deskripsi pada kompetensi sikap ditulis dengan kalimat positif untuk aspek yang sangat baik atau kurang baik; | AC16: Pada tanggal | AE16: : | AF16: =VLOOKUP($AO$14,TAB_BIODATA,BIODATA!P4) -> 00:00:00 | AH16: =VLOOKUP($AO$14,TABBIODATA,BIODATA!D17) ->  | AI16: =VLOOKUP($AO$14,TABBIODATA,BIODATA!E17) ->  | AJ16: =VLOOKUP($AO$14,TABBIODATA,BIODATA!G17) -> 
AB17: 12. | AC17: Nama Orang Tua
B18: Bidang Keahlian | C18: : | D18: =VLOOKUP(MENU!F8,TAB_JURUSAN,2,FALSE) -> Teknologi dan Rekayasa | J18: 9 | K18: Capaian siswa dalam kompetensi pengetahuan dan kompetensi keterampilan ditulis dalam bentuk angka, predikat dan deskripsi untuk masing-masing mata pelajaran; | AC18: a. Ayah | AE18: : | AF18: =VLOOKUP($AO$14,TAB_BIODATA,BIODATA!Q4) -> 0 | AH18: =VLOOKUP($AO$14,TABBIODATA,BIODATA!D19) ->  | AI18: =VLOOKUP($AO$14,TABBIODATA,BIODATA!E19) ->  | AJ18: =VLOOKUP($AO$14,TABBIODATA,BIODATA!G19) -> 
B19: Program Keahlian | C19: : | D19: =VLOOKUP(MENU!F8,TAB_JURUSAN,3,FALSE) -> Teknik Otomotif | AC19: b. Ibu | AE19: : | AF19: =VLOOKUP($AO$14,TAB_BIODATA,BIODATA!R4) -> 0 | AH19: =VLOOKUP($AO$14,TABBIODATA,BIODATA!D20) ->  | AI19: =VLOOKUP($AO$14,TABBIODATA,BIODATA!E20) ->  | AJ19: =VLOOKUP($AO$14,TABBIODATA,BIODATA!G20) -> 
B20: Paket Keahlian | C20: : | D20: =VLOOKUP(MENU!F8,TAB_JURUSAN,4,FALSE) -> Teknik dan Bisnis Sepeda Motor | J20: 10 | K20: Predikat ditulis dalam bentuk huruf sesuai kriteria; | AB20: 13. | AC20: Alamat Orang Tua | AE20: : | AF20: =VLOOKUP($AO$14,TAB_BIODATA,BIODATA!S4) -> 0 | AH20: =VLOOKUP($AO$14,TABBIODATA,BIODATA!D21) ->  | AI20: =VLOOKUP($AO$14,TABBIODATA,BIODATA!E21) ->  | AJ20: =VLOOKUP($AO$14,TABBIODATA,BIODATA!G21) -> 
J21: 11 | K21: Kolom KKM (Kriteria Ketuntasan Minimal) merupakan acuan bagi kriteria kenaikan kelas sehingga wali kelas wajib menerangkan konsekuensi ketuntasan belajar tersebut kepada orang tua/wali; | AF21: =VLOOKUP($AO$14,TAB_BIODATA,BIODATA!T4) -> 0 | AH21: =VLOOKUP($AO$14,TABBIODATA,BIODATA!D22) ->  | AI21: =VLOOKUP($AO$14,TABBIODATA,BIODATA!E22) ->  | AJ21: =VLOOKUP($AO$14,TABBIODATA,BIODATA!G22) -> 
B22: Nama Sekolah | C22: : | D22: SMKN 1 KARAWANG | AC22: Nomor Telepon Rumah | AE22: : | AF22: =VLOOKUP($AO$14,TAB_BIODATA,BIODATA!U4) -> 0 | AH22: =VLOOKUP($AO$14,TABBIODATA,BIODATA!D23) ->  | AI22: =VLOOKUP($AO$14,TABBIODATA,BIODATA!E23) ->  | AJ22: =VLOOKUP($AO$14,TABBIODATA,BIODATA!G23) -> 
B23: NIS / NSS / NDS | C23: : | D23: 311022105084 | AB23: 14. | AC23: Pekerjaan Orang Tua
B24: Alamat Sekolah | C24: : | D24: Jl.Pangkal Perjuangan By Pass Karawang | J24: 12 | K24: Batas bawah predikat C adalah nilai KKM; | AC24: a. Ayah | AE24: : | AF24: =VLOOKUP($AO$14,TAB_BIODATA,BIODATA!V4) -> 0 | AH24: =VLOOKUP($AO$14,TABBIODATA,BIODATA!D25) ->  | AI24: =VLOOKUP($AO$14,TABBIODATA,BIODATA!E25) ->  | AJ24: =VLOOKUP($AO$14,TABBIODATA,BIODATA!G25) -> 
C25: : | D25: Telp. (0267) 401651 Fax. 417258 | J25: 13 | K25: Rentang predikat capaian kompetensi dapat dihitung dengan cara : | AC25: b. Ibu | AE25: : | AF25: =VLOOKUP($AO$14,TAB_BIODATA,BIODATA!W4) -> 0 | AH25: =VLOOKUP($AO$14,TABBIODATA,BIODATA!D26) ->  | AI25: =VLOOKUP($AO$14,TABBIODATA,BIODATA!E26) ->  | AJ25: =VLOOKUP($AO$14,TABBIODATA,BIODATA!G26) -> 
B26: Desa / Kelurahan | C26: : | D26: Tanjungpura | K26: Rentang = 100 – nilai KKM | AB26: 15. | AC26: Nama Wali Siswa | AE26: : | AF26: =VLOOKUP($AO$14,TAB_BIODATA,BIODATA!X4) -> - | AH26: =VLOOKUP($AO$14,TABBIODATA,BIODATA!D27) ->  | AI26: =VLOOKUP($AO$14,TABBIODATA,BIODATA!E27) ->  | AJ26: =VLOOKUP($AO$14,TABBIODATA,BIODATA!G27) -> 
B27: Kecamatan | C27: : | D27: Karawang Barat | K27: 3 | AB27: 16. | AC27: Alamat Wali Siswa | AE27: : | AF27: =VLOOKUP($AO$14,TAB_BIODATA,BIODATA!Y4) -> - | AH27: =VLOOKUP($AO$14,TABBIODATA,BIODATA!D28) ->  | AI27: =VLOOKUP($AO$14,TABBIODATA,BIODATA!E28) ->  | AJ27: =VLOOKUP($AO$14,TABBIODATA,BIODATA!G28) -> 
B28: Kota / Kabupaten | C28: : | D28: Karawang | K28: Contoh : | AF28: =VLOOKUP($AO$14,TAB_BIODATA,BIODATA!Z4) -> - | AH28: =VLOOKUP($AO$14,TABBIODATA,BIODATA!D29) ->  | AI28: =VLOOKUP($AO$14,TABBIODATA,BIODATA!E29) ->  | AJ28: =VLOOKUP($AO$14,TABBIODATA,BIODATA!G29) -> 
B29: Provinsi | C29: : | D29: Jawa Barat | K29: 100 – 75 = 25 = 8,33 | AC29: Nomor Telepon Rumah | AE29: : | AF29: =VLOOKUP($AO$14,TAB_BIODATA,BIODATA!AA4) -> - | AH29: =VLOOKUP($AO$14,TABBIODATA,BIODATA!D30) ->  | AI29: =VLOOKUP($AO$14,TABBIODATA,BIODATA!E30) ->  | AJ29: =VLOOKUP($AO$14,TABBIODATA,BIODATA!G30) -> 
B30: Website | C30: : | D30: www.smkn1karawang.net | K30: 3 3 | AB30: 17. | AC30: Pekerjaan Wali Siswa | AE30: : | AF30: =VLOOKUP($AO$14,TAB_BIODATA,BIODATA!AB4) -> - | AH30: =VLOOKUP($AO$14,TABBIODATA,BIODATA!D31) ->  | AI30: =VLOOKUP($AO$14,TABBIODATA,BIODATA!E31) ->  | AJ30: =VLOOKUP($AO$14,TABBIODATA,BIODATA!G31) -> 
B31: email | C31: : | D31: infocenter@smkn1karawang.net
K32: Setelah dibulatkan maka rentang predikat ada pada 8 atau 9.
K33: Maka rentang predikatnya : | AH33: =AF16 -> 00:00:00
K34: Sangat Baik (A) : 93-100 | AH34: Kepala Sekolah,
K35: Baik (B) : 84-92
K36: Cukup (C) : 75-83
K37: Kurang (D) : ≤ 74
J38: 14 | K38: Deskripsi pada kompetensi pengetahuan dan kompetensi keterampilan ditulis dengan kalimat positif sesuai capaian tertinggi dan terendah yang diperoleh siswa. Apabila capaian kompetensi dasar yang diperoleh dalam muatan pelajaran itu sama, kolom deskripsi ditulis berdasarkan capaian yang diperoleh;
AH39: =MENU!M15 -> 0
AH40: ="NIP "&MENU!M17 -> NIP
J42: 15 | K42: Laporan Praktik Kerja Lapangan diisi berdasarkan kegiatan praktik kerja yang diikuti oleh siswa di industri/perusahaan mitra;
I47: =(100-77)/3 -> 7.666666667 | K47: 100 – 77 = 23 = 7,67
K48: 3 3
K50: Setelah dibulatkan maka rentang predikat ada pada 7 atau 8.
K51: Maka rentang predikatnya :
K52: Sangat Baik (A) : 93-100
K53: Baik (B) : 85-92
K54: Cukup (C) : 77-84
K55: Kurang (D) : ≤ 76
AO57: 12
AO147: 12

Sheet PINDAH.PRES
A1: KETERANGAN PINDAH SEKOLAH | G1: KETERANGAN PINDAH SEKOLAH | N1: CATATAN PRESTASI YANG PERNAH DICAPAI
A3: Nama Siswa | D3: : | E3: =VLOOKUP($Y$14,TAB_BIODATA,BIODATA!C4) -> BAGAS ADJI PRIANTOMO | G3: Nama Siswa | I3: : | J3: =VLOOKUP($Y$14,TAB_BIODATA,BIODATA!C4) -> BAGAS ADJI PRIANTOMO | O3: Nama Siswa | R3: : | S3: =VLOOKUP($Y$14,TAB_BIODATA,BIODATA!C4) -> BAGAS ADJI PRIANTOMO
O4: Nama Sekolah | R4: : | S4: SMKN 1 KARAWANG
A5: KELUAR | G5: NO. | H5: MASUK | O5: Nomor Induk | R5: : | S5: =VLOOKUP($Y$14,TAB_BIODATA,BIODATA!D4) -> 16170371 | X5: HALAMAN CETAK
A6: Tanggal | C6: Kelas yang Ditinggalkan | D6: Sebab-sebab Keluar atau Atas Permintaan (Tertulis) | F6: Tanda Tangan Kepala Sekolah, Stempel Sekolah, dan Tanda Tangan Orang Tua / Wali | M6: ............................, .................
G7: 1 | H7: Nama Siswa | J7: =VLOOKUP($Y$14,TAB_BIODATA,BIODATA!C4,FALSE) -> BAGAS ADJI PRIANTOMO | M7: Kepala Sekolah, | N7: No. | O7: Prestasi yang Pernah Dicapai | R7: Keterangan | X7: Dari data ke | Y7: 12
F8: ............................, ................. | N8: 1 | O8: Kurikuler | R8: .....................................................................................................................................
F9: Kepala Sekolah, | G9: 2 | H9: Nomor Induk / NISN | J9: =IF(VLOOKUP($Y$14,TAB_BIODATA,BIODATA!E4)="",VLOOKUP($Y$14,TAB_BIODATA,BIODATA!D4),VLOOKUP($Y$14,TAB_BIODATA,BIODATA!D4)&" / "&VLOOKUP($Y$14,TAB_BIODATA,BIODATA!E4)) -> 16170371 / 0019580311 | R9: ..................................................................................................................................... | X9: Sampai data ke | Y9: 12
G10: 3 | H10: Nama Sekolah Asal | J10: SMKN 1 KARAWANG | M10: ............................................... | R10: .....................................................................................................................................
G11: 4 | H11: Masuk Di sekolah ini | M11: NIP. ........................................ | R11: .....................................................................................................................................
F12: ............................................... | H12: a. Tanggal | J12: =VLOOKUP($Y$14,TAB_BIODATA,BIODATA!P4) -> 00:00:00 | R12: .....................................................................................................................................
F13: NIP. ........................................ | H13: b. Di Kelas | J13: =VLOOKUP($Y$14,TAB_BIODATA,BIODATA!O4) -> 0 | R13: ..................................................................................................................................... | X13: TAMPILAN DATA
G14: 5 | H14: Tahun Pelajaran | J14: 2015/2016 | R14: ..................................................................................................................................... | X14: Nomor Urut | Y14: 3
F15: Orang Tua/Wali, | R15: .....................................................................................................................................
R16: .....................................................................................................................................
R17: .....................................................................................................................................
F18: ............................................... | M18: ............................, ................. | R18: .....................................................................................................................................
G19: 1 | H19: Nama Siswa | J19: ……………………………… | M19: Kepala Sekolah, | R19: .....................................................................................................................................
F20: ............................, ................. | J20: ……………………………… | N20: 2 | O20: Ekstra Kurikuler | R20: .....................................................................................................................................
F21: Kepala Sekolah, | G21: 2 | H21: Nomor Induk / NISN | J21: ……………………………… | R21: .....................................................................................................................................
G22: 3 | H22: Nama Sekolah Asal | J22: ……………………………… | M22: ............................................... | R22: .....................................................................................................................................
G23: 4 | H23: Masuk Di sekolah ini | J23: ……………………………… | M23: NIP. ........................................ | R23: .....................................................................................................................................
F24: ............................................... | H24: a. Tanggal | J24: ……………………………… | R24: .....................................................................................................................................
F25: NIP. ........................................ | H25: b. Di Kelas | J25: ……………………………… | R25: .....................................................................................................................................
G26: 5 | H26: Tahun Pelajaran | J26: ……………………………… | R26: .....................................................................................................................................
F27: Orang Tua/Wali, | R27: .....................................................................................................................................
R28: .....................................................................................................................................
R29: .....................................................................................................................................
F30: ............................................... | M30: ............................, ................. | R30: .....................................................................................................................................
G31: 1 | H31: Nama Siswa | J31: ……………………………… | M31: Kepala Sekolah, | R31: .....................................................................................................................................
F32: ............................, ................. | J32: ……………………………… | N32: 3 | O32: Catatan Khusus | R32: .....................................................................................................................................
F33: Kepala Sekolah, | G33: 2 | H33: Nomor Induk / NISN | J33: ……………………………… | O33: Lainnya | R33: .....................................................................................................................................
G34: 3 | H34: Nama Sekolah Asal | J34: ……………………………… | M34: ............................................... | R34: .....................................................................................................................................
G35: 4 | H35: Masuk Di sekolah ini | J35: ……………………………… | M35: NIP. ........................................ | R35: .....................................................................................................................................
F36: ............................................... | H36: a. Tanggal | J36: ……………………………… | R36: .....................................................................................................................................
F37: NIP. ........................................ | H37: b. Di Kelas | J37: ……………………………… | R37: .....................................................................................................................................
G38: 5 | H38: Tahun Pelajaran | J38: ……………………………… | R38: .....................................................................................................................................
F39: Orang Tua/Wali, | R39: .....................................................................................................................................
R40: .....................................................................................................................................
R41: .....................................................................................................................................
F42: ............................................... | R42: .....................................................................................................................................
R43: .....................................................................................................................................

Sheet MENU
D7: Data Struktur Kurikulum
D8: Kompetensi Keahlian | E8: : | F8: TBSM
D9: Kelas | E9: : | F9: TBSM 2
D11: Data Kepala Sekolah
D12: Nama | E12: : | F12: Drs. Makmur, M.T.
D13: NIP | E13: : | F13: 19640423 199512 1 002
D15: Data Pengisian oleh Wali Kelas
D16: Semester | E16: : | F16: 2 (dua)
D17: Nama Wali Kelas | E17: : | F17: Amo Sisdianto, S.Kom.
D18: NIP | E18: : | F18: -

Sheet TITIMANGSA
B2: Titimangsa KHS
B3: Tahun Pelajaran | C3: : | D3: 2020 / 2021
B4: Semester 1 | C4: : | D4: Karawang, 18 Desember 2020
B5: Wali Kelas | C5: : | D5: Abdul Hapid, S.P
B6: NIP | C6: : | D6: 19680917 200012 1 003
B7: Semester 2 | C7: :
B8: Wali Kelas | C8: : | D8: Amo Sisdianto, S.Kom
B9: NIP | C9: :
B11: Tahun Pelajaran | C11: : | D11: 2020 / 2021
B12: Semester 3 | C12: :
B13: Wali Kelas | C13: : | D13: Amo Sisdianto, S.Kom
B14: NIP | C14: :
B15: Semester 4 | C15: : | D15: Karawang, 30 Maret 2021
B16: Wali Kelas | C16: : | D16: Abdul Hapid, S.P
B17: NIP | C17: : | D17: 19680917 200012 1 003
B19: Tahun Pelajaran | C19: : | D19: 2020 / 2021
B20: Semester 5 | C20: :
B21: Wali Kelas | C21: : | D21: Amo Sisdianto, S.Kom
B22: NIP | C22: :
B23: Semester 6 | C23: :
B24: Wali Kelas | C24: : | D24: Abdul Hapid, S.P
B25: NIP | C25: : | D25: 19680917 200012 1 003
B27: Tahun Pelajaran | C27: : | D27: 2020 / 2021
B28: Semester 7 | C28: :
B29: Wali Kelas | C29: : | D29: Amo Sisdianto, S.Kom
B30: NIP | C30: :
B31: Semester 8 | C31: :
B32: Wali Kelas | C32: : | D32: Abdul Hapid, S.P
B33: NIP | C33: : | D33: 19680917 200012 1 003

Sheet LEGGER1
A1: PEMERINTAH DAERAH PROVINSI JAWA BARAT
A2: DINAS PENDIDIKAN
A3: SMKN 1 KARAWANG
A4: Jl. Pangkal Perjuangan By Pass Karawang Telp.0267-401651 Fax.417258 Website : www.smkn1karawang.net Email : smkn1karawang@gmail.com
A6: ="LEGER NILAI SISWA TAHUN PELAJARAN "&MENU!F15 -> LEGER NILAI SISWA TAHUN PELAJARAN | AA6: HALAMAN CETAK
AA7: Dari data ke | AB7: 2
A8: Nama Siswa | C8: : | D8: =VLOOKUP($AB$14,TABNILSM1,#REF!) ->  | N8: Bidang Keahlian | Q8: : | R8: =KET.PETUNJUK!D18 -> Teknologi dan Rekayasa
A9: Nomor Induk/NISN | C9: : | D9: =IF(VLOOKUP($AB$14,TABBIODATA,BIODATA!E4)="",VLOOKUP($AB$14,TABBIODATA,BIODATA!D4),VLOOKUP($AB$14,TABBIODATA,BIODATA!D4)&" / "&VLOOKUP($AB$14,TABBIODATA,BIODATA!E4)) ->  | N9: Program Keahlian | Q9: : | R9: =KET.PETUNJUK!D19 -> Teknik Otomotif | AA9: Sampai data ke | AB9: 2
A10: Kelas/Semester | C10: : | D10: =W10&" / "&W11 ->  | N10: Paket Keahlian | Q10: : | R10: =KET.PETUNJUK!D20 -> Teknik dan Bisnis Sepeda Motor | W10: =IF(OR(W11="1 (satu)",W11="2 (dua)"),"X "&MENU!F9,IF(OR(W11="3 (tiga)",W11="4 (empat)"),"XI "&MENU!F9,IF(OR(W11="5 (lima)",W11="6 (enam)"),"XII "&MENU!F9,""))) -> 
A11: Wali Kelas | C11: : | D11: =#REF! ->  | W11: =#REF! -> 
A13: A. Nilai Sikap | N13: Prestasi | T13: Ketidakhadiran | AA13: TAMPILAN DATA
A14: No. | B14: Kompetensi Inti | D14: Deskripsi | N14: Jenis Prestasi | R14: Keterangan | T14: Sakit | U14: : | V14: =VLOOKUP($AB$14,TABNILSM1,#REF!) ->  | W14: 2 | AA14: Nomor Urut | AB14: 2
A15: 1 | B15: Spiritual (KI-1) | D15: =IFERROR(VLOOKUP(W15,TABDESSPIRITUAL,2),"-") -> - | N15: =IFERROR(VLOOKUP($AB$14,TABNILSM1,#REF!),"-") -> - | R15: =IFERROR(VLOOKUP($AB$14,TABNILSM1,#REF!),"-") -> - | T15: Izin | U15: : | V15: =VLOOKUP($AB$14,TABNILSM1,#REF!) ->  | W15: =VLOOKUP($AB$14,TABNILSM1,#REF!) -> 
T16: Alpa | U16: : | V16: =VLOOKUP($AB$14,TABNILSM1,#REF!) -> 
A17: 2 | B17: Sosial (KI-2) | D17: =IFERROR(VLOOKUP(W18,TABDESSOSIAL,2),"-") -> -
N18: =IFERROR(VLOOKUP($AB$14,TABNILSM1,#REF!),"-") -> - | R18: =IFERROR(VLOOKUP($AB$14,TABNILSM1,#REF!),"-") -> - | W18: =VLOOKUP($AB$14,TABNILSM1,#REF!) ->  | AA18: PILIHAN DESKRIPSI
AA19: OTOMATIS
A22: B. Nilai Pengetahuan dan Keterampilan
A23: No. | B23: Mata Pelajaran | F23: Pengetahuan (KI-3) | M23: Keterampilan (KI-4)
F24: KB | G24: Angka | H24: Predikat | I24: Deskripsi | M24: KB | N24: Angka | O24: Predikat | P24: Deskripsi
A25: Muatan Nasional
A26: =#REF! ->  | B26: =#REF! ->  | F26: =#REF! ->  | G26: =VLOOKUP($AB$14,TABNILSM1,#REF!) ->  | H26: =IFERROR(VLOOKUP(G26,GRADE_MAPELAB,4),"-") -> - | I26: =IFERROR(IF($AA$19=DBLOGIC!$B$5,VLOOKUP(H26,TABDESPENGETAHUAN,2),IF($AA$19=DBLOGIC!$B$6,VLOOKUP(H26,DESKPENGETAHUANSM1,#REF!),"-")),"-") -> - | M26: =#REF! ->  | N26: =VLOOKUP($AB$14,TABNILSM1,#REF!) ->  | O26: =IFERROR(VLOOKUP(N26,GRADE_MAPELAB,4),"-") -> - | P26: =IFERROR(IF($AA$19=DBLOGIC!$B$5,VLOOKUP(O26,TABDESKETERAMPILAN,2),IF($AA$19=DBLOGIC!$B$6,VLOOKUP(O26,DESKKETERAMPILANSM1,#REF!),"-")),"-") -> -
A27: =#REF! ->  | B27: =#REF! ->  | F27: =#REF! ->  | G27: =VLOOKUP($AB$14,TABNILSM1,#REF!) ->  | H27: - | I27: =IFERROR(IF($AA$19=DBLOGIC!$B$5,VLOOKUP(H27,TABDESPENGETAHUAN,2),IF($AA$19=DBLOGIC!$B$6,VLOOKUP(H27,DESKPENGETAHUANSM1,#REF!),"-")),"-") -> - | M27: =#REF! ->  | N27: =VLOOKUP($AB$14,TABNILSM1,#REF!) ->  | O27: - | P27: =IFERROR(IF($AA$19=DBLOGIC!$B$5,VLOOKUP(O27,TABDESKETERAMPILAN,2),IF($AA$19=DBLOGIC!$B$6,VLOOKUP(O27,DESKKETERAMPILANSM1,#REF!),"-")),"-") -> -
A28: =#REF! ->  | B28: =#REF! ->  | F28: =#REF! ->  | G28: =VLOOKUP($AB$14,TABNILSM1,#REF!) ->  | H28: - | I28: =IFERROR(IF($AA$19=DBLOGIC!$B$5,VLOOKUP(H28,TABDESPENGETAHUAN,2),IF($AA$19=DBLOGIC!$B$6,VLOOKUP(H28,DESKPENGETAHUANSM1,#REF!),"-")),"-") -> - | M28: =#REF! ->  | N28: =VLOOKUP($AB$14,TABNILSM1,#REF!) ->  | O28: - | P28: =IFERROR(IF($AA$19=DBLOGIC!$B$5,VLOOKUP(O28,TABDESKETERAMPILAN,2),IF($AA$19=DBLOGIC!$B$6,VLOOKUP(O28,DESKKETERAMPILANSM1,#REF!),"-")),"-") -> -
A29: =#REF! ->  | B29: =#REF! ->  | F29: =#REF! ->  | G29: =VLOOKUP($AB$14,TABNILSM1,#REF!) ->  | H29: - | I29: =IFERROR(IF($AA$19=DBLOGIC!$B$5,VLOOKUP(H29,TABDESPENGETAHUAN,2),IF($AA$19=DBLOGIC!$B$6,VLOOKUP(H29,DESKPENGETAHUANSM1,#REF!),"-")),"-") -> - | M29: =#REF! ->  | N29: =VLOOKUP($AB$14,TABNILSM1,#REF!) ->  | O29: - | P29: =IFERROR(IF($AA$19=DBLOGIC!$B$5,VLOOKUP(O29,TABDESKETERAMPILAN,2),IF($AA$19=DBLOGIC!$B$6,VLOOKUP(O29,DESKKETERAMPILANSM1,#REF!),"-")),"-") -> -
A30: =#REF! ->  | B30: =#REF! ->  | F30: =#REF! ->  | G30: =VLOOKUP($AB$14,TABNILSM1,#REF!) ->  | H30: - | I30: =IFERROR(IF($AA$19=DBLOGIC!$B$5,VLOOKUP(H30,TABDESPENGETAHUAN,2),IF($AA$19=DBLOGIC!$B$6,VLOOKUP(H30,DESKPENGETAHUANSM1,#REF!),"-")),"-") -> - | M30: =#REF! ->  | N30: =VLOOKUP($AB$14,TABNILSM1,#REF!) ->  | O30: - | P30: =IFERROR(IF($AA$19=DBLOGIC!$B$5,VLOOKUP(O30,TABDESKETERAMPILAN,2),IF($AA$19=DBLOGIC!$B$6,VLOOKUP(O30,DESKKETERAMPILANSM1,#REF!),"-")),"-") -> -
A31: =#REF! ->  | B31: =#REF! ->  | F31: =#REF! ->  | G31: =VLOOKUP($AB$14,TABNILSM1,#REF!) ->  | H31: - | I31: =IFERROR(IF($AA$19=DBLOGIC!$B$5,VLOOKUP(H31,TABDESPENGETAHUAN,2),IF($AA$19=DBLOGIC!$B$6,VLOOKUP(H31,DESKPENGETAHUANSM1,#REF!),"-")),"-") -> - | M31: =#REF! ->  | N31: =VLOOKUP($AB$14,TABNILSM1,#REF!) ->  | O31: - | P31: =IFERROR(IF($AA$19=DBLOGIC!$B$5,VLOOKUP(O31,TABDESKETERAMPILAN,2),IF($AA$19=DBLOGIC!$B$6,VLOOKUP(O31,DESKKETERAMPILANSM1,#REF!),"-")),"-") -> -
A32: Muatan Kewilayahan
A33: =#REF! ->  | B33: =#REF! ->  | F33: =#REF! ->  | G33: =VLOOKUP($AB$14,TABNILSM1,#REF!) ->  | H33: =IFERROR(VLOOKUP(G33,GRADE_MAPELAB,4),"-") -> - | I33: =IFERROR(IF($AA$19=DBLOGIC!$B$5,VLOOKUP(H33,TABDESPENGETAHUAN,2),IF($AA$19=DBLOGIC!$B$6,VLOOKUP(H33,DESKPENGETAHUANSM1,#REF!),"-")),"-") -> - | M33: =#REF! ->  | N33: =VLOOKUP($AB$14,TABNILSM1,#REF!) ->  | O33: =IFERROR(VLOOKUP(N33,GRADE_MAPELAB,4),"-") -> - | P33: =IFERROR(IF($AA$19=DBLOGIC!$B$5,VLOOKUP(O33,TABDESKETERAMPILAN,2),IF($AA$19=DBLOGIC!$B$6,VLOOKUP(O33,DESKKETERAMPILANSM1,#REF!),"-")),"-") -> -
A34: =#REF! ->  | B34: =#REF! ->  | F34: =#REF! ->  | G34: =VLOOKUP($AB$14,TABNILSM1,#REF!) ->  | H34: =IFERROR(VLOOKUP(G34,GRADE_MAPELAB,4),"-") -> - | I34: =IFERROR(IF($AA$19=DBLOGIC!$B$5,VLOOKUP(H34,TABDESPENGETAHUAN,2),IF($AA$19=DBLOGIC!$B$6,VLOOKUP(H34,DESKPENGETAHUANSM1,#REF!),"-")),"-") -> - | M34: =#REF! ->  | N34: =VLOOKUP($AB$14,TABNILSM1,#REF!) ->  | O34: =IFERROR(VLOOKUP(N34,GRADE_MAPELAB,4),"-") -> - | P34: =IFERROR(IF($AA$19=DBLOGIC!$B$5,VLOOKUP(O34,TABDESKETERAMPILAN,2),IF($AA$19=DBLOGIC!$B$6,VLOOKUP(O34,DESKKETERAMPILANSM1,#REF!),"-")),"-") -> -
B35: Muatan Lokal
A36: =#REF! ->  | B36: =#REF! ->  | F36: =#REF! ->  | G36: =VLOOKUP($AB$14,TABNILSM1,#REF!) ->  | H36: =IFERROR(VLOOKUP(G36,GRADE_MAPELAB,4),"-") -> - | I36: =IFERROR(IF($AA$19=DBLOGIC!$B$5,VLOOKUP(H36,TABDESPENGETAHUAN,2),IF($AA$19=DBLOGIC!$B$6,VLOOKUP(H36,DESKPENGETAHUANSM1,#REF!),"-")),"-") -> - | M36: =#REF! ->  | N36: =VLOOKUP($AB$14,TABNILSM1,#REF!) ->  | O36: =IFERROR(VLOOKUP(N36,GRADE_MAPELAB,4),"-") -> - | P36: =IFERROR(IF($AA$19=DBLOGIC!$B$5,VLOOKUP(O36,TABDESKETERAMPILAN,2),IF($AA$19=DBLOGIC!$B$6,VLOOKUP(O36,DESKKETERAMPILANSM1,#REF!),"-")),"-") -> -
A37: =#REF! ->  | B37: =#REF! ->  | F37: =#REF! ->  | G37: =VLOOKUP($AB$14,TABNILSM1,#REF!) ->  | H37: =IFERROR(VLOOKUP(G37,GRADE_MAPELAB,4),"-") -> - | I37: =IFERROR(IF($AA$19=DBLOGIC!$B$5,VLOOKUP(H37,TABDESPENGETAHUAN,2),IF($AA$19=DBLOGIC!$B$6,VLOOKUP(H37,DESKPENGETAHUANSM1,#REF!),"-")),"-") -> - | M37: =#REF! ->  | N37: =VLOOKUP($AB$14,TABNILSM1,#REF!) ->  | O37: =IFERROR(VLOOKUP(N37,GRADE_MAPELAB,4),"-") -> - | P37: =IFERROR(IF($AA$19=DBLOGIC!$B$5,VLOOKUP(O37,TABDESKETERAMPILAN,2),IF($AA$19=DBLOGIC!$B$6,VLOOKUP(O37,DESKKETERAMPILANSM1,#REF!),"-")),"-") -> -
A38: Muatan Peminatan Kejuruan
A39: C1 | B39: Dasar Bidang Keahlian
A40: =#REF! ->  | B40: =#REF! ->  | F40: =#REF! ->  | G40: =VLOOKUP($AB$14,TABNILSM1,#REF!) ->  | H40: =IFERROR(VLOOKUP(G40,GRADE_MAPELAB,4),"-") -> - | I40: =IFERROR(IF($AA$19=DBLOGIC!$B$5,VLOOKUP(H40,TABDESPENGETAHUAN,2),IF($AA$19=DBLOGIC!$B$6,VLOOKUP(H40,DESKPENGETAHUANSM1,#REF!),"-")),"-") -> - | M40: =#REF! ->  | N40: =VLOOKUP($AB$14,TABNILSM1,#REF!) ->  | O40: =IFERROR(VLOOKUP(N40,GRADE_MAPELAB,4),"-") -> - | P40: =IFERROR(IF($AA$19=DBLOGIC!$B$5,VLOOKUP(O40,TABDESKETERAMPILAN,2),IF($AA$19=DBLOGIC!$B$6,VLOOKUP(O40,DESKKETERAMPILANSM1,#REF!),"-")),"-") -> -
A41: =#REF! ->  | B41: =#REF! ->  | F41: =#REF! ->  | G41: =VLOOKUP($AB$14,TABNILSM1,#REF!) ->  | H41: =IFERROR(VLOOKUP(G41,GRADE_MAPELAB,4),"-") -> - | I41: =IFERROR(IF($AA$19=DBLOGIC!$B$5,VLOOKUP(H41,TABDESPENGETAHUAN,2),IF($AA$19=DBLOGIC!$B$6,VLOOKUP(H41,DESKPENGETAHUANSM1,#REF!),"-")),"-") -> - | M41: =#REF! ->  | N41: =VLOOKUP($AB$14,TABNILSM1,#REF!) ->  | O41: =IFERROR(VLOOKUP(N41,GRADE_MAPELAB,4),"-") -> - | P41: =IFERROR(IF($AA$19=DBLOGIC!$B$5,VLOOKUP(O41,TABDESKETERAMPILAN,2),IF($AA$19=DBLOGIC!$B$6,VLOOKUP(O41,DESKKETERAMPILANSM1,#REF!),"-")),"-") -> -
A42: =#REF! ->  | B42: =#REF! ->  | F42: =#REF! ->  | G42: =VLOOKUP($AB$14,TABNILSM1,#REF!) ->  | H42: =IFERROR(VLOOKUP(G42,GRADE_MAPELAB,4),"-") -> - | I42: =IFERROR(IF($AA$19=DBLOGIC!$B$5,VLOOKUP(H42,TABDESPENGETAHUAN,2),IF($AA$19=DBLOGIC!$B$6,VLOOKUP(H42,DESKPENGETAHUANSM1,#REF!),"-")),"-") -> - | M42: =#REF! ->  | N42: =VLOOKUP($AB$14,TABNILSM1,#REF!) ->  | O42: =IFERROR(VLOOKUP(N42,GRADE_MAPELAB,4),"-") -> - | P42: =IFERROR(IF($AA$19=DBLOGIC!$B$5,VLOOKUP(O42,TABDESKETERAMPILAN,2),IF($AA$19=DBLOGIC!$B$6,VLOOKUP(O42,DESKKETERAMPILANSM1,#REF!),"-")),"-") -> -
A43: C2 | B43: Dasar Program Keahlian
A44: =#REF! ->  | B44: =#REF! ->  | F44: =#REF! ->  | G44: =VLOOKUP($AB$14,TABNILSM1,#REF!) ->  | H44: - | I44: =IFERROR(IF($AA$19=DBLOGIC!$B$5,VLOOKUP(H44,TABDESPENGETAHUAN,2),IF($AA$19=DBLOGIC!$B$6,VLOOKUP(H44,DESKPENGETAHUANSM1,#REF!),"-")),"-") -> - | M44: =#REF! ->  | N44: =VLOOKUP($AB$14,TABNILSM1,#REF!) ->  | O44: - | P44: =IFERROR(IF($AA$19=DBLOGIC!$B$5,VLOOKUP(O44,TABDESKETERAMPILAN,2),IF($AA$19=DBLOGIC!$B$6,VLOOKUP(O44,DESKKETERAMPILANSM1,#REF!),"-")),"-") -> -
A45: =#REF! ->  | B45: =#REF! ->  | F45: =#REF! ->  | G45: =VLOOKUP($AB$14,TABNILSM1,#REF!) ->  | H45: - | I45: =IFERROR(IF($AA$19=DBLOGIC!$B$5,VLOOKUP(H45,TABDESPENGETAHUAN,2),IF($AA$19=DBLOGIC!$B$6,VLOOKUP(H45,DESKPENGETAHUANSM1,#REF!),"-")),"-") -> - | M45: =#REF! ->  | N45: =VLOOKUP($AB$14,TABNILSM1,#REF!) ->  | O45: - | P45: =IFERROR(IF($AA$19=DBLOGIC!$B$5,VLOOKUP(O45,TABDESKETERAMPILAN,2),IF($AA$19=DBLOGIC!$B$6,VLOOKUP(O45,DESKKETERAMPILANSM1,#REF!),"-")),"-") -> -
A46: =#REF! ->  | B46: =#REF! ->  | F46: =#REF! ->  | G46: =VLOOKUP($AB$14,TABNILSM1,#REF!) ->  | H46: - | I46: =IFERROR(IF($AA$19=DBLOGIC!$B$5,VLOOKUP(H46,TABDESPENGETAHUAN,2),IF($AA$19=DBLOGIC!$B$6,VLOOKUP(H46,DESKPENGETAHUANSM1,#REF!),"-")),"-") -> - | M46: =#REF! ->  | N46: =VLOOKUP($AB$14,TABNILSM1,#REF!) ->  | O46: - | P46: =IFERROR(IF($AA$19=DBLOGIC!$B$5,VLOOKUP(O46,TABDESKETERAMPILAN,2),IF($AA$19=DBLOGIC!$B$6,VLOOKUP(O46,DESKKETERAMPILANSM1,#REF!),"-")),"-") -> -
A47: =#REF! ->  | B47: =#REF! ->  | F47: =#REF! ->  | G47: =VLOOKUP($AB$14,TABNILSM1,#REF!) ->  | H47: - | I47: =IFERROR(IF($AA$19=DBLOGIC!$B$5,VLOOKUP(H47,TABDESPENGETAHUAN,2),IF($AA$19=DBLOGIC!$B$6,VLOOKUP(H47,DESKPENGETAHUANSM1,#REF!),"-")),"-") -> - | M47: =#REF! ->  | N47: =VLOOKUP($AB$14,TABNILSM1,#REF!) ->  | O47: - | P47: =IFERROR(IF($AA$19=DBLOGIC!$B$5,VLOOKUP(O47,TABDESKETERAMPILAN,2),IF($AA$19=DBLOGIC!$B$6,VLOOKUP(O47,DESKKETERAMPILANSM1,#REF!),"-")),"-") -> -
A48: C3 | B48: Paket Keahlian
A49: =#REF! ->  | B49: =#REF! ->  | F49: =#REF! ->  | G49: =VLOOKUP($AB$14,TABNILSM1,#REF!) ->  | H49: - | I49: =IFERROR(IF($AA$19=DBLOGIC!$B$5,VLOOKUP(H49,TABDESPENGETAHUAN,2),IF($AA$19=DBLOGIC!$B$6,VLOOKUP(H49,DESKPENGETAHUANSM1,#REF!),"-")),"-") -> - | M49: =#REF! ->  | N49: =VLOOKUP($AB$14,TABNILSM1,#REF!) ->  | O49: - | P49: =IFERROR(IF($AA$19=DBLOGIC!$B$5,VLOOKUP(O49,TABDESKETERAMPILAN,2),IF($AA$19=DBLOGIC!$B$6,VLOOKUP(O49,DESKKETERAMPILANSM1,#REF!),"-")),"-") -> -
A50: =#REF! ->  | B50: =#REF! ->  | F50: =#REF! ->  | G50: =VLOOKUP($AB$14,TABNILSM1,#REF!) ->  | H50: =IFERROR(VLOOKUP(G50,GRADE_MAPELAB,4),"-") -> - | I50: =IFERROR(IF($AA$19=DBLOGIC!$B$5,VLOOKUP(H50,TABDESPENGETAHUAN,2),IF($AA$19=DBLOGIC!$B$6,VLOOKUP(H50,DESKMANUPENGETAHUAN,2),"-")),"-") -> - | M50: =#REF! ->  | N50: =VLOOKUP($AB$14,TABNILSM1,#REF!) ->  | O50: =IFERROR(VLOOKUP(N50,GRADE_MAPELAB,4),"-") -> - | P50: =IFERROR(IF($AA$19=DBLOGIC!$B$5,VLOOKUP(O50,TABDESKETERAMPILAN,2),IF($AA$19=DBLOGIC!$B$6,VLOOKUP(O50,DESKMANUKETERAMPILAN,2),"-")),"-") -> -
A51: =#REF! ->  | B51: =#REF! ->  | F51: =#REF! ->  | G51: =VLOOKUP($AB$14,TABNILSM1,#REF!) ->  | H51: - | I51: =IFERROR(IF($AA$19=DBLOGIC!$B$5,VLOOKUP(H51,TABDESPENGETAHUAN,2),IF($AA$19=DBLOGIC!$B$6,VLOOKUP(H51,DESKMANUPENGETAHUAN,2),"-")),"-") -> - | M51: =#REF! ->  | N51: =VLOOKUP($AB$14,TABNILSM1,#REF!) ->  | O51: - | P51: =IFERROR(IF($AA$19=DBLOGIC!$B$5,VLOOKUP(O51,TABDESKETERAMPILAN,2),IF($AA$19=DBLOGIC!$B$6,VLOOKUP(O51,DESKMANUKETERAMPILAN,2),"-")),"-") -> -
A52: =#REF! ->  | B52: =#REF! ->  | F52: =#REF! ->  | G52: =VLOOKUP($AB$14,TABNILSM1,#REF!) ->  | H52: - | I52: =IFERROR(IF($AA$19=DBLOGIC!$B$5,VLOOKUP(H52,TABDESPENGETAHUAN,2),IF($AA$19=DBLOGIC!$B$6,VLOOKUP(H52,DESKMANUPENGETAHUAN,2),"-")),"-") -> - | M52: =#REF! ->  | N52: =VLOOKUP($AB$14,TABNILSM1,#REF!) ->  | O52: - | P52: =IFERROR(IF($AA$19=DBLOGIC!$B$5,VLOOKUP(O52,TABDESKETERAMPILAN,2),IF($AA$19=DBLOGIC!$B$6,VLOOKUP(O52,DESKMANUKETERAMPILAN,2),"-")),"-") -> -
A53: =#REF! ->  | B53: =#REF! ->  | F53: =#REF! ->  | G53: =VLOOKUP($AB$14,TABNILSM1,#REF!) ->  | H53: - | I53: =IFERROR(IF($AA$19=DBLOGIC!$B$5,VLOOKUP(H53,TABDESPENGETAHUAN,2),IF($AA$19=DBLOGIC!$B$6,VLOOKUP(H53,DESKMANUPENGETAHUAN,2),"-")),"-") -> - | M53: =#REF! ->  | N53: =VLOOKUP($AB$14,TABNILSM1,#REF!) ->  | O53: - | P53: =IFERROR(IF($AA$19=DBLOGIC!$B$5,VLOOKUP(O53,TABDESKETERAMPILAN,2),IF($AA$19=DBLOGIC!$B$6,VLOOKUP(O53,DESKMANUKETERAMPILAN,2),"-")),"-") -> -
A54: =#REF! ->  | B54: =#REF! ->  | F54: =#REF! ->  | G54: =VLOOKUP($AB$14,TABNILSM1,#REF!) ->  | H54: - | I54: =IFERROR(IF($AA$19=DBLOGIC!$B$5,VLOOKUP(H54,TABDESPENGETAHUAN,2),IF($AA$19=DBLOGIC!$B$6,VLOOKUP(H54,DESKMANUPENGETAHUAN,2),"-")),"-") -> - | M54: =#REF! ->  | N54: =VLOOKUP($AB$14,TABNILSM1,#REF!) ->  | O54: - | P54: =IFERROR(IF($AA$19=DBLOGIC!$B$5,VLOOKUP(O54,TABDESKETERAMPILAN,2),IF($AA$19=DBLOGIC!$B$6,VLOOKUP(O54,DESKMANUKETERAMPILAN,2),"-")),"-") -> -
A55: =#REF! ->  | B55: =#REF! ->  | F55: =#REF! ->  | G55: =VLOOKUP($AB$14,TABNILSM1,#REF!) ->  | H55: - | I55: =IFERROR(IF($AA$19=DBLOGIC!$B$5,VLOOKUP(H55,TABDESPENGETAHUAN,2),IF($AA$19=DBLOGIC!$B$6,VLOOKUP(H55,DESKMANUPENGETAHUAN,2),"-")),"-") -> - | M55: =#REF! ->  | N55: =VLOOKUP($AB$14,TABNILSM1,#REF!) ->  | O55: - | P55: =IFERROR(IF($AA$19=DBLOGIC!$B$5,VLOOKUP(O55,TABDESKETERAMPILAN,2),IF($AA$19=DBLOGIC!$B$6,VLOOKUP(O55,DESKMANUKETERAMPILAN,2),"-")),"-") -> -
B56: Rata-rata | G56: =VLOOKUP($AB$14,TABNILSM1,#REF!) ->  | H56: =VLOOKUP(G56,GRADE_MAPELAB,4) ->  | N56: =VLOOKUP($AB$14,TABNILSM1,#REF!) ->  | O56: =VLOOKUP(N56,GRADE_MAPELAB,4) ->  | Q56: Total Nilai : | T56: Peringkat di Kelas :
B57: Jumlah Nilai | G57: =VLOOKUP($AB$14,TABNILSM1,#REF!) ->  | N57: =VLOOKUP($AB$14,TABNILSM1,#REF!) ->  | Q57: =VLOOKUP($AB$14,TABNILSM1,#REF!) ->  | T57: =IF(VLOOKUP($AB$14,TABNILSM1,#REF!)="","-",VLOOKUP($AB$14,TABNILSM1,#REF!)&" dari "&VLOOKUP($AB$14,TABNILSM1,#REF!)) -> 
A59: C. Praktek Kerja Lapangan | M59: D. Ekstrakurikuler
A60: No. | B60: Mitra DU/DI | G60: Lokasi | J60: Lamanya (Bulan) | K60: Keterangan | M60: No. | N60: Kegiatan Ekstrakurikuler | R60: Keterangan | AA60: =D8 -> 
A61: 1 | B61: =IF(VLOOKUP($AB$14,TABNILSM1,#REF!)="","-",VLOOKUP($AB$14,TABNILSM1,#REF!)) ->  | G61: =IF(VLOOKUP($AB$14,TABNILSM1,#REF!)="","-",VLOOKUP($AB$14,TABNILSM1,#REF!)) ->  | J61: =IF(VLOOKUP($AB$14,TABNILSM1,#REF!)="","-",VLOOKUP($AB$14,TABNILSM1,#REF!)) ->  | K61: =IF(VLOOKUP($AB$14,TABNILSM1,#REF!)="","-",VLOOKUP($AB$14,TABNILSM1,#REF!)) ->  | M61: 1 | N61: =IF(VLOOKUP($AB$14,TABNILSM1,#REF!)="","-",VLOOKUP($AB$14,TABNILSM1,#REF!)) ->  | R61: =IF(VLOOKUP($AB$14,TABNILSM1,#REF!)="","-",VLOOKUP(W61,TABNESKUL,2,FALSE)) ->  | W61: =VLOOKUP($AB$14,TABNILSM1,#REF!) -> 
M62: 2 | N62: =IF(VLOOKUP($AB$14,TABNILSM1,#REF!)="","-",VLOOKUP($AB$14,TABNILSM1,#REF!)) ->  | R62: =IF(VLOOKUP($AB$14,TABNILSM1,#REF!)="","-",VLOOKUP(W62,TABNESKUL,2,FALSE)) ->  | W62: =VLOOKUP($AB$14,TABNILSM1,#REF!) -> 
A63: 2 | B63: =IF(VLOOKUP($AB$14,TABNILSM1,#REF!)="","-",VLOOKUP($AB$14,TABNILSM1,#REF!)) ->  | G63: =IF(VLOOKUP($AB$14,TABNILSM1,#REF!)="","-",VLOOKUP($AB$14,TABNILSM1,#REF!)) ->  | J63: =IF(VLOOKUP($AB$14,TABNILSM1,#REF!)="","-",VLOOKUP($AB$14,TABNILSM1,#REF!)) ->  | K63: =IF(VLOOKUP($AB$14,TABNILSM1,#REF!)="","-",VLOOKUP($AB$14,TABNILSM1,#REF!)) ->  | M63: 3 | N63: =IF(VLOOKUP($AB$14,TABNILSM1,#REF!)="","-",VLOOKUP($AB$14,TABNILSM1,#REF!)) ->  | R63: =IF(VLOOKUP($AB$14,TABNILSM1,#REF!)="","-",VLOOKUP(W63,TABNESKUL,2,FALSE)) ->  | W63: =VLOOKUP($AB$14,TABNILSM1,#REF!) ->  | AA63: ="Nomor Urut "&AB14 -> Nomor Urut 2

Sheet CETSM8
C1: KARTU HASIL STUDI (KHS) PESERTA DIDIK | Q1: JURUSAN | R1: =MENU!F8 -> TBSM
C2: SMK NEGERI 1 KARAWANG | Q2: NIS | R2: =VLOOKUP($R$13,TAB_BIODATA,BIODATA!D4,FALSE) -> 16170449
D4: Nama Peserta Didik | E4: : | F4: =VLOOKUP($R$13,TAB_BIODATA,BIODATA!C4,FALSE) -> ADAM MAULANA RIZALDI
D5: Nomor Induk/NISN | E5: : | F5: =IF(VLOOKUP($R$13,TAB_BIODATA,BIODATA!E4)="",VLOOKUP($R$13,TAB_BIODATA,BIODATA!D4,FALSE),VLOOKUP($R$13,TAB_BIODATA,BIODATA!D4)&" / "&VLOOKUP($R$13,TAB_BIODATA,BIODATA!E4,FALSE)) -> 16170449 / 0013261209 | Q5: DATA CETAK | S5: HALAMAN CETAK
D6: Kelas | E6: : | F6: =IF(OR(F8="1 (satu)",F8="2 (dua)"),"X "&MENU!F9,IF(OR(F8="3 (tiga)",F8="4 (empat)"),"XI "&MENU!F9,IF(OR(F8="5 (lima)",F8="6 (enam)"),"XII "&MENU!F9,IF(OR(F8="7 (tujuh)",F8="8 (delapan)"),"XIII "&MENU!F9,"")))) -> XIII TBSM 2 | Q6: Dari data ke | R6: 1 | S6: Dari | T6: 1
D7: Tahun Pelajaran | E7: : | F7: =RIGHT(NILSM8!A2,11) -> 2020 / 2021
D8: Semester | E8: : | F8: =NILSM8!B3 -> 8 (delapan) | Q8: Sampai data ke | R8: 2 | S8: Ke | T8: 1
C10: Nilai Akademik
C11: No. | D11: Mata Pelajaran | E11: KKM | F11: KD 1 | H11: KD 2 | J11: KD 3 | L11: Kehadiran
F12: Tugas | G12: Ulangan | H12: Tugas | I12: Ulangan | J12: Tugas | K12: Ulangan | Q12: TAMPILAN DATA
C13: A. Muatan Nasional | F13: T1 | G13: U1 | H13: T2 | I13: U2 | J13: T3 | K13: U3 | L13: H | Q13: Nomor Urut | R13: 2
A14: PAB | B14: =IF(C14>=1,1,0) -> 0 | C14: =HLOOKUP(A14&$F$13,TABNILSM8,4,FALSE) -> 0 | D14: =HLOOKUP(A14&$F$13,TABNILSM8,2,FALSE) ->  | E14: =IFERROR(HLOOKUP(A14&$F$13,TABNILSM8,5,FALSE),"-") -> 78 | F14: =INDEX(TABNILSM8,MATCH($R$2,NILSM8!$C$1:$C$43,0),MATCH(A14&$F$13,NILSM8!$C$1:$FR$1,0)) -> 11 | G14: =INDEX(TABNILSM8,MATCH($R$2,NILSM8!$C$1:$C$43,0),MATCH(A14&$G$13,NILSM8!$C$1:$FR$1,0)) -> 12 | H14: =INDEX(TABNILSM8,MATCH($R$2,NILSM8!$C$1:$C$43,0),MATCH(A14&$H$13,NILSM8!$C$1:$FR$1,0)) -> 13 | I14: =INDEX(TABNILSM8,MATCH($R$2,NILSM8!$C$1:$C$43,0),MATCH(A14&$I$13,NILSM8!$C$1:$FR$1,0)) -> 14 | J14: =INDEX(TABNILSM8,MATCH($R$2,NILSM8!$C$1:$C$43,0),MATCH(A14&$J$13,NILSM8!$C$1:$FR$1,0)) -> 15 | K14: =INDEX(TABNILSM8,MATCH($R$2,NILSM8!$C$1:$C$43,0),MATCH(A14&$K$13,NILSM8!$C$1:$FR$1,0)) -> 16 | L14: =INDEX(TABNILSM8,MATCH($R$2,NILSM8!$C$1:$C$43,0),MATCH(A14&$L$13,NILSM8!$C$1:$FR$1,0)) -> 17
A15: PKN | B15: =IF(C15>=1,1,0) ->  | E15: 78 | F15: =INDEX(TABNILSM8,MATCH($R$2,NILSM8!$C$1:$C$43,0),MATCH(A15&$F$13,NILSM8!$C$1:$FR$1,0)) -> 18 | G15: =INDEX(TABNILSM8,MATCH($R$2,NILSM8!$C$1:$C$43,0),MATCH(A15&$G$13,NILSM8!$C$1:$FR$1,0)) -> 19 | H15: =INDEX(TABNILSM8,MATCH($R$2,NILSM8!$C$1:$C$43,0),MATCH(A15&$H$13,NILSM8!$C$1:$FR$1,0)) -> 20 | I15: =INDEX(TABNILSM8,MATCH($R$2,NILSM8!$C$1:$C$43,0),MATCH(A15&$I$13,NILSM8!$C$1:$FR$1,0)) -> 21 | J15: =INDEX(TABNILSM8,MATCH($R$2,NILSM8!$C$1:$C$43,0),MATCH(A15&$J$13,NILSM8!$C$1:$FR$1,0)) -> 22 | K15: =INDEX(TABNILSM8,MATCH($R$2,NILSM8!$C$1:$C$43,0),MATCH(A15&$K$13,NILSM8!$C$1:$FR$1,0)) -> 23 | L15: =INDEX(TABNILSM8,MATCH($R$2,NILSM8!$C$1:$C$43,0),MATCH(A15&$L$13,NILSM8!$C$1:$FR$1,0)) -> 24
A16: IND | E16: 78 | F16: =INDEX(TABNILSM8,MATCH($R$2,NILSM8!$C$1:$C$43,0),MATCH(A16&$F$13,NILSM8!$C$1:$FR$1,0)) -> 25 | G16: =INDEX(TABNILSM8,MATCH($R$2,NILSM8!$C$1:$C$43,0),MATCH(A16&$G$13,NILSM8!$C$1:$FR$1,0)) -> 26 | H16: =INDEX(TABNILSM8,MATCH($R$2,NILSM8!$C$1:$C$43,0),MATCH(A16&$H$13,NILSM8!$C$1:$FR$1,0)) -> 27 | I16: =INDEX(TABNILSM8,MATCH($R$2,NILSM8!$C$1:$C$43,0),MATCH(A16&$I$13,NILSM8!$C$1:$FR$1,0)) -> 28 | J16: =INDEX(TABNILSM8,MATCH($R$2,NILSM8!$C$1:$C$43,0),MATCH(A16&$J$13,NILSM8!$C$1:$FR$1,0)) -> 29 | K16: =INDEX(TABNILSM8,MATCH($R$2,NILSM8!$C$1:$C$43,0),MATCH(A16&$K$13,NILSM8!$C$1:$FR$1,0)) -> 30 | L16: =INDEX(TABNILSM8,MATCH($R$2,NILSM8!$C$1:$C$43,0),MATCH(A16&$L$13,NILSM8!$C$1:$FR$1,0)) -> 31
A17: MTK | E17: 78 | F17: =INDEX(TABNILSM8,MATCH($R$2,NILSM8!$C$1:$C$43,0),MATCH(A17&$F$13,NILSM8!$C$1:$FR$1,0)) -> 32 | G17: =INDEX(TABNILSM8,MATCH($R$2,NILSM8!$C$1:$C$43,0),MATCH(A17&$G$13,NILSM8!$C$1:$FR$1,0)) -> 33 | H17: =INDEX(TABNILSM8,MATCH($R$2,NILSM8!$C$1:$C$43,0),MATCH(A17&$H$13,NILSM8!$C$1:$FR$1,0)) -> 34 | I17: =INDEX(TABNILSM8,MATCH($R$2,NILSM8!$C$1:$C$43,0),MATCH(A17&$I$13,NILSM8!$C$1:$FR$1,0)) -> 35 | J17: =INDEX(TABNILSM8,MATCH($R$2,NILSM8!$C$1:$C$43,0),MATCH(A17&$J$13,NILSM8!$C$1:$FR$1,0)) -> 36 | K17: =INDEX(TABNILSM8,MATCH($R$2,NILSM8!$C$1:$C$43,0),MATCH(A17&$K$13,NILSM8!$C$1:$FR$1,0)) -> 37 | L17: =INDEX(TABNILSM8,MATCH($R$2,NILSM8!$C$1:$C$43,0),MATCH(A17&$L$13,NILSM8!$C$1:$FR$1,0)) -> 38
A18: SJI | E18: 78 | F18: =INDEX(TABNILSM8,MATCH($R$2,NILSM8!$C$1:$C$43,0),MATCH(A18&$F$13,NILSM8!$C$1:$FR$1,0)) -> 39 | G18: =INDEX(TABNILSM8,MATCH($R$2,NILSM8!$C$1:$C$43,0),MATCH(A18&$G$13,NILSM8!$C$1:$FR$1,0)) -> 40 | H18: =INDEX(TABNILSM8,MATCH($R$2,NILSM8!$C$1:$C$43,0),MATCH(A18&$H$13,NILSM8!$C$1:$FR$1,0)) -> 41 | I18: =INDEX(TABNILSM8,MATCH($R$2,NILSM8!$C$1:$C$43,0),MATCH(A18&$I$13,NILSM8!$C$1:$FR$1,0)) -> 42 | J18: =INDEX(TABNILSM8,MATCH($R$2,NILSM8!$C$1:$C$43,0),MATCH(A18&$J$13,NILSM8!$C$1:$FR$1,0)) -> 43 | K18: =INDEX(TABNILSM8,MATCH($R$2,NILSM8!$C$1:$C$43,0),MATCH(A18&$K$13,NILSM8!$C$1:$FR$1,0)) -> 44 | L18: =INDEX(TABNILSM8,MATCH($R$2,NILSM8!$C$1:$C$43,0),MATCH(A18&$L$13,NILSM8!$C$1:$FR$1,0)) -> 45
A19: ING | E19: 78 | F19: =INDEX(TABNILSM8,MATCH($R$2,NILSM8!$C$1:$C$43,0),MATCH(A19&$F$13,NILSM8!$C$1:$FR$1,0)) -> 46 | G19: =INDEX(TABNILSM8,MATCH($R$2,NILSM8!$C$1:$C$43,0),MATCH(A19&$G$13,NILSM8!$C$1:$FR$1,0)) -> 47 | H19: =INDEX(TABNILSM8,MATCH($R$2,NILSM8!$C$1:$C$43,0),MATCH(A19&$H$13,NILSM8!$C$1:$FR$1,0)) -> 48 | I19: =INDEX(TABNILSM8,MATCH($R$2,NILSM8!$C$1:$C$43,0),MATCH(A19&$I$13,NILSM8!$C$1:$FR$1,0)) -> 49 | J19: =INDEX(TABNILSM8,MATCH($R$2,NILSM8!$C$1:$C$43,0),MATCH(A19&$J$13,NILSM8!$C$1:$FR$1,0)) -> 50 | K19: =INDEX(TABNILSM8,MATCH($R$2,NILSM8!$C$1:$C$43,0),MATCH(A19&$K$13,NILSM8!$C$1:$FR$1,0)) -> 51 | L19: =INDEX(TABNILSM8,MATCH($R$2,NILSM8!$C$1:$C$43,0),MATCH(A19&$L$13,NILSM8!$C$1:$FR$1,0)) -> 52
A20: JER | E20: 78 | F20: =INDEX(TABNILSM8,MATCH($R$2,NILSM8!$C$1:$C$43,0),MATCH(A20&$F$13,NILSM8!$C$1:$FR$1,0)) -> 53 | G20: =INDEX(TABNILSM8,MATCH($R$2,NILSM8!$C$1:$C$43,0),MATCH(A20&$G$13,NILSM8!$C$1:$FR$1,0)) -> 54 | H20: =INDEX(TABNILSM8,MATCH($R$2,NILSM8!$C$1:$C$43,0),MATCH(A20&$H$13,NILSM8!$C$1:$FR$1,0)) -> 55 | I20: =INDEX(TABNILSM8,MATCH($R$2,NILSM8!$C$1:$C$43,0),MATCH(A20&$I$13,NILSM8!$C$1:$FR$1,0)) -> 56 | J20: =INDEX(TABNILSM8,MATCH($R$2,NILSM8!$C$1:$C$43,0),MATCH(A20&$J$13,NILSM8!$C$1:$FR$1,0)) -> 57 | K20: =INDEX(TABNILSM8,MATCH($R$2,NILSM8!$C$1:$C$43,0),MATCH(A20&$K$13,NILSM8!$C$1:$FR$1,0)) -> 58 | L20: =INDEX(TABNILSM8,MATCH($R$2,NILSM8!$C$1:$C$43,0),MATCH(A20&$L$13,NILSM8!$C$1:$FR$1,0)) -> 59
B21: =IF(AND(COUNT(C21)=0,C23=0),0,1) ->  | C21: B. Muatan Kewilayahan
A22: SBD | C22: =HLOOKUP(A22&$F$13,TABNILSM8,4,FALSE) ->  | D22: =HLOOKUP(A22&$F$13,TABNILSM8,2,FALSE) ->  | E22: =IFERROR(HLOOKUP(A22&$F$13,TABNILSM8,5,FALSE),"-") -> 78 | F22: =INDEX(TABNILSM8,MATCH($R$2,NILSM8!$C$1:$C$43,0),MATCH(A22&$F$13,NILSM8!$C$1:$FR$1,0)) -> 60 | G22: =INDEX(TABNILSM8,MATCH($R$2,NILSM8!$C$1:$C$43,0),MATCH(A22&$G$13,NILSM8!$C$1:$FR$1,0)) -> 61 | H22: =INDEX(TABNILSM8,MATCH($R$2,NILSM8!$C$1:$C$43,0),MATCH(A22&$H$13,NILSM8!$C$1:$FR$1,0)) -> 62 | I22: =INDEX(TABNILSM8,MATCH($R$2,NILSM8!$C$1:$C$43,0),MATCH(A22&$I$13,NILSM8!$C$1:$FR$1,0)) -> 63 | J22: =INDEX(TABNILSM8,MATCH($R$2,NILSM8!$C$1:$C$43,0),MATCH(A22&$J$13,NILSM8!$C$1:$FR$1,0)) -> 64 | K22: =INDEX(TABNILSM8,MATCH($R$2,NILSM8!$C$1:$C$43,0),MATCH(A22&$K$13,NILSM8!$C$1:$FR$1,0)) -> 65 | L22: =INDEX(TABNILSM8,MATCH($R$2,NILSM8!$C$1:$C$43,0),MATCH(A22&$L$13,NILSM8!$C$1:$FR$1,0)) -> 66
A23: PJO | C23: =HLOOKUP(A23&$F$13,TABNILSM8,4,FALSE) ->  | D23: =HLOOKUP(A23&$F$13,TABNILSM8,2,FALSE) ->  | E23: =IFERROR(HLOOKUP(A23&$F$13,TABNILSM8,5,FALSE),"-") -> 78 | F23: =INDEX(TABNILSM8,MATCH($R$2,NILSM8!$C$1:$C$43,0),MATCH(A23&$F$13,NILSM8!$C$1:$FR$1,0)) -> 67 | G23: =INDEX(TABNILSM8,MATCH($R$2,NILSM8!$C$1:$C$43,0),MATCH(A23&$G$13,NILSM8!$C$1:$FR$1,0)) -> 68 | H23: =INDEX(TABNILSM8,MATCH($R$2,NILSM8!$C$1:$C$43,0),MATCH(A23&$H$13,NILSM8!$C$1:$FR$1,0)) -> 69 | I23: =INDEX(TABNILSM8,MATCH($R$2,NILSM8!$C$1:$C$43,0),MATCH(A23&$I$13,NILSM8!$C$1:$FR$1,0)) -> 70 | J23: =INDEX(TABNILSM8,MATCH($R$2,NILSM8!$C$1:$C$43,0),MATCH(A23&$J$13,NILSM8!$C$1:$FR$1,0)) -> 71 | K23: =INDEX(TABNILSM8,MATCH($R$2,NILSM8!$C$1:$C$43,0),MATCH(A23&$K$13,NILSM8!$C$1:$FR$1,0)) -> 72 | L23: =INDEX(TABNILSM8,MATCH($R$2,NILSM8!$C$1:$C$43,0),MATCH(A23&$L$13,NILSM8!$C$1:$FR$1,0)) -> 73
A24: - | B24: 1 | C24: C. Muatan Peminatan Kejuruan
B25: =IF(AND(COUNT(C25)=0,C26=0),0,1) ->  | C25: C1 | D25: Dasar Bidang Keahlian
A26: SKD | B26: =IF(C26>=1,1,0) ->  | C26: =HLOOKUP(A26&$F$13,TABNILSM8,4,FALSE) ->  | D26: =HLOOKUP(A26&$F$13,TABNILSM8,2,FALSE) ->  | E26: =IFERROR(HLOOKUP(A26&$F$13,TABNILSM8,5,FALSE),"-") -> 78 | F26: =INDEX(TABNILSM8,MATCH($R$2,NILSM8!$C$1:$C$43,0),MATCH(A26&$F$13,NILSM8!$C$1:$FR$1,0)) -> 74 | G26: =INDEX(TABNILSM8,MATCH($R$2,NILSM8!$C$1:$C$43,0),MATCH(A26&$G$13,NILSM8!$C$1:$FR$1,0)) -> 75 | H26: =INDEX(TABNILSM8,MATCH($R$2,NILSM8!$C$1:$C$43,0),MATCH(A26&$H$13,NILSM8!$C$1:$FR$1,0)) -> 76 | I26: =INDEX(TABNILSM8,MATCH($R$2,NILSM8!$C$1:$C$43,0),MATCH(A26&$I$13,NILSM8!$C$1:$FR$1,0)) -> 77 | J26: =INDEX(TABNILSM8,MATCH($R$2,NILSM8!$C$1:$C$43,0),MATCH(A26&$J$13,NILSM8!$C$1:$FR$1,0)) -> 78 | K26: =INDEX(TABNILSM8,MATCH($R$2,NILSM8!$C$1:$C$43,0),MATCH(A26&$K$13,NILSM8!$C$1:$FR$1,0)) -> 79 | L26: =INDEX(TABNILSM8,MATCH($R$2,NILSM8!$C$1:$C$43,0),MATCH(A26&$L$13,NILSM8!$C$1:$FR$1,0)) -> 80
A27: FIS | C27: =HLOOKUP(A27&$F$13,TABNILSM8,4,FALSE) ->  | D27: =HLOOKUP(A27&$F$13,TABNILSM8,2,FALSE) ->  | E27: =IFERROR(HLOOKUP(A27&$F$13,TABNILSM8,5,FALSE),"-") -> 78 | F27: =INDEX(TABNILSM8,MATCH($R$2,NILSM8!$C$1:$C$43,0),MATCH(A27&$F$13,NILSM8!$C$1:$FR$1,0)) -> 81 | G27: =INDEX(TABNILSM8,MATCH($R$2,NILSM8!$C$1:$C$43,0),MATCH(A27&$G$13,NILSM8!$C$1:$FR$1,0)) -> 82 | H27: =INDEX(TABNILSM8,MATCH($R$2,NILSM8!$C$1:$C$43,0),MATCH(A27&$H$13,NILSM8!$C$1:$FR$1,0)) -> 83 | I27: =INDEX(TABNILSM8,MATCH($R$2,NILSM8!$C$1:$C$43,0),MATCH(A27&$I$13,NILSM8!$C$1:$FR$1,0)) -> 84 | J27: =INDEX(TABNILSM8,MATCH($R$2,NILSM8!$C$1:$C$43,0),MATCH(A27&$J$13,NILSM8!$C$1:$FR$1,0)) -> 85 | K27: =INDEX(TABNILSM8,MATCH($R$2,NILSM8!$C$1:$C$43,0),MATCH(A27&$K$13,NILSM8!$C$1:$FR$1,0)) -> 86 | L27: =INDEX(TABNILSM8,MATCH($R$2,NILSM8!$C$1:$C$43,0),MATCH(A27&$L$13,NILSM8!$C$1:$FR$1,0)) -> 87
A28: KIM | C28: =HLOOKUP(A28&$F$13,TABNILSM8,4,FALSE) ->  | D28: =HLOOKUP(A28&$F$13,TABNILSM8,2,FALSE) ->  | E28: =IFERROR(HLOOKUP(A28&$F$13,TABNILSM8,5,FALSE),"-") -> 78 | F28: =INDEX(TABNILSM8,MATCH($R$2,NILSM8!$C$1:$C$43,0),MATCH(A28&$F$13,NILSM8!$C$1:$FR$1,0)) -> 88 | G28: =INDEX(TABNILSM8,MATCH($R$2,NILSM8!$C$1:$C$43,0),MATCH(A28&$G$13,NILSM8!$C$1:$FR$1,0)) -> 89 | H28: =INDEX(TABNILSM8,MATCH($R$2,NILSM8!$C$1:$C$43,0),MATCH(A28&$H$13,NILSM8!$C$1:$FR$1,0)) -> 90 | I28: =INDEX(TABNILSM8,MATCH($R$2,NILSM8!$C$1:$C$43,0),MATCH(A28&$I$13,NILSM8!$C$1:$FR$1,0)) -> 91 | J28: =INDEX(TABNILSM8,MATCH($R$2,NILSM8!$C$1:$C$43,0),MATCH(A28&$J$13,NILSM8!$C$1:$FR$1,0)) -> 92 | K28: =INDEX(TABNILSM8,MATCH($R$2,NILSM8!$C$1:$C$43,0),MATCH(A28&$K$13,NILSM8!$C$1:$FR$1,0)) -> 93 | L28: =INDEX(TABNILSM8,MATCH($R$2,NILSM8!$C$1:$C$43,0),MATCH(A28&$L$13,NILSM8!$C$1:$FR$1,0)) -> 94
B29: =IF(AND(COUNT(C29)=0,C30=0),0,1) ->  | C29: C2 | D29: Dasar Program Keahlian
A30: C21 | C30: =HLOOKUP(A30&$F$13,TABNILSM8,4,FALSE) ->  | D30: =HLOOKUP(A30&$F$13,TABNILSM8,2,FALSE) ->  | E30: =IFERROR(HLOOKUP(A30&$F$13,TABNILSM8,5,FALSE),"-") -> 78 | F30: =INDEX(TABNILSM8,MATCH($R$2,NILSM8!$C$1:$C$43,0),MATCH(A30&$F$13,NILSM8!$C$1:$FR$1,0)) -> 95 | G30: =INDEX(TABNILSM8,MATCH($R$2,NILSM8!$C$1:$C$43,0),MATCH(A30&$G$13,NILSM8!$C$1:$FR$1,0)) -> 96 | H30: =INDEX(TABNILSM8,MATCH($R$2,NILSM8!$C$1:$C$43,0),MATCH(A30&$H$13,NILSM8!$C$1:$FR$1,0)) -> 97 | I30: =INDEX(TABNILSM8,MATCH($R$2,NILSM8!$C$1:$C$43,0),MATCH(A30&$I$13,NILSM8!$C$1:$FR$1,0)) -> 98 | J30: =INDEX(TABNILSM8,MATCH($R$2,NILSM8!$C$1:$C$43,0),MATCH(A30&$J$13,NILSM8!$C$1:$FR$1,0)) -> 99 | K30: =INDEX(TABNILSM8,MATCH($R$2,NILSM8!$C$1:$C$43,0),MATCH(A30&$K$13,NILSM8!$C$1:$FR$1,0)) -> 100 | L30: =INDEX(TABNILSM8,MATCH($R$2,NILSM8!$C$1:$C$43,0),MATCH(A30&$L$13,NILSM8!$C$1:$FR$1,0)) -> 75
A31: C22 | C31: =HLOOKUP(A31&$F$13,TABNILSM8,4,FALSE) ->  | D31: =HLOOKUP(A31&$F$13,TABNILSM8,2,FALSE) ->  | E31: =IFERROR(HLOOKUP(A31&$F$13,TABNILSM8,5,FALSE),"-") -> 78 | F31: =INDEX(TABNILSM8,MATCH($R$2,NILSM8!$C$1:$C$43,0),MATCH(A31&$F$13,NILSM8!$C$1:$FR$1,0)) -> 76 | G31: =INDEX(TABNILSM8,MATCH($R$2,NILSM8!$C$1:$C$43,0),MATCH(A31&$G$13,NILSM8!$C$1:$FR$1,0)) -> 77 | H31: =INDEX(TABNILSM8,MATCH($R$2,NILSM8!$C$1:$C$43,0),MATCH(A31&$H$13,NILSM8!$C$1:$FR$1,0)) -> 78 | I31: =INDEX(TABNILSM8,MATCH($R$2,NILSM8!$C$1:$C$43,0),MATCH(A31&$I$13,NILSM8!$C$1:$FR$1,0)) -> 79 | J31: =INDEX(TABNILSM8,MATCH($R$2,NILSM8!$C$1:$C$43,0),MATCH(A31&$J$13,NILSM8!$C$1:$FR$1,0)) -> 80 | K31: =INDEX(TABNILSM8,MATCH($R$2,NILSM8!$C$1:$C$43,0),MATCH(A31&$K$13,NILSM8!$C$1:$FR$1,0)) -> 81 | L31: =INDEX(TABNILSM8,MATCH($R$2,NILSM8!$C$1:$C$43,0),MATCH(A31&$L$13,NILSM8!$C$1:$FR$1,0)) -> 82
A32: C23 | C32: =HLOOKUP(A32&$F$13,TABNILSM8,4,FALSE) ->  | D32: =HLOOKUP(A32&$F$13,TABNILSM8,2,FALSE) ->  | E32: =IFERROR(HLOOKUP(A32&$F$13,TABNILSM8,5,FALSE),"-") -> 78 | F32: =INDEX(TABNILSM8,MATCH($R$2,NILSM8!$C$1:$C$43,0),MATCH(A32&$F$13,NILSM8!$C$1:$FR$1,0)) -> 83 | G32: =INDEX(TABNILSM8,MATCH($R$2,NILSM8!$C$1:$C$43,0),MATCH(A32&$G$13,NILSM8!$C$1:$FR$1,0)) -> 84 | H32: =INDEX(TABNILSM8,MATCH($R$2,NILSM8!$C$1:$C$43,0),MATCH(A32&$H$13,NILSM8!$C$1:$FR$1,0)) -> 85 | I32: =INDEX(TABNILSM8,MATCH($R$2,NILSM8!$C$1:$C$43,0),MATCH(A32&$I$13,NILSM8!$C$1:$FR$1,0)) -> 86 | J32: =INDEX(TABNILSM8,MATCH($R$2,NILSM8!$C$1:$C$43,0),MATCH(A32&$J$13,NILSM8!$C$1:$FR$1,0)) -> 87 | K32: =INDEX(TABNILSM8,MATCH($R$2,NILSM8!$C$1:$C$43,0),MATCH(A32&$K$13,NILSM8!$C$1:$FR$1,0)) -> 88 | L32: =INDEX(TABNILSM8,MATCH($R$2,NILSM8!$C$1:$C$43,0),MATCH(A32&$L$13,NILSM8!$C$1:$FR$1,0)) -> 89
A33: C24 | C33: =HLOOKUP(A33&$F$13,TABNILSM8,4,FALSE) ->  | D33: =HLOOKUP(A33&$F$13,TABNILSM8,2,FALSE) ->  | E33: =IFERROR(HLOOKUP(A33&$F$13,TABNILSM8,5,FALSE),"-") -> 78 | F33: =INDEX(TABNILSM8,MATCH($R$2,NILSM8!$C$1:$C$43,0),MATCH(A33&$F$13,NILSM8!$C$1:$FR$1,0)) -> 90 | G33: =INDEX(TABNILSM8,MATCH($R$2,NILSM8!$C$1:$C$43,0),MATCH(A33&$G$13,NILSM8!$C$1:$FR$1,0)) -> 91 | H33: =INDEX(TABNILSM8,MATCH($R$2,NILSM8!$C$1:$C$43,0),MATCH(A33&$H$13,NILSM8!$C$1:$FR$1,0)) -> 92 | I33: =INDEX(TABNILSM8,MATCH($R$2,NILSM8!$C$1:$C$43,0),MATCH(A33&$I$13,NILSM8!$C$1:$FR$1,0)) -> 93 | J33: =INDEX(TABNILSM8,MATCH($R$2,NILSM8!$C$1:$C$43,0),MATCH(A33&$J$13,NILSM8!$C$1:$FR$1,0)) -> 94 | K33: =INDEX(TABNILSM8,MATCH($R$2,NILSM8!$C$1:$C$43,0),MATCH(A33&$K$13,NILSM8!$C$1:$FR$1,0)) -> 95 | L33: =INDEX(TABNILSM8,MATCH($R$2,NILSM8!$C$1:$C$43,0),MATCH(A33&$L$13,NILSM8!$C$1:$FR$1,0)) -> 96
A34: - | B34: =IF(AND(COUNT(C34)=0,C37=0),0,1) ->  | C34: C3 | D34: Kompetensi Keahlian
A35: C31 | C35: =HLOOKUP(A35&$F$13,TABNILSM8,4,FALSE) ->  | D35: =HLOOKUP(A35&$F$13,TABNILSM8,2,FALSE) ->  | E35: =IFERROR(HLOOKUP(A35&$F$13,TABNILSM8,5,FALSE),"-") -> 78 | F35: =INDEX(TABNILSM8,MATCH($R$2,NILSM8!$C$1:$C$43,0),MATCH(A35&$F$13,NILSM8!$C$1:$FR$1,0)) -> 97 | G35: =INDEX(TABNILSM8,MATCH($R$2,NILSM8!$C$1:$C$43,0),MATCH(A35&$G$13,NILSM8!$C$1:$FR$1,0)) -> 98 | H35: =INDEX(TABNILSM8,MATCH($R$2,NILSM8!$C$1:$C$43,0),MATCH(A35&$H$13,NILSM8!$C$1:$FR$1,0)) -> 99 | I35: =INDEX(TABNILSM8,MATCH($R$2,NILSM8!$C$1:$C$43,0),MATCH(A35&$I$13,NILSM8!$C$1:$FR$1,0)) -> 100 | J35: =INDEX(TABNILSM8,MATCH($R$2,NILSM8!$C$1:$C$43,0),MATCH(A35&$J$13,NILSM8!$C$1:$FR$1,0)) -> 75 | K35: =INDEX(TABNILSM8,MATCH($R$2,NILSM8!$C$1:$C$43,0),MATCH(A35&$K$13,NILSM8!$C$1:$FR$1,0)) -> 76 | L35: =INDEX(TABNILSM8,MATCH($R$2,NILSM8!$C$1:$C$43,0),MATCH(A35&$L$13,NILSM8!$C$1:$FR$1,0)) -> 77
A36: C32 | E36: 78 | F36: =INDEX(TABNILSM8,MATCH($R$2,NILSM8!$C$1:$C$43,0),MATCH(A36&$F$13,NILSM8!$C$1:$FR$1,0)) -> 78 | G36: =INDEX(TABNILSM8,MATCH($R$2,NILSM8!$C$1:$C$43,0),MATCH(A36&$G$13,NILSM8!$C$1:$FR$1,0)) -> 79 | H36: =INDEX(TABNILSM8,MATCH($R$2,NILSM8!$C$1:$C$43,0),MATCH(A36&$H$13,NILSM8!$C$1:$FR$1,0)) -> 80 | I36: =INDEX(TABNILSM8,MATCH($R$2,NILSM8!$C$1:$C$43,0),MATCH(A36&$I$13,NILSM8!$C$1:$FR$1,0)) -> 81 | J36: =INDEX(TABNILSM8,MATCH($R$2,NILSM8!$C$1:$C$43,0),MATCH(A36&$J$13,NILSM8!$C$1:$FR$1,0)) -> 82 | K36: =INDEX(TABNILSM8,MATCH($R$2,NILSM8!$C$1:$C$43,0),MATCH(A36&$K$13,NILSM8!$C$1:$FR$1,0)) -> 83 | L36: =INDEX(TABNILSM8,MATCH($R$2,NILSM8!$C$1:$C$43,0),MATCH(A36&$L$13,NILSM8!$C$1:$FR$1,0)) -> 84
A37: C33 | E37: 78 | F37: =INDEX(TABNILSM8,MATCH($R$2,NILSM8!$C$1:$C$43,0),MATCH(A37&$F$13,NILSM8!$C$1:$FR$1,0)) -> 85 | G37: =INDEX(TABNILSM8,MATCH($R$2,NILSM8!$C$1:$C$43,0),MATCH(A37&$G$13,NILSM8!$C$1:$FR$1,0)) -> 86 | H37: =INDEX(TABNILSM8,MATCH($R$2,NILSM8!$C$1:$C$43,0),MATCH(A37&$H$13,NILSM8!$C$1:$FR$1,0)) -> 87 | I37: =INDEX(TABNILSM8,MATCH($R$2,NILSM8!$C$1:$C$43,0),MATCH(A37&$I$13,NILSM8!$C$1:$FR$1,0)) -> 88 | J37: =INDEX(TABNILSM8,MATCH($R$2,NILSM8!$C$1:$C$43,0),MATCH(A37&$J$13,NILSM8!$C$1:$FR$1,0)) -> 89 | K37: =INDEX(TABNILSM8,MATCH($R$2,NILSM8!$C$1:$C$43,0),MATCH(A37&$K$13,NILSM8!$C$1:$FR$1,0)) -> 90 | L37: =INDEX(TABNILSM8,MATCH($R$2,NILSM8!$C$1:$C$43,0),MATCH(A37&$L$13,NILSM8!$C$1:$FR$1,0)) -> 91
A38: C34 | E38: 78 | F38: =INDEX(TABNILSM8,MATCH($R$2,NILSM8!$C$1:$C$43,0),MATCH(A38&$F$13,NILSM8!$C$1:$FR$1,0)) -> 92 | G38: =INDEX(TABNILSM8,MATCH($R$2,NILSM8!$C$1:$C$43,0),MATCH(A38&$G$13,NILSM8!$C$1:$FR$1,0)) -> 93 | H38: =INDEX(TABNILSM8,MATCH($R$2,NILSM8!$C$1:$C$43,0),MATCH(A38&$H$13,NILSM8!$C$1:$FR$1,0)) -> 94 | I38: =INDEX(TABNILSM8,MATCH($R$2,NILSM8!$C$1:$C$43,0),MATCH(A38&$I$13,NILSM8!$C$1:$FR$1,0)) -> 95 | J38: =INDEX(TABNILSM8,MATCH($R$2,NILSM8!$C$1:$C$43,0),MATCH(A38&$J$13,NILSM8!$C$1:$FR$1,0)) -> 96 | K38: =INDEX(TABNILSM8,MATCH($R$2,NILSM8!$C$1:$C$43,0),MATCH(A38&$K$13,NILSM8!$C$1:$FR$1,0)) -> 97 | L38: =INDEX(TABNILSM8,MATCH($R$2,NILSM8!$C$1:$C$43,0),MATCH(A38&$L$13,NILSM8!$C$1:$FR$1,0)) -> 98
A39: C35 | E39: 78 | F39: =INDEX(TABNILSM8,MATCH($R$2,NILSM8!$C$1:$C$43,0),MATCH(A39&$F$13,NILSM8!$C$1:$FR$1,0)) -> 99 | G39: =INDEX(TABNILSM8,MATCH($R$2,NILSM8!$C$1:$C$43,0),MATCH(A39&$G$13,NILSM8!$C$1:$FR$1,0)) -> 100 | H39: =INDEX(TABNILSM8,MATCH($R$2,NILSM8!$C$1:$C$43,0),MATCH(A39&$H$13,NILSM8!$C$1:$FR$1,0)) -> 75 | I39: =INDEX(TABNILSM8,MATCH($R$2,NILSM8!$C$1:$C$43,0),MATCH(A39&$I$13,NILSM8!$C$1:$FR$1,0)) -> 76 | J39: =INDEX(TABNILSM8,MATCH($R$2,NILSM8!$C$1:$C$43,0),MATCH(A39&$J$13,NILSM8!$C$1:$FR$1,0)) -> 77 | K39: =INDEX(TABNILSM8,MATCH($R$2,NILSM8!$C$1:$C$43,0),MATCH(A39&$K$13,NILSM8!$C$1:$FR$1,0)) -> 78 | L39: =INDEX(TABNILSM8,MATCH($R$2,NILSM8!$C$1:$C$43,0),MATCH(A39&$L$13,NILSM8!$C$1:$FR$1,0)) -> 79
A40: C36 | E40: 78 | F40: =INDEX(TABNILSM8,MATCH($R$2,NILSM8!$C$1:$C$43,0),MATCH(A40&$F$13,NILSM8!$C$1:$FR$1,0)) -> 80 | G40: =INDEX(TABNILSM8,MATCH($R$2,NILSM8!$C$1:$C$43,0),MATCH(A40&$G$13,NILSM8!$C$1:$FR$1,0)) -> 81 | H40: =INDEX(TABNILSM8,MATCH($R$2,NILSM8!$C$1:$C$43,0),MATCH(A40&$H$13,NILSM8!$C$1:$FR$1,0)) -> 82 | I40: =INDEX(TABNILSM8,MATCH($R$2,NILSM8!$C$1:$C$43,0),MATCH(A40&$I$13,NILSM8!$C$1:$FR$1,0)) -> 83 | J40: =INDEX(TABNILSM8,MATCH($R$2,NILSM8!$C$1:$C$43,0),MATCH(A40&$J$13,NILSM8!$C$1:$FR$1,0)) -> 84 | K40: =INDEX(TABNILSM8,MATCH($R$2,NILSM8!$C$1:$C$43,0),MATCH(A40&$K$13,NILSM8!$C$1:$FR$1,0)) -> 85 | L40: =INDEX(TABNILSM8,MATCH($R$2,NILSM8!$C$1:$C$43,0),MATCH(A40&$L$13,NILSM8!$C$1:$FR$1,0)) -> 86
B41: =IF(AND(COUNT(C41)=0,C42=0),0,1) ->  | C41: Muatan Lokal
A42: SUN | C42: =HLOOKUP(A42&$F$13,TABNILSM8,4,FALSE) ->  | D42: =HLOOKUP(A42&$F$13,TABNILSM8,2,FALSE) ->  | E42: =IFERROR(HLOOKUP(A42&$F$13,TABNILSM8,5,FALSE),"-") -> 78 | F42: =INDEX(TABNILSM8,MATCH($R$2,NILSM8!$C$1:$C$43,0),MATCH(A42&$F$13,NILSM8!$C$1:$FR$1,0)) -> 87 | G42: =INDEX(TABNILSM8,MATCH($R$2,NILSM8!$C$1:$C$43,0),MATCH(A42&$G$13,NILSM8!$C$1:$FR$1,0)) -> 88 | H42: =INDEX(TABNILSM8,MATCH($R$2,NILSM8!$C$1:$C$43,0),MATCH(A42&$H$13,NILSM8!$C$1:$FR$1,0)) -> 89 | I42: =INDEX(TABNILSM8,MATCH($R$2,NILSM8!$C$1:$C$43,0),MATCH(A42&$I$13,NILSM8!$C$1:$FR$1,0)) -> 90 | J42: =INDEX(TABNILSM8,MATCH($R$2,NILSM8!$C$1:$C$43,0),MATCH(A42&$J$13,NILSM8!$C$1:$FR$1,0)) -> 91 | K42: =INDEX(TABNILSM8,MATCH($R$2,NILSM8!$C$1:$C$43,0),MATCH(A42&$K$13,NILSM8!$C$1:$FR$1,0)) -> 92 | L42: =INDEX(TABNILSM8,MATCH($R$2,NILSM8!$C$1:$C$43,0),MATCH(A42&$L$13,NILSM8!$C$1:$FR$1,0)) -> 93
A43: PLH | C43: =HLOOKUP(A43&$F$13,TABNILSM8,4,FALSE) ->  | D43: =HLOOKUP(A43&$F$13,TABNILSM8,2,FALSE) ->  | E43: =IFERROR(HLOOKUP(A43&$F$13,TABNILSM8,5,FALSE),"-") -> 78 | F43: =INDEX(TABNILSM8,MATCH($R$2,NILSM8!$C$1:$C$43,0),MATCH(A43&$F$13,NILSM8!$C$1:$FR$1,0)) -> 94 | G43: =INDEX(TABNILSM8,MATCH($R$2,NILSM8!$C$1:$C$43,0),MATCH(A43&$G$13,NILSM8!$C$1:$FR$1,0)) -> 95 | H43: =INDEX(TABNILSM8,MATCH($R$2,NILSM8!$C$1:$C$43,0),MATCH(A43&$H$13,NILSM8!$C$1:$FR$1,0)) -> 96 | I43: =INDEX(TABNILSM8,MATCH($R$2,NILSM8!$C$1:$C$43,0),MATCH(A43&$I$13,NILSM8!$C$1:$FR$1,0)) -> 97 | J43: =INDEX(TABNILSM8,MATCH($R$2,NILSM8!$C$1:$C$43,0),MATCH(A43&$J$13,NILSM8!$C$1:$FR$1,0)) -> 98 | K43: =INDEX(TABNILSM8,MATCH($R$2,NILSM8!$C$1:$C$43,0),MATCH(A43&$K$13,NILSM8!$C$1:$FR$1,0)) -> 99 | L43: =INDEX(TABNILSM8,MATCH($R$2,NILSM8!$C$1:$C$43,0),MATCH(A43&$L$13,NILSM8!$C$1:$FR$1,0)) -> 100
A45: CTT | C45: Bimbingan dan Konseling | G45: Catatan Akademik
A46: BKN | C46: =INDEX(TABNILSM8,MATCH($R$2,NILSM8!$C$1:$C$43,0),MATCH(A46,NILSM8!$C$1:$FR$1,0)) -> 0 | G46: =INDEX(TABNILSM8,MATCH($R$2,NILSM8!$C$1:$C$43,0),MATCH(A45,NILSM8!$C$1:$FR$1,0)) -> 0
C48: Catatan: Jika nilai 0, siswa belum mengupload tugas atau belum mengerjakan ulangan. Jika nilai - , materi KD (Kompetensi Dasar) tersebut dilaksanakan setelah pembagian KHS.
Q50: =VLOOKUP($R$13,TAB_BIODATA,BIODATA!C4,FALSE) -> ADAM MAULANA RIZALDI
D51: Mengetahui, | I51: =NILSM8!A5 -> 0
D52: Orang Tua/Wali, | I52: Wali Kelas, | Q52: ="Nomor Urut "&R13 -> Nomor Urut 2
I57: =NILSM8!B4 -> Abdul Hapid, S.P
I58: =IF(NILSM8!B5=0,"","NIP "&NILSM8!B5) -> NIP 19680917 200012 1 003

Sheet CETSM7
C1: KARTU HASIL STUDI (KHS) PESERTA DIDIK | Q1: JURUSAN | R1: =MENU!F8 -> TBSM
C2: SMK NEGERI 1 KARAWANG | Q2: NIS | R2: =VLOOKUP($R$13,TAB_BIODATA,BIODATA!D4,FALSE) -> 16170535
D4: Nama Peserta Didik | E4: : | F4: =VLOOKUP($R$13,TAB_BIODATA,BIODATA!C4,FALSE) -> ADAM ADIYAT HARTANTO
D5: Nomor Induk/NISN | E5: : | F5: =IF(VLOOKUP($R$13,TAB_BIODATA,BIODATA!E4)="",VLOOKUP($R$13,TAB_BIODATA,BIODATA!D4,FALSE),VLOOKUP($R$13,TAB_BIODATA,BIODATA!D4)&" / "&VLOOKUP($R$13,TAB_BIODATA,BIODATA!E4,FALSE)) -> 16170535 / 0016930017 | Q5: DATA CETAK | S5: HALAMAN CETAK
D6: Kelas | E6: : | F6: =IF(OR(F8="1 (satu)",F8="2 (dua)"),"X "&MENU!F9,IF(OR(F8="3 (tiga)",F8="4 (empat)"),"XI "&MENU!F9,IF(OR(F8="5 (lima)",F8="6 (enam)"),"XII "&MENU!F9,IF(OR(F8="7 (tujuh)",F8="8 (delapan)"),"XIII "&MENU!F9,"")))) -> XIII TBSM 2 | Q6: Dari data ke | R6: 1 | S6: Dari | T6: 1
D7: Tahun Pelajaran | E7: : | F7: =RIGHT(NILSM7!A2,11) -> 2020 / 2021
D8: Semester | E8: : | F8: =NILSM7!B3 -> 7 (tujuh) | Q8: Sampai data ke | R8: 2 | S8: Ke | T8: 1
C10: Nilai Akademik
C11: No. | D11: Mata Pelajaran | E11: KKM | F11: KD 1 | H11: KD 2 | J11: KD 3 | L11: Kehadiran
F12: Tugas | G12: Ulangan | H12: Tugas | I12: Ulangan | J12: Tugas | K12: Ulangan | Q12: TAMPILAN DATA
C13: A. Muatan Nasional | F13: T1 | G13: U1 | H13: T2 | I13: U2 | J13: T3 | K13: U3 | L13: H | Q13: Nomor Urut | R13: 1
A14: PAB | B14: =IF(C14>=1,1,0) -> 0 | C14: =HLOOKUP(A14&$F$13,TABNILSM7,4,FALSE) -> 0 | D14: =HLOOKUP(A14&$F$13,TABNILSM7,2,FALSE) ->  | E14: =IFERROR(HLOOKUP(A14&$F$13,TABNILSM7,5,FALSE),"-") -> 78 | F14: =INDEX(TABNILSM7,MATCH($R$2,NILSM7!$C$1:$C$43,0),MATCH(A14&$F$13,NILSM7!$C$1:$FR$1,0)) -> 0 | G14: =INDEX(TABNILSM7,MATCH($R$2,NILSM7!$C$1:$C$43,0),MATCH(A14&$G$13,NILSM7!$C$1:$FR$1,0)) -> 0 | H14: =INDEX(TABNILSM7,MATCH($R$2,NILSM7!$C$1:$C$43,0),MATCH(A14&$H$13,NILSM7!$C$1:$FR$1,0)) -> 0 | I14: =INDEX(TABNILSM7,MATCH($R$2,NILSM7!$C$1:$C$43,0),MATCH(A14&$I$13,NILSM7!$C$1:$FR$1,0)) -> 0 | J14: =INDEX(TABNILSM7,MATCH($R$2,NILSM7!$C$1:$C$43,0),MATCH(A14&$J$13,NILSM7!$C$1:$FR$1,0)) -> 0 | K14: =INDEX(TABNILSM7,MATCH($R$2,NILSM7!$C$1:$C$43,0),MATCH(A14&$K$13,NILSM7!$C$1:$FR$1,0)) -> 0 | L14: =INDEX(TABNILSM7,MATCH($R$2,NILSM7!$C$1:$C$43,0),MATCH(A14&$L$13,NILSM7!$C$1:$FR$1,0)) -> 0
A15: PKN | B15: =IF(C15>=1,1,0) ->  | E15: 78 | F15: =INDEX(TABNILSM7,MATCH($R$2,NILSM7!$C$1:$C$43,0),MATCH(A15&$F$13,NILSM7!$C$1:$FR$1,0)) -> 0 | G15: =INDEX(TABNILSM7,MATCH($R$2,NILSM7!$C$1:$C$43,0),MATCH(A15&$G$13,NILSM7!$C$1:$FR$1,0)) -> 0 | H15: =INDEX(TABNILSM7,MATCH($R$2,NILSM7!$C$1:$C$43,0),MATCH(A15&$H$13,NILSM7!$C$1:$FR$1,0)) -> 0 | I15: =INDEX(TABNILSM7,MATCH($R$2,NILSM7!$C$1:$C$43,0),MATCH(A15&$I$13,NILSM7!$C$1:$FR$1,0)) -> 0 | J15: =INDEX(TABNILSM7,MATCH($R$2,NILSM7!$C$1:$C$43,0),MATCH(A15&$J$13,NILSM7!$C$1:$FR$1,0)) -> 0 | K15: =INDEX(TABNILSM7,MATCH($R$2,NILSM7!$C$1:$C$43,0),MATCH(A15&$K$13,NILSM7!$C$1:$FR$1,0)) -> 0 | L15: =INDEX(TABNILSM7,MATCH($R$2,NILSM7!$C$1:$C$43,0),MATCH(A15&$L$13,NILSM7!$C$1:$FR$1,0)) -> 0
A16: IND | E16: 78 | F16: =INDEX(TABNILSM7,MATCH($R$2,NILSM7!$C$1:$C$43,0),MATCH(A16&$F$13,NILSM7!$C$1:$FR$1,0)) -> 0 | G16: =INDEX(TABNILSM7,MATCH($R$2,NILSM7!$C$1:$C$43,0),MATCH(A16&$G$13,NILSM7!$C$1:$FR$1,0)) -> 0 | H16: =INDEX(TABNILSM7,MATCH($R$2,NILSM7!$C$1:$C$43,0),MATCH(A16&$H$13,NILSM7!$C$1:$FR$1,0)) -> 0 | I16: =INDEX(TABNILSM7,MATCH($R$2,NILSM7!$C$1:$C$43,0),MATCH(A16&$I$13,NILSM7!$C$1:$FR$1,0)) -> 0 | J16: =INDEX(TABNILSM7,MATCH($R$2,NILSM7!$C$1:$C$43,0),MATCH(A16&$J$13,NILSM7!$C$1:$FR$1,0)) -> 0 | K16: =INDEX(TABNILSM7,MATCH($R$2,NILSM7!$C$1:$C$43,0),MATCH(A16&$K$13,NILSM7!$C$1:$FR$1,0)) -> 0 | L16: =INDEX(TABNILSM7,MATCH($R$2,NILSM7!$C$1:$C$43,0),MATCH(A16&$L$13,NILSM7!$C$1:$FR$1,0)) -> 0
A17: MTK | E17: 78 | F17: =INDEX(TABNILSM7,MATCH($R$2,NILSM7!$C$1:$C$43,0),MATCH(A17&$F$13,NILSM7!$C$1:$FR$1,0)) -> 0 | G17: =INDEX(TABNILSM7,MATCH($R$2,NILSM7!$C$1:$C$43,0),MATCH(A17&$G$13,NILSM7!$C$1:$FR$1,0)) -> 0 | H17: =INDEX(TABNILSM7,MATCH($R$2,NILSM7!$C$1:$C$43,0),MATCH(A17&$H$13,NILSM7!$C$1:$FR$1,0)) -> 0 | I17: =INDEX(TABNILSM7,MATCH($R$2,NILSM7!$C$1:$C$43,0),MATCH(A17&$I$13,NILSM7!$C$1:$FR$1,0)) -> 0 | J17: =INDEX(TABNILSM7,MATCH($R$2,NILSM7!$C$1:$C$43,0),MATCH(A17&$J$13,NILSM7!$C$1:$FR$1,0)) -> 0 | K17: =INDEX(TABNILSM7,MATCH($R$2,NILSM7!$C$1:$C$43,0),MATCH(A17&$K$13,NILSM7!$C$1:$FR$1,0)) -> 0 | L17: =INDEX(TABNILSM7,MATCH($R$2,NILSM7!$C$1:$C$43,0),MATCH(A17&$L$13,NILSM7!$C$1:$FR$1,0)) -> 0
A18: SJI | E18: 78 | F18: =INDEX(TABNILSM7,MATCH($R$2,NILSM7!$C$1:$C$43,0),MATCH(A18&$F$13,NILSM7!$C$1:$FR$1,0)) -> 0 | G18: =INDEX(TABNILSM7,MATCH($R$2,NILSM7!$C$1:$C$43,0),MATCH(A18&$G$13,NILSM7!$C$1:$FR$1,0)) -> 0 | H18: =INDEX(TABNILSM7,MATCH($R$2,NILSM7!$C$1:$C$43,0),MATCH(A18&$H$13,NILSM7!$C$1:$FR$1,0)) -> 0 | I18: =INDEX(TABNILSM7,MATCH($R$2,NILSM7!$C$1:$C$43,0),MATCH(A18&$I$13,NILSM7!$C$1:$FR$1,0)) -> 0 | J18: =INDEX(TABNILSM7,MATCH($R$2,NILSM7!$C$1:$C$43,0),MATCH(A18&$J$13,NILSM7!$C$1:$FR$1,0)) -> 0 | K18: =INDEX(TABNILSM7,MATCH($R$2,NILSM7!$C$1:$C$43,0),MATCH(A18&$K$13,NILSM7!$C$1:$FR$1,0)) -> 0 | L18: =INDEX(TABNILSM7,MATCH($R$2,NILSM7!$C$1:$C$43,0),MATCH(A18&$L$13,NILSM7!$C$1:$FR$1,0)) -> 0
A19: ING | E19: 78 | F19: =INDEX(TABNILSM7,MATCH($R$2,NILSM7!$C$1:$C$43,0),MATCH(A19&$F$13,NILSM7!$C$1:$FR$1,0)) -> 7 | G19: =INDEX(TABNILSM7,MATCH($R$2,NILSM7!$C$1:$C$43,0),MATCH(A19&$G$13,NILSM7!$C$1:$FR$1,0)) -> 8 | H19: =INDEX(TABNILSM7,MATCH($R$2,NILSM7!$C$1:$C$43,0),MATCH(A19&$H$13,NILSM7!$C$1:$FR$1,0)) -> 9 | I19: =INDEX(TABNILSM7,MATCH($R$2,NILSM7!$C$1:$C$43,0),MATCH(A19&$I$13,NILSM7!$C$1:$FR$1,0)) -> 10 | J19: =INDEX(TABNILSM7,MATCH($R$2,NILSM7!$C$1:$C$43,0),MATCH(A19&$J$13,NILSM7!$C$1:$FR$1,0)) -> 11 | K19: =INDEX(TABNILSM7,MATCH($R$2,NILSM7!$C$1:$C$43,0),MATCH(A19&$K$13,NILSM7!$C$1:$FR$1,0)) -> 12 | L19: =INDEX(TABNILSM7,MATCH($R$2,NILSM7!$C$1:$C$43,0),MATCH(A19&$L$13,NILSM7!$C$1:$FR$1,0)) -> 13
A20: JER | E20: 78 | F20: =INDEX(TABNILSM7,MATCH($R$2,NILSM7!$C$1:$C$43,0),MATCH(A20&$F$13,NILSM7!$C$1:$FR$1,0)) -> 14 | G20: =INDEX(TABNILSM7,MATCH($R$2,NILSM7!$C$1:$C$43,0),MATCH(A20&$G$13,NILSM7!$C$1:$FR$1,0)) -> 15 | H20: =INDEX(TABNILSM7,MATCH($R$2,NILSM7!$C$1:$C$43,0),MATCH(A20&$H$13,NILSM7!$C$1:$FR$1,0)) -> 16 | I20: =INDEX(TABNILSM7,MATCH($R$2,NILSM7!$C$1:$C$43,0),MATCH(A20&$I$13,NILSM7!$C$1:$FR$1,0)) -> 17 | J20: =INDEX(TABNILSM7,MATCH($R$2,NILSM7!$C$1:$C$43,0),MATCH(A20&$J$13,NILSM7!$C$1:$FR$1,0)) -> 18 | K20: =INDEX(TABNILSM7,MATCH($R$2,NILSM7!$C$1:$C$43,0),MATCH(A20&$K$13,NILSM7!$C$1:$FR$1,0)) -> 19 | L20: =INDEX(TABNILSM7,MATCH($R$2,NILSM7!$C$1:$C$43,0),MATCH(A20&$L$13,NILSM7!$C$1:$FR$1,0)) -> 20
B21: =IF(AND(COUNT(C21)=0,C23=0),0,1) ->  | C21: B. Muatan Kewilayahan
A22: SBD | C22: =HLOOKUP(A22&$F$13,TABNILSM7,4,FALSE) ->  | D22: =HLOOKUP(A22&$F$13,TABNILSM7,2,FALSE) ->  | E22: =IFERROR(HLOOKUP(A22&$F$13,TABNILSM7,5,FALSE),"-") -> 78 | F22: =INDEX(TABNILSM7,MATCH($R$2,NILSM7!$C$1:$C$43,0),MATCH(A22&$F$13,NILSM7!$C$1:$FR$1,0)) -> 21 | G22: =INDEX(TABNILSM7,MATCH($R$2,NILSM7!$C$1:$C$43,0),MATCH(A22&$G$13,NILSM7!$C$1:$FR$1,0)) -> 22 | H22: =INDEX(TABNILSM7,MATCH($R$2,NILSM7!$C$1:$C$43,0),MATCH(A22&$H$13,NILSM7!$C$1:$FR$1,0)) -> 23 | I22: =INDEX(TABNILSM7,MATCH($R$2,NILSM7!$C$1:$C$43,0),MATCH(A22&$I$13,NILSM7!$C$1:$FR$1,0)) -> 24 | J22: =INDEX(TABNILSM7,MATCH($R$2,NILSM7!$C$1:$C$43,0),MATCH(A22&$J$13,NILSM7!$C$1:$FR$1,0)) -> 25 | K22: =INDEX(TABNILSM7,MATCH($R$2,NILSM7!$C$1:$C$43,0),MATCH(A22&$K$13,NILSM7!$C$1:$FR$1,0)) -> 26 | L22: =INDEX(TABNILSM7,MATCH($R$2,NILSM7!$C$1:$C$43,0),MATCH(A22&$L$13,NILSM7!$C$1:$FR$1,0)) -> 27
A23: PJO | C23: =HLOOKUP(A23&$F$13,TABNILSM7,4,FALSE) ->  | D23: =HLOOKUP(A23&$F$13,TABNILSM7,2,FALSE) ->  | E23: =IFERROR(HLOOKUP(A23&$F$13,TABNILSM7,5,FALSE),"-") -> 78 | F23: =INDEX(TABNILSM7,MATCH($R$2,NILSM7!$C$1:$C$43,0),MATCH(A23&$F$13,NILSM7!$C$1:$FR$1,0)) -> 28 | G23: =INDEX(TABNILSM7,MATCH($R$2,NILSM7!$C$1:$C$43,0),MATCH(A23&$G$13,NILSM7!$C$1:$FR$1,0)) -> 29 | H23: =INDEX(TABNILSM7,MATCH($R$2,NILSM7!$C$1:$C$43,0),MATCH(A23&$H$13,NILSM7!$C$1:$FR$1,0)) -> 30 | I23: =INDEX(TABNILSM7,MATCH($R$2,NILSM7!$C$1:$C$43,0),MATCH(A23&$I$13,NILSM7!$C$1:$FR$1,0)) -> 31 | J23: =INDEX(TABNILSM7,MATCH($R$2,NILSM7!$C$1:$C$43,0),MATCH(A23&$J$13,NILSM7!$C$1:$FR$1,0)) -> 32 | K23: =INDEX(TABNILSM7,MATCH($R$2,NILSM7!$C$1:$C$43,0),MATCH(A23&$K$13,NILSM7!$C$1:$FR$1,0)) -> 33 | L23: =INDEX(TABNILSM7,MATCH($R$2,NILSM7!$C$1:$C$43,0),MATCH(A23&$L$13,NILSM7!$C$1:$FR$1,0)) -> 34
A24: - | B24: 1 | C24: C. Muatan Peminatan Kejuruan
B25: =IF(AND(COUNT(C25)=0,C26=0),0,1) ->  | C25: C1 | D25: Dasar Bidang Keahlian
A26: SKD | B26: =IF(C26>=1,1,0) ->  | C26: =HLOOKUP(A26&$F$13,TABNILSM7,4,FALSE) ->  | D26: =HLOOKUP(A26&$F$13,TABNILSM7,2,FALSE) ->  | E26: =IFERROR(HLOOKUP(A26&$F$13,TABNILSM7,5,FALSE),"-") -> 78 | F26: =INDEX(TABNILSM7,MATCH($R$2,NILSM7!$C$1:$C$43,0),MATCH(A26&$F$13,NILSM7!$C$1:$FR$1,0)) -> 35 | G26: =INDEX(TABNILSM7,MATCH($R$2,NILSM7!$C$1:$C$43,0),MATCH(A26&$G$13,NILSM7!$C$1:$FR$1,0)) -> 36 | H26: =INDEX(TABNILSM7,MATCH($R$2,NILSM7!$C$1:$C$43,0),MATCH(A26&$H$13,NILSM7!$C$1:$FR$1,0)) -> 37 | I26: =INDEX(TABNILSM7,MATCH($R$2,NILSM7!$C$1:$C$43,0),MATCH(A26&$I$13,NILSM7!$C$1:$FR$1,0)) -> 38 | J26: =INDEX(TABNILSM7,MATCH($R$2,NILSM7!$C$1:$C$43,0),MATCH(A26&$J$13,NILSM7!$C$1:$FR$1,0)) -> 39 | K26: =INDEX(TABNILSM7,MATCH($R$2,NILSM7!$C$1:$C$43,0),MATCH(A26&$K$13,NILSM7!$C$1:$FR$1,0)) -> 40 | L26: =INDEX(TABNILSM7,MATCH($R$2,NILSM7!$C$1:$C$43,0),MATCH(A26&$L$13,NILSM7!$C$1:$FR$1,0)) -> 41
A27: FIS | C27: =HLOOKUP(A27&$F$13,TABNILSM7,4,FALSE) ->  | D27: =HLOOKUP(A27&$F$13,TABNILSM7,2,FALSE) ->  | E27: =IFERROR(HLOOKUP(A27&$F$13,TABNILSM7,5,FALSE),"-") -> 78 | F27: =INDEX(TABNILSM7,MATCH($R$2,NILSM7!$C$1:$C$43,0),MATCH(A27&$F$13,NILSM7!$C$1:$FR$1,0)) -> 42 | G27: =INDEX(TABNILSM7,MATCH($R$2,NILSM7!$C$1:$C$43,0),MATCH(A27&$G$13,NILSM7!$C$1:$FR$1,0)) -> 43 | H27: =INDEX(TABNILSM7,MATCH($R$2,NILSM7!$C$1:$C$43,0),MATCH(A27&$H$13,NILSM7!$C$1:$FR$1,0)) -> 44 | I27: =INDEX(TABNILSM7,MATCH($R$2,NILSM7!$C$1:$C$43,0),MATCH(A27&$I$13,NILSM7!$C$1:$FR$1,0)) -> 45 | J27: =INDEX(TABNILSM7,MATCH($R$2,NILSM7!$C$1:$C$43,0),MATCH(A27&$J$13,NILSM7!$C$1:$FR$1,0)) -> 46 | K27: =INDEX(TABNILSM7,MATCH($R$2,NILSM7!$C$1:$C$43,0),MATCH(A27&$K$13,NILSM7!$C$1:$FR$1,0)) -> 47 | L27: =INDEX(TABNILSM7,MATCH($R$2,NILSM7!$C$1:$C$43,0),MATCH(A27&$L$13,NILSM7!$C$1:$FR$1,0)) -> 48
A28: KIM | C28: =HLOOKUP(A28&$F$13,TABNILSM7,4,FALSE) ->  | D28: =HLOOKUP(A28&$F$13,TABNILSM7,2,FALSE) ->  | E28: =IFERROR(HLOOKUP(A28&$F$13,TABNILSM7,5,FALSE),"-") -> 78 | F28: =INDEX(TABNILSM7,MATCH($R$2,NILSM7!$C$1:$C$43,0),MATCH(A28&$F$13,NILSM7!$C$1:$FR$1,0)) -> 49 | G28: =INDEX(TABNILSM7,MATCH($R$2,NILSM7!$C$1:$C$43,0),MATCH(A28&$G$13,NILSM7!$C$1:$FR$1,0)) -> 50 | H28: =INDEX(TABNILSM7,MATCH($R$2,NILSM7!$C$1:$C$43,0),MATCH(A28&$H$13,NILSM7!$C$1:$FR$1,0)) -> 51 | I28: =INDEX(TABNILSM7,MATCH($R$2,NILSM7!$C$1:$C$43,0),MATCH(A28&$I$13,NILSM7!$C$1:$FR$1,0)) -> 52 | J28: =INDEX(TABNILSM7,MATCH($R$2,NILSM7!$C$1:$C$43,0),MATCH(A28&$J$13,NILSM7!$C$1:$FR$1,0)) -> 53 | K28: =INDEX(TABNILSM7,MATCH($R$2,NILSM7!$C$1:$C$43,0),MATCH(A28&$K$13,NILSM7!$C$1:$FR$1,0)) -> 54 | L28: =INDEX(TABNILSM7,MATCH($R$2,NILSM7!$C$1:$C$43,0),MATCH(A28&$L$13,NILSM7!$C$1:$FR$1,0)) -> 55
B29: =IF(AND(COUNT(C29)=0,C30=0),0,1) ->  | C29: C2 | D29: Dasar Program Keahlian
A30: C21 | C30: =HLOOKUP(A30&$F$13,TABNILSM7,4,FALSE) ->  | D30: =HLOOKUP(A30&$F$13,TABNILSM7,2,FALSE) ->  | E30: =IFERROR(HLOOKUP(A30&$F$13,TABNILSM7,5,FALSE),"-") -> 78 | F30: =INDEX(TABNILSM7,MATCH($R$2,NILSM7!$C$1:$C$43,0),MATCH(A30&$F$13,NILSM7!$C$1:$FR$1,0)) -> 56 | G30: =INDEX(TABNILSM7,MATCH($R$2,NILSM7!$C$1:$C$43,0),MATCH(A30&$G$13,NILSM7!$C$1:$FR$1,0)) -> 57 | H30: =INDEX(TABNILSM7,MATCH($R$2,NILSM7!$C$1:$C$43,0),MATCH(A30&$H$13,NILSM7!$C$1:$FR$1,0)) -> 58 | I30: =INDEX(TABNILSM7,MATCH($R$2,NILSM7!$C$1:$C$43,0),MATCH(A30&$I$13,NILSM7!$C$1:$FR$1,0)) -> 59 | J30: =INDEX(TABNILSM7,MATCH($R$2,NILSM7!$C$1:$C$43,0),MATCH(A30&$J$13,NILSM7!$C$1:$FR$1,0)) -> 60 | K30: =INDEX(TABNILSM7,MATCH($R$2,NILSM7!$C$1:$C$43,0),MATCH(A30&$K$13,NILSM7!$C$1:$FR$1,0)) -> 61 | L30: =INDEX(TABNILSM7,MATCH($R$2,NILSM7!$C$1:$C$43,0),MATCH(A30&$L$13,NILSM7!$C$1:$FR$1,0)) -> 62
A31: C22 | C31: =HLOOKUP(A31&$F$13,TABNILSM7,4,FALSE) ->  | D31: =HLOOKUP(A31&$F$13,TABNILSM7,2,FALSE) ->  | E31: =IFERROR(HLOOKUP(A31&$F$13,TABNILSM7,5,FALSE),"-") -> 78 | F31: =INDEX(TABNILSM7,MATCH($R$2,NILSM7!$C$1:$C$43,0),MATCH(A31&$F$13,NILSM7!$C$1:$FR$1,0)) -> 63 | G31: =INDEX(TABNILSM7,MATCH($R$2,NILSM7!$C$1:$C$43,0),MATCH(A31&$G$13,NILSM7!$C$1:$FR$1,0)) -> 64 | H31: =INDEX(TABNILSM7,MATCH($R$2,NILSM7!$C$1:$C$43,0),MATCH(A31&$H$13,NILSM7!$C$1:$FR$1,0)) -> 65 | I31: =INDEX(TABNILSM7,MATCH($R$2,NILSM7!$C$1:$C$43,0),MATCH(A31&$I$13,NILSM7!$C$1:$FR$1,0)) -> 66 | J31: =INDEX(TABNILSM7,MATCH($R$2,NILSM7!$C$1:$C$43,0),MATCH(A31&$J$13,NILSM7!$C$1:$FR$1,0)) -> 67 | K31: =INDEX(TABNILSM7,MATCH($R$2,NILSM7!$C$1:$C$43,0),MATCH(A31&$K$13,NILSM7!$C$1:$FR$1,0)) -> 68 | L31: =INDEX(TABNILSM7,MATCH($R$2,NILSM7!$C$1:$C$43,0),MATCH(A31&$L$13,NILSM7!$C$1:$FR$1,0)) -> 69
A32: C23 | C32: =HLOOKUP(A32&$F$13,TABNILSM7,4,FALSE) ->  | D32: =HLOOKUP(A32&$F$13,TABNILSM7,2,FALSE) ->  | E32: =IFERROR(HLOOKUP(A32&$F$13,TABNILSM7,5,FALSE),"-") -> 78 | F32: =INDEX(TABNILSM7,MATCH($R$2,NILSM7!$C$1:$C$43,0),MATCH(A32&$F$13,NILSM7!$C$1:$FR$1,0)) -> 70 | G32: =INDEX(TABNILSM7,MATCH($R$2,NILSM7!$C$1:$C$43,0),MATCH(A32&$G$13,NILSM7!$C$1:$FR$1,0)) -> 71 | H32: =INDEX(TABNILSM7,MATCH($R$2,NILSM7!$C$1:$C$43,0),MATCH(A32&$H$13,NILSM7!$C$1:$FR$1,0)) -> 72 | I32: =INDEX(TABNILSM7,MATCH($R$2,NILSM7!$C$1:$C$43,0),MATCH(A32&$I$13,NILSM7!$C$1:$FR$1,0)) -> 73 | J32: =INDEX(TABNILSM7,MATCH($R$2,NILSM7!$C$1:$C$43,0),MATCH(A32&$J$13,NILSM7!$C$1:$FR$1,0)) -> 74 | K32: =INDEX(TABNILSM7,MATCH($R$2,NILSM7!$C$1:$C$43,0),MATCH(A32&$K$13,NILSM7!$C$1:$FR$1,0)) -> 75 | L32: =INDEX(TABNILSM7,MATCH($R$2,NILSM7!$C$1:$C$43,0),MATCH(A32&$L$13,NILSM7!$C$1:$FR$1,0)) -> 76
A33: C24 | C33: =HLOOKUP(A33&$F$13,TABNILSM7,4,FALSE) ->  | D33: =HLOOKUP(A33&$F$13,TABNILSM7,2,FALSE) ->  | E33: =IFERROR(HLOOKUP(A33&$F$13,TABNILSM7,5,FALSE),"-") -> 78 | F33: =INDEX(TABNILSM7,MATCH($R$2,NILSM7!$C$1:$C$43,0),MATCH(A33&$F$13,NILSM7!$C$1:$FR$1,0)) -> 77 | G33: =INDEX(TABNILSM7,MATCH($R$2,NILSM7!$C$1:$C$43,0),MATCH(A33&$G$13,NILSM7!$C$1:$FR$1,0)) -> 78 | H33: =INDEX(TABNILSM7,MATCH($R$2,NILSM7!$C$1:$C$43,0),MATCH(A33&$H$13,NILSM7!$C$1:$FR$1,0)) -> 79 | I33: =INDEX(TABNILSM7,MATCH($R$2,NILSM7!$C$1:$C$43,0),MATCH(A33&$I$13,NILSM7!$C$1:$FR$1,0)) -> 80 | J33: =INDEX(TABNILSM7,MATCH($R$2,NILSM7!$C$1:$C$43,0),MATCH(A33&$J$13,NILSM7!$C$1:$FR$1,0)) -> 81 | K33: =INDEX(TABNILSM7,MATCH($R$2,NILSM7!$C$1:$C$43,0),MATCH(A33&$K$13,NILSM7!$C$1:$FR$1,0)) -> 82 | L33: =INDEX(TABNILSM7,MATCH($R$2,NILSM7!$C$1:$C$43,0),MATCH(A33&$L$13,NILSM7!$C$1:$FR$1,0)) -> 83
A34: - | B34: =IF(AND(COUNT(C34)=0,C37=0),0,1) ->  | C34: C3 | D34: Kompetensi Keahlian
A35: C31 | C35: =HLOOKUP(A35&$F$13,TABNILSM7,4,FALSE) ->  | D35: =HLOOKUP(A35&$F$13,TABNILSM7,2,FALSE) ->  | E35: =IFERROR(HLOOKUP(A35&$F$13,TABNILSM7,5,FALSE),"-") -> 78 | F35: =INDEX(TABNILSM7,MATCH($R$2,NILSM7!$C$1:$C$43,0),MATCH(A35&$F$13,NILSM7!$C$1:$FR$1,0)) -> 84 | G35: =INDEX(TABNILSM7,MATCH($R$2,NILSM7!$C$1:$C$43,0),MATCH(A35&$G$13,NILSM7!$C$1:$FR$1,0)) -> 85 | H35: =INDEX(TABNILSM7,MATCH($R$2,NILSM7!$C$1:$C$43,0),MATCH(A35&$H$13,NILSM7!$C$1:$FR$1,0)) -> 86 | I35: =INDEX(TABNILSM7,MATCH($R$2,NILSM7!$C$1:$C$43,0),MATCH(A35&$I$13,NILSM7!$C$1:$FR$1,0)) -> 87 | J35: =INDEX(TABNILSM7,MATCH($R$2,NILSM7!$C$1:$C$43,0),MATCH(A35&$J$13,NILSM7!$C$1:$FR$1,0)) -> 88 | K35: =INDEX(TABNILSM7,MATCH($R$2,NILSM7!$C$1:$C$43,0),MATCH(A35&$K$13,NILSM7!$C$1:$FR$1,0)) -> 89 | L35: =INDEX(TABNILSM7,MATCH($R$2,NILSM7!$C$1:$C$43,0),MATCH(A35&$L$13,NILSM7!$C$1:$FR$1,0)) -> 90
A36: C32 | E36: 78 | F36: =INDEX(TABNILSM7,MATCH($R$2,NILSM7!$C$1:$C$43,0),MATCH(A36&$F$13,NILSM7!$C$1:$FR$1,0)) -> 91 | G36: =INDEX(TABNILSM7,MATCH($R$2,NILSM7!$C$1:$C$43,0),MATCH(A36&$G$13,NILSM7!$C$1:$FR$1,0)) -> 92 | H36: =INDEX(TABNILSM7,MATCH($R$2,NILSM7!$C$1:$C$43,0),MATCH(A36&$H$13,NILSM7!$C$1:$FR$1,0)) -> 93 | I36: =INDEX(TABNILSM7,MATCH($R$2,NILSM7!$C$1:$C$43,0),MATCH(A36&$I$13,NILSM7!$C$1:$FR$1,0)) -> 94 | J36: =INDEX(TABNILSM7,MATCH($R$2,NILSM7!$C$1:$C$43,0),MATCH(A36&$J$13,NILSM7!$C$1:$FR$1,0)) -> 95 | K36: =INDEX(TABNILSM7,MATCH($R$2,NILSM7!$C$1:$C$43,0),MATCH(A36&$K$13,NILSM7!$C$1:$FR$1,0)) -> 96 | L36: =INDEX(TABNILSM7,MATCH($R$2,NILSM7!$C$1:$C$43,0),MATCH(A36&$L$13,NILSM7!$C$1:$FR$1,0)) -> 97
A37: C33 | E37: 78 | F37: =INDEX(TABNILSM7,MATCH($R$2,NILSM7!$C$1:$C$43,0),MATCH(A37&$F$13,NILSM7!$C$1:$FR$1,0)) -> 98 | G37: =INDEX(TABNILSM7,MATCH($R$2,NILSM7!$C$1:$C$43,0),MATCH(A37&$G$13,NILSM7!$C$1:$FR$1,0)) -> 99 | H37: =INDEX(TABNILSM7,MATCH($R$2,NILSM7!$C$1:$C$43,0),MATCH(A37&$H$13,NILSM7!$C$1:$FR$1,0)) -> 100 | I37: =INDEX(TABNILSM7,MATCH($R$2,NILSM7!$C$1:$C$43,0),MATCH(A37&$I$13,NILSM7!$C$1:$FR$1,0)) -> 75 | J37: =INDEX(TABNILSM7,MATCH($R$2,NILSM7!$C$1:$C$43,0),MATCH(A37&$J$13,NILSM7!$C$1:$FR$1,0)) -> 76 | K37: =INDEX(TABNILSM7,MATCH($R$2,NILSM7!$C$1:$C$43,0),MATCH(A37&$K$13,NILSM7!$C$1:$FR$1,0)) -> 77 | L37: =INDEX(TABNILSM7,MATCH($R$2,NILSM7!$C$1:$C$43,0),MATCH(A37&$L$13,NILSM7!$C$1:$FR$1,0)) -> 78
A38: C34 | E38: 78 | F38: =INDEX(TABNILSM7,MATCH($R$2,NILSM7!$C$1:$C$43,0),MATCH(A38&$F$13,NILSM7!$C$1:$FR$1,0)) -> 79 | G38: =INDEX(TABNILSM7,MATCH($R$2,NILSM7!$C$1:$C$43,0),MATCH(A38&$G$13,NILSM7!$C$1:$FR$1,0)) -> 80 | H38: =INDEX(TABNILSM7,MATCH($R$2,NILSM7!$C$1:$C$43,0),MATCH(A38&$H$13,NILSM7!$C$1:$FR$1,0)) -> 81 | I38: =INDEX(TABNILSM7,MATCH($R$2,NILSM7!$C$1:$C$43,0),MATCH(A38&$I$13,NILSM7!$C$1:$FR$1,0)) -> 82 | J38: =INDEX(TABNILSM7,MATCH($R$2,NILSM7!$C$1:$C$43,0),MATCH(A38&$J$13,NILSM7!$C$1:$FR$1,0)) -> 83 | K38: =INDEX(TABNILSM7,MATCH($R$2,NILSM7!$C$1:$C$43,0),MATCH(A38&$K$13,NILSM7!$C$1:$FR$1,0)) -> 84 | L38: =INDEX(TABNILSM7,MATCH($R$2,NILSM7!$C$1:$C$43,0),MATCH(A38&$L$13,NILSM7!$C$1:$FR$1,0)) -> 85
A39: C35 | E39: 78 | F39: =INDEX(TABNILSM7,MATCH($R$2,NILSM7!$C$1:$C$43,0),MATCH(A39&$F$13,NILSM7!$C$1:$FR$1,0)) -> 86 | G39: =INDEX(TABNILSM7,MATCH($R$2,NILSM7!$C$1:$C$43,0),MATCH(A39&$G$13,NILSM7!$C$1:$FR$1,0)) -> 87 | H39: =INDEX(TABNILSM7,MATCH($R$2,NILSM7!$C$1:$C$43,0),MATCH(A39&$H$13,NILSM7!$C$1:$FR$1,0)) -> 88 | I39: =INDEX(TABNILSM7,MATCH($R$2,NILSM7!$C$1:$C$43,0),MATCH(A39&$I$13,NILSM7!$C$1:$FR$1,0)) -> 89 | J39: =INDEX(TABNILSM7,MATCH($R$2,NILSM7!$C$1:$C$43,0),MATCH(A39&$J$13,NILSM7!$C$1:$FR$1,0)) -> 90 | K39: =INDEX(TABNILSM7,MATCH($R$2,NILSM7!$C$1:$C$43,0),MATCH(A39&$K$13,NILSM7!$C$1:$FR$1,0)) -> 91 | L39: =INDEX(TABNILSM7,MATCH($R$2,NILSM7!$C$1:$C$43,0),MATCH(A39&$L$13,NILSM7!$C$1:$FR$1,0)) -> 92
A40: C36 | E40: 78 | F40: =INDEX(TABNILSM7,MATCH($R$2,NILSM7!$C$1:$C$43,0),MATCH(A40&$F$13,NILSM7!$C$1:$FR$1,0)) -> 93 | G40: =INDEX(TABNILSM7,MATCH($R$2,NILSM7!$C$1:$C$43,0),MATCH(A40&$G$13,NILSM7!$C$1:$FR$1,0)) -> 94 | H40: =INDEX(TABNILSM7,MATCH($R$2,NILSM7!$C$1:$C$43,0),MATCH(A40&$H$13,NILSM7!$C$1:$FR$1,0)) -> 95 | I40: =INDEX(TABNILSM7,MATCH($R$2,NILSM7!$C$1:$C$43,0),MATCH(A40&$I$13,NILSM7!$C$1:$FR$1,0)) -> 96 | J40: =INDEX(TABNILSM7,MATCH($R$2,NILSM7!$C$1:$C$43,0),MATCH(A40&$J$13,NILSM7!$C$1:$FR$1,0)) -> 97 | K40: =INDEX(TABNILSM7,MATCH($R$2,NILSM7!$C$1:$C$43,0),MATCH(A40&$K$13,NILSM7!$C$1:$FR$1,0)) -> 98 | L40: =INDEX(TABNILSM7,MATCH($R$2,NILSM7!$C$1:$C$43,0),MATCH(A40&$L$13,NILSM7!$C$1:$FR$1,0)) -> 99
B41: =IF(AND(COUNT(C41)=0,C42=0),0,1) ->  | C41: Muatan Lokal
A42: SUN | C42: =HLOOKUP(A42&$F$13,TABNILSM7,4,FALSE) ->  | D42: =HLOOKUP(A42&$F$13,TABNILSM7,2,FALSE) ->  | E42: =IFERROR(HLOOKUP(A42&$F$13,TABNILSM7,5,FALSE),"-") -> 78 | F42: =INDEX(TABNILSM7,MATCH($R$2,NILSM7!$C$1:$C$43,0),MATCH(A42&$F$13,NILSM7!$C$1:$FR$1,0)) -> 100 | G42: =INDEX(TABNILSM7,MATCH($R$2,NILSM7!$C$1:$C$43,0),MATCH(A42&$G$13,NILSM7!$C$1:$FR$1,0)) -> 75 | H42: =INDEX(TABNILSM7,MATCH($R$2,NILSM7!$C$1:$C$43,0),MATCH(A42&$H$13,NILSM7!$C$1:$FR$1,0)) -> 76 | I42: =INDEX(TABNILSM7,MATCH($R$2,NILSM7!$C$1:$C$43,0),MATCH(A42&$I$13,NILSM7!$C$1:$FR$1,0)) -> 77 | J42: =INDEX(TABNILSM7,MATCH($R$2,NILSM7!$C$1:$C$43,0),MATCH(A42&$J$13,NILSM7!$C$1:$FR$1,0)) -> 78 | K42: =INDEX(TABNILSM7,MATCH($R$2,NILSM7!$C$1:$C$43,0),MATCH(A42&$K$13,NILSM7!$C$1:$FR$1,0)) -> 79 | L42: =INDEX(TABNILSM7,MATCH($R$2,NILSM7!$C$1:$C$43,0),MATCH(A42&$L$13,NILSM7!$C$1:$FR$1,0)) -> 80
A43: PLH | C43: =HLOOKUP(A43&$F$13,TABNILSM7,4,FALSE) ->  | D43: =HLOOKUP(A43&$F$13,TABNILSM7,2,FALSE) ->  | E43: =IFERROR(HLOOKUP(A43&$F$13,TABNILSM7,5,FALSE),"-") -> 78 | F43: =INDEX(TABNILSM7,MATCH($R$2,NILSM7!$C$1:$C$43,0),MATCH(A43&$F$13,NILSM7!$C$1:$FR$1,0)) -> 81 | G43: =INDEX(TABNILSM7,MATCH($R$2,NILSM7!$C$1:$C$43,0),MATCH(A43&$G$13,NILSM7!$C$1:$FR$1,0)) -> 82 | H43: =INDEX(TABNILSM7,MATCH($R$2,NILSM7!$C$1:$C$43,0),MATCH(A43&$H$13,NILSM7!$C$1:$FR$1,0)) -> 83 | I43: =INDEX(TABNILSM7,MATCH($R$2,NILSM7!$C$1:$C$43,0),MATCH(A43&$I$13,NILSM7!$C$1:$FR$1,0)) -> 84 | J43: =INDEX(TABNILSM7,MATCH($R$2,NILSM7!$C$1:$C$43,0),MATCH(A43&$J$13,NILSM7!$C$1:$FR$1,0)) -> 85 | K43: =INDEX(TABNILSM7,MATCH($R$2,NILSM7!$C$1:$C$43,0),MATCH(A43&$K$13,NILSM7!$C$1:$FR$1,0)) -> 86 | L43: =INDEX(TABNILSM7,MATCH($R$2,NILSM7!$C$1:$C$43,0),MATCH(A43&$L$13,NILSM7!$C$1:$FR$1,0)) -> 87
A45: CTT | C45: Bimbingan dan Konseling | G45: Catatan Akademik
A46: BKN | C46: =INDEX(TABNILSM7,MATCH($R$2,NILSM7!$C$1:$C$43,0),MATCH(A46,NILSM7!$C$1:$FR$1,0)) -> 0 | G46: =INDEX(TABNILSM7,MATCH($R$2,NILSM7!$C$1:$C$43,0),MATCH(A45,NILSM7!$C$1:$FR$1,0)) -> 0
C48: Catatan: Jika nilai 0, siswa belum mengupload tugas atau belum mengerjakan ulangan. Jika nilai - , materi KD (Kompetensi Dasar) tersebut dilaksanakan setelah pembagian KHS.
Q50: =VLOOKUP($R$13,TAB_BIODATA,BIODATA!C4,FALSE) -> ADAM ADIYAT HARTANTO
D51: Mengetahui, | I51: =NILSM7!A5 -> 0
D52: Orang Tua/Wali, | I52: Wali Kelas, | Q52: ="Nomor Urut "&R13 -> Nomor Urut 1
I57: =NILSM7!B4 -> Amo Sisdianto, S.Kom
I58: =IF(NILSM7!B5=0,"","NIP "&NILSM7!B5) -> 

Sheet CETSM6
C1: KARTU HASIL STUDI (KHS) PESERTA DIDIK | Q1: JURUSAN | R1: =MENU!F8 -> TBSM
C2: SMK NEGERI 1 KARAWANG | Q2: NIS | R2: =VLOOKUP($R$13,TAB_BIODATA,BIODATA!D4,FALSE) -> 16170449
D4: Nama Peserta Didik | E4: : | F4: =VLOOKUP($R$13,TAB_BIODATA,BIODATA!C4,FALSE) -> ADAM MAULANA RIZALDI
D5: Nomor Induk/NISN | E5: : | F5: =IF(VLOOKUP($R$13,TAB_BIODATA,BIODATA!E4)="",VLOOKUP($R$13,TAB_BIODATA,BIODATA!D4,FALSE),VLOOKUP($R$13,TAB_BIODATA,BIODATA!D4)&" / "&VLOOKUP($R$13,TAB_BIODATA,BIODATA!E4,FALSE)) -> 16170449 / 0013261209 | Q5: DATA CETAK | S5: HALAMAN CETAK
D6: Kelas | E6: : | F6: =IF(OR(F8="1 (satu)",F8="2 (dua)"),"X "&MENU!F9,IF(OR(F8="3 (tiga)",F8="4 (empat)"),"XI "&MENU!F9,IF(OR(F8="5 (lima)",F8="6 (enam)"),"XII "&MENU!F9,IF(OR(F8="7 (tujuh)",F8="8 (delapan)"),"XIII "&MENU!F9,"")))) -> XII TBSM 2 | Q6: Dari data ke | R6: 1 | S6: Dari | T6: 1
D7: Tahun Pelajaran | E7: : | F7: =RIGHT(NILSM6!A2,11) -> 2020 / 2021
D8: Semester | E8: : | F8: =NILSM6!B3 -> 6 (enam) | Q8: Sampai data ke | R8: 2 | S8: Ke | T8: 1
C10: Nilai Akademik
C11: No. | D11: Mata Pelajaran | E11: KKM | F11: KD 1 | H11: KD 2 | J11: KD 3 | L11: Kehadiran
F12: Tugas | G12: Ulangan | H12: Tugas | I12: Ulangan | J12: Tugas | K12: Ulangan | Q12: TAMPILAN DATA
C13: A. Muatan Nasional | F13: T1 | G13: U1 | H13: T2 | I13: U2 | J13: T3 | K13: U3 | L13: H | Q13: Nomor Urut | R13: 2
A14: PAB | B14: =IF(C14>=1,1,0) -> 1 | C14: =HLOOKUP(A14&$F$13,TABNILSM6,4,FALSE) -> 1 | D14: =HLOOKUP(A14&$F$13,TABNILSM6,2,FALSE) -> Pendidikan Agama dan Budi Pekerti | E14: =IFERROR(HLOOKUP(A14&$F$13,TABNILSM6,5,FALSE),"-") -> 78 | F14: =INDEX(TABNILSM6,MATCH($R$2,NILSM6!$C$1:$C$43,0),MATCH(A14&$F$13,NILSM6!$C$1:$FR$1,0)) -> 11 | G14: =INDEX(TABNILSM6,MATCH($R$2,NILSM6!$C$1:$C$43,0),MATCH(A14&$G$13,NILSM6!$C$1:$FR$1,0)) -> 12 | H14: =INDEX(TABNILSM6,MATCH($R$2,NILSM6!$C$1:$C$43,0),MATCH(A14&$H$13,NILSM6!$C$1:$FR$1,0)) -> 13 | I14: =INDEX(TABNILSM6,MATCH($R$2,NILSM6!$C$1:$C$43,0),MATCH(A14&$I$13,NILSM6!$C$1:$FR$1,0)) -> 14 | J14: =INDEX(TABNILSM6,MATCH($R$2,NILSM6!$C$1:$C$43,0),MATCH(A14&$J$13,NILSM6!$C$1:$FR$1,0)) -> 15 | K14: =INDEX(TABNILSM6,MATCH($R$2,NILSM6!$C$1:$C$43,0),MATCH(A14&$K$13,NILSM6!$C$1:$FR$1,0)) -> 16 | L14: =INDEX(TABNILSM6,MATCH($R$2,NILSM6!$C$1:$C$43,0),MATCH(A14&$L$13,NILSM6!$C$1:$FR$1,0)) -> 17
A15: PKN | B15: =IF(C15>=1,1,0) -> 1 | C15: 2 | D15: Pendidikan Pancasila dan Kewarganegaraan | E15: 78 | F15: =INDEX(TABNILSM6,MATCH($R$2,NILSM6!$C$1:$C$43,0),MATCH(A15&$F$13,NILSM6!$C$1:$FR$1,0)) -> 18 | G15: =INDEX(TABNILSM6,MATCH($R$2,NILSM6!$C$1:$C$43,0),MATCH(A15&$G$13,NILSM6!$C$1:$FR$1,0)) -> 19 | H15: =INDEX(TABNILSM6,MATCH($R$2,NILSM6!$C$1:$C$43,0),MATCH(A15&$H$13,NILSM6!$C$1:$FR$1,0)) -> 20 | I15: =INDEX(TABNILSM6,MATCH($R$2,NILSM6!$C$1:$C$43,0),MATCH(A15&$I$13,NILSM6!$C$1:$FR$1,0)) -> 21 | J15: =INDEX(TABNILSM6,MATCH($R$2,NILSM6!$C$1:$C$43,0),MATCH(A15&$J$13,NILSM6!$C$1:$FR$1,0)) -> 22 | K15: =INDEX(TABNILSM6,MATCH($R$2,NILSM6!$C$1:$C$43,0),MATCH(A15&$K$13,NILSM6!$C$1:$FR$1,0)) -> 23 | L15: =INDEX(TABNILSM6,MATCH($R$2,NILSM6!$C$1:$C$43,0),MATCH(A15&$L$13,NILSM6!$C$1:$FR$1,0)) -> 24
A16: IND | B16: 1 | C16: 3 | D16: Bahasa Indonesia | E16: 78 | F16: =INDEX(TABNILSM6,MATCH($R$2,NILSM6!$C$1:$C$43,0),MATCH(A16&$F$13,NILSM6!$C$1:$FR$1,0)) -> 25 | G16: =INDEX(TABNILSM6,MATCH($R$2,NILSM6!$C$1:$C$43,0),MATCH(A16&$G$13,NILSM6!$C$1:$FR$1,0)) -> 26 | H16: =INDEX(TABNILSM6,MATCH($R$2,NILSM6!$C$1:$C$43,0),MATCH(A16&$H$13,NILSM6!$C$1:$FR$1,0)) -> 27 | I16: =INDEX(TABNILSM6,MATCH($R$2,NILSM6!$C$1:$C$43,0),MATCH(A16&$I$13,NILSM6!$C$1:$FR$1,0)) -> 28 | J16: =INDEX(TABNILSM6,MATCH($R$2,NILSM6!$C$1:$C$43,0),MATCH(A16&$J$13,NILSM6!$C$1:$FR$1,0)) -> 29 | K16: =INDEX(TABNILSM6,MATCH($R$2,NILSM6!$C$1:$C$43,0),MATCH(A16&$K$13,NILSM6!$C$1:$FR$1,0)) -> 30 | L16: =INDEX(TABNILSM6,MATCH($R$2,NILSM6!$C$1:$C$43,0),MATCH(A16&$L$13,NILSM6!$C$1:$FR$1,0)) -> 31
A17: MTK | B17: 1 | C17: 4 | D17: Matematika | E17: 78 | F17: =INDEX(TABNILSM6,MATCH($R$2,NILSM6!$C$1:$C$43,0),MATCH(A17&$F$13,NILSM6!$C$1:$FR$1,0)) -> 32 | G17: =INDEX(TABNILSM6,MATCH($R$2,NILSM6!$C$1:$C$43,0),MATCH(A17&$G$13,NILSM6!$C$1:$FR$1,0)) -> 33 | H17: =INDEX(TABNILSM6,MATCH($R$2,NILSM6!$C$1:$C$43,0),MATCH(A17&$H$13,NILSM6!$C$1:$FR$1,0)) -> 34 | I17: =INDEX(TABNILSM6,MATCH($R$2,NILSM6!$C$1:$C$43,0),MATCH(A17&$I$13,NILSM6!$C$1:$FR$1,0)) -> 35 | J17: =INDEX(TABNILSM6,MATCH($R$2,NILSM6!$C$1:$C$43,0),MATCH(A17&$J$13,NILSM6!$C$1:$FR$1,0)) -> 36 | K17: =INDEX(TABNILSM6,MATCH($R$2,NILSM6!$C$1:$C$43,0),MATCH(A17&$K$13,NILSM6!$C$1:$FR$1,0)) -> 37 | L17: =INDEX(TABNILSM6,MATCH($R$2,NILSM6!$C$1:$C$43,0),MATCH(A17&$L$13,NILSM6!$C$1:$FR$1,0)) -> 38
A18: SJI | B18: 0 | C18: 0 | D18: - | E18: 78 | F18: =INDEX(TABNILSM6,MATCH($R$2,NILSM6!$C$1:$C$43,0),MATCH(A18&$F$13,NILSM6!$C$1:$FR$1,0)) -> 39 | G18: =INDEX(TABNILSM6,MATCH($R$2,NILSM6!$C$1:$C$43,0),MATCH(A18&$G$13,NILSM6!$C$1:$FR$1,0)) -> 40 | H18: =INDEX(TABNILSM6,MATCH($R$2,NILSM6!$C$1:$C$43,0),MATCH(A18&$H$13,NILSM6!$C$1:$FR$1,0)) -> 41 | I18: =INDEX(TABNILSM6,MATCH($R$2,NILSM6!$C$1:$C$43,0),MATCH(A18&$I$13,NILSM6!$C$1:$FR$1,0)) -> 42 | J18: =INDEX(TABNILSM6,MATCH($R$2,NILSM6!$C$1:$C$43,0),MATCH(A18&$J$13,NILSM6!$C$1:$FR$1,0)) -> 43 | K18: =INDEX(TABNILSM6,MATCH($R$2,NILSM6!$C$1:$C$43,0),MATCH(A18&$K$13,NILSM6!$C$1:$FR$1,0)) -> 44 | L18: =INDEX(TABNILSM6,MATCH($R$2,NILSM6!$C$1:$C$43,0),MATCH(A18&$L$13,NILSM6!$C$1:$FR$1,0)) -> 45
A19: ING | B19: 1 | C19: 5 | D19: Bahasa Inggris | E19: 78 | F19: =INDEX(TABNILSM6,MATCH($R$2,NILSM6!$C$1:$C$43,0),MATCH(A19&$F$13,NILSM6!$C$1:$FR$1,0)) -> 46 | G19: =INDEX(TABNILSM6,MATCH($R$2,NILSM6!$C$1:$C$43,0),MATCH(A19&$G$13,NILSM6!$C$1:$FR$1,0)) -> 47 | H19: =INDEX(TABNILSM6,MATCH($R$2,NILSM6!$C$1:$C$43,0),MATCH(A19&$H$13,NILSM6!$C$1:$FR$1,0)) -> 48 | I19: =INDEX(TABNILSM6,MATCH($R$2,NILSM6!$C$1:$C$43,0),MATCH(A19&$I$13,NILSM6!$C$1:$FR$1,0)) -> 49 | J19: =INDEX(TABNILSM6,MATCH($R$2,NILSM6!$C$1:$C$43,0),MATCH(A19&$J$13,NILSM6!$C$1:$FR$1,0)) -> 50 | K19: =INDEX(TABNILSM6,MATCH($R$2,NILSM6!$C$1:$C$43,0),MATCH(A19&$K$13,NILSM6!$C$1:$FR$1,0)) -> 51 | L19: =INDEX(TABNILSM6,MATCH($R$2,NILSM6!$C$1:$C$43,0),MATCH(A19&$L$13,NILSM6!$C$1:$FR$1,0)) -> 52
A20: JER | B20: 1 | C20: 6 | D20: Bahasa Jerman | E20: 78 | F20: =INDEX(TABNILSM6,MATCH($R$2,NILSM6!$C$1:$C$43,0),MATCH(A20&$F$13,NILSM6!$C$1:$FR$1,0)) -> 53 | G20: =INDEX(TABNILSM6,MATCH($R$2,NILSM6!$C$1:$C$43,0),MATCH(A20&$G$13,NILSM6!$C$1:$FR$1,0)) -> 54 | H20: =INDEX(TABNILSM6,MATCH($R$2,NILSM6!$C$1:$C$43,0),MATCH(A20&$H$13,NILSM6!$C$1:$FR$1,0)) -> 55 | I20: =INDEX(TABNILSM6,MATCH($R$2,NILSM6!$C$1:$C$43,0),MATCH(A20&$I$13,NILSM6!$C$1:$FR$1,0)) -> 56 | J20: =INDEX(TABNILSM6,MATCH($R$2,NILSM6!$C$1:$C$43,0),MATCH(A20&$J$13,NILSM6!$C$1:$FR$1,0)) -> 57 | K20: =INDEX(TABNILSM6,MATCH($R$2,NILSM6!$C$1:$C$43,0),MATCH(A20&$K$13,NILSM6!$C$1:$FR$1,0)) -> 58 | L20: =INDEX(TABNILSM6,MATCH($R$2,NILSM6!$C$1:$C$43,0),MATCH(A20&$L$13,NILSM6!$C$1:$FR$1,0)) -> 59
B21: =IF(AND(COUNT(C21)=0,C23=0),0,1) -> 0 | C21: B. Muatan Kewilayahan
A22: SBD | B22: 0 | C22: =HLOOKUP(A22&$F$13,TABNILSM6,4,FALSE) -> 0 | D22: =HLOOKUP(A22&$F$13,TABNILSM6,2,FALSE) -> - | E22: =IFERROR(HLOOKUP(A22&$F$13,TABNILSM6,5,FALSE),"-") -> 78 | F22: =INDEX(TABNILSM6,MATCH($R$2,NILSM6!$C$1:$C$43,0),MATCH(A22&$F$13,NILSM6!$C$1:$FR$1,0)) -> 60 | G22: =INDEX(TABNILSM6,MATCH($R$2,NILSM6!$C$1:$C$43,0),MATCH(A22&$G$13,NILSM6!$C$1:$FR$1,0)) -> 61 | H22: =INDEX(TABNILSM6,MATCH($R$2,NILSM6!$C$1:$C$43,0),MATCH(A22&$H$13,NILSM6!$C$1:$FR$1,0)) -> 62 | I22: =INDEX(TABNILSM6,MATCH($R$2,NILSM6!$C$1:$C$43,0),MATCH(A22&$I$13,NILSM6!$C$1:$FR$1,0)) -> 63 | J22: =INDEX(TABNILSM6,MATCH($R$2,NILSM6!$C$1:$C$43,0),MATCH(A22&$J$13,NILSM6!$C$1:$FR$1,0)) -> 64 | K22: =INDEX(TABNILSM6,MATCH($R$2,NILSM6!$C$1:$C$43,0),MATCH(A22&$K$13,NILSM6!$C$1:$FR$1,0)) -> 65 | L22: =INDEX(TABNILSM6,MATCH($R$2,NILSM6!$C$1:$C$43,0),MATCH(A22&$L$13,NILSM6!$C$1:$FR$1,0)) -> 66
A23: PJO | B23: 0 | C23: =HLOOKUP(A23&$F$13,TABNILSM6,4,FALSE) -> 0 | D23: =HLOOKUP(A23&$F$13,TABNILSM6,2,FALSE) -> - | E23: =IFERROR(HLOOKUP(A23&$F$13,TABNILSM6,5,FALSE),"-") -> 78 | F23: =INDEX(TABNILSM6,MATCH($R$2,NILSM6!$C$1:$C$43,0),MATCH(A23&$F$13,NILSM6!$C$1:$FR$1,0)) -> 67 | G23: =INDEX(TABNILSM6,MATCH($R$2,NILSM6!$C$1:$C$43,0),MATCH(A23&$G$13,NILSM6!$C$1:$FR$1,0)) -> 68 | H23: =INDEX(TABNILSM6,MATCH($R$2,NILSM6!$C$1:$C$43,0),MATCH(A23&$H$13,NILSM6!$C$1:$FR$1,0)) -> 69 | I23: =INDEX(TABNILSM6,MATCH($R$2,NILSM6!$C$1:$C$43,0),MATCH(A23&$I$13,NILSM6!$C$1:$FR$1,0)) -> 70 | J23: =INDEX(TABNILSM6,MATCH($R$2,NILSM6!$C$1:$C$43,0),MATCH(A23&$J$13,NILSM6!$C$1:$FR$1,0)) -> 71 | K23: =INDEX(TABNILSM6,MATCH($R$2,NILSM6!$C$1:$C$43,0),MATCH(A23&$K$13,NILSM6!$C$1:$FR$1,0)) -> 72 | L23: =INDEX(TABNILSM6,MATCH($R$2,NILSM6!$C$1:$C$43,0),MATCH(A23&$L$13,NILSM6!$C$1:$FR$1,0)) -> 73
A24: - | B24: 1 | C24: C. Muatan Peminatan Kejuruan
B25: =IF(AND(COUNT(C25)=0,C26=0),0,1) -> 0 | C25: C1 | D25: Dasar Bidang Keahlian
A26: SKD | B26: =IF(C26>=1,1,0) -> 0 | C26: =HLOOKUP(A26&$F$13,TABNILSM6,4,FALSE) -> 0 | D26: =HLOOKUP(A26&$F$13,TABNILSM6,2,FALSE) -> - | E26: =IFERROR(HLOOKUP(A26&$F$13,TABNILSM6,5,FALSE),"-") -> 78 | F26: =INDEX(TABNILSM6,MATCH($R$2,NILSM6!$C$1:$C$43,0),MATCH(A26&$F$13,NILSM6!$C$1:$FR$1,0)) -> 74 | G26: =INDEX(TABNILSM6,MATCH($R$2,NILSM6!$C$1:$C$43,0),MATCH(A26&$G$13,NILSM6!$C$1:$FR$1,0)) -> 75 | H26: =INDEX(TABNILSM6,MATCH($R$2,NILSM6!$C$1:$C$43,0),MATCH(A26&$H$13,NILSM6!$C$1:$FR$1,0)) -> 76 | I26: =INDEX(TABNILSM6,MATCH($R$2,NILSM6!$C$1:$C$43,0),MATCH(A26&$I$13,NILSM6!$C$1:$FR$1,0)) -> 77 | J26: =INDEX(TABNILSM6,MATCH($R$2,NILSM6!$C$1:$C$43,0),MATCH(A26&$J$13,NILSM6!$C$1:$FR$1,0)) -> 78 | K26: =INDEX(TABNILSM6,MATCH($R$2,NILSM6!$C$1:$C$43,0),MATCH(A26&$K$13,NILSM6!$C$1:$FR$1,0)) -> 79 | L26: =INDEX(TABNILSM6,MATCH($R$2,NILSM6!$C$1:$C$43,0),MATCH(A26&$L$13,NILSM6!$C$1:$FR$1,0)) -> 80
A27: FIS | B27: 0 | C27: =HLOOKUP(A27&$F$13,TABNILSM6,4,FALSE) -> 0 | D27: =HLOOKUP(A27&$F$13,TABNILSM6,2,FALSE) -> - | E27: =IFERROR(HLOOKUP(A27&$F$13,TABNILSM6,5,FALSE),"-") -> 78 | F27: =INDEX(TABNILSM6,MATCH($R$2,NILSM6!$C$1:$C$43,0),MATCH(A27&$F$13,NILSM6!$C$1:$FR$1,0)) -> 81 | G27: =INDEX(TABNILSM6,MATCH($R$2,NILSM6!$C$1:$C$43,0),MATCH(A27&$G$13,NILSM6!$C$1:$FR$1,0)) -> 82 | H27: =INDEX(TABNILSM6,MATCH($R$2,NILSM6!$C$1:$C$43,0),MATCH(A27&$H$13,NILSM6!$C$1:$FR$1,0)) -> 83 | I27: =INDEX(TABNILSM6,MATCH($R$2,NILSM6!$C$1:$C$43,0),MATCH(A27&$I$13,NILSM6!$C$1:$FR$1,0)) -> 84 | J27: =INDEX(TABNILSM6,MATCH($R$2,NILSM6!$C$1:$C$43,0),MATCH(A27&$J$13,NILSM6!$C$1:$FR$1,0)) -> 85 | K27: =INDEX(TABNILSM6,MATCH($R$2,NILSM6!$C$1:$C$43,0),MATCH(A27&$K$13,NILSM6!$C$1:$FR$1,0)) -> 86 | L27: =INDEX(TABNILSM6,MATCH($R$2,NILSM6!$C$1:$C$43,0),MATCH(A27&$L$13,NILSM6!$C$1:$FR$1,0)) -> 87
A28: KIM | B28: 0 | C28: =HLOOKUP(A28&$F$13,TABNILSM6,4,FALSE) -> 0 | D28: =HLOOKUP(A28&$F$13,TABNILSM6,2,FALSE) -> - | E28: =IFERROR(HLOOKUP(A28&$F$13,TABNILSM6,5,FALSE),"-") -> 78 | F28: =INDEX(TABNILSM6,MATCH($R$2,NILSM6!$C$1:$C$43,0),MATCH(A28&$F$13,NILSM6!$C$1:$FR$1,0)) -> 88 | G28: =INDEX(TABNILSM6,MATCH($R$2,NILSM6!$C$1:$C$43,0),MATCH(A28&$G$13,NILSM6!$C$1:$FR$1,0)) -> 89 | H28: =INDEX(TABNILSM6,MATCH($R$2,NILSM6!$C$1:$C$43,0),MATCH(A28&$H$13,NILSM6!$C$1:$FR$1,0)) -> 90 | I28: =INDEX(TABNILSM6,MATCH($R$2,NILSM6!$C$1:$C$43,0),MATCH(A28&$I$13,NILSM6!$C$1:$FR$1,0)) -> 91 | J28: =INDEX(TABNILSM6,MATCH($R$2,NILSM6!$C$1:$C$43,0),MATCH(A28&$J$13,NILSM6!$C$1:$FR$1,0)) -> 92 | K28: =INDEX(TABNILSM6,MATCH($R$2,NILSM6!$C$1:$C$43,0),MATCH(A28&$K$13,NILSM6!$C$1:$FR$1,0)) -> 93 | L28: =INDEX(TABNILSM6,MATCH($R$2,NILSM6!$C$1:$C$43,0),MATCH(A28&$L$13,NILSM6!$C$1:$FR$1,0)) -> 94
B29: =IF(AND(COUNT(C29)=0,C30=0),0,1) -> 0 | C29: C2 | D29: Dasar Program Keahlian
A30: C21 | B30: 0 | C30: =HLOOKUP(A30&$F$13,TABNILSM6,4,FALSE) -> 0 | D30: =HLOOKUP(A30&$F$13,TABNILSM6,2,FALSE) -> - | E30: =IFERROR(HLOOKUP(A30&$F$13,TABNILSM6,5,FALSE),"-") -> 78 | F30: =INDEX(TABNILSM6,MATCH($R$2,NILSM6!$C$1:$C$43,0),MATCH(A30&$F$13,NILSM6!$C$1:$FR$1,0)) -> 95 | G30: =INDEX(TABNILSM6,MATCH($R$2,NILSM6!$C$1:$C$43,0),MATCH(A30&$G$13,NILSM6!$C$1:$FR$1,0)) -> 96 | H30: =INDEX(TABNILSM6,MATCH($R$2,NILSM6!$C$1:$C$43,0),MATCH(A30&$H$13,NILSM6!$C$1:$FR$1,0)) -> 97 | I30: =INDEX(TABNILSM6,MATCH($R$2,NILSM6!$C$1:$C$43,0),MATCH(A30&$I$13,NILSM6!$C$1:$FR$1,0)) -> 98 | J30: =INDEX(TABNILSM6,MATCH($R$2,NILSM6!$C$1:$C$43,0),MATCH(A30&$J$13,NILSM6!$C$1:$FR$1,0)) -> 99 | K30: =INDEX(TABNILSM6,MATCH($R$2,NILSM6!$C$1:$C$43,0),MATCH(A30&$K$13,NILSM6!$C$1:$FR$1,0)) -> 100 | L30: =INDEX(TABNILSM6,MATCH($R$2,NILSM6!$C$1:$C$43,0),MATCH(A30&$L$13,NILSM6!$C$1:$FR$1,0)) -> 75
A31: C22 | B31: 0 | C31: =HLOOKUP(A31&$F$13,TABNILSM6,4,FALSE) -> 0 | D31: =HLOOKUP(A31&$F$13,TABNILSM6,2,FALSE) -> - | E31: =IFERROR(HLOOKUP(A31&$F$13,TABNILSM6,5,FALSE),"-") -> 78 | F31: =INDEX(TABNILSM6,MATCH($R$2,NILSM6!$C$1:$C$43,0),MATCH(A31&$F$13,NILSM6!$C$1:$FR$1,0)) -> 76 | G31: =INDEX(TABNILSM6,MATCH($R$2,NILSM6!$C$1:$C$43,0),MATCH(A31&$G$13,NILSM6!$C$1:$FR$1,0)) -> 77 | H31: =INDEX(TABNILSM6,MATCH($R$2,NILSM6!$C$1:$C$43,0),MATCH(A31&$H$13,NILSM6!$C$1:$FR$1,0)) -> 78 | I31: =INDEX(TABNILSM6,MATCH($R$2,NILSM6!$C$1:$C$43,0),MATCH(A31&$I$13,NILSM6!$C$1:$FR$1,0)) -> 79 | J31: =INDEX(TABNILSM6,MATCH($R$2,NILSM6!$C$1:$C$43,0),MATCH(A31&$J$13,NILSM6!$C$1:$FR$1,0)) -> 80 | K31: =INDEX(TABNILSM6,MATCH($R$2,NILSM6!$C$1:$C$43,0),MATCH(A31&$K$13,NILSM6!$C$1:$FR$1,0)) -> 81 | L31: =INDEX(TABNILSM6,MATCH($R$2,NILSM6!$C$1:$C$43,0),MATCH(A31&$L$13,NILSM6!$C$1:$FR$1,0)) -> 82
A32: C23 | B32: 0 | C32: =HLOOKUP(A32&$F$13,TABNILSM6,4,FALSE) -> 0 | D32: =HLOOKUP(A32&$F$13,TABNILSM6,2,FALSE) -> - | E32: =IFERROR(HLOOKUP(A32&$F$13,TABNILSM6,5,FALSE),"-") -> 78 | F32: =INDEX(TABNILSM6,MATCH($R$2,NILSM6!$C$1:$C$43,0),MATCH(A32&$F$13,NILSM6!$C$1:$FR$1,0)) -> 83 | G32: =INDEX(TABNILSM6,MATCH($R$2,NILSM6!$C$1:$C$43,0),MATCH(A32&$G$13,NILSM6!$C$1:$FR$1,0)) -> 84 | H32: =INDEX(TABNILSM6,MATCH($R$2,NILSM6!$C$1:$C$43,0),MATCH(A32&$H$13,NILSM6!$C$1:$FR$1,0)) -> 85 | I32: =INDEX(TABNILSM6,MATCH($R$2,NILSM6!$C$1:$C$43,0),MATCH(A32&$I$13,NILSM6!$C$1:$FR$1,0)) -> 86 | J32: =INDEX(TABNILSM6,MATCH($R$2,NILSM6!$C$1:$C$43,0),MATCH(A32&$J$13,NILSM6!$C$1:$FR$1,0)) -> 87 | K32: =INDEX(TABNILSM6,MATCH($R$2,NILSM6!$C$1:$C$43,0),MATCH(A32&$K$13,NILSM6!$C$1:$FR$1,0)) -> 88 | L32: =INDEX(TABNILSM6,MATCH($R$2,NILSM6!$C$1:$C$43,0),MATCH(A32&$L$13,NILSM6!$C$1:$FR$1,0)) -> 89
A33: C24 | B33: 0 | C33: =HLOOKUP(A33&$F$13,TABNILSM6,4,FALSE) -> 0 | D33: =HLOOKUP(A33&$F$13,TABNILSM6,2,FALSE) -> - | E33: =IFERROR(HLOOKUP(A33&$F$13,TABNILSM6,5,FALSE),"-") -> 78 | F33: =INDEX(TABNILSM6,MATCH($R$2,NILSM6!$C$1:$C$43,0),MATCH(A33&$F$13,NILSM6!$C$1:$FR$1,0)) -> 90 | G33: =INDEX(TABNILSM6,MATCH($R$2,NILSM6!$C$1:$C$43,0),MATCH(A33&$G$13,NILSM6!$C$1:$FR$1,0)) -> 91 | H33: =INDEX(TABNILSM6,MATCH($R$2,NILSM6!$C$1:$C$43,0),MATCH(A33&$H$13,NILSM6!$C$1:$FR$1,0)) -> 92 | I33: =INDEX(TABNILSM6,MATCH($R$2,NILSM6!$C$1:$C$43,0),MATCH(A33&$I$13,NILSM6!$C$1:$FR$1,0)) -> 93 | J33: =INDEX(TABNILSM6,MATCH($R$2,NILSM6!$C$1:$C$43,0),MATCH(A33&$J$13,NILSM6!$C$1:$FR$1,0)) -> 94 | K33: =INDEX(TABNILSM6,MATCH($R$2,NILSM6!$C$1:$C$43,0),MATCH(A33&$K$13,NILSM6!$C$1:$FR$1,0)) -> 95 | L33: =INDEX(TABNILSM6,MATCH($R$2,NILSM6!$C$1:$C$43,0),MATCH(A33&$L$13,NILSM6!$C$1:$FR$1,0)) -> 96
A34: - | B34: =IF(AND(COUNT(C34)=0,C37=0),0,1) -> 1 | C34: C3 | D34: Kompetensi Keahlian
A35: C31 | B35: 1 | C35: =HLOOKUP(A35&$F$13,TABNILSM6,4,FALSE) -> 7 | D35: =HLOOKUP(A35&$F$13,TABNILSM6,2,FALSE) -> Pemeliharaan Mesin Sepeda Motor | E35: =IFERROR(HLOOKUP(A35&$F$13,TABNILSM6,5,FALSE),"-") -> 78 | F35: =INDEX(TABNILSM6,MATCH($R$2,NILSM6!$C$1:$C$43,0),MATCH(A35&$F$13,NILSM6!$C$1:$FR$1,0)) -> 97 | G35: =INDEX(TABNILSM6,MATCH($R$2,NILSM6!$C$1:$C$43,0),MATCH(A35&$G$13,NILSM6!$C$1:$FR$1,0)) -> 98 | H35: =INDEX(TABNILSM6,MATCH($R$2,NILSM6!$C$1:$C$43,0),MATCH(A35&$H$13,NILSM6!$C$1:$FR$1,0)) -> 99 | I35: =INDEX(TABNILSM6,MATCH($R$2,NILSM6!$C$1:$C$43,0),MATCH(A35&$I$13,NILSM6!$C$1:$FR$1,0)) -> 100 | J35: =INDEX(TABNILSM6,MATCH($R$2,NILSM6!$C$1:$C$43,0),MATCH(A35&$J$13,NILSM6!$C$1:$FR$1,0)) -> 75 | K35: =INDEX(TABNILSM6,MATCH($R$2,NILSM6!$C$1:$C$43,0),MATCH(A35&$K$13,NILSM6!$C$1:$FR$1,0)) -> 76 | L35: =INDEX(TABNILSM6,MATCH($R$2,NILSM6!$C$1:$C$43,0),MATCH(A35&$L$13,NILSM6!$C$1:$FR$1,0)) -> 77
A36: C32 | B36: 1 | C36: 8 | D36: Pemeliharaan Sasis Sepeda Motor | E36: 78 | F36: =INDEX(TABNILSM6,MATCH($R$2,NILSM6!$C$1:$C$43,0),MATCH(A36&$F$13,NILSM6!$C$1:$FR$1,0)) -> 78 | G36: =INDEX(TABNILSM6,MATCH($R$2,NILSM6!$C$1:$C$43,0),MATCH(A36&$G$13,NILSM6!$C$1:$FR$1,0)) -> 79 | H36: =INDEX(TABNILSM6,MATCH($R$2,NILSM6!$C$1:$C$43,0),MATCH(A36&$H$13,NILSM6!$C$1:$FR$1,0)) -> 80 | I36: =INDEX(TABNILSM6,MATCH($R$2,NILSM6!$C$1:$C$43,0),MATCH(A36&$I$13,NILSM6!$C$1:$FR$1,0)) -> 81 | J36: =INDEX(TABNILSM6,MATCH($R$2,NILSM6!$C$1:$C$43,0),MATCH(A36&$J$13,NILSM6!$C$1:$FR$1,0)) -> 82 | K36: =INDEX(TABNILSM6,MATCH($R$2,NILSM6!$C$1:$C$43,0),MATCH(A36&$K$13,NILSM6!$C$1:$FR$1,0)) -> 83 | L36: =INDEX(TABNILSM6,MATCH($R$2,NILSM6!$C$1:$C$43,0),MATCH(A36&$L$13,NILSM6!$C$1:$FR$1,0)) -> 84
A37: C33 | B37: 1 | C37: 9 | D37: Pemeliharaan Kelistrikan Sepeda Motor | E37: 78 | F37: =INDEX(TABNILSM6,MATCH($R$2,NILSM6!$C$1:$C$43,0),MATCH(A37&$F$13,NILSM6!$C$1:$FR$1,0)) -> 85 | G37: =INDEX(TABNILSM6,MATCH($R$2,NILSM6!$C$1:$C$43,0),MATCH(A37&$G$13,NILSM6!$C$1:$FR$1,0)) -> 86 | H37: =INDEX(TABNILSM6,MATCH($R$2,NILSM6!$C$1:$C$43,0),MATCH(A37&$H$13,NILSM6!$C$1:$FR$1,0)) -> 87 | I37: =INDEX(TABNILSM6,MATCH($R$2,NILSM6!$C$1:$C$43,0),MATCH(A37&$I$13,NILSM6!$C$1:$FR$1,0)) -> 88 | J37: =INDEX(TABNILSM6,MATCH($R$2,NILSM6!$C$1:$C$43,0),MATCH(A37&$J$13,NILSM6!$C$1:$FR$1,0)) -> 89 | K37: =INDEX(TABNILSM6,MATCH($R$2,NILSM6!$C$1:$C$43,0),MATCH(A37&$K$13,NILSM6!$C$1:$FR$1,0)) -> 90 | L37: =INDEX(TABNILSM6,MATCH($R$2,NILSM6!$C$1:$C$43,0),MATCH(A37&$L$13,NILSM6!$C$1:$FR$1,0)) -> 91
A38: C34 | B38: 1 | C38: 10 | D38: Pengelolaan Bengkel Sepeda Motor | E38: 78 | F38: =INDEX(TABNILSM6,MATCH($R$2,NILSM6!$C$1:$C$43,0),MATCH(A38&$F$13,NILSM6!$C$1:$FR$1,0)) -> 92 | G38: =INDEX(TABNILSM6,MATCH($R$2,NILSM6!$C$1:$C$43,0),MATCH(A38&$G$13,NILSM6!$C$1:$FR$1,0)) -> 93 | H38: =INDEX(TABNILSM6,MATCH($R$2,NILSM6!$C$1:$C$43,0),MATCH(A38&$H$13,NILSM6!$C$1:$FR$1,0)) -> 94 | I38: =INDEX(TABNILSM6,MATCH($R$2,NILSM6!$C$1:$C$43,0),MATCH(A38&$I$13,NILSM6!$C$1:$FR$1,0)) -> 95 | J38: =INDEX(TABNILSM6,MATCH($R$2,NILSM6!$C$1:$C$43,0),MATCH(A38&$J$13,NILSM6!$C$1:$FR$1,0)) -> 96 | K38: =INDEX(TABNILSM6,MATCH($R$2,NILSM6!$C$1:$C$43,0),MATCH(A38&$K$13,NILSM6!$C$1:$FR$1,0)) -> 97 | L38: =INDEX(TABNILSM6,MATCH($R$2,NILSM6!$C$1:$C$43,0),MATCH(A38&$L$13,NILSM6!$C$1:$FR$1,0)) -> 98
A39: C35 | B39: 0 | C39: 0 | D39: - | E39: 78 | F39: =INDEX(TABNILSM6,MATCH($R$2,NILSM6!$C$1:$C$43,0),MATCH(A39&$F$13,NILSM6!$C$1:$FR$1,0)) -> 99 | G39: =INDEX(TABNILSM6,MATCH($R$2,NILSM6!$C$1:$C$43,0),MATCH(A39&$G$13,NILSM6!$C$1:$FR$1,0)) -> 100 | H39: =INDEX(TABNILSM6,MATCH($R$2,NILSM6!$C$1:$C$43,0),MATCH(A39&$H$13,NILSM6!$C$1:$FR$1,0)) -> 75 | I39: =INDEX(TABNILSM6,MATCH($R$2,NILSM6!$C$1:$C$43,0),MATCH(A39&$I$13,NILSM6!$C$1:$FR$1,0)) -> 76 | J39: =INDEX(TABNILSM6,MATCH($R$2,NILSM6!$C$1:$C$43,0),MATCH(A39&$J$13,NILSM6!$C$1:$FR$1,0)) -> 77 | K39: =INDEX(TABNILSM6,MATCH($R$2,NILSM6!$C$1:$C$43,0),MATCH(A39&$K$13,NILSM6!$C$1:$FR$1,0)) -> 78 | L39: =INDEX(TABNILSM6,MATCH($R$2,NILSM6!$C$1:$C$43,0),MATCH(A39&$L$13,NILSM6!$C$1:$FR$1,0)) -> 79
A40: C36 | B40: 1 | C40: 11 | D40: Produk Kreatif dan Kewirausahaan | E40: 78 | F40: =INDEX(TABNILSM6,MATCH($R$2,NILSM6!$C$1:$C$43,0),MATCH(A40&$F$13,NILSM6!$C$1:$FR$1,0)) -> 80 | G40: =INDEX(TABNILSM6,MATCH($R$2,NILSM6!$C$1:$C$43,0),MATCH(A40&$G$13,NILSM6!$C$1:$FR$1,0)) -> 81 | H40: =INDEX(TABNILSM6,MATCH($R$2,NILSM6!$C$1:$C$43,0),MATCH(A40&$H$13,NILSM6!$C$1:$FR$1,0)) -> 82 | I40: =INDEX(TABNILSM6,MATCH($R$2,NILSM6!$C$1:$C$43,0),MATCH(A40&$I$13,NILSM6!$C$1:$FR$1,0)) -> 83 | J40: =INDEX(TABNILSM6,MATCH($R$2,NILSM6!$C$1:$C$43,0),MATCH(A40&$J$13,NILSM6!$C$1:$FR$1,0)) -> 84 | K40: =INDEX(TABNILSM6,MATCH($R$2,NILSM6!$C$1:$C$43,0),MATCH(A40&$K$13,NILSM6!$C$1:$FR$1,0)) -> 85 | L40: =INDEX(TABNILSM6,MATCH($R$2,NILSM6!$C$1:$C$43,0),MATCH(A40&$L$13,NILSM6!$C$1:$FR$1,0)) -> 86
B41: =IF(AND(COUNT(C41)=0,C42=0),0,1) -> 0 | C41: Muatan Lokal
A42: SUN | B42: 0 | C42: =HLOOKUP(A42&$F$13,TABNILSM6,4,FALSE) -> 0 | D42: =HLOOKUP(A42&$F$13,TABNILSM6,2,FALSE) -> - | E42: =IFERROR(HLOOKUP(A42&$F$13,TABNILSM6,5,FALSE),"-") -> 78 | F42: =INDEX(TABNILSM6,MATCH($R$2,NILSM6!$C$1:$C$43,0),MATCH(A42&$F$13,NILSM6!$C$1:$FR$1,0)) -> 87 | G42: =INDEX(TABNILSM6,MATCH($R$2,NILSM6!$C$1:$C$43,0),MATCH(A42&$G$13,NILSM6!$C$1:$FR$1,0)) -> 88 | H42: =INDEX(TABNILSM6,MATCH($R$2,NILSM6!$C$1:$C$43,0),MATCH(A42&$H$13,NILSM6!$C$1:$FR$1,0)) -> 89 | I42: =INDEX(TABNILSM6,MATCH($R$2,NILSM6!$C$1:$C$43,0),MATCH(A42&$I$13,NILSM6!$C$1:$FR$1,0)) -> 90 | J42: =INDEX(TABNILSM6,MATCH($R$2,NILSM6!$C$1:$C$43,0),MATCH(A42&$J$13,NILSM6!$C$1:$FR$1,0)) -> 91 | K42: =INDEX(TABNILSM6,MATCH($R$2,NILSM6!$C$1:$C$43,0),MATCH(A42&$K$13,NILSM6!$C$1:$FR$1,0)) -> 92 | L42: =INDEX(TABNILSM6,MATCH($R$2,NILSM6!$C$1:$C$43,0),MATCH(A42&$L$13,NILSM6!$C$1:$FR$1,0)) -> 93
A43: PLH | B43: 0 | C43: =HLOOKUP(A43&$F$13,TABNILSM6,4,FALSE) -> 0 | D43: =HLOOKUP(A43&$F$13,TABNILSM6,2,FALSE) -> - | E43: =IFERROR(HLOOKUP(A43&$F$13,TABNILSM6,5,FALSE),"-") -> 78 | F43: =INDEX(TABNILSM6,MATCH($R$2,NILSM6!$C$1:$C$43,0),MATCH(A43&$F$13,NILSM6!$C$1:$FR$1,0)) -> 94 | G43: =INDEX(TABNILSM6,MATCH($R$2,NILSM6!$C$1:$C$43,0),MATCH(A43&$G$13,NILSM6!$C$1:$FR$1,0)) -> 95 | H43: =INDEX(TABNILSM6,MATCH($R$2,NILSM6!$C$1:$C$43,0),MATCH(A43&$H$13,NILSM6!$C$1:$FR$1,0)) -> 96 | I43: =INDEX(TABNILSM6,MATCH($R$2,NILSM6!$C$1:$C$43,0),MATCH(A43&$I$13,NILSM6!$C$1:$FR$1,0)) -> 97 | J43: =INDEX(TABNILSM6,MATCH($R$2,NILSM6!$C$1:$C$43,0),MATCH(A43&$J$13,NILSM6!$C$1:$FR$1,0)) -> 98 | K43: =INDEX(TABNILSM6,MATCH($R$2,NILSM6!$C$1:$C$43,0),MATCH(A43&$K$13,NILSM6!$C$1:$FR$1,0)) -> 99 | L43: =INDEX(TABNILSM6,MATCH($R$2,NILSM6!$C$1:$C$43,0),MATCH(A43&$L$13,NILSM6!$C$1:$FR$1,0)) -> 100
A45: CTT | C45: Bimbingan dan Konseling | G45: Catatan Akademik
A46: BKN | C46: =INDEX(TABNILSM6,MATCH($R$2,NILSM6!$C$1:$C$43,0),MATCH(A46,NILSM6!$C$1:$FR$1,0)) -> 0 | G46: =INDEX(TABNILSM6,MATCH($R$2,NILSM6!$C$1:$C$43,0),MATCH(A45,NILSM6!$C$1:$FR$1,0)) -> 0
C48: Catatan: Jika nilai 0, siswa belum mengupload tugas atau belum mengerjakan ulangan. Jika nilai - , materi KD (Kompetensi Dasar) tersebut dilaksanakan setelah pembagian KHS.
Q50: =VLOOKUP($R$13,TAB_BIODATA,BIODATA!C4,FALSE) -> ADAM MAULANA RIZALDI
D51: Mengetahui, | I51: =NILSM6!A5 -> 0
D52: Orang Tua/Wali, | I52: Wali Kelas, | Q52: ="Nomor Urut "&R13 -> Nomor Urut 2
I57: =NILSM6!B4 -> Abdul Hapid, S.P
I58: =IF(NILSM6!B5=0,"","NIP "&NILSM6!B5) -> NIP 19680917 200012 1 003

Sheet CETSM5
C1: KARTU HASIL STUDI (KHS) PESERTA DIDIK | Q1: JURUSAN | R1: =MENU!F8 -> TBSM
C2: SMK NEGERI 1 KARAWANG | Q2: NIS | R2: =VLOOKUP($R$13,TAB_BIODATA,BIODATA!D4,FALSE) -> 16170535
D4: Nama Peserta Didik | E4: : | F4: =VLOOKUP($R$13,TAB_BIODATA,BIODATA!C4,FALSE) -> ADAM ADIYAT HARTANTO
D5: Nomor Induk/NISN | E5: : | F5: =IF(VLOOKUP($R$13,TAB_BIODATA,BIODATA!E4)="",VLOOKUP($R$13,TAB_BIODATA,BIODATA!D4,FALSE),VLOOKUP($R$13,TAB_BIODATA,BIODATA!D4)&" / "&VLOOKUP($R$13,TAB_BIODATA,BIODATA!E4,FALSE)) -> 16170535 / 0016930017 | Q5: DATA CETAK | S5: HALAMAN CETAK
D6: Kelas | E6: : | F6: =IF(OR(F8="1 (satu)",F8="2 (dua)"),"X "&MENU!F9,IF(OR(F8="3 (tiga)",F8="4 (empat)"),"XI "&MENU!F9,IF(OR(F8="5 (lima)",F8="6 (enam)"),"XII "&MENU!F9,IF(OR(F8="7 (tujuh)",F8="8 (delapan)"),"XIII "&MENU!F9,"")))) -> XII TBSM 2 | Q6: Dari data ke | R6: 1 | S6: Dari | T6: 1
D7: Tahun Pelajaran | E7: : | F7: =RIGHT(NILSM5!A2,11) -> 2020 / 2021
D8: Semester | E8: : | F8: =NILSM5!B3 -> 5 (lima) | Q8: Sampai data ke | R8: 2 | S8: Ke | T8: 1
C10: Nilai Akademik
C11: No. | D11: Mata Pelajaran | E11: KKM | F11: KD 1 | H11: KD 2 | J11: KD 3 | L11: Kehadiran
F12: Tugas | G12: Ulangan | H12: Tugas | I12: Ulangan | J12: Tugas | K12: Ulangan | Q12: TAMPILAN DATA
C13: A. Muatan Nasional | F13: T1 | G13: U1 | H13: T2 | I13: U2 | J13: T3 | K13: U3 | L13: H | Q13: Nomor Urut | R13: 1
A14: PAB | B14: =IF(C14>=1,1,0) -> 1 | C14: =HLOOKUP(A14&$F$13,TABNILSM5,4,FALSE) -> 1 | D14: =HLOOKUP(A14&$F$13,TABNILSM5,2,FALSE) -> Pendidikan Agama dan Budi Pekerti | E14: =IFERROR(HLOOKUP(A14&$F$13,TABNILSM5,5,FALSE),"-") -> 78 | F14: =INDEX(TABNILSM5,MATCH($R$2,NILSM5!$C$1:$C$43,0),MATCH(A14&$F$13,NILSM5!$C$1:$FR$1,0)) -> 5 | G14: =INDEX(TABNILSM5,MATCH($R$2,NILSM5!$C$1:$C$43,0),MATCH(A14&$G$13,NILSM5!$C$1:$FR$1,0)) -> 6 | H14: =INDEX(TABNILSM5,MATCH($R$2,NILSM5!$C$1:$C$43,0),MATCH(A14&$H$13,NILSM5!$C$1:$FR$1,0)) -> 7 | I14: =INDEX(TABNILSM5,MATCH($R$2,NILSM5!$C$1:$C$43,0),MATCH(A14&$I$13,NILSM5!$C$1:$FR$1,0)) -> 8 | J14: =INDEX(TABNILSM5,MATCH($R$2,NILSM5!$C$1:$C$43,0),MATCH(A14&$J$13,NILSM5!$C$1:$FR$1,0)) -> 9 | K14: =INDEX(TABNILSM5,MATCH($R$2,NILSM5!$C$1:$C$43,0),MATCH(A14&$K$13,NILSM5!$C$1:$FR$1,0)) -> 10 | L14: =INDEX(TABNILSM5,MATCH($R$2,NILSM5!$C$1:$C$43,0),MATCH(A14&$L$13,NILSM5!$C$1:$FR$1,0)) -> 11
A15: PKN | B15: =IF(C15>=1,1,0) -> 1 | C15: 2 | D15: Pendidikan Pancasila dan Kewarganegaraan | E15: 78 | F15: =INDEX(TABNILSM5,MATCH($R$2,NILSM5!$C$1:$C$43,0),MATCH(A15&$F$13,NILSM5!$C$1:$FR$1,0)) -> 12 | G15: =INDEX(TABNILSM5,MATCH($R$2,NILSM5!$C$1:$C$43,0),MATCH(A15&$G$13,NILSM5!$C$1:$FR$1,0)) -> 13 | H15: =INDEX(TABNILSM5,MATCH($R$2,NILSM5!$C$1:$C$43,0),MATCH(A15&$H$13,NILSM5!$C$1:$FR$1,0)) -> 14 | I15: =INDEX(TABNILSM5,MATCH($R$2,NILSM5!$C$1:$C$43,0),MATCH(A15&$I$13,NILSM5!$C$1:$FR$1,0)) -> 15 | J15: =INDEX(TABNILSM5,MATCH($R$2,NILSM5!$C$1:$C$43,0),MATCH(A15&$J$13,NILSM5!$C$1:$FR$1,0)) -> 16 | K15: =INDEX(TABNILSM5,MATCH($R$2,NILSM5!$C$1:$C$43,0),MATCH(A15&$K$13,NILSM5!$C$1:$FR$1,0)) -> 17 | L15: =INDEX(TABNILSM5,MATCH($R$2,NILSM5!$C$1:$C$43,0),MATCH(A15&$L$13,NILSM5!$C$1:$FR$1,0)) -> 18
A16: IND | B16: 1 | C16: 3 | D16: Bahasa Indonesia | E16: 78 | F16: =INDEX(TABNILSM5,MATCH($R$2,NILSM5!$C$1:$C$43,0),MATCH(A16&$F$13,NILSM5!$C$1:$FR$1,0)) -> 19 | G16: =INDEX(TABNILSM5,MATCH($R$2,NILSM5!$C$1:$C$43,0),MATCH(A16&$G$13,NILSM5!$C$1:$FR$1,0)) -> 20 | H16: =INDEX(TABNILSM5,MATCH($R$2,NILSM5!$C$1:$C$43,0),MATCH(A16&$H$13,NILSM5!$C$1:$FR$1,0)) -> 21 | I16: =INDEX(TABNILSM5,MATCH($R$2,NILSM5!$C$1:$C$43,0),MATCH(A16&$I$13,NILSM5!$C$1:$FR$1,0)) -> 22 | J16: =INDEX(TABNILSM5,MATCH($R$2,NILSM5!$C$1:$C$43,0),MATCH(A16&$J$13,NILSM5!$C$1:$FR$1,0)) -> 23 | K16: =INDEX(TABNILSM5,MATCH($R$2,NILSM5!$C$1:$C$43,0),MATCH(A16&$K$13,NILSM5!$C$1:$FR$1,0)) -> 24 | L16: =INDEX(TABNILSM5,MATCH($R$2,NILSM5!$C$1:$C$43,0),MATCH(A16&$L$13,NILSM5!$C$1:$FR$1,0)) -> 25
A17: MTK | B17: 1 | C17: 4 | D17: Matematika | E17: 78 | F17: =INDEX(TABNILSM5,MATCH($R$2,NILSM5!$C$1:$C$43,0),MATCH(A17&$F$13,NILSM5!$C$1:$FR$1,0)) -> 26 | G17: =INDEX(TABNILSM5,MATCH($R$2,NILSM5!$C$1:$C$43,0),MATCH(A17&$G$13,NILSM5!$C$1:$FR$1,0)) -> 27 | H17: =INDEX(TABNILSM5,MATCH($R$2,NILSM5!$C$1:$C$43,0),MATCH(A17&$H$13,NILSM5!$C$1:$FR$1,0)) -> 28 | I17: =INDEX(TABNILSM5,MATCH($R$2,NILSM5!$C$1:$C$43,0),MATCH(A17&$I$13,NILSM5!$C$1:$FR$1,0)) -> 29 | J17: =INDEX(TABNILSM5,MATCH($R$2,NILSM5!$C$1:$C$43,0),MATCH(A17&$J$13,NILSM5!$C$1:$FR$1,0)) -> 30 | K17: =INDEX(TABNILSM5,MATCH($R$2,NILSM5!$C$1:$C$43,0),MATCH(A17&$K$13,NILSM5!$C$1:$FR$1,0)) -> 31 | L17: =INDEX(TABNILSM5,MATCH($R$2,NILSM5!$C$1:$C$43,0),MATCH(A17&$L$13,NILSM5!$C$1:$FR$1,0)) -> 32
A18: SJI | B18: 0 | C18: 0 | D18: - | E18: 78 | F18: =INDEX(TABNILSM5,MATCH($R$2,NILSM5!$C$1:$C$43,0),MATCH(A18&$F$13,NILSM5!$C$1:$FR$1,0)) -> 33 | G18: =INDEX(TABNILSM5,MATCH($R$2,NILSM5!$C$1:$C$43,0),MATCH(A18&$G$13,NILSM5!$C$1:$FR$1,0)) -> 34 | H18: =INDEX(TABNILSM5,MATCH($R$2,NILSM5!$C$1:$C$43,0),MATCH(A18&$H$13,NILSM5!$C$1:$FR$1,0)) -> 35 | I18: =INDEX(TABNILSM5,MATCH($R$2,NILSM5!$C$1:$C$43,0),MATCH(A18&$I$13,NILSM5!$C$1:$FR$1,0)) -> 36 | J18: =INDEX(TABNILSM5,MATCH($R$2,NILSM5!$C$1:$C$43,0),MATCH(A18&$J$13,NILSM5!$C$1:$FR$1,0)) -> 37 | K18: =INDEX(TABNILSM5,MATCH($R$2,NILSM5!$C$1:$C$43,0),MATCH(A18&$K$13,NILSM5!$C$1:$FR$1,0)) -> 38 | L18: =INDEX(TABNILSM5,MATCH($R$2,NILSM5!$C$1:$C$43,0),MATCH(A18&$L$13,NILSM5!$C$1:$FR$1,0)) -> 39
A19: ING | B19: 1 | C19: 5 | D19: Bahasa Inggris | E19: 78 | F19: =INDEX(TABNILSM5,MATCH($R$2,NILSM5!$C$1:$C$43,0),MATCH(A19&$F$13,NILSM5!$C$1:$FR$1,0)) -> 40 | G19: =INDEX(TABNILSM5,MATCH($R$2,NILSM5!$C$1:$C$43,0),MATCH(A19&$G$13,NILSM5!$C$1:$FR$1,0)) -> 41 | H19: =INDEX(TABNILSM5,MATCH($R$2,NILSM5!$C$1:$C$43,0),MATCH(A19&$H$13,NILSM5!$C$1:$FR$1,0)) -> 42 | I19: =INDEX(TABNILSM5,MATCH($R$2,NILSM5!$C$1:$C$43,0),MATCH(A19&$I$13,NILSM5!$C$1:$FR$1,0)) -> 43 | J19: =INDEX(TABNILSM5,MATCH($R$2,NILSM5!$C$1:$C$43,0),MATCH(A19&$J$13,NILSM5!$C$1:$FR$1,0)) -> 44 | K19: =INDEX(TABNILSM5,MATCH($R$2,NILSM5!$C$1:$C$43,0),MATCH(A19&$K$13,NILSM5!$C$1:$FR$1,0)) -> 45 | L19: =INDEX(TABNILSM5,MATCH($R$2,NILSM5!$C$1:$C$43,0),MATCH(A19&$L$13,NILSM5!$C$1:$FR$1,0)) -> 46
A20: JER | B20: 1 | C20: 6 | D20: Bahasa Jerman | E20: 78 | F20: =INDEX(TABNILSM5,MATCH($R$2,NILSM5!$C$1:$C$43,0),MATCH(A20&$F$13,NILSM5!$C$1:$FR$1,0)) -> 47 | G20: =INDEX(TABNILSM5,MATCH($R$2,NILSM5!$C$1:$C$43,0),MATCH(A20&$G$13,NILSM5!$C$1:$FR$1,0)) -> 48 | H20: =INDEX(TABNILSM5,MATCH($R$2,NILSM5!$C$1:$C$43,0),MATCH(A20&$H$13,NILSM5!$C$1:$FR$1,0)) -> 49 | I20: =INDEX(TABNILSM5,MATCH($R$2,NILSM5!$C$1:$C$43,0),MATCH(A20&$I$13,NILSM5!$C$1:$FR$1,0)) -> 50 | J20: =INDEX(TABNILSM5,MATCH($R$2,NILSM5!$C$1:$C$43,0),MATCH(A20&$J$13,NILSM5!$C$1:$FR$1,0)) -> 51 | K20: =INDEX(TABNILSM5,MATCH($R$2,NILSM5!$C$1:$C$43,0),MATCH(A20&$K$13,NILSM5!$C$1:$FR$1,0)) -> 52 | L20: =INDEX(TABNILSM5,MATCH($R$2,NILSM5!$C$1:$C$43,0),MATCH(A20&$L$13,NILSM5!$C$1:$FR$1,0)) -> 53
B21: =IF(AND(COUNT(C21)=0,C23=0),0,1) -> 0 | C21: B. Muatan Kewilayahan
A22: SBD | B22: 0 | C22: =HLOOKUP(A22&$F$13,TABNILSM5,4,FALSE) -> 0 | D22: =HLOOKUP(A22&$F$13,TABNILSM5,2,FALSE) -> - | E22: =IFERROR(HLOOKUP(A22&$F$13,TABNILSM5,5,FALSE),"-") -> 78 | F22: =INDEX(TABNILSM5,MATCH($R$2,NILSM5!$C$1:$C$43,0),MATCH(A22&$F$13,NILSM5!$C$1:$FR$1,0)) -> 54 | G22: =INDEX(TABNILSM5,MATCH($R$2,NILSM5!$C$1:$C$43,0),MATCH(A22&$G$13,NILSM5!$C$1:$FR$1,0)) -> 55 | H22: =INDEX(TABNILSM5,MATCH($R$2,NILSM5!$C$1:$C$43,0),MATCH(A22&$H$13,NILSM5!$C$1:$FR$1,0)) -> 56 | I22: =INDEX(TABNILSM5,MATCH($R$2,NILSM5!$C$1:$C$43,0),MATCH(A22&$I$13,NILSM5!$C$1:$FR$1,0)) -> 57 | J22: =INDEX(TABNILSM5,MATCH($R$2,NILSM5!$C$1:$C$43,0),MATCH(A22&$J$13,NILSM5!$C$1:$FR$1,0)) -> 58 | K22: =INDEX(TABNILSM5,MATCH($R$2,NILSM5!$C$1:$C$43,0),MATCH(A22&$K$13,NILSM5!$C$1:$FR$1,0)) -> 59 | L22: =INDEX(TABNILSM5,MATCH($R$2,NILSM5!$C$1:$C$43,0),MATCH(A22&$L$13,NILSM5!$C$1:$FR$1,0)) -> 60
A23: PJO | B23: 0 | C23: =HLOOKUP(A23&$F$13,TABNILSM5,4,FALSE) -> 0 | D23: =HLOOKUP(A23&$F$13,TABNILSM5,2,FALSE) -> - | E23: =IFERROR(HLOOKUP(A23&$F$13,TABNILSM5,5,FALSE),"-") -> 78 | F23: =INDEX(TABNILSM5,MATCH($R$2,NILSM5!$C$1:$C$43,0),MATCH(A23&$F$13,NILSM5!$C$1:$FR$1,0)) -> 61 | G23: =INDEX(TABNILSM5,MATCH($R$2,NILSM5!$C$1:$C$43,0),MATCH(A23&$G$13,NILSM5!$C$1:$FR$1,0)) -> 62 | H23: =INDEX(TABNILSM5,MATCH($R$2,NILSM5!$C$1:$C$43,0),MATCH(A23&$H$13,NILSM5!$C$1:$FR$1,0)) -> 63 | I23: =INDEX(TABNILSM5,MATCH($R$2,NILSM5!$C$1:$C$43,0),MATCH(A23&$I$13,NILSM5!$C$1:$FR$1,0)) -> 64 | J23: =INDEX(TABNILSM5,MATCH($R$2,NILSM5!$C$1:$C$43,0),MATCH(A23&$J$13,NILSM5!$C$1:$FR$1,0)) -> 65 | K23: =INDEX(TABNILSM5,MATCH($R$2,NILSM5!$C$1:$C$43,0),MATCH(A23&$K$13,NILSM5!$C$1:$FR$1,0)) -> 66 | L23: =INDEX(TABNILSM5,MATCH($R$2,NILSM5!$C$1:$C$43,0),MATCH(A23&$L$13,NILSM5!$C$1:$FR$1,0)) -> 67
A24: - | B24: 1 | C24: C. Muatan Peminatan Kejuruan
B25: =IF(AND(COUNT(C25)=0,C26=0),0,1) -> 0 | C25: C1 | D25: Dasar Bidang Keahlian
A26: SKD | B26: =IF(C26>=1,1,0) -> 0 | C26: =HLOOKUP(A26&$F$13,TABNILSM5,4,FALSE) -> 0 | D26: =HLOOKUP(A26&$F$13,TABNILSM5,2,FALSE) -> - | E26: =IFERROR(HLOOKUP(A26&$F$13,TABNILSM5,5,FALSE),"-") -> 78 | F26: =INDEX(TABNILSM5,MATCH($R$2,NILSM5!$C$1:$C$43,0),MATCH(A26&$F$13,NILSM5!$C$1:$FR$1,0)) -> 68 | G26: =INDEX(TABNILSM5,MATCH($R$2,NILSM5!$C$1:$C$43,0),MATCH(A26&$G$13,NILSM5!$C$1:$FR$1,0)) -> 69 | H26: =INDEX(TABNILSM5,MATCH($R$2,NILSM5!$C$1:$C$43,0),MATCH(A26&$H$13,NILSM5!$C$1:$FR$1,0)) -> 70 | I26: =INDEX(TABNILSM5,MATCH($R$2,NILSM5!$C$1:$C$43,0),MATCH(A26&$I$13,NILSM5!$C$1:$FR$1,0)) -> 71 | J26: =INDEX(TABNILSM5,MATCH($R$2,NILSM5!$C$1:$C$43,0),MATCH(A26&$J$13,NILSM5!$C$1:$FR$1,0)) -> 72 | K26: =INDEX(TABNILSM5,MATCH($R$2,NILSM5!$C$1:$C$43,0),MATCH(A26&$K$13,NILSM5!$C$1:$FR$1,0)) -> 73 | L26: =INDEX(TABNILSM5,MATCH($R$2,NILSM5!$C$1:$C$43,0),MATCH(A26&$L$13,NILSM5!$C$1:$FR$1,0)) -> 74
A27: FIS | B27: 0 | C27: =HLOOKUP(A27&$F$13,TABNILSM5,4,FALSE) -> 0 | D27: =HLOOKUP(A27&$F$13,TABNILSM5,2,FALSE) -> - | E27: =IFERROR(HLOOKUP(A27&$F$13,TABNILSM5,5,FALSE),"-") -> 78 | F27: =INDEX(TABNILSM5,MATCH($R$2,NILSM5!$C$1:$C$43,0),MATCH(A27&$F$13,NILSM5!$C$1:$FR$1,0)) -> 75 | G27: =INDEX(TABNILSM5,MATCH($R$2,NILSM5!$C$1:$C$43,0),MATCH(A27&$G$13,NILSM5!$C$1:$FR$1,0)) -> 76 | H27: =INDEX(TABNILSM5,MATCH($R$2,NILSM5!$C$1:$C$43,0),MATCH(A27&$H$13,NILSM5!$C$1:$FR$1,0)) -> 77 | I27: =INDEX(TABNILSM5,MATCH($R$2,NILSM5!$C$1:$C$43,0),MATCH(A27&$I$13,NILSM5!$C$1:$FR$1,0)) -> 78 | J27: =INDEX(TABNILSM5,MATCH($R$2,NILSM5!$C$1:$C$43,0),MATCH(A27&$J$13,NILSM5!$C$1:$FR$1,0)) -> 79 | K27: =INDEX(TABNILSM5,MATCH($R$2,NILSM5!$C$1:$C$43,0),MATCH(A27&$K$13,NILSM5!$C$1:$FR$1,0)) -> 80 | L27: =INDEX(TABNILSM5,MATCH($R$2,NILSM5!$C$1:$C$43,0),MATCH(A27&$L$13,NILSM5!$C$1:$FR$1,0)) -> 81
A28: KIM | B28: 0 | C28: =HLOOKUP(A28&$F$13,TABNILSM5,4,FALSE) -> 0 | D28: =HLOOKUP(A28&$F$13,TABNILSM5,2,FALSE) -> - | E28: =IFERROR(HLOOKUP(A28&$F$13,TABNILSM5,5,FALSE),"-") -> 78 | F28: =INDEX(TABNILSM5,MATCH($R$2,NILSM5!$C$1:$C$43,0),MATCH(A28&$F$13,NILSM5!$C$1:$FR$1,0)) -> 82 | G28: =INDEX(TABNILSM5,MATCH($R$2,NILSM5!$C$1:$C$43,0),MATCH(A28&$G$13,NILSM5!$C$1:$FR$1,0)) -> 83 | H28: =INDEX(TABNILSM5,MATCH($R$2,NILSM5!$C$1:$C$43,0),MATCH(A28&$H$13,NILSM5!$C$1:$FR$1,0)) -> 84 | I28: =INDEX(TABNILSM5,MATCH($R$2,NILSM5!$C$1:$C$43,0),MATCH(A28&$I$13,NILSM5!$C$1:$FR$1,0)) -> 85 | J28: =INDEX(TABNILSM5,MATCH($R$2,NILSM5!$C$1:$C$43,0),MATCH(A28&$J$13,NILSM5!$C$1:$FR$1,0)) -> 86 | K28: =INDEX(TABNILSM5,MATCH($R$2,NILSM5!$C$1:$C$43,0),MATCH(A28&$K$13,NILSM5!$C$1:$FR$1,0)) -> 87 | L28: =INDEX(TABNILSM5,MATCH($R$2,NILSM5!$C$1:$C$43,0),MATCH(A28&$L$13,NILSM5!$C$1:$FR$1,0)) -> 88
B29: =IF(AND(COUNT(C29)=0,C30=0),0,1) -> 0 | C29: C2 | D29: Dasar Program Keahlian
A30: C21 | B30: 0 | C30: =HLOOKUP(A30&$F$13,TABNILSM5,4,FALSE) -> 0 | D30: =HLOOKUP(A30&$F$13,TABNILSM5,2,FALSE) -> - | E30: =IFERROR(HLOOKUP(A30&$F$13,TABNILSM5,5,FALSE),"-") -> 78 | F30: =INDEX(TABNILSM5,MATCH($R$2,NILSM5!$C$1:$C$43,0),MATCH(A30&$F$13,NILSM5!$C$1:$FR$1,0)) -> 89 | G30: =INDEX(TABNILSM5,MATCH($R$2,NILSM5!$C$1:$C$43,0),MATCH(A30&$G$13,NILSM5!$C$1:$FR$1,0)) -> 90 | H30: =INDEX(TABNILSM5,MATCH($R$2,NILSM5!$C$1:$C$43,0),MATCH(A30&$H$13,NILSM5!$C$1:$FR$1,0)) -> 91 | I30: =INDEX(TABNILSM5,MATCH($R$2,NILSM5!$C$1:$C$43,0),MATCH(A30&$I$13,NILSM5!$C$1:$FR$1,0)) -> 92 | J30: =INDEX(TABNILSM5,MATCH($R$2,NILSM5!$C$1:$C$43,0),MATCH(A30&$J$13,NILSM5!$C$1:$FR$1,0)) -> 93 | K30: =INDEX(TABNILSM5,MATCH($R$2,NILSM5!$C$1:$C$43,0),MATCH(A30&$K$13,NILSM5!$C$1:$FR$1,0)) -> 94 | L30: =INDEX(TABNILSM5,MATCH($R$2,NILSM5!$C$1:$C$43,0),MATCH(A30&$L$13,NILSM5!$C$1:$FR$1,0)) -> 95
A31: C22 | B31: 0 | C31: =HLOOKUP(A31&$F$13,TABNILSM5,4,FALSE) -> 0 | D31: =HLOOKUP(A31&$F$13,TABNILSM5,2,FALSE) -> - | E31: =IFERROR(HLOOKUP(A31&$F$13,TABNILSM5,5,FALSE),"-") -> 78 | F31: =INDEX(TABNILSM5,MATCH($R$2,NILSM5!$C$1:$C$43,0),MATCH(A31&$F$13,NILSM5!$C$1:$FR$1,0)) -> 96 | G31: =INDEX(TABNILSM5,MATCH($R$2,NILSM5!$C$1:$C$43,0),MATCH(A31&$G$13,NILSM5!$C$1:$FR$1,0)) -> 97 | H31: =INDEX(TABNILSM5,MATCH($R$2,NILSM5!$C$1:$C$43,0),MATCH(A31&$H$13,NILSM5!$C$1:$FR$1,0)) -> 98 | I31: =INDEX(TABNILSM5,MATCH($R$2,NILSM5!$C$1:$C$43,0),MATCH(A31&$I$13,NILSM5!$C$1:$FR$1,0)) -> 99 | J31: =INDEX(TABNILSM5,MATCH($R$2,NILSM5!$C$1:$C$43,0),MATCH(A31&$J$13,NILSM5!$C$1:$FR$1,0)) -> 100 | K31: =INDEX(TABNILSM5,MATCH($R$2,NILSM5!$C$1:$C$43,0),MATCH(A31&$K$13,NILSM5!$C$1:$FR$1,0)) -> 75 | L31: =INDEX(TABNILSM5,MATCH($R$2,NILSM5!$C$1:$C$43,0),MATCH(A31&$L$13,NILSM5!$C$1:$FR$1,0)) -> 76
A32: C23 | B32: 0 | C32: =HLOOKUP(A32&$F$13,TABNILSM5,4,FALSE) -> 0 | D32: =HLOOKUP(A32&$F$13,TABNILSM5,2,FALSE) -> - | E32: =IFERROR(HLOOKUP(A32&$F$13,TABNILSM5,5,FALSE),"-") -> 78 | F32: =INDEX(TABNILSM5,MATCH($R$2,NILSM5!$C$1:$C$43,0),MATCH(A32&$F$13,NILSM5!$C$1:$FR$1,0)) -> 77 | G32: =INDEX(TABNILSM5,MATCH($R$2,NILSM5!$C$1:$C$43,0),MATCH(A32&$G$13,NILSM5!$C$1:$FR$1,0)) -> 78 | H32: =INDEX(TABNILSM5,MATCH($R$2,NILSM5!$C$1:$C$43,0),MATCH(A32&$H$13,NILSM5!$C$1:$FR$1,0)) -> 79 | I32: =INDEX(TABNILSM5,MATCH($R$2,NILSM5!$C$1:$C$43,0),MATCH(A32&$I$13,NILSM5!$C$1:$FR$1,0)) -> 80 | J32: =INDEX(TABNILSM5,MATCH($R$2,NILSM5!$C$1:$C$43,0),MATCH(A32&$J$13,NILSM5!$C$1:$FR$1,0)) -> 81 | K32: =INDEX(TABNILSM5,MATCH($R$2,NILSM5!$C$1:$C$43,0),MATCH(A32&$K$13,NILSM5!$C$1:$FR$1,0)) -> 82 | L32: =INDEX(TABNILSM5,MATCH($R$2,NILSM5!$C$1:$C$43,0),MATCH(A32&$L$13,NILSM5!$C$1:$FR$1,0)) -> 83
A33: C24 | B33: 0 | C33: =HLOOKUP(A33&$F$13,TABNILSM5,4,FALSE) -> 0 | D33: =HLOOKUP(A33&$F$13,TABNILSM5,2,FALSE) -> - | E33: =IFERROR(HLOOKUP(A33&$F$13,TABNILSM5,5,FALSE),"-") -> 78 | F33: =INDEX(TABNILSM5,MATCH($R$2,NILSM5!$C$1:$C$43,0),MATCH(A33&$F$13,NILSM5!$C$1:$FR$1,0)) -> 84 | G33: =INDEX(TABNILSM5,MATCH($R$2,NILSM5!$C$1:$C$43,0),MATCH(A33&$G$13,NILSM5!$C$1:$FR$1,0)) -> 85 | H33: =INDEX(TABNILSM5,MATCH($R$2,NILSM5!$C$1:$C$43,0),MATCH(A33&$H$13,NILSM5!$C$1:$FR$1,0)) -> 86 | I33: =INDEX(TABNILSM5,MATCH($R$2,NILSM5!$C$1:$C$43,0),MATCH(A33&$I$13,NILSM5!$C$1:$FR$1,0)) -> 87 | J33: =INDEX(TABNILSM5,MATCH($R$2,NILSM5!$C$1:$C$43,0),MATCH(A33&$J$13,NILSM5!$C$1:$FR$1,0)) -> 88 | K33: =INDEX(TABNILSM5,MATCH($R$2,NILSM5!$C$1:$C$43,0),MATCH(A33&$K$13,NILSM5!$C$1:$FR$1,0)) -> 89 | L33: =INDEX(TABNILSM5,MATCH($R$2,NILSM5!$C$1:$C$43,0),MATCH(A33&$L$13,NILSM5!$C$1:$FR$1,0)) -> 90
A34: - | B34: =IF(AND(COUNT(C34)=0,C37=0),0,1) -> 1 | C34: C3 | D34: Kompetensi Keahlian
A35: C31 | B35: 1 | C35: =HLOOKUP(A35&$F$13,TABNILSM5,4,FALSE) -> 7 | D35: =HLOOKUP(A35&$F$13,TABNILSM5,2,FALSE) -> Pemeliharaan Mesin Sepeda Motor | E35: =IFERROR(HLOOKUP(A35&$F$13,TABNILSM5,5,FALSE),"-") -> 78 | F35: =INDEX(TABNILSM5,MATCH($R$2,NILSM5!$C$1:$C$43,0),MATCH(A35&$F$13,NILSM5!$C$1:$FR$1,0)) -> 91 | G35: =INDEX(TABNILSM5,MATCH($R$2,NILSM5!$C$1:$C$43,0),MATCH(A35&$G$13,NILSM5!$C$1:$FR$1,0)) -> 92 | H35: =INDEX(TABNILSM5,MATCH($R$2,NILSM5!$C$1:$C$43,0),MATCH(A35&$H$13,NILSM5!$C$1:$FR$1,0)) -> 93 | I35: =INDEX(TABNILSM5,MATCH($R$2,NILSM5!$C$1:$C$43,0),MATCH(A35&$I$13,NILSM5!$C$1:$FR$1,0)) -> 94 | J35: =INDEX(TABNILSM5,MATCH($R$2,NILSM5!$C$1:$C$43,0),MATCH(A35&$J$13,NILSM5!$C$1:$FR$1,0)) -> 95 | K35: =INDEX(TABNILSM5,MATCH($R$2,NILSM5!$C$1:$C$43,0),MATCH(A35&$K$13,NILSM5!$C$1:$FR$1,0)) -> 96 | L35: =INDEX(TABNILSM5,MATCH($R$2,NILSM5!$C$1:$C$43,0),MATCH(A35&$L$13,NILSM5!$C$1:$FR$1,0)) -> 97
A36: C32 | B36: 1 | C36: 8 | D36: Pemeliharaan Sasis Sepeda Motor | E36: 78 | F36: =INDEX(TABNILSM5,MATCH($R$2,NILSM5!$C$1:$C$43,0),MATCH(A36&$F$13,NILSM5!$C$1:$FR$1,0)) -> 98 | G36: =INDEX(TABNILSM5,MATCH($R$2,NILSM5!$C$1:$C$43,0),MATCH(A36&$G$13,NILSM5!$C$1:$FR$1,0)) -> 99 | H36: =INDEX(TABNILSM5,MATCH($R$2,NILSM5!$C$1:$C$43,0),MATCH(A36&$H$13,NILSM5!$C$1:$FR$1,0)) -> 100 | I36: =INDEX(TABNILSM5,MATCH($R$2,NILSM5!$C$1:$C$43,0),MATCH(A36&$I$13,NILSM5!$C$1:$FR$1,0)) -> 75 | J36: =INDEX(TABNILSM5,MATCH($R$2,NILSM5!$C$1:$C$43,0),MATCH(A36&$J$13,NILSM5!$C$1:$FR$1,0)) -> 76 | K36: =INDEX(TABNILSM5,MATCH($R$2,NILSM5!$C$1:$C$43,0),MATCH(A36&$K$13,NILSM5!$C$1:$FR$1,0)) -> 77 | L36: =INDEX(TABNILSM5,MATCH($R$2,NILSM5!$C$1:$C$43,0),MATCH(A36&$L$13,NILSM5!$C$1:$FR$1,0)) -> 78
A37: C33 | B37: 1 | C37: 9 | D37: Pemeliharaan Kelistrikan Sepeda Motor | E37: 78 | F37: =INDEX(TABNILSM5,MATCH($R$2,NILSM5!$C$1:$C$43,0),MATCH(A37&$F$13,NILSM5!$C$1:$FR$1,0)) -> 79 | G37: =INDEX(TABNILSM5,MATCH($R$2,NILSM5!$C$1:$C$43,0),MATCH(A37&$G$13,NILSM5!$C$1:$FR$1,0)) -> 80 | H37: =INDEX(TABNILSM5,MATCH($R$2,NILSM5!$C$1:$C$43,0),MATCH(A37&$H$13,NILSM5!$C$1:$FR$1,0)) -> 81 | I37: =INDEX(TABNILSM5,MATCH($R$2,NILSM5!$C$1:$C$43,0),MATCH(A37&$I$13,NILSM5!$C$1:$FR$1,0)) -> 82 | J37: =INDEX(TABNILSM5,MATCH($R$2,NILSM5!$C$1:$C$43,0),MATCH(A37&$J$13,NILSM5!$C$1:$FR$1,0)) -> 83 | K37: =INDEX(TABNILSM5,MATCH($R$2,NILSM5!$C$1:$C$43,0),MATCH(A37&$K$13,NILSM5!$C$1:$FR$1,0)) -> 84 | L37: =INDEX(TABNILSM5,MATCH($R$2,NILSM5!$C$1:$C$43,0),MATCH(A37&$L$13,NILSM5!$C$1:$FR$1,0)) -> 85
A38: C34 | B38: 1 | C38: 10 | D38: Pengelolaan Bengkel Sepeda Motor | E38: 78 | F38: =INDEX(TABNILSM5,MATCH($R$2,NILSM5!$C$1:$C$43,0),MATCH(A38&$F$13,NILSM5!$C$1:$FR$1,0)) -> 86 | G38: =INDEX(TABNILSM5,MATCH($R$2,NILSM5!$C$1:$C$43,0),MATCH(A38&$G$13,NILSM5!$C$1:$FR$1,0)) -> 87 | H38: =INDEX(TABNILSM5,MATCH($R$2,NILSM5!$C$1:$C$43,0),MATCH(A38&$H$13,NILSM5!$C$1:$FR$1,0)) -> 88 | I38: =INDEX(TABNILSM5,MATCH($R$2,NILSM5!$C$1:$C$43,0),MATCH(A38&$I$13,NILSM5!$C$1:$FR$1,0)) -> 89 | J38: =INDEX(TABNILSM5,MATCH($R$2,NILSM5!$C$1:$C$43,0),MATCH(A38&$J$13,NILSM5!$C$1:$FR$1,0)) -> 90 | K38: =INDEX(TABNILSM5,MATCH($R$2,NILSM5!$C$1:$C$43,0),MATCH(A38&$K$13,NILSM5!$C$1:$FR$1,0)) -> 91 | L38: =INDEX(TABNILSM5,MATCH($R$2,NILSM5!$C$1:$C$43,0),MATCH(A38&$L$13,NILSM5!$C$1:$FR$1,0)) -> 92
A39: C35 | B39: 0 | C39: 0 | D39: - | E39: 78 | F39: =INDEX(TABNILSM5,MATCH($R$2,NILSM5!$C$1:$C$43,0),MATCH(A39&$F$13,NILSM5!$C$1:$FR$1,0)) -> 93 | G39: =INDEX(TABNILSM5,MATCH($R$2,NILSM5!$C$1:$C$43,0),MATCH(A39&$G$13,NILSM5!$C$1:$FR$1,0)) -> 94 | H39: =INDEX(TABNILSM5,MATCH($R$2,NILSM5!$C$1:$C$43,0),MATCH(A39&$H$13,NILSM5!$C$1:$FR$1,0)) -> 95 | I39: =INDEX(TABNILSM5,MATCH($R$2,NILSM5!$C$1:$C$43,0),MATCH(A39&$I$13,NILSM5!$C$1:$FR$1,0)) -> 96 | J39: =INDEX(TABNILSM5,MATCH($R$2,NILSM5!$C$1:$C$43,0),MATCH(A39&$J$13,NILSM5!$C$1:$FR$1,0)) -> 97 | K39: =INDEX(TABNILSM5,MATCH($R$2,NILSM5!$C$1:$C$43,0),MATCH(A39&$K$13,NILSM5!$C$1:$FR$1,0)) -> 98 | L39: =INDEX(TABNILSM5,MATCH($R$2,NILSM5!$C$1:$C$43,0),MATCH(A39&$L$13,NILSM5!$C$1:$FR$1,0)) -> 99
A40: C36 | B40: 1 | C40: 11 | D40: Produk Kreatif dan Kewirausahaan | E40: 78 | F40: =INDEX(TABNILSM5,MATCH($R$2,NILSM5!$C$1:$C$43,0),MATCH(A40&$F$13,NILSM5!$C$1:$FR$1,0)) -> 100 | G40: =INDEX(TABNILSM5,MATCH($R$2,NILSM5!$C$1:$C$43,0),MATCH(A40&$G$13,NILSM5!$C$1:$FR$1,0)) -> 75 | H40: =INDEX(TABNILSM5,MATCH($R$2,NILSM5!$C$1:$C$43,0),MATCH(A40&$H$13,NILSM5!$C$1:$FR$1,0)) -> 76 | I40: =INDEX(TABNILSM5,MATCH($R$2,NILSM5!$C$1:$C$43,0),MATCH(A40&$I$13,NILSM5!$C$1:$FR$1,0)) -> 77 | J40: =INDEX(TABNILSM5,MATCH($R$2,NILSM5!$C$1:$C$43,0),MATCH(A40&$J$13,NILSM5!$C$1:$FR$1,0)) -> 78 | K40: =INDEX(TABNILSM5,MATCH($R$2,NILSM5!$C$1:$C$43,0),MATCH(A40&$K$13,NILSM5!$C$1:$FR$1,0)) -> 79 | L40: =INDEX(TABNILSM5,MATCH($R$2,NILSM5!$C$1:$C$43,0),MATCH(A40&$L$13,NILSM5!$C$1:$FR$1,0)) -> 80
B41: =IF(AND(COUNT(C41)=0,C42=0),0,1) -> 0 | C41: Muatan Lokal
A42: SUN | B42: 0 | C42: =HLOOKUP(A42&$F$13,TABNILSM5,4,FALSE) -> 0 | D42: =HLOOKUP(A42&$F$13,TABNILSM5,2,FALSE) -> - | E42: =IFERROR(HLOOKUP(A42&$F$13,TABNILSM5,5,FALSE),"-") -> 78 | F42: =INDEX(TABNILSM5,MATCH($R$2,NILSM5!$C$1:$C$43,0),MATCH(A42&$F$13,NILSM5!$C$1:$FR$1,0)) -> 81 | G42: =INDEX(TABNILSM5,MATCH($R$2,NILSM5!$C$1:$C$43,0),MATCH(A42&$G$13,NILSM5!$C$1:$FR$1,0)) -> 82 | H42: =INDEX(TABNILSM5,MATCH($R$2,NILSM5!$C$1:$C$43,0),MATCH(A42&$H$13,NILSM5!$C$1:$FR$1,0)) -> 83 | I42: =INDEX(TABNILSM5,MATCH($R$2,NILSM5!$C$1:$C$43,0),MATCH(A42&$I$13,NILSM5!$C$1:$FR$1,0)) -> 84 | J42: =INDEX(TABNILSM5,MATCH($R$2,NILSM5!$C$1:$C$43,0),MATCH(A42&$J$13,NILSM5!$C$1:$FR$1,0)) -> 85 | K42: =INDEX(TABNILSM5,MATCH($R$2,NILSM5!$C$1:$C$43,0),MATCH(A42&$K$13,NILSM5!$C$1:$FR$1,0)) -> 86 | L42: =INDEX(TABNILSM5,MATCH($R$2,NILSM5!$C$1:$C$43,0),MATCH(A42&$L$13,NILSM5!$C$1:$FR$1,0)) -> 87
A43: PLH | B43: 0 | C43: =HLOOKUP(A43&$F$13,TABNILSM5,4,FALSE) -> 0 | D43: =HLOOKUP(A43&$F$13,TABNILSM5,2,FALSE) -> - | E43: =IFERROR(HLOOKUP(A43&$F$13,TABNILSM5,5,FALSE),"-") -> 78 | F43: =INDEX(TABNILSM5,MATCH($R$2,NILSM5!$C$1:$C$43,0),MATCH(A43&$F$13,NILSM5!$C$1:$FR$1,0)) -> 88 | G43: =INDEX(TABNILSM5,MATCH($R$2,NILSM5!$C$1:$C$43,0),MATCH(A43&$G$13,NILSM5!$C$1:$FR$1,0)) -> 89 | H43: =INDEX(TABNILSM5,MATCH($R$2,NILSM5!$C$1:$C$43,0),MATCH(A43&$H$13,NILSM5!$C$1:$FR$1,0)) -> 90 | I43: =INDEX(TABNILSM5,MATCH($R$2,NILSM5!$C$1:$C$43,0),MATCH(A43&$I$13,NILSM5!$C$1:$FR$1,0)) -> 91 | J43: =INDEX(TABNILSM5,MATCH($R$2,NILSM5!$C$1:$C$43,0),MATCH(A43&$J$13,NILSM5!$C$1:$FR$1,0)) -> 92 | K43: =INDEX(TABNILSM5,MATCH($R$2,NILSM5!$C$1:$C$43,0),MATCH(A43&$K$13,NILSM5!$C$1:$FR$1,0)) -> 93 | L43: =INDEX(TABNILSM5,MATCH($R$2,NILSM5!$C$1:$C$43,0),MATCH(A43&$L$13,NILSM5!$C$1:$FR$1,0)) -> 94
A45: CTT | C45: Bimbingan dan Konseling | G45: Catatan Akademik
A46: BKN | C46: =INDEX(TABNILSM5,MATCH($R$2,NILSM5!$C$1:$C$43,0),MATCH(A46,NILSM5!$C$1:$FR$1,0)) -> 0 | G46: =INDEX(TABNILSM5,MATCH($R$2,NILSM5!$C$1:$C$43,0),MATCH(A45,NILSM5!$C$1:$FR$1,0)) -> 0
C48: Catatan: Jika nilai 0, siswa belum mengupload tugas atau belum mengerjakan ulangan. Jika nilai - , materi KD (Kompetensi Dasar) tersebut dilaksanakan setelah pembagian KHS.
Q50: =VLOOKUP($R$13,TAB_BIODATA,BIODATA!C4,FALSE) -> ADAM ADIYAT HARTANTO
D51: Mengetahui, | I51: =NILSM5!A5 -> 0
D52: Orang Tua/Wali, | I52: Wali Kelas, | Q52: ="Nomor Urut "&R13 -> Nomor Urut 1
I57: =NILSM5!B4 -> Amo Sisdianto, S.Kom
I58: =IF(NILSM5!B5=0,"","NIP "&NILSM5!B5) -> 

Sheet CETSM4
C1: KARTU HASIL STUDI (KHS) PESERTA DIDIK | Q1: JURUSAN | R1: =MENU!F8 -> TBSM
C2: SMK NEGERI 1 KARAWANG | Q2: NIS | R2: =VLOOKUP($R$13,TAB_BIODATA,BIODATA!D4,FALSE) -> 16170585
D4: Nama Peserta Didik | E4: : | F4: =VLOOKUP($R$13,TAB_BIODATA,BIODATA!C4,FALSE) -> CARWAN HIDAYAT
D5: Nomor Induk/NISN | E5: : | F5: =IF(VLOOKUP($R$13,TAB_BIODATA,BIODATA!E4)="",VLOOKUP($R$13,TAB_BIODATA,BIODATA!D4,FALSE),VLOOKUP($R$13,TAB_BIODATA,BIODATA!D4)&" / "&VLOOKUP($R$13,TAB_BIODATA,BIODATA!E4,FALSE)) -> 16170585 / 0019597659 | Q5: DATA CETAK | S5: HALAMAN CETAK
D6: Kelas | E6: : | F6: =IF(OR(F8="1 (satu)",F8="2 (dua)"),"X "&MENU!F9,IF(OR(F8="3 (tiga)",F8="4 (empat)"),"XI "&MENU!F9,IF(OR(F8="5 (lima)",F8="6 (enam)"),"XII "&MENU!F9,IF(OR(F8="7 (tujuh)",F8="8 (delapan)"),"XIII "&MENU!F9,"")))) -> XI TBSM 2 | Q6: Dari data ke | R6: 1 | S6: Dari | T6: 1
D7: Tahun Pelajaran | E7: : | F7: =RIGHT(NILSM4!A2,11) -> 2020 / 2021
D8: Semester | E8: : | F8: =NILSM4!B3 -> 4 (empat) | Q8: Sampai data ke | R8: 2 | S8: Ke | T8: 1
C10: Nilai Akademik
C11: No. | D11: Mata Pelajaran | E11: KKM | F11: KD 1 | H11: KD 2 | J11: KD 3 | L11: Kehadiran
F12: Tugas | G12: Ulangan | H12: Tugas | I12: Ulangan | J12: Tugas | K12: Ulangan | Q12: TAMPILAN DATA
C13: A. Muatan Nasional | F13: T1 | G13: U1 | H13: T2 | I13: U2 | J13: T3 | K13: U3 | L13: H | Q13: Nomor Urut | R13: 4
A14: PAB | B14: =IF(C14>=1,1,0) -> 1 | C14: =HLOOKUP(A14&$F$13,TABNILSM4,4,FALSE) -> 1 | D14: =HLOOKUP(A14&$F$13,TABNILSM4,2,FALSE) -> Pendidikan Agama dan Budi Pekerti | E14: =IFERROR(HLOOKUP(A14&$F$13,TABNILSM4,5,FALSE),"-") -> 77 | F14: =INDEX(TABNILSM4,MATCH($R$2,NILSM4!$C$1:$C$43,0),MATCH(A14&$F$13,NILSM4!$C$1:$FR$1,0)) -> 21 | G14: =INDEX(TABNILSM4,MATCH($R$2,NILSM4!$C$1:$C$43,0),MATCH(A14&$G$13,NILSM4!$C$1:$FR$1,0)) -> 22 | H14: =INDEX(TABNILSM4,MATCH($R$2,NILSM4!$C$1:$C$43,0),MATCH(A14&$H$13,NILSM4!$C$1:$FR$1,0)) -> 23 | I14: =INDEX(TABNILSM4,MATCH($R$2,NILSM4!$C$1:$C$43,0),MATCH(A14&$I$13,NILSM4!$C$1:$FR$1,0)) -> 24 | J14: =INDEX(TABNILSM4,MATCH($R$2,NILSM4!$C$1:$C$43,0),MATCH(A14&$J$13,NILSM4!$C$1:$FR$1,0)) -> 25 | K14: =INDEX(TABNILSM4,MATCH($R$2,NILSM4!$C$1:$C$43,0),MATCH(A14&$K$13,NILSM4!$C$1:$FR$1,0)) -> 26 | L14: =INDEX(TABNILSM4,MATCH($R$2,NILSM4!$C$1:$C$43,0),MATCH(A14&$L$13,NILSM4!$C$1:$FR$1,0)) -> 27
A15: PKN | B15: =IF(C15>=1,1,0) -> 1 | C15: 2 | D15: Pendidikan Pancasila dan Kewarganegaraan | E15: 77 | F15: =INDEX(TABNILSM4,MATCH($R$2,NILSM4!$C$1:$C$43,0),MATCH(A15&$F$13,NILSM4!$C$1:$FR$1,0)) -> 28 | G15: =INDEX(TABNILSM4,MATCH($R$2,NILSM4!$C$1:$C$43,0),MATCH(A15&$G$13,NILSM4!$C$1:$FR$1,0)) -> 29 | H15: =INDEX(TABNILSM4,MATCH($R$2,NILSM4!$C$1:$C$43,0),MATCH(A15&$H$13,NILSM4!$C$1:$FR$1,0)) -> 30 | I15: =INDEX(TABNILSM4,MATCH($R$2,NILSM4!$C$1:$C$43,0),MATCH(A15&$I$13,NILSM4!$C$1:$FR$1,0)) -> 31 | J15: =INDEX(TABNILSM4,MATCH($R$2,NILSM4!$C$1:$C$43,0),MATCH(A15&$J$13,NILSM4!$C$1:$FR$1,0)) -> 32 | K15: =INDEX(TABNILSM4,MATCH($R$2,NILSM4!$C$1:$C$43,0),MATCH(A15&$K$13,NILSM4!$C$1:$FR$1,0)) -> 33 | L15: =INDEX(TABNILSM4,MATCH($R$2,NILSM4!$C$1:$C$43,0),MATCH(A15&$L$13,NILSM4!$C$1:$FR$1,0)) -> 34
A16: IND | B16: 1 | C16: 3 | D16: Bahasa Indonesia | E16: 77 | F16: =INDEX(TABNILSM4,MATCH($R$2,NILSM4!$C$1:$C$43,0),MATCH(A16&$F$13,NILSM4!$C$1:$FR$1,0)) -> 0 | G16: =INDEX(TABNILSM4,MATCH($R$2,NILSM4!$C$1:$C$43,0),MATCH(A16&$G$13,NILSM4!$C$1:$FR$1,0)) -> 0 | H16: =INDEX(TABNILSM4,MATCH($R$2,NILSM4!$C$1:$C$43,0),MATCH(A16&$H$13,NILSM4!$C$1:$FR$1,0)) -> 0 | I16: =INDEX(TABNILSM4,MATCH($R$2,NILSM4!$C$1:$C$43,0),MATCH(A16&$I$13,NILSM4!$C$1:$FR$1,0)) -> 0 | J16: =INDEX(TABNILSM4,MATCH($R$2,NILSM4!$C$1:$C$43,0),MATCH(A16&$J$13,NILSM4!$C$1:$FR$1,0)) -> 0 | K16: =INDEX(TABNILSM4,MATCH($R$2,NILSM4!$C$1:$C$43,0),MATCH(A16&$K$13,NILSM4!$C$1:$FR$1,0)) -> 0 | L16: =INDEX(TABNILSM4,MATCH($R$2,NILSM4!$C$1:$C$43,0),MATCH(A16&$L$13,NILSM4!$C$1:$FR$1,0)) -> 0
A17: MTK | B17: 1 | C17: 4 | D17: Matematika | E17: 77 | F17: =INDEX(TABNILSM4,MATCH($R$2,NILSM4!$C$1:$C$43,0),MATCH(A17&$F$13,NILSM4!$C$1:$FR$1,0)) -> 0 | G17: =INDEX(TABNILSM4,MATCH($R$2,NILSM4!$C$1:$C$43,0),MATCH(A17&$G$13,NILSM4!$C$1:$FR$1,0)) -> 0 | H17: =INDEX(TABNILSM4,MATCH($R$2,NILSM4!$C$1:$C$43,0),MATCH(A17&$H$13,NILSM4!$C$1:$FR$1,0)) -> 0 | I17: =INDEX(TABNILSM4,MATCH($R$2,NILSM4!$C$1:$C$43,0),MATCH(A17&$I$13,NILSM4!$C$1:$FR$1,0)) -> 0 | J17: =INDEX(TABNILSM4,MATCH($R$2,NILSM4!$C$1:$C$43,0),MATCH(A17&$J$13,NILSM4!$C$1:$FR$1,0)) -> 0 | K17: =INDEX(TABNILSM4,MATCH($R$2,NILSM4!$C$1:$C$43,0),MATCH(A17&$K$13,NILSM4!$C$1:$FR$1,0)) -> 0 | L17: =INDEX(TABNILSM4,MATCH($R$2,NILSM4!$C$1:$C$43,0),MATCH(A17&$L$13,NILSM4!$C$1:$FR$1,0)) -> 0
A18: SJI | B18: 0 | C18: 0 | D18: - | E18: 77 | F18: =INDEX(TABNILSM4,MATCH($R$2,NILSM4!$C$1:$C$43,0),MATCH(A18&$F$13,NILSM4!$C$1:$FR$1,0)) -> 0 | G18: =INDEX(TABNILSM4,MATCH($R$2,NILSM4!$C$1:$C$43,0),MATCH(A18&$G$13,NILSM4!$C$1:$FR$1,0)) -> 0 | H18: =INDEX(TABNILSM4,MATCH($R$2,NILSM4!$C$1:$C$43,0),MATCH(A18&$H$13,NILSM4!$C$1:$FR$1,0)) -> 0 | I18: =INDEX(TABNILSM4,MATCH($R$2,NILSM4!$C$1:$C$43,0),MATCH(A18&$I$13,NILSM4!$C$1:$FR$1,0)) -> 0 | J18: =INDEX(TABNILSM4,MATCH($R$2,NILSM4!$C$1:$C$43,0),MATCH(A18&$J$13,NILSM4!$C$1:$FR$1,0)) -> 0 | K18: =INDEX(TABNILSM4,MATCH($R$2,NILSM4!$C$1:$C$43,0),MATCH(A18&$K$13,NILSM4!$C$1:$FR$1,0)) -> 0 | L18: =INDEX(TABNILSM4,MATCH($R$2,NILSM4!$C$1:$C$43,0),MATCH(A18&$L$13,NILSM4!$C$1:$FR$1,0)) -> 0
A19: ING | B19: 1 | C19: 5 | D19: Bahasa Inggris | E19: 77 | F19: =INDEX(TABNILSM4,MATCH($R$2,NILSM4!$C$1:$C$43,0),MATCH(A19&$F$13,NILSM4!$C$1:$FR$1,0)) -> 0 | G19: =INDEX(TABNILSM4,MATCH($R$2,NILSM4!$C$1:$C$43,0),MATCH(A19&$G$13,NILSM4!$C$1:$FR$1,0)) -> 0 | H19: =INDEX(TABNILSM4,MATCH($R$2,NILSM4!$C$1:$C$43,0),MATCH(A19&$H$13,NILSM4!$C$1:$FR$1,0)) -> 0 | I19: =INDEX(TABNILSM4,MATCH($R$2,NILSM4!$C$1:$C$43,0),MATCH(A19&$I$13,NILSM4!$C$1:$FR$1,0)) -> 0 | J19: =INDEX(TABNILSM4,MATCH($R$2,NILSM4!$C$1:$C$43,0),MATCH(A19&$J$13,NILSM4!$C$1:$FR$1,0)) -> 0 | K19: =INDEX(TABNILSM4,MATCH($R$2,NILSM4!$C$1:$C$43,0),MATCH(A19&$K$13,NILSM4!$C$1:$FR$1,0)) -> 0 | L19: =INDEX(TABNILSM4,MATCH($R$2,NILSM4!$C$1:$C$43,0),MATCH(A19&$L$13,NILSM4!$C$1:$FR$1,0)) -> 0
A20: JER | B20: 0 | C20: 0 | D20: - | E20: 77 | F20: =INDEX(TABNILSM4,MATCH($R$2,NILSM4!$C$1:$C$43,0),MATCH(A20&$F$13,NILSM4!$C$1:$FR$1,0)) -> 0 | G20: =INDEX(TABNILSM4,MATCH($R$2,NILSM4!$C$1:$C$43,0),MATCH(A20&$G$13,NILSM4!$C$1:$FR$1,0)) -> 0 | H20: =INDEX(TABNILSM4,MATCH($R$2,NILSM4!$C$1:$C$43,0),MATCH(A20&$H$13,NILSM4!$C$1:$FR$1,0)) -> 0 | I20: =INDEX(TABNILSM4,MATCH($R$2,NILSM4!$C$1:$C$43,0),MATCH(A20&$I$13,NILSM4!$C$1:$FR$1,0)) -> 0 | J20: =INDEX(TABNILSM4,MATCH($R$2,NILSM4!$C$1:$C$43,0),MATCH(A20&$J$13,NILSM4!$C$1:$FR$1,0)) -> 0 | K20: =INDEX(TABNILSM4,MATCH($R$2,NILSM4!$C$1:$C$43,0),MATCH(A20&$K$13,NILSM4!$C$1:$FR$1,0)) -> 0 | L20: =INDEX(TABNILSM4,MATCH($R$2,NILSM4!$C$1:$C$43,0),MATCH(A20&$L$13,NILSM4!$C$1:$FR$1,0)) -> 0
B21: =IF(AND(COUNT(C21)=0,C23=0),0,1) -> 1 | C21: B. Muatan Kewilayahan
A22: SBD | B22: 0 | C22: =HLOOKUP(A22&$F$13,TABNILSM4,4,FALSE) -> 0 | D22: =HLOOKUP(A22&$F$13,TABNILSM4,2,FALSE) -> - | E22: =IFERROR(HLOOKUP(A22&$F$13,TABNILSM4,5,FALSE),"-") -> 77 | F22: =INDEX(TABNILSM4,MATCH($R$2,NILSM4!$C$1:$C$43,0),MATCH(A22&$F$13,NILSM4!$C$1:$FR$1,0)) -> 0 | G22: =INDEX(TABNILSM4,MATCH($R$2,NILSM4!$C$1:$C$43,0),MATCH(A22&$G$13,NILSM4!$C$1:$FR$1,0)) -> 0 | H22: =INDEX(TABNILSM4,MATCH($R$2,NILSM4!$C$1:$C$43,0),MATCH(A22&$H$13,NILSM4!$C$1:$FR$1,0)) -> 0 | I22: =INDEX(TABNILSM4,MATCH($R$2,NILSM4!$C$1:$C$43,0),MATCH(A22&$I$13,NILSM4!$C$1:$FR$1,0)) -> 0 | J22: =INDEX(TABNILSM4,MATCH($R$2,NILSM4!$C$1:$C$43,0),MATCH(A22&$J$13,NILSM4!$C$1:$FR$1,0)) -> 0 | K22: =INDEX(TABNILSM4,MATCH($R$2,NILSM4!$C$1:$C$43,0),MATCH(A22&$K$13,NILSM4!$C$1:$FR$1,0)) -> 0 | L22: =INDEX(TABNILSM4,MATCH($R$2,NILSM4!$C$1:$C$43,0),MATCH(A22&$L$13,NILSM4!$C$1:$FR$1,0)) -> 0
A23: PJO | B23: 1 | C23: =HLOOKUP(A23&$F$13,TABNILSM4,4,FALSE) -> 6 | D23: =HLOOKUP(A23&$F$13,TABNILSM4,2,FALSE) -> Pendidikan Jasmani, Olahraga dan Kesehatan | E23: =IFERROR(HLOOKUP(A23&$F$13,TABNILSM4,5,FALSE),"-") -> 77 | F23: =INDEX(TABNILSM4,MATCH($R$2,NILSM4!$C$1:$C$43,0),MATCH(A23&$F$13,NILSM4!$C$1:$FR$1,0)) -> 0 | G23: =INDEX(TABNILSM4,MATCH($R$2,NILSM4!$C$1:$C$43,0),MATCH(A23&$G$13,NILSM4!$C$1:$FR$1,0)) -> 0 | H23: =INDEX(TABNILSM4,MATCH($R$2,NILSM4!$C$1:$C$43,0),MATCH(A23&$H$13,NILSM4!$C$1:$FR$1,0)) -> 0 | I23: =INDEX(TABNILSM4,MATCH($R$2,NILSM4!$C$1:$C$43,0),MATCH(A23&$I$13,NILSM4!$C$1:$FR$1,0)) -> 0 | J23: =INDEX(TABNILSM4,MATCH($R$2,NILSM4!$C$1:$C$43,0),MATCH(A23&$J$13,NILSM4!$C$1:$FR$1,0)) -> 0 | K23: =INDEX(TABNILSM4,MATCH($R$2,NILSM4!$C$1:$C$43,0),MATCH(A23&$K$13,NILSM4!$C$1:$FR$1,0)) -> 0 | L23: =INDEX(TABNILSM4,MATCH($R$2,NILSM4!$C$1:$C$43,0),MATCH(A23&$L$13,NILSM4!$C$1:$FR$1,0)) -> 0
A24: - | B24: 1 | C24: C. Muatan Peminatan Kejuruan
B25: =IF(AND(COUNT(C25)=0,C26=0),0,1) -> 0 | C25: C1 | D25: Dasar Bidang Keahlian
A26: SKD | B26: =IF(C26>=1,1,0) -> 0 | C26: =HLOOKUP(A26&$F$13,TABNILSM4,4,FALSE) -> 0 | D26: =HLOOKUP(A26&$F$13,TABNILSM4,2,FALSE) -> - | E26: =IFERROR(HLOOKUP(A26&$F$13,TABNILSM4,5,FALSE),"-") -> 77 | F26: =INDEX(TABNILSM4,MATCH($R$2,NILSM4!$C$1:$C$43,0),MATCH(A26&$F$13,NILSM4!$C$1:$FR$1,0)) -> 0 | G26: =INDEX(TABNILSM4,MATCH($R$2,NILSM4!$C$1:$C$43,0),MATCH(A26&$G$13,NILSM4!$C$1:$FR$1,0)) -> 0 | H26: =INDEX(TABNILSM4,MATCH($R$2,NILSM4!$C$1:$C$43,0),MATCH(A26&$H$13,NILSM4!$C$1:$FR$1,0)) -> 0 | I26: =INDEX(TABNILSM4,MATCH($R$2,NILSM4!$C$1:$C$43,0),MATCH(A26&$I$13,NILSM4!$C$1:$FR$1,0)) -> 0 | J26: =INDEX(TABNILSM4,MATCH($R$2,NILSM4!$C$1:$C$43,0),MATCH(A26&$J$13,NILSM4!$C$1:$FR$1,0)) -> 0 | K26: =INDEX(TABNILSM4,MATCH($R$2,NILSM4!$C$1:$C$43,0),MATCH(A26&$K$13,NILSM4!$C$1:$FR$1,0)) -> 0 | L26: =INDEX(TABNILSM4,MATCH($R$2,NILSM4!$C$1:$C$43,0),MATCH(A26&$L$13,NILSM4!$C$1:$FR$1,0)) -> 0
A27: FIS | B27: 0 | C27: =HLOOKUP(A27&$F$13,TABNILSM4,4,FALSE) -> 0 | D27: =HLOOKUP(A27&$F$13,TABNILSM4,2,FALSE) -> - | E27: =IFERROR(HLOOKUP(A27&$F$13,TABNILSM4,5,FALSE),"-") -> 77 | F27: =INDEX(TABNILSM4,MATCH($R$2,NILSM4!$C$1:$C$43,0),MATCH(A27&$F$13,NILSM4!$C$1:$FR$1,0)) -> 0 | G27: =INDEX(TABNILSM4,MATCH($R$2,NILSM4!$C$1:$C$43,0),MATCH(A27&$G$13,NILSM4!$C$1:$FR$1,0)) -> 0 | H27: =INDEX(TABNILSM4,MATCH($R$2,NILSM4!$C$1:$C$43,0),MATCH(A27&$H$13,NILSM4!$C$1:$FR$1,0)) -> 0 | I27: =INDEX(TABNILSM4,MATCH($R$2,NILSM4!$C$1:$C$43,0),MATCH(A27&$I$13,NILSM4!$C$1:$FR$1,0)) -> 0 | J27: =INDEX(TABNILSM4,MATCH($R$2,NILSM4!$C$1:$C$43,0),MATCH(A27&$J$13,NILSM4!$C$1:$FR$1,0)) -> 0 | K27: =INDEX(TABNILSM4,MATCH($R$2,NILSM4!$C$1:$C$43,0),MATCH(A27&$K$13,NILSM4!$C$1:$FR$1,0)) -> 0 | L27: =INDEX(TABNILSM4,MATCH($R$2,NILSM4!$C$1:$C$43,0),MATCH(A27&$L$13,NILSM4!$C$1:$FR$1,0)) -> 0
A28: KIM | B28: 0 | C28: =HLOOKUP(A28&$F$13,TABNILSM4,4,FALSE) -> 0 | D28: =HLOOKUP(A28&$F$13,TABNILSM4,2,FALSE) -> - | E28: =IFERROR(HLOOKUP(A28&$F$13,TABNILSM4,5,FALSE),"-") -> 77 | F28: =INDEX(TABNILSM4,MATCH($R$2,NILSM4!$C$1:$C$43,0),MATCH(A28&$F$13,NILSM4!$C$1:$FR$1,0)) -> 0 | G28: =INDEX(TABNILSM4,MATCH($R$2,NILSM4!$C$1:$C$43,0),MATCH(A28&$G$13,NILSM4!$C$1:$FR$1,0)) -> 0 | H28: =INDEX(TABNILSM4,MATCH($R$2,NILSM4!$C$1:$C$43,0),MATCH(A28&$H$13,NILSM4!$C$1:$FR$1,0)) -> 0 | I28: =INDEX(TABNILSM4,MATCH($R$2,NILSM4!$C$1:$C$43,0),MATCH(A28&$I$13,NILSM4!$C$1:$FR$1,0)) -> 0 | J28: =INDEX(TABNILSM4,MATCH($R$2,NILSM4!$C$1:$C$43,0),MATCH(A28&$J$13,NILSM4!$C$1:$FR$1,0)) -> 0 | K28: =INDEX(TABNILSM4,MATCH($R$2,NILSM4!$C$1:$C$43,0),MATCH(A28&$K$13,NILSM4!$C$1:$FR$1,0)) -> 0 | L28: =INDEX(TABNILSM4,MATCH($R$2,NILSM4!$C$1:$C$43,0),MATCH(A28&$L$13,NILSM4!$C$1:$FR$1,0)) -> 0
B29: =IF(AND(COUNT(C29)=0,C30=0),0,1) -> 0 | C29: C2 | D29: Dasar Program Keahlian
A30: C21 | B30: 0 | C30: =HLOOKUP(A30&$F$13,TABNILSM4,4,FALSE) -> 0 | D30: =HLOOKUP(A30&$F$13,TABNILSM4,2,FALSE) -> - | E30: =IFERROR(HLOOKUP(A30&$F$13,TABNILSM4,5,FALSE),"-") -> 77 | F30: =INDEX(TABNILSM4,MATCH($R$2,NILSM4!$C$1:$C$43,0),MATCH(A30&$F$13,NILSM4!$C$1:$FR$1,0)) -> 0 | G30: =INDEX(TABNILSM4,MATCH($R$2,NILSM4!$C$1:$C$43,0),MATCH(A30&$G$13,NILSM4!$C$1:$FR$1,0)) -> 0 | H30: =INDEX(TABNILSM4,MATCH($R$2,NILSM4!$C$1:$C$43,0),MATCH(A30&$H$13,NILSM4!$C$1:$FR$1,0)) -> 0 | I30: =INDEX(TABNILSM4,MATCH($R$2,NILSM4!$C$1:$C$43,0),MATCH(A30&$I$13,NILSM4!$C$1:$FR$1,0)) -> 0 | J30: =INDEX(TABNILSM4,MATCH($R$2,NILSM4!$C$1:$C$43,0),MATCH(A30&$J$13,NILSM4!$C$1:$FR$1,0)) -> 0 | K30: =INDEX(TABNILSM4,MATCH($R$2,NILSM4!$C$1:$C$43,0),MATCH(A30&$K$13,NILSM4!$C$1:$FR$1,0)) -> 0 | L30: =INDEX(TABNILSM4,MATCH($R$2,NILSM4!$C$1:$C$43,0),MATCH(A30&$L$13,NILSM4!$C$1:$FR$1,0)) -> 0
A31: C22 | B31: 0 | C31: =HLOOKUP(A31&$F$13,TABNILSM4,4,FALSE) -> 0 | D31: =HLOOKUP(A31&$F$13,TABNILSM4,2,FALSE) -> - | E31: =IFERROR(HLOOKUP(A31&$F$13,TABNILSM4,5,FALSE),"-") -> 77 | F31: =INDEX(TABNILSM4,MATCH($R$2,NILSM4!$C$1:$C$43,0),MATCH(A31&$F$13,NILSM4!$C$1:$FR$1,0)) -> 0 | G31: =INDEX(TABNILSM4,MATCH($R$2,NILSM4!$C$1:$C$43,0),MATCH(A31&$G$13,NILSM4!$C$1:$FR$1,0)) -> 0 | H31: =INDEX(TABNILSM4,MATCH($R$2,NILSM4!$C$1:$C$43,0),MATCH(A31&$H$13,NILSM4!$C$1:$FR$1,0)) -> 0 | I31: =INDEX(TABNILSM4,MATCH($R$2,NILSM4!$C$1:$C$43,0),MATCH(A31&$I$13,NILSM4!$C$1:$FR$1,0)) -> 0 | J31: =INDEX(TABNILSM4,MATCH($R$2,NILSM4!$C$1:$C$43,0),MATCH(A31&$J$13,NILSM4!$C$1:$FR$1,0)) -> 0 | K31: =INDEX(TABNILSM4,MATCH($R$2,NILSM4!$C$1:$C$43,0),MATCH(A31&$K$13,NILSM4!$C$1:$FR$1,0)) -> 0 | L31: =INDEX(TABNILSM4,MATCH($R$2,NILSM4!$C$1:$C$43,0),MATCH(A31&$L$13,NILSM4!$C$1:$FR$1,0)) -> 0
A32: C23 | B32: 0 | C32: =HLOOKUP(A32&$F$13,TABNILSM4,4,FALSE) -> 0 | D32: =HLOOKUP(A32&$F$13,TABNILSM4,2,FALSE) -> - | E32: =IFERROR(HLOOKUP(A32&$F$13,TABNILSM4,5,FALSE),"-") -> 77 | F32: =INDEX(TABNILSM4,MATCH($R$2,NILSM4!$C$1:$C$43,0),MATCH(A32&$F$13,NILSM4!$C$1:$FR$1,0)) -> 0 | G32: =INDEX(TABNILSM4,MATCH($R$2,NILSM4!$C$1:$C$43,0),MATCH(A32&$G$13,NILSM4!$C$1:$FR$1,0)) -> 0 | H32: =INDEX(TABNILSM4,MATCH($R$2,NILSM4!$C$1:$C$43,0),MATCH(A32&$H$13,NILSM4!$C$1:$FR$1,0)) -> 0 | I32: =INDEX(TABNILSM4,MATCH($R$2,NILSM4!$C$1:$C$43,0),MATCH(A32&$I$13,NILSM4!$C$1:$FR$1,0)) -> 0 | J32: =INDEX(TABNILSM4,MATCH($R$2,NILSM4!$C$1:$C$43,0),MATCH(A32&$J$13,NILSM4!$C$1:$FR$1,0)) -> 0 | K32: =INDEX(TABNILSM4,MATCH($R$2,NILSM4!$C$1:$C$43,0),MATCH(A32&$K$13,NILSM4!$C$1:$FR$1,0)) -> 0 | L32: =INDEX(TABNILSM4,MATCH($R$2,NILSM4!$C$1:$C$43,0),MATCH(A32&$L$13,NILSM4!$C$1:$FR$1,0)) -> 0
A33: C24 | B33: 0 | C33: =HLOOKUP(A33&$F$13,TABNILSM4,4,FALSE) -> 0 | D33: =HLOOKUP(A33&$F$13,TABNILSM4,2,FALSE) -> - | E33: =IFERROR(HLOOKUP(A33&$F$13,TABNILSM4,5,FALSE),"-") -> 77 | F33: =INDEX(TABNILSM4,MATCH($R$2,NILSM4!$C$1:$C$43,0),MATCH(A33&$F$13,NILSM4!$C$1:$FR$1,0)) -> 0 | G33: =INDEX(TABNILSM4,MATCH($R$2,NILSM4!$C$1:$C$43,0),MATCH(A33&$G$13,NILSM4!$C$1:$FR$1,0)) -> 0 | H33: =INDEX(TABNILSM4,MATCH($R$2,NILSM4!$C$1:$C$43,0),MATCH(A33&$H$13,NILSM4!$C$1:$FR$1,0)) -> 0 | I33: =INDEX(TABNILSM4,MATCH($R$2,NILSM4!$C$1:$C$43,0),MATCH(A33&$I$13,NILSM4!$C$1:$FR$1,0)) -> 0 | J33: =INDEX(TABNILSM4,MATCH($R$2,NILSM4!$C$1:$C$43,0),MATCH(A33&$J$13,NILSM4!$C$1:$FR$1,0)) -> 0 | K33: =INDEX(TABNILSM4,MATCH($R$2,NILSM4!$C$1:$C$43,0),MATCH(A33&$K$13,NILSM4!$C$1:$FR$1,0)) -> 0 | L33: =INDEX(TABNILSM4,MATCH($R$2,NILSM4!$C$1:$C$43,0),MATCH(A33&$L$13,NILSM4!$C$1:$FR$1,0)) -> 0
A34: - | B34: =IF(AND(COUNT(C34)=0,C37=0),0,1) -> 1 | C34: C3 | D34: Kompetensi Keahlian
A35: C31 | B35: 1 | C35: =HLOOKUP(A35&$F$13,TABNILSM4,4,FALSE) -> 7 | D35: =HLOOKUP(A35&$F$13,TABNILSM4,2,FALSE) -> Pemeliharaan Mesin Sepeda Motor | E35: =IFERROR(HLOOKUP(A35&$F$13,TABNILSM4,5,FALSE),"-") -> 77 | F35: =INDEX(TABNILSM4,MATCH($R$2,NILSM4!$C$1:$C$43,0),MATCH(A35&$F$13,NILSM4!$C$1:$FR$1,0)) -> 0 | G35: =INDEX(TABNILSM4,MATCH($R$2,NILSM4!$C$1:$C$43,0),MATCH(A35&$G$13,NILSM4!$C$1:$FR$1,0)) -> 0 | H35: =INDEX(TABNILSM4,MATCH($R$2,NILSM4!$C$1:$C$43,0),MATCH(A35&$H$13,NILSM4!$C$1:$FR$1,0)) -> 0 | I35: =INDEX(TABNILSM4,MATCH($R$2,NILSM4!$C$1:$C$43,0),MATCH(A35&$I$13,NILSM4!$C$1:$FR$1,0)) -> 0 | J35: =INDEX(TABNILSM4,MATCH($R$2,NILSM4!$C$1:$C$43,0),MATCH(A35&$J$13,NILSM4!$C$1:$FR$1,0)) -> 0 | K35: =INDEX(TABNILSM4,MATCH($R$2,NILSM4!$C$1:$C$43,0),MATCH(A35&$K$13,NILSM4!$C$1:$FR$1,0)) -> 0 | L35: =INDEX(TABNILSM4,MATCH($R$2,NILSM4!$C$1:$C$43,0),MATCH(A35&$L$13,NILSM4!$C$1:$FR$1,0)) -> 0
A36: C32 | B36: 1 | C36: 8 | D36: Pemeliharaan Sasis Sepeda Motor | E36: 77 | F36: =INDEX(TABNILSM4,MATCH($R$2,NILSM4!$C$1:$C$43,0),MATCH(A36&$F$13,NILSM4!$C$1:$FR$1,0)) -> 0 | G36: =INDEX(TABNILSM4,MATCH($R$2,NILSM4!$C$1:$C$43,0),MATCH(A36&$G$13,NILSM4!$C$1:$FR$1,0)) -> 0 | H36: =INDEX(TABNILSM4,MATCH($R$2,NILSM4!$C$1:$C$43,0),MATCH(A36&$H$13,NILSM4!$C$1:$FR$1,0)) -> 0 | I36: =INDEX(TABNILSM4,MATCH($R$2,NILSM4!$C$1:$C$43,0),MATCH(A36&$I$13,NILSM4!$C$1:$FR$1,0)) -> 0 | J36: =INDEX(TABNILSM4,MATCH($R$2,NILSM4!$C$1:$C$43,0),MATCH(A36&$J$13,NILSM4!$C$1:$FR$1,0)) -> 0 | K36: =INDEX(TABNILSM4,MATCH($R$2,NILSM4!$C$1:$C$43,0),MATCH(A36&$K$13,NILSM4!$C$1:$FR$1,0)) -> 0 | L36: =INDEX(TABNILSM4,MATCH($R$2,NILSM4!$C$1:$C$43,0),MATCH(A36&$L$13,NILSM4!$C$1:$FR$1,0)) -> 0
A37: C33 | B37: 1 | C37: 9 | D37: Pemeliharaan Kelistrikan Sepeda Motor | E37: 77 | F37: =INDEX(TABNILSM4,MATCH($R$2,NILSM4!$C$1:$C$43,0),MATCH(A37&$F$13,NILSM4!$C$1:$FR$1,0)) -> 0 | G37: =INDEX(TABNILSM4,MATCH($R$2,NILSM4!$C$1:$C$43,0),MATCH(A37&$G$13,NILSM4!$C$1:$FR$1,0)) -> 0 | H37: =INDEX(TABNILSM4,MATCH($R$2,NILSM4!$C$1:$C$43,0),MATCH(A37&$H$13,NILSM4!$C$1:$FR$1,0)) -> 0 | I37: =INDEX(TABNILSM4,MATCH($R$2,NILSM4!$C$1:$C$43,0),MATCH(A37&$I$13,NILSM4!$C$1:$FR$1,0)) -> 0 | J37: =INDEX(TABNILSM4,MATCH($R$2,NILSM4!$C$1:$C$43,0),MATCH(A37&$J$13,NILSM4!$C$1:$FR$1,0)) -> 0 | K37: =INDEX(TABNILSM4,MATCH($R$2,NILSM4!$C$1:$C$43,0),MATCH(A37&$K$13,NILSM4!$C$1:$FR$1,0)) -> 0 | L37: =INDEX(TABNILSM4,MATCH($R$2,NILSM4!$C$1:$C$43,0),MATCH(A37&$L$13,NILSM4!$C$1:$FR$1,0)) -> 0
A38: C34 | B38: 0 | C38: 0 | D38: - | E38: 77 | F38: =INDEX(TABNILSM4,MATCH($R$2,NILSM4!$C$1:$C$43,0),MATCH(A38&$F$13,NILSM4!$C$1:$FR$1,0)) -> 0 | G38: =INDEX(TABNILSM4,MATCH($R$2,NILSM4!$C$1:$C$43,0),MATCH(A38&$G$13,NILSM4!$C$1:$FR$1,0)) -> 0 | H38: =INDEX(TABNILSM4,MATCH($R$2,NILSM4!$C$1:$C$43,0),MATCH(A38&$H$13,NILSM4!$C$1:$FR$1,0)) -> 0 | I38: =INDEX(TABNILSM4,MATCH($R$2,NILSM4!$C$1:$C$43,0),MATCH(A38&$I$13,NILSM4!$C$1:$FR$1,0)) -> 0 | J38: =INDEX(TABNILSM4,MATCH($R$2,NILSM4!$C$1:$C$43,0),MATCH(A38&$J$13,NILSM4!$C$1:$FR$1,0)) -> 0 | K38: =INDEX(TABNILSM4,MATCH($R$2,NILSM4!$C$1:$C$43,0),MATCH(A38&$K$13,NILSM4!$C$1:$FR$1,0)) -> 0 | L38: =INDEX(TABNILSM4,MATCH($R$2,NILSM4!$C$1:$C$43,0),MATCH(A38&$L$13,NILSM4!$C$1:$FR$1,0)) -> 0
A39: C35 | B39: 0 | C39: 0 | D39: - | E39: 77 | F39: =INDEX(TABNILSM4,MATCH($R$2,NILSM4!$C$1:$C$43,0),MATCH(A39&$F$13,NILSM4!$C$1:$FR$1,0)) -> 0 | G39: =INDEX(TABNILSM4,MATCH($R$2,NILSM4!$C$1:$C$43,0),MATCH(A39&$G$13,NILSM4!$C$1:$FR$1,0)) -> 0 | H39: =INDEX(TABNILSM4,MATCH($R$2,NILSM4!$C$1:$C$43,0),MATCH(A39&$H$13,NILSM4!$C$1:$FR$1,0)) -> 0 | I39: =INDEX(TABNILSM4,MATCH($R$2,NILSM4!$C$1:$C$43,0),MATCH(A39&$I$13,NILSM4!$C$1:$FR$1,0)) -> 0 | J39: =INDEX(TABNILSM4,MATCH($R$2,NILSM4!$C$1:$C$43,0),MATCH(A39&$J$13,NILSM4!$C$1:$FR$1,0)) -> 0 | K39: =INDEX(TABNILSM4,MATCH($R$2,NILSM4!$C$1:$C$43,0),MATCH(A39&$K$13,NILSM4!$C$1:$FR$1,0)) -> 0 | L39: =INDEX(TABNILSM4,MATCH($R$2,NILSM4!$C$1:$C$43,0),MATCH(A39&$L$13,NILSM4!$C$1:$FR$1,0)) -> 0
A40: C36 | B40: 1 | C40: 10 | D40: Produk Kreatif dan Kewirausahaan | E40: 77 | F40: =INDEX(TABNILSM4,MATCH($R$2,NILSM4!$C$1:$C$43,0),MATCH(A40&$F$13,NILSM4!$C$1:$FR$1,0)) -> 0 | G40: =INDEX(TABNILSM4,MATCH($R$2,NILSM4!$C$1:$C$43,0),MATCH(A40&$G$13,NILSM4!$C$1:$FR$1,0)) -> 0 | H40: =INDEX(TABNILSM4,MATCH($R$2,NILSM4!$C$1:$C$43,0),MATCH(A40&$H$13,NILSM4!$C$1:$FR$1,0)) -> 0 | I40: =INDEX(TABNILSM4,MATCH($R$2,NILSM4!$C$1:$C$43,0),MATCH(A40&$I$13,NILSM4!$C$1:$FR$1,0)) -> 0 | J40: =INDEX(TABNILSM4,MATCH($R$2,NILSM4!$C$1:$C$43,0),MATCH(A40&$J$13,NILSM4!$C$1:$FR$1,0)) -> 0 | K40: =INDEX(TABNILSM4,MATCH($R$2,NILSM4!$C$1:$C$43,0),MATCH(A40&$K$13,NILSM4!$C$1:$FR$1,0)) -> 0 | L40: =INDEX(TABNILSM4,MATCH($R$2,NILSM4!$C$1:$C$43,0),MATCH(A40&$L$13,NILSM4!$C$1:$FR$1,0)) -> 0
B41: =IF(AND(COUNT(C41)=0,C42=0),0,1) -> 0 | C41: Muatan Lokal
A42: SUN | B42: 0 | C42: =HLOOKUP(A42&$F$13,TABNILSM4,4,FALSE) -> 0 | D42: =HLOOKUP(A42&$F$13,TABNILSM4,2,FALSE) -> - | E42: =IFERROR(HLOOKUP(A42&$F$13,TABNILSM4,5,FALSE),"-") -> 77 | F42: =INDEX(TABNILSM4,MATCH($R$2,NILSM4!$C$1:$C$43,0),MATCH(A42&$F$13,NILSM4!$C$1:$FR$1,0)) -> 0 | G42: =INDEX(TABNILSM4,MATCH($R$2,NILSM4!$C$1:$C$43,0),MATCH(A42&$G$13,NILSM4!$C$1:$FR$1,0)) -> 0 | H42: =INDEX(TABNILSM4,MATCH($R$2,NILSM4!$C$1:$C$43,0),MATCH(A42&$H$13,NILSM4!$C$1:$FR$1,0)) -> 0 | I42: =INDEX(TABNILSM4,MATCH($R$2,NILSM4!$C$1:$C$43,0),MATCH(A42&$I$13,NILSM4!$C$1:$FR$1,0)) -> 0 | J42: =INDEX(TABNILSM4,MATCH($R$2,NILSM4!$C$1:$C$43,0),MATCH(A42&$J$13,NILSM4!$C$1:$FR$1,0)) -> 0 | K42: =INDEX(TABNILSM4,MATCH($R$2,NILSM4!$C$1:$C$43,0),MATCH(A42&$K$13,NILSM4!$C$1:$FR$1,0)) -> 0 | L42: =INDEX(TABNILSM4,MATCH($R$2,NILSM4!$C$1:$C$43,0),MATCH(A42&$L$13,NILSM4!$C$1:$FR$1,0)) -> 0
A43: PLH | B43: 0 | C43: =HLOOKUP(A43&$F$13,TABNILSM4,4,FALSE) -> 0 | D43: =HLOOKUP(A43&$F$13,TABNILSM4,2,FALSE) -> - | E43: =IFERROR(HLOOKUP(A43&$F$13,TABNILSM4,5,FALSE),"-") -> 77 | F43: =INDEX(TABNILSM4,MATCH($R$2,NILSM4!$C$1:$C$43,0),MATCH(A43&$F$13,NILSM4!$C$1:$FR$1,0)) -> 0 | G43: =INDEX(TABNILSM4,MATCH($R$2,NILSM4!$C$1:$C$43,0),MATCH(A43&$G$13,NILSM4!$C$1:$FR$1,0)) -> 0 | H43: =INDEX(TABNILSM4,MATCH($R$2,NILSM4!$C$1:$C$43,0),MATCH(A43&$H$13,NILSM4!$C$1:$FR$1,0)) -> 0 | I43: =INDEX(TABNILSM4,MATCH($R$2,NILSM4!$C$1:$C$43,0),MATCH(A43&$I$13,NILSM4!$C$1:$FR$1,0)) -> 0 | J43: =INDEX(TABNILSM4,MATCH($R$2,NILSM4!$C$1:$C$43,0),MATCH(A43&$J$13,NILSM4!$C$1:$FR$1,0)) -> 0 | K43: =INDEX(TABNILSM4,MATCH($R$2,NILSM4!$C$1:$C$43,0),MATCH(A43&$K$13,NILSM4!$C$1:$FR$1,0)) -> 0 | L43: =INDEX(TABNILSM4,MATCH($R$2,NILSM4!$C$1:$C$43,0),MATCH(A43&$L$13,NILSM4!$C$1:$FR$1,0)) -> 0
A45: CTT | C45: Bimbingan dan Konseling | G45: Catatan Akademik
A46: BKN | C46: =INDEX(TABNILSM4,MATCH($R$2,NILSM4!$C$1:$C$43,0),MATCH(A46,NILSM4!$C$1:$FR$1,0)) -> 0 | G46: =INDEX(TABNILSM4,MATCH($R$2,NILSM4!$C$1:$C$43,0),MATCH(A45,NILSM4!$C$1:$FR$1,0)) -> 0
C48: Catatan: Jika nilai 0, siswa belum mengupload tugas atau belum mengerjakan ulangan. Jika nilai - , materi KD (Kompetensi Dasar) tersebut dilaksanakan setelah pembagian KHS.
Q50: =VLOOKUP($R$13,TAB_BIODATA,BIODATA!C4,FALSE) -> CARWAN HIDAYAT
D51: Mengetahui, | I51: =NILSM4!A5 -> Karawang, 30 Maret 2021
D52: Orang Tua/Wali, | I52: Wali Kelas, | Q52: ="Nomor Urut "&R13 -> Nomor Urut 4
I57: =NILSM4!B4 -> Abdul Hapid, S.P
I58: =IF(NILSM4!B5=0,"","NIP "&NILSM4!B5) -> NIP 19680917 200012 1 003

Sheet CETSM3
C1: KARTU HASIL STUDI (KHS) PESERTA DIDIK | Q1: JURUSAN | R1: =MENU!F8 -> TBSM
C2: SMK NEGERI 1 KARAWANG | Q2: NIS | R2: =VLOOKUP($R$13,TAB_BIODATA,BIODATA!D4,FALSE) -> 16170535
D4: Nama Peserta Didik | E4: : | F4: =VLOOKUP($R$13,TAB_BIODATA,BIODATA!C4,FALSE) -> ADAM ADIYAT HARTANTO
D5: Nomor Induk/NISN | E5: : | F5: =IF(VLOOKUP($R$13,TAB_BIODATA,BIODATA!E4)="",VLOOKUP($R$13,TAB_BIODATA,BIODATA!D4,FALSE),VLOOKUP($R$13,TAB_BIODATA,BIODATA!D4)&" / "&VLOOKUP($R$13,TAB_BIODATA,BIODATA!E4,FALSE)) -> 16170535 / 0016930017 | Q5: DATA CETAK | S5: HALAMAN CETAK
D6: Kelas | E6: : | F6: =IF(OR(F8="1 (satu)",F8="2 (dua)"),"X "&MENU!F9,IF(OR(F8="3 (tiga)",F8="4 (empat)"),"XI "&MENU!F9,IF(OR(F8="5 (lima)",F8="6 (enam)"),"XII "&MENU!F9,IF(OR(F8="7 (tujuh)",F8="8 (delapan)"),"XIII "&MENU!F9,"")))) -> XI TBSM 2 | Q6: Dari data ke | R6: 1 | S6: Dari | T6: 1
D7: Tahun Pelajaran | E7: : | F7: =RIGHT(NILSM3!A2,11) -> 2020 / 2021
D8: Semester | E8: : | F8: =NILSM3!B3 -> 3 (tiga) | Q8: Sampai data ke | R8: 2 | S8: Ke | T8: 1
C10: Nilai Akademik
C11: No. | D11: Mata Pelajaran | E11: KKM | F11: KD 1 | H11: KD 2 | J11: KD 3 | L11: Kehadiran
F12: Tugas | G12: Ulangan | H12: Tugas | I12: Ulangan | J12: Tugas | K12: Ulangan | Q12: TAMPILAN DATA
C13: A. Muatan Nasional | F13: T1 | G13: U1 | H13: T2 | I13: U2 | J13: T3 | K13: U3 | L13: H | Q13: Nomor Urut | R13: 1
A14: PAB | B14: =IF(C14>=1,1,0) -> 1 | C14: =HLOOKUP(A14&$F$13,TABNILSM3,4,FALSE) -> 1 | D14: =HLOOKUP(A14&$F$13,TABNILSM3,2,FALSE) -> Pendidikan Agama dan Budi Pekerti | E14: =IFERROR(HLOOKUP(A14&$F$13,TABNILSM3,5,FALSE),"-") -> 77 | F14: =INDEX(TABNILSM3,MATCH($R$2,NILSM3!$C$1:$C$43,0),MATCH(A14&$F$13,NILSM3!$C$1:$FR$1,0)) -> 3 | G14: =INDEX(TABNILSM3,MATCH($R$2,NILSM3!$C$1:$C$43,0),MATCH(A14&$G$13,NILSM3!$C$1:$FR$1,0)) -> 4 | H14: =INDEX(TABNILSM3,MATCH($R$2,NILSM3!$C$1:$C$43,0),MATCH(A14&$H$13,NILSM3!$C$1:$FR$1,0)) -> 5 | I14: =INDEX(TABNILSM3,MATCH($R$2,NILSM3!$C$1:$C$43,0),MATCH(A14&$I$13,NILSM3!$C$1:$FR$1,0)) -> 6 | J14: =INDEX(TABNILSM3,MATCH($R$2,NILSM3!$C$1:$C$43,0),MATCH(A14&$J$13,NILSM3!$C$1:$FR$1,0)) -> 7 | K14: =INDEX(TABNILSM3,MATCH($R$2,NILSM3!$C$1:$C$43,0),MATCH(A14&$K$13,NILSM3!$C$1:$FR$1,0)) -> 8 | L14: =INDEX(TABNILSM3,MATCH($R$2,NILSM3!$C$1:$C$43,0),MATCH(A14&$L$13,NILSM3!$C$1:$FR$1,0)) -> 9
A15: PKN | B15: =IF(C15>=1,1,0) -> 1 | C15: 2 | D15: Pendidikan Pancasila dan Kewarganegaraan | E15: 77 | F15: =INDEX(TABNILSM3,MATCH($R$2,NILSM3!$C$1:$C$43,0),MATCH(A15&$F$13,NILSM3!$C$1:$FR$1,0)) -> 10 | G15: =INDEX(TABNILSM3,MATCH($R$2,NILSM3!$C$1:$C$43,0),MATCH(A15&$G$13,NILSM3!$C$1:$FR$1,0)) -> 11 | H15: =INDEX(TABNILSM3,MATCH($R$2,NILSM3!$C$1:$C$43,0),MATCH(A15&$H$13,NILSM3!$C$1:$FR$1,0)) -> 12 | I15: =INDEX(TABNILSM3,MATCH($R$2,NILSM3!$C$1:$C$43,0),MATCH(A15&$I$13,NILSM3!$C$1:$FR$1,0)) -> 13 | J15: =INDEX(TABNILSM3,MATCH($R$2,NILSM3!$C$1:$C$43,0),MATCH(A15&$J$13,NILSM3!$C$1:$FR$1,0)) -> 14 | K15: =INDEX(TABNILSM3,MATCH($R$2,NILSM3!$C$1:$C$43,0),MATCH(A15&$K$13,NILSM3!$C$1:$FR$1,0)) -> 15 | L15: =INDEX(TABNILSM3,MATCH($R$2,NILSM3!$C$1:$C$43,0),MATCH(A15&$L$13,NILSM3!$C$1:$FR$1,0)) -> 16
A16: IND | B16: 1 | C16: 3 | D16: Bahasa Indonesia | E16: 77 | F16: =INDEX(TABNILSM3,MATCH($R$2,NILSM3!$C$1:$C$43,0),MATCH(A16&$F$13,NILSM3!$C$1:$FR$1,0)) -> 17 | G16: =INDEX(TABNILSM3,MATCH($R$2,NILSM3!$C$1:$C$43,0),MATCH(A16&$G$13,NILSM3!$C$1:$FR$1,0)) -> 18 | H16: =INDEX(TABNILSM3,MATCH($R$2,NILSM3!$C$1:$C$43,0),MATCH(A16&$H$13,NILSM3!$C$1:$FR$1,0)) -> 19 | I16: =INDEX(TABNILSM3,MATCH($R$2,NILSM3!$C$1:$C$43,0),MATCH(A16&$I$13,NILSM3!$C$1:$FR$1,0)) -> 20 | J16: =INDEX(TABNILSM3,MATCH($R$2,NILSM3!$C$1:$C$43,0),MATCH(A16&$J$13,NILSM3!$C$1:$FR$1,0)) -> 21 | K16: =INDEX(TABNILSM3,MATCH($R$2,NILSM3!$C$1:$C$43,0),MATCH(A16&$K$13,NILSM3!$C$1:$FR$1,0)) -> 22 | L16: =INDEX(TABNILSM3,MATCH($R$2,NILSM3!$C$1:$C$43,0),MATCH(A16&$L$13,NILSM3!$C$1:$FR$1,0)) -> 23
A17: MTK | B17: 1 | C17: 4 | D17: Matematika | E17: 77 | F17: =INDEX(TABNILSM3,MATCH($R$2,NILSM3!$C$1:$C$43,0),MATCH(A17&$F$13,NILSM3!$C$1:$FR$1,0)) -> 24 | G17: =INDEX(TABNILSM3,MATCH($R$2,NILSM3!$C$1:$C$43,0),MATCH(A17&$G$13,NILSM3!$C$1:$FR$1,0)) -> 25 | H17: =INDEX(TABNILSM3,MATCH($R$2,NILSM3!$C$1:$C$43,0),MATCH(A17&$H$13,NILSM3!$C$1:$FR$1,0)) -> 26 | I17: =INDEX(TABNILSM3,MATCH($R$2,NILSM3!$C$1:$C$43,0),MATCH(A17&$I$13,NILSM3!$C$1:$FR$1,0)) -> 27 | J17: =INDEX(TABNILSM3,MATCH($R$2,NILSM3!$C$1:$C$43,0),MATCH(A17&$J$13,NILSM3!$C$1:$FR$1,0)) -> 28 | K17: =INDEX(TABNILSM3,MATCH($R$2,NILSM3!$C$1:$C$43,0),MATCH(A17&$K$13,NILSM3!$C$1:$FR$1,0)) -> 29 | L17: =INDEX(TABNILSM3,MATCH($R$2,NILSM3!$C$1:$C$43,0),MATCH(A17&$L$13,NILSM3!$C$1:$FR$1,0)) -> 30
A18: SJI | B18: 0 | C18: 0 | D18: - | E18: 77 | F18: =INDEX(TABNILSM3,MATCH($R$2,NILSM3!$C$1:$C$43,0),MATCH(A18&$F$13,NILSM3!$C$1:$FR$1,0)) -> 31 | G18: =INDEX(TABNILSM3,MATCH($R$2,NILSM3!$C$1:$C$43,0),MATCH(A18&$G$13,NILSM3!$C$1:$FR$1,0)) -> 32 | H18: =INDEX(TABNILSM3,MATCH($R$2,NILSM3!$C$1:$C$43,0),MATCH(A18&$H$13,NILSM3!$C$1:$FR$1,0)) -> 33 | I18: =INDEX(TABNILSM3,MATCH($R$2,NILSM3!$C$1:$C$43,0),MATCH(A18&$I$13,NILSM3!$C$1:$FR$1,0)) -> 34 | J18: =INDEX(TABNILSM3,MATCH($R$2,NILSM3!$C$1:$C$43,0),MATCH(A18&$J$13,NILSM3!$C$1:$FR$1,0)) -> 35 | K18: =INDEX(TABNILSM3,MATCH($R$2,NILSM3!$C$1:$C$43,0),MATCH(A18&$K$13,NILSM3!$C$1:$FR$1,0)) -> 36 | L18: =INDEX(TABNILSM3,MATCH($R$2,NILSM3!$C$1:$C$43,0),MATCH(A18&$L$13,NILSM3!$C$1:$FR$1,0)) -> 37
A19: ING | B19: 1 | C19: 5 | D19: Bahasa Inggris | E19: 77 | F19: =INDEX(TABNILSM3,MATCH($R$2,NILSM3!$C$1:$C$43,0),MATCH(A19&$F$13,NILSM3!$C$1:$FR$1,0)) -> 38 | G19: =INDEX(TABNILSM3,MATCH($R$2,NILSM3!$C$1:$C$43,0),MATCH(A19&$G$13,NILSM3!$C$1:$FR$1,0)) -> 39 | H19: =INDEX(TABNILSM3,MATCH($R$2,NILSM3!$C$1:$C$43,0),MATCH(A19&$H$13,NILSM3!$C$1:$FR$1,0)) -> 40 | I19: =INDEX(TABNILSM3,MATCH($R$2,NILSM3!$C$1:$C$43,0),MATCH(A19&$I$13,NILSM3!$C$1:$FR$1,0)) -> 41 | J19: =INDEX(TABNILSM3,MATCH($R$2,NILSM3!$C$1:$C$43,0),MATCH(A19&$J$13,NILSM3!$C$1:$FR$1,0)) -> 42 | K19: =INDEX(TABNILSM3,MATCH($R$2,NILSM3!$C$1:$C$43,0),MATCH(A19&$K$13,NILSM3!$C$1:$FR$1,0)) -> 43 | L19: =INDEX(TABNILSM3,MATCH($R$2,NILSM3!$C$1:$C$43,0),MATCH(A19&$L$13,NILSM3!$C$1:$FR$1,0)) -> 44
A20: JER | B20: 0 | C20: 0 | D20: - | E20: 77 | F20: =INDEX(TABNILSM3,MATCH($R$2,NILSM3!$C$1:$C$43,0),MATCH(A20&$F$13,NILSM3!$C$1:$FR$1,0)) -> 45 | G20: =INDEX(TABNILSM3,MATCH($R$2,NILSM3!$C$1:$C$43,0),MATCH(A20&$G$13,NILSM3!$C$1:$FR$1,0)) -> 46 | H20: =INDEX(TABNILSM3,MATCH($R$2,NILSM3!$C$1:$C$43,0),MATCH(A20&$H$13,NILSM3!$C$1:$FR$1,0)) -> 47 | I20: =INDEX(TABNILSM3,MATCH($R$2,NILSM3!$C$1:$C$43,0),MATCH(A20&$I$13,NILSM3!$C$1:$FR$1,0)) -> 48 | J20: =INDEX(TABNILSM3,MATCH($R$2,NILSM3!$C$1:$C$43,0),MATCH(A20&$J$13,NILSM3!$C$1:$FR$1,0)) -> 49 | K20: =INDEX(TABNILSM3,MATCH($R$2,NILSM3!$C$1:$C$43,0),MATCH(A20&$K$13,NILSM3!$C$1:$FR$1,0)) -> 50 | L20: =INDEX(TABNILSM3,MATCH($R$2,NILSM3!$C$1:$C$43,0),MATCH(A20&$L$13,NILSM3!$C$1:$FR$1,0)) -> 51
B21: =IF(AND(COUNT(C21)=0,C23=0),0,1) -> 1 | C21: B. Muatan Kewilayahan
A22: SBD | B22: 0 | C22: =HLOOKUP(A22&$F$13,TABNILSM3,4,FALSE) -> 0 | D22: =HLOOKUP(A22&$F$13,TABNILSM3,2,FALSE) -> - | E22: =IFERROR(HLOOKUP(A22&$F$13,TABNILSM3,5,FALSE),"-") -> 77 | F22: =INDEX(TABNILSM3,MATCH($R$2,NILSM3!$C$1:$C$43,0),MATCH(A22&$F$13,NILSM3!$C$1:$FR$1,0)) -> 52 | G22: =INDEX(TABNILSM3,MATCH($R$2,NILSM3!$C$1:$C$43,0),MATCH(A22&$G$13,NILSM3!$C$1:$FR$1,0)) -> 53 | H22: =INDEX(TABNILSM3,MATCH($R$2,NILSM3!$C$1:$C$43,0),MATCH(A22&$H$13,NILSM3!$C$1:$FR$1,0)) -> 54 | I22: =INDEX(TABNILSM3,MATCH($R$2,NILSM3!$C$1:$C$43,0),MATCH(A22&$I$13,NILSM3!$C$1:$FR$1,0)) -> 55 | J22: =INDEX(TABNILSM3,MATCH($R$2,NILSM3!$C$1:$C$43,0),MATCH(A22&$J$13,NILSM3!$C$1:$FR$1,0)) -> 56 | K22: =INDEX(TABNILSM3,MATCH($R$2,NILSM3!$C$1:$C$43,0),MATCH(A22&$K$13,NILSM3!$C$1:$FR$1,0)) -> 57 | L22: =INDEX(TABNILSM3,MATCH($R$2,NILSM3!$C$1:$C$43,0),MATCH(A22&$L$13,NILSM3!$C$1:$FR$1,0)) -> 58
A23: PJO | B23: 1 | C23: =HLOOKUP(A23&$F$13,TABNILSM3,4,FALSE) -> 6 | D23: =HLOOKUP(A23&$F$13,TABNILSM3,2,FALSE) -> Pendidikan Jasmani, Olahraga dan Kesehatan | E23: =IFERROR(HLOOKUP(A23&$F$13,TABNILSM3,5,FALSE),"-") -> 77 | F23: =INDEX(TABNILSM3,MATCH($R$2,NILSM3!$C$1:$C$43,0),MATCH(A23&$F$13,NILSM3!$C$1:$FR$1,0)) -> 59 | G23: =INDEX(TABNILSM3,MATCH($R$2,NILSM3!$C$1:$C$43,0),MATCH(A23&$G$13,NILSM3!$C$1:$FR$1,0)) -> 60 | H23: =INDEX(TABNILSM3,MATCH($R$2,NILSM3!$C$1:$C$43,0),MATCH(A23&$H$13,NILSM3!$C$1:$FR$1,0)) -> 61 | I23: =INDEX(TABNILSM3,MATCH($R$2,NILSM3!$C$1:$C$43,0),MATCH(A23&$I$13,NILSM3!$C$1:$FR$1,0)) -> 62 | J23: =INDEX(TABNILSM3,MATCH($R$2,NILSM3!$C$1:$C$43,0),MATCH(A23&$J$13,NILSM3!$C$1:$FR$1,0)) -> 63 | K23: =INDEX(TABNILSM3,MATCH($R$2,NILSM3!$C$1:$C$43,0),MATCH(A23&$K$13,NILSM3!$C$1:$FR$1,0)) -> 64 | L23: =INDEX(TABNILSM3,MATCH($R$2,NILSM3!$C$1:$C$43,0),MATCH(A23&$L$13,NILSM3!$C$1:$FR$1,0)) -> 65
A24: - | B24: 1 | C24: C. Muatan Peminatan Kejuruan
B25: =IF(AND(COUNT(C25)=0,C26=0),0,1) -> 0 | C25: C1 | D25: Dasar Bidang Keahlian
A26: SKD | B26: =IF(C26>=1,1,0) -> 0 | C26: =HLOOKUP(A26&$F$13,TABNILSM3,4,FALSE) -> 0 | D26: =HLOOKUP(A26&$F$13,TABNILSM3,2,FALSE) -> - | E26: =IFERROR(HLOOKUP(A26&$F$13,TABNILSM3,5,FALSE),"-") -> 77 | F26: =INDEX(TABNILSM3,MATCH($R$2,NILSM3!$C$1:$C$43,0),MATCH(A26&$F$13,NILSM3!$C$1:$FR$1,0)) -> 66 | G26: =INDEX(TABNILSM3,MATCH($R$2,NILSM3!$C$1:$C$43,0),MATCH(A26&$G$13,NILSM3!$C$1:$FR$1,0)) -> 67 | H26: =INDEX(TABNILSM3,MATCH($R$2,NILSM3!$C$1:$C$43,0),MATCH(A26&$H$13,NILSM3!$C$1:$FR$1,0)) -> 68 | I26: =INDEX(TABNILSM3,MATCH($R$2,NILSM3!$C$1:$C$43,0),MATCH(A26&$I$13,NILSM3!$C$1:$FR$1,0)) -> 69 | J26: =INDEX(TABNILSM3,MATCH($R$2,NILSM3!$C$1:$C$43,0),MATCH(A26&$J$13,NILSM3!$C$1:$FR$1,0)) -> 70 | K26: =INDEX(TABNILSM3,MATCH($R$2,NILSM3!$C$1:$C$43,0),MATCH(A26&$K$13,NILSM3!$C$1:$FR$1,0)) -> 71 | L26: =INDEX(TABNILSM3,MATCH($R$2,NILSM3!$C$1:$C$43,0),MATCH(A26&$L$13,NILSM3!$C$1:$FR$1,0)) -> 72
A27: FIS | B27: 0 | C27: =HLOOKUP(A27&$F$13,TABNILSM3,4,FALSE) -> 0 | D27: =HLOOKUP(A27&$F$13,TABNILSM3,2,FALSE) -> - | E27: =IFERROR(HLOOKUP(A27&$F$13,TABNILSM3,5,FALSE),"-") -> 77 | F27: =INDEX(TABNILSM3,MATCH($R$2,NILSM3!$C$1:$C$43,0),MATCH(A27&$F$13,NILSM3!$C$1:$FR$1,0)) -> 73 | G27: =INDEX(TABNILSM3,MATCH($R$2,NILSM3!$C$1:$C$43,0),MATCH(A27&$G$13,NILSM3!$C$1:$FR$1,0)) -> 74 | H27: =INDEX(TABNILSM3,MATCH($R$2,NILSM3!$C$1:$C$43,0),MATCH(A27&$H$13,NILSM3!$C$1:$FR$1,0)) -> 75 | I27: =INDEX(TABNILSM3,MATCH($R$2,NILSM3!$C$1:$C$43,0),MATCH(A27&$I$13,NILSM3!$C$1:$FR$1,0)) -> 76 | J27: =INDEX(TABNILSM3,MATCH($R$2,NILSM3!$C$1:$C$43,0),MATCH(A27&$J$13,NILSM3!$C$1:$FR$1,0)) -> 77 | K27: =INDEX(TABNILSM3,MATCH($R$2,NILSM3!$C$1:$C$43,0),MATCH(A27&$K$13,NILSM3!$C$1:$FR$1,0)) -> 78 | L27: =INDEX(TABNILSM3,MATCH($R$2,NILSM3!$C$1:$C$43,0),MATCH(A27&$L$13,NILSM3!$C$1:$FR$1,0)) -> 79
A28: KIM | B28: 0 | C28: =HLOOKUP(A28&$F$13,TABNILSM3,4,FALSE) -> 0 | D28: =HLOOKUP(A28&$F$13,TABNILSM3,2,FALSE) -> - | E28: =IFERROR(HLOOKUP(A28&$F$13,TABNILSM3,5,FALSE),"-") -> 77 | F28: =INDEX(TABNILSM3,MATCH($R$2,NILSM3!$C$1:$C$43,0),MATCH(A28&$F$13,NILSM3!$C$1:$FR$1,0)) -> 80 | G28: =INDEX(TABNILSM3,MATCH($R$2,NILSM3!$C$1:$C$43,0),MATCH(A28&$G$13,NILSM3!$C$1:$FR$1,0)) -> 81 | H28: =INDEX(TABNILSM3,MATCH($R$2,NILSM3!$C$1:$C$43,0),MATCH(A28&$H$13,NILSM3!$C$1:$FR$1,0)) -> 82 | I28: =INDEX(TABNILSM3,MATCH($R$2,NILSM3!$C$1:$C$43,0),MATCH(A28&$I$13,NILSM3!$C$1:$FR$1,0)) -> 83 | J28: =INDEX(TABNILSM3,MATCH($R$2,NILSM3!$C$1:$C$43,0),MATCH(A28&$J$13,NILSM3!$C$1:$FR$1,0)) -> 84 | K28: =INDEX(TABNILSM3,MATCH($R$2,NILSM3!$C$1:$C$43,0),MATCH(A28&$K$13,NILSM3!$C$1:$FR$1,0)) -> 85 | L28: =INDEX(TABNILSM3,MATCH($R$2,NILSM3!$C$1:$C$43,0),MATCH(A28&$L$13,NILSM3!$C$1:$FR$1,0)) -> 86
B29: =IF(AND(COUNT(C29)=0,C30=0),0,1) -> 0 | C29: C2 | D29: Dasar Program Keahlian
A30: C21 | B30: 0 | C30: =HLOOKUP(A30&$F$13,TABNILSM3,4,FALSE) -> 0 | D30: =HLOOKUP(A30&$F$13,TABNILSM3,2,FALSE) -> - | E30: =IFERROR(HLOOKUP(A30&$F$13,TABNILSM3,5,FALSE),"-") -> 77 | F30: =INDEX(TABNILSM3,MATCH($R$2,NILSM3!$C$1:$C$43,0),MATCH(A30&$F$13,NILSM3!$C$1:$FR$1,0)) -> 87 | G30: =INDEX(TABNILSM3,MATCH($R$2,NILSM3!$C$1:$C$43,0),MATCH(A30&$G$13,NILSM3!$C$1:$FR$1,0)) -> 88 | H30: =INDEX(TABNILSM3,MATCH($R$2,NILSM3!$C$1:$C$43,0),MATCH(A30&$H$13,NILSM3!$C$1:$FR$1,0)) -> 89 | I30: =INDEX(TABNILSM3,MATCH($R$2,NILSM3!$C$1:$C$43,0),MATCH(A30&$I$13,NILSM3!$C$1:$FR$1,0)) -> 90 | J30: =INDEX(TABNILSM3,MATCH($R$2,NILSM3!$C$1:$C$43,0),MATCH(A30&$J$13,NILSM3!$C$1:$FR$1,0)) -> 91 | K30: =INDEX(TABNILSM3,MATCH($R$2,NILSM3!$C$1:$C$43,0),MATCH(A30&$K$13,NILSM3!$C$1:$FR$1,0)) -> 92 | L30: =INDEX(TABNILSM3,MATCH($R$2,NILSM3!$C$1:$C$43,0),MATCH(A30&$L$13,NILSM3!$C$1:$FR$1,0)) -> 93
A31: C22 | B31: 0 | C31: =HLOOKUP(A31&$F$13,TABNILSM3,4,FALSE) -> 0 | D31: =HLOOKUP(A31&$F$13,TABNILSM3,2,FALSE) -> - | E31: =IFERROR(HLOOKUP(A31&$F$13,TABNILSM3,5,FALSE),"-") -> 77 | F31: =INDEX(TABNILSM3,MATCH($R$2,NILSM3!$C$1:$C$43,0),MATCH(A31&$F$13,NILSM3!$C$1:$FR$1,0)) -> 94 | G31: =INDEX(TABNILSM3,MATCH($R$2,NILSM3!$C$1:$C$43,0),MATCH(A31&$G$13,NILSM3!$C$1:$FR$1,0)) -> 95 | H31: =INDEX(TABNILSM3,MATCH($R$2,NILSM3!$C$1:$C$43,0),MATCH(A31&$H$13,NILSM3!$C$1:$FR$1,0)) -> 96 | I31: =INDEX(TABNILSM3,MATCH($R$2,NILSM3!$C$1:$C$43,0),MATCH(A31&$I$13,NILSM3!$C$1:$FR$1,0)) -> 97 | J31: =INDEX(TABNILSM3,MATCH($R$2,NILSM3!$C$1:$C$43,0),MATCH(A31&$J$13,NILSM3!$C$1:$FR$1,0)) -> 98 | K31: =INDEX(TABNILSM3,MATCH($R$2,NILSM3!$C$1:$C$43,0),MATCH(A31&$K$13,NILSM3!$C$1:$FR$1,0)) -> 99 | L31: =INDEX(TABNILSM3,MATCH($R$2,NILSM3!$C$1:$C$43,0),MATCH(A31&$L$13,NILSM3!$C$1:$FR$1,0)) -> 100
A32: C23 | B32: 0 | C32: =HLOOKUP(A32&$F$13,TABNILSM3,4,FALSE) -> 0 | D32: =HLOOKUP(A32&$F$13,TABNILSM3,2,FALSE) -> - | E32: =IFERROR(HLOOKUP(A32&$F$13,TABNILSM3,5,FALSE),"-") -> 77 | F32: =INDEX(TABNILSM3,MATCH($R$2,NILSM3!$C$1:$C$43,0),MATCH(A32&$F$13,NILSM3!$C$1:$FR$1,0)) -> 75 | G32: =INDEX(TABNILSM3,MATCH($R$2,NILSM3!$C$1:$C$43,0),MATCH(A32&$G$13,NILSM3!$C$1:$FR$1,0)) -> 76 | H32: =INDEX(TABNILSM3,MATCH($R$2,NILSM3!$C$1:$C$43,0),MATCH(A32&$H$13,NILSM3!$C$1:$FR$1,0)) -> 77 | I32: =INDEX(TABNILSM3,MATCH($R$2,NILSM3!$C$1:$C$43,0),MATCH(A32&$I$13,NILSM3!$C$1:$FR$1,0)) -> 78 | J32: =INDEX(TABNILSM3,MATCH($R$2,NILSM3!$C$1:$C$43,0),MATCH(A32&$J$13,NILSM3!$C$1:$FR$1,0)) -> 79 | K32: =INDEX(TABNILSM3,MATCH($R$2,NILSM3!$C$1:$C$43,0),MATCH(A32&$K$13,NILSM3!$C$1:$FR$1,0)) -> 80 | L32: =INDEX(TABNILSM3,MATCH($R$2,NILSM3!$C$1:$C$43,0),MATCH(A32&$L$13,NILSM3!$C$1:$FR$1,0)) -> 81
A33: C24 | B33: 0 | C33: =HLOOKUP(A33&$F$13,TABNILSM3,4,FALSE) -> 0 | D33: =HLOOKUP(A33&$F$13,TABNILSM3,2,FALSE) -> - | E33: =IFERROR(HLOOKUP(A33&$F$13,TABNILSM3,5,FALSE),"-") -> 77 | F33: =INDEX(TABNILSM3,MATCH($R$2,NILSM3!$C$1:$C$43,0),MATCH(A33&$F$13,NILSM3!$C$1:$FR$1,0)) -> 82 | G33: =INDEX(TABNILSM3,MATCH($R$2,NILSM3!$C$1:$C$43,0),MATCH(A33&$G$13,NILSM3!$C$1:$FR$1,0)) -> 83 | H33: =INDEX(TABNILSM3,MATCH($R$2,NILSM3!$C$1:$C$43,0),MATCH(A33&$H$13,NILSM3!$C$1:$FR$1,0)) -> 84 | I33: =INDEX(TABNILSM3,MATCH($R$2,NILSM3!$C$1:$C$43,0),MATCH(A33&$I$13,NILSM3!$C$1:$FR$1,0)) -> 85 | J33: =INDEX(TABNILSM3,MATCH($R$2,NILSM3!$C$1:$C$43,0),MATCH(A33&$J$13,NILSM3!$C$1:$FR$1,0)) -> 86 | K33: =INDEX(TABNILSM3,MATCH($R$2,NILSM3!$C$1:$C$43,0),MATCH(A33&$K$13,NILSM3!$C$1:$FR$1,0)) -> 87 | L33: =INDEX(TABNILSM3,MATCH($R$2,NILSM3!$C$1:$C$43,0),MATCH(A33&$L$13,NILSM3!$C$1:$FR$1,0)) -> 88
A34: - | B34: =IF(AND(COUNT(C34)=0,C37=0),0,1) -> 1 | C34: C3 | D34: Kompetensi Keahlian
A35: C31 | B35: 1 | C35: =HLOOKUP(A35&$F$13,TABNILSM3,4,FALSE) -> 7 | D35: =HLOOKUP(A35&$F$13,TABNILSM3,2,FALSE) -> Pemeliharaan Mesin Sepeda Motor | E35: =IFERROR(HLOOKUP(A35&$F$13,TABNILSM3,5,FALSE),"-") -> 77 | F35: =INDEX(TABNILSM3,MATCH($R$2,NILSM3!$C$1:$C$43,0),MATCH(A35&$F$13,NILSM3!$C$1:$FR$1,0)) -> 89 | G35: =INDEX(TABNILSM3,MATCH($R$2,NILSM3!$C$1:$C$43,0),MATCH(A35&$G$13,NILSM3!$C$1:$FR$1,0)) -> 90 | H35: =INDEX(TABNILSM3,MATCH($R$2,NILSM3!$C$1:$C$43,0),MATCH(A35&$H$13,NILSM3!$C$1:$FR$1,0)) -> 91 | I35: =INDEX(TABNILSM3,MATCH($R$2,NILSM3!$C$1:$C$43,0),MATCH(A35&$I$13,NILSM3!$C$1:$FR$1,0)) -> 92 | J35: =INDEX(TABNILSM3,MATCH($R$2,NILSM3!$C$1:$C$43,0),MATCH(A35&$J$13,NILSM3!$C$1:$FR$1,0)) -> 93 | K35: =INDEX(TABNILSM3,MATCH($R$2,NILSM3!$C$1:$C$43,0),MATCH(A35&$K$13,NILSM3!$C$1:$FR$1,0)) -> 94 | L35: =INDEX(TABNILSM3,MATCH($R$2,NILSM3!$C$1:$C$43,0),MATCH(A35&$L$13,NILSM3!$C$1:$FR$1,0)) -> 95
A36: C32 | B36: 1 | C36: 8 | D36: Pemeliharaan Sasis Sepeda Motor | E36: 77 | F36: =INDEX(TABNILSM3,MATCH($R$2,NILSM3!$C$1:$C$43,0),MATCH(A36&$F$13,NILSM3!$C$1:$FR$1,0)) -> 96 | G36: =INDEX(TABNILSM3,MATCH($R$2,NILSM3!$C$1:$C$43,0),MATCH(A36&$G$13,NILSM3!$C$1:$FR$1,0)) -> 97 | H36: =INDEX(TABNILSM3,MATCH($R$2,NILSM3!$C$1:$C$43,0),MATCH(A36&$H$13,NILSM3!$C$1:$FR$1,0)) -> 98 | I36: =INDEX(TABNILSM3,MATCH($R$2,NILSM3!$C$1:$C$43,0),MATCH(A36&$I$13,NILSM3!$C$1:$FR$1,0)) -> 99 | J36: =INDEX(TABNILSM3,MATCH($R$2,NILSM3!$C$1:$C$43,0),MATCH(A36&$J$13,NILSM3!$C$1:$FR$1,0)) -> 100 | K36: =INDEX(TABNILSM3,MATCH($R$2,NILSM3!$C$1:$C$43,0),MATCH(A36&$K$13,NILSM3!$C$1:$FR$1,0)) -> 75 | L36: =INDEX(TABNILSM3,MATCH($R$2,NILSM3!$C$1:$C$43,0),MATCH(A36&$L$13,NILSM3!$C$1:$FR$1,0)) -> 76
A37: C33 | B37: 1 | C37: 9 | D37: Pemeliharaan Kelistrikan Sepeda Motor | E37: 77 | F37: =INDEX(TABNILSM3,MATCH($R$2,NILSM3!$C$1:$C$43,0),MATCH(A37&$F$13,NILSM3!$C$1:$FR$1,0)) -> 77 | G37: =INDEX(TABNILSM3,MATCH($R$2,NILSM3!$C$1:$C$43,0),MATCH(A37&$G$13,NILSM3!$C$1:$FR$1,0)) -> 78 | H37: =INDEX(TABNILSM3,MATCH($R$2,NILSM3!$C$1:$C$43,0),MATCH(A37&$H$13,NILSM3!$C$1:$FR$1,0)) -> 79 | I37: =INDEX(TABNILSM3,MATCH($R$2,NILSM3!$C$1:$C$43,0),MATCH(A37&$I$13,NILSM3!$C$1:$FR$1,0)) -> 80 | J37: =INDEX(TABNILSM3,MATCH($R$2,NILSM3!$C$1:$C$43,0),MATCH(A37&$J$13,NILSM3!$C$1:$FR$1,0)) -> 81 | K37: =INDEX(TABNILSM3,MATCH($R$2,NILSM3!$C$1:$C$43,0),MATCH(A37&$K$13,NILSM3!$C$1:$FR$1,0)) -> 82 | L37: =INDEX(TABNILSM3,MATCH($R$2,NILSM3!$C$1:$C$43,0),MATCH(A37&$L$13,NILSM3!$C$1:$FR$1,0)) -> 83
A38: C34 | B38: 0 | C38: 0 | D38: - | E38: 77 | F38: =INDEX(TABNILSM3,MATCH($R$2,NILSM3!$C$1:$C$43,0),MATCH(A38&$F$13,NILSM3!$C$1:$FR$1,0)) -> 84 | G38: =INDEX(TABNILSM3,MATCH($R$2,NILSM3!$C$1:$C$43,0),MATCH(A38&$G$13,NILSM3!$C$1:$FR$1,0)) -> 85 | H38: =INDEX(TABNILSM3,MATCH($R$2,NILSM3!$C$1:$C$43,0),MATCH(A38&$H$13,NILSM3!$C$1:$FR$1,0)) -> 86 | I38: =INDEX(TABNILSM3,MATCH($R$2,NILSM3!$C$1:$C$43,0),MATCH(A38&$I$13,NILSM3!$C$1:$FR$1,0)) -> 87 | J38: =INDEX(TABNILSM3,MATCH($R$2,NILSM3!$C$1:$C$43,0),MATCH(A38&$J$13,NILSM3!$C$1:$FR$1,0)) -> 88 | K38: =INDEX(TABNILSM3,MATCH($R$2,NILSM3!$C$1:$C$43,0),MATCH(A38&$K$13,NILSM3!$C$1:$FR$1,0)) -> 89 | L38: =INDEX(TABNILSM3,MATCH($R$2,NILSM3!$C$1:$C$43,0),MATCH(A38&$L$13,NILSM3!$C$1:$FR$1,0)) -> 90
A39: C35 | B39: 0 | C39: 0 | D39: - | E39: 77 | F39: =INDEX(TABNILSM3,MATCH($R$2,NILSM3!$C$1:$C$43,0),MATCH(A39&$F$13,NILSM3!$C$1:$FR$1,0)) -> 91 | G39: =INDEX(TABNILSM3,MATCH($R$2,NILSM3!$C$1:$C$43,0),MATCH(A39&$G$13,NILSM3!$C$1:$FR$1,0)) -> 92 | H39: =INDEX(TABNILSM3,MATCH($R$2,NILSM3!$C$1:$C$43,0),MATCH(A39&$H$13,NILSM3!$C$1:$FR$1,0)) -> 93 | I39: =INDEX(TABNILSM3,MATCH($R$2,NILSM3!$C$1:$C$43,0),MATCH(A39&$I$13,NILSM3!$C$1:$FR$1,0)) -> 94 | J39: =INDEX(TABNILSM3,MATCH($R$2,NILSM3!$C$1:$C$43,0),MATCH(A39&$J$13,NILSM3!$C$1:$FR$1,0)) -> 95 | K39: =INDEX(TABNILSM3,MATCH($R$2,NILSM3!$C$1:$C$43,0),MATCH(A39&$K$13,NILSM3!$C$1:$FR$1,0)) -> 96 | L39: =INDEX(TABNILSM3,MATCH($R$2,NILSM3!$C$1:$C$43,0),MATCH(A39&$L$13,NILSM3!$C$1:$FR$1,0)) -> 97
A40: C36 | B40: 1 | C40: 10 | D40: Produk Kreatif dan Kewirausahaan | E40: 77 | F40: =INDEX(TABNILSM3,MATCH($R$2,NILSM3!$C$1:$C$43,0),MATCH(A40&$F$13,NILSM3!$C$1:$FR$1,0)) -> 98 | G40: =INDEX(TABNILSM3,MATCH($R$2,NILSM3!$C$1:$C$43,0),MATCH(A40&$G$13,NILSM3!$C$1:$FR$1,0)) -> 99 | H40: =INDEX(TABNILSM3,MATCH($R$2,NILSM3!$C$1:$C$43,0),MATCH(A40&$H$13,NILSM3!$C$1:$FR$1,0)) -> 100 | I40: =INDEX(TABNILSM3,MATCH($R$2,NILSM3!$C$1:$C$43,0),MATCH(A40&$I$13,NILSM3!$C$1:$FR$1,0)) -> 75 | J40: =INDEX(TABNILSM3,MATCH($R$2,NILSM3!$C$1:$C$43,0),MATCH(A40&$J$13,NILSM3!$C$1:$FR$1,0)) -> 76 | K40: =INDEX(TABNILSM3,MATCH($R$2,NILSM3!$C$1:$C$43,0),MATCH(A40&$K$13,NILSM3!$C$1:$FR$1,0)) -> 77 | L40: =INDEX(TABNILSM3,MATCH($R$2,NILSM3!$C$1:$C$43,0),MATCH(A40&$L$13,NILSM3!$C$1:$FR$1,0)) -> 78
B41: =IF(AND(COUNT(C41)=0,C42=0),0,1) -> 0 | C41: Muatan Lokal
A42: SUN | B42: 0 | C42: =HLOOKUP(A42&$F$13,TABNILSM3,4,FALSE) -> 0 | D42: =HLOOKUP(A42&$F$13,TABNILSM3,2,FALSE) -> - | E42: =IFERROR(HLOOKUP(A42&$F$13,TABNILSM3,5,FALSE),"-") -> 77 | F42: =INDEX(TABNILSM3,MATCH($R$2,NILSM3!$C$1:$C$43,0),MATCH(A42&$F$13,NILSM3!$C$1:$FR$1,0)) -> 79 | G42: =INDEX(TABNILSM3,MATCH($R$2,NILSM3!$C$1:$C$43,0),MATCH(A42&$G$13,NILSM3!$C$1:$FR$1,0)) -> 80 | H42: =INDEX(TABNILSM3,MATCH($R$2,NILSM3!$C$1:$C$43,0),MATCH(A42&$H$13,NILSM3!$C$1:$FR$1,0)) -> 81 | I42: =INDEX(TABNILSM3,MATCH($R$2,NILSM3!$C$1:$C$43,0),MATCH(A42&$I$13,NILSM3!$C$1:$FR$1,0)) -> 82 | J42: =INDEX(TABNILSM3,MATCH($R$2,NILSM3!$C$1:$C$43,0),MATCH(A42&$J$13,NILSM3!$C$1:$FR$1,0)) -> 83 | K42: =INDEX(TABNILSM3,MATCH($R$2,NILSM3!$C$1:$C$43,0),MATCH(A42&$K$13,NILSM3!$C$1:$FR$1,0)) -> 84 | L42: =INDEX(TABNILSM3,MATCH($R$2,NILSM3!$C$1:$C$43,0),MATCH(A42&$L$13,NILSM3!$C$1:$FR$1,0)) -> 85
A43: PLH | B43: 0 | C43: =HLOOKUP(A43&$F$13,TABNILSM3,4,FALSE) -> 0 | D43: =HLOOKUP(A43&$F$13,TABNILSM3,2,FALSE) -> - | E43: =IFERROR(HLOOKUP(A43&$F$13,TABNILSM3,5,FALSE),"-") -> 77 | F43: =INDEX(TABNILSM3,MATCH($R$2,NILSM3!$C$1:$C$43,0),MATCH(A43&$F$13,NILSM3!$C$1:$FR$1,0)) -> 86 | G43: =INDEX(TABNILSM3,MATCH($R$2,NILSM3!$C$1:$C$43,0),MATCH(A43&$G$13,NILSM3!$C$1:$FR$1,0)) -> 87 | H43: =INDEX(TABNILSM3,MATCH($R$2,NILSM3!$C$1:$C$43,0),MATCH(A43&$H$13,NILSM3!$C$1:$FR$1,0)) -> 88 | I43: =INDEX(TABNILSM3,MATCH($R$2,NILSM3!$C$1:$C$43,0),MATCH(A43&$I$13,NILSM3!$C$1:$FR$1,0)) -> 89 | J43: =INDEX(TABNILSM3,MATCH($R$2,NILSM3!$C$1:$C$43,0),MATCH(A43&$J$13,NILSM3!$C$1:$FR$1,0)) -> 90 | K43: =INDEX(TABNILSM3,MATCH($R$2,NILSM3!$C$1:$C$43,0),MATCH(A43&$K$13,NILSM3!$C$1:$FR$1,0)) -> 91 | L43: =INDEX(TABNILSM3,MATCH($R$2,NILSM3!$C$1:$C$43,0),MATCH(A43&$L$13,NILSM3!$C$1:$FR$1,0)) -> 92
A45: CTT | C45: Bimbingan dan Konseling | G45: Catatan Akademik
A46: BKN | C46: =INDEX(TABNILSM3,MATCH($R$2,NILSM3!$C$1:$C$43,0),MATCH(A46,NILSM3!$C$1:$FR$1,0)) -> 0 | G46: =INDEX(TABNILSM3,MATCH($R$2,NILSM3!$C$1:$C$43,0),MATCH(A45,NILSM3!$C$1:$FR$1,0)) -> 0
C48: Catatan: Jika nilai 0, siswa belum mengupload tugas atau belum mengerjakan ulangan. Jika nilai - , materi KD (Kompetensi Dasar) tersebut dilaksanakan setelah pembagian KHS.
Q50: =VLOOKUP($R$13,TAB_BIODATA,BIODATA!C4,FALSE) -> ADAM ADIYAT HARTANTO
D51: Mengetahui, | I51: =NILSM3!A5 -> 0
D52: Orang Tua/Wali, | I52: Wali Kelas, | Q52: ="Nomor Urut "&R13 -> Nomor Urut 1
I57: =NILSM3!B4 -> Amo Sisdianto, S.Kom
I58: =IF(NILSM3!B5=0,"","NIP "&NILSM3!B5) -> 

Sheet CETSM2
C1: KARTU HASIL STUDI (KHS) PESERTA DIDIK | Q1: JURUSAN | R1: =MENU!F8 -> TBSM
C2: SMK NEGERI 1 KARAWANG | Q2: NIS | R2: =VLOOKUP($R$13,TAB_BIODATA,BIODATA!D4,FALSE) -> 16170371
D4: Nama Peserta Didik | E4: : | F4: =VLOOKUP($R$13,TAB_BIODATA,BIODATA!C4,FALSE) -> BAGAS ADJI PRIANTOMO
D5: Nomor Induk/NISN | E5: : | F5: =IF(VLOOKUP($R$13,TAB_BIODATA,BIODATA!E4)="",VLOOKUP($R$13,TAB_BIODATA,BIODATA!D4,FALSE),VLOOKUP($R$13,TAB_BIODATA,BIODATA!D4)&" / "&VLOOKUP($R$13,TAB_BIODATA,BIODATA!E4,FALSE)) -> 16170371 / 0019580311 | Q5: DATA CETAK | S5: HALAMAN CETAK
D6: Kelas | E6: : | F6: =IF(OR(F8="1 (satu)",F8="2 (dua)"),"X "&MENU!F9,IF(OR(F8="3 (tiga)",F8="4 (empat)"),"XI "&MENU!F9,IF(OR(F8="5 (lima)",F8="6 (enam)"),"XII "&MENU!F9,IF(OR(F8="7 (tujuh)",F8="8 (delapan)"),"XIII "&MENU!F9,"")))) -> X TBSM 2 | Q6: Dari data ke | R6: 1 | S6: Dari | T6: 1
D7: Tahun Pelajaran | E7: : | F7: =RIGHT(NILSM2!A2,11) -> 2020 / 2021
D8: Semester | E8: : | F8: =NILSM2!B3 -> 2 (dua) | Q8: Sampai data ke | R8: 2 | S8: Ke | T8: 1
C10: Nilai Akademik
C11: No. | D11: Mata Pelajaran | E11: KKM | F11: KD 1 | H11: KD 2 | J11: KD 3 | L11: Kehadiran
F12: Tugas | G12: Ulangan | H12: Tugas | I12: Ulangan | J12: Tugas | K12: Ulangan | Q12: TAMPILAN DATA
C13: A. Muatan Nasional | F13: T1 | G13: U1 | H13: T2 | I13: U2 | J13: T3 | K13: U3 | L13: H | Q13: Nomor Urut | R13: 3
A14: PAB | B14: =IF(C14>=1,1,0) -> 1 | C14: =HLOOKUP(A14&$F$13,TABNILSM2,4,FALSE) -> 1 | D14: =HLOOKUP(A14&$F$13,TABNILSM2,2,FALSE) -> Pendidikan Agama dan Budi Pekerti | E14: =IFERROR(HLOOKUP(A14&$F$13,TABNILSM2,5,FALSE),"-") -> 75 | F14: =INDEX(TABNILSM2,MATCH($R$2,NILSM2!$C$1:$C$43,0),MATCH(A14&$F$13,NILSM2!$C$1:$FR$1,0)) -> 75 | G14: =INDEX(TABNILSM2,MATCH($R$2,NILSM2!$C$1:$C$43,0),MATCH(A14&$G$13,NILSM2!$C$1:$FR$1,0)) -> 76 | H14: =INDEX(TABNILSM2,MATCH($R$2,NILSM2!$C$1:$C$43,0),MATCH(A14&$H$13,NILSM2!$C$1:$FR$1,0)) -> 77 | I14: =INDEX(TABNILSM2,MATCH($R$2,NILSM2!$C$1:$C$43,0),MATCH(A14&$I$13,NILSM2!$C$1:$FR$1,0)) -> 78 | J14: =INDEX(TABNILSM2,MATCH($R$2,NILSM2!$C$1:$C$43,0),MATCH(A14&$J$13,NILSM2!$C$1:$FR$1,0)) -> 79 | K14: =INDEX(TABNILSM2,MATCH($R$2,NILSM2!$C$1:$C$43,0),MATCH(A14&$K$13,NILSM2!$C$1:$FR$1,0)) -> 80 | L14: =INDEX(TABNILSM2,MATCH($R$2,NILSM2!$C$1:$C$43,0),MATCH(A14&$L$13,NILSM2!$C$1:$FR$1,0)) -> 81
A15: PKN | B15: =IF(C15>=1,1,0) -> 1 | C15: 2 | D15: Pendidikan Pancasila dan Kewarganegaraan | E15: 75 | F15: =INDEX(TABNILSM2,MATCH($R$2,NILSM2!$C$1:$C$43,0),MATCH(A15&$F$13,NILSM2!$C$1:$FR$1,0)) -> 82 | G15: =INDEX(TABNILSM2,MATCH($R$2,NILSM2!$C$1:$C$43,0),MATCH(A15&$G$13,NILSM2!$C$1:$FR$1,0)) -> 83 | H15: =INDEX(TABNILSM2,MATCH($R$2,NILSM2!$C$1:$C$43,0),MATCH(A15&$H$13,NILSM2!$C$1:$FR$1,0)) -> 84 | I15: =INDEX(TABNILSM2,MATCH($R$2,NILSM2!$C$1:$C$43,0),MATCH(A15&$I$13,NILSM2!$C$1:$FR$1,0)) -> 85 | J15: =INDEX(TABNILSM2,MATCH($R$2,NILSM2!$C$1:$C$43,0),MATCH(A15&$J$13,NILSM2!$C$1:$FR$1,0)) -> 86 | K15: =INDEX(TABNILSM2,MATCH($R$2,NILSM2!$C$1:$C$43,0),MATCH(A15&$K$13,NILSM2!$C$1:$FR$1,0)) -> 87 | L15: =INDEX(TABNILSM2,MATCH($R$2,NILSM2!$C$1:$C$43,0),MATCH(A15&$L$13,NILSM2!$C$1:$FR$1,0)) -> 88
A16: IND | B16: 1 | C16: 3 | D16: Bahasa Indonesia | E16: 75 | F16: =INDEX(TABNILSM2,MATCH($R$2,NILSM2!$C$1:$C$43,0),MATCH(A16&$F$13,NILSM2!$C$1:$FR$1,0)) -> 89 | G16: =INDEX(TABNILSM2,MATCH($R$2,NILSM2!$C$1:$C$43,0),MATCH(A16&$G$13,NILSM2!$C$1:$FR$1,0)) -> 90 | H16: =INDEX(TABNILSM2,MATCH($R$2,NILSM2!$C$1:$C$43,0),MATCH(A16&$H$13,NILSM2!$C$1:$FR$1,0)) -> 91 | I16: =INDEX(TABNILSM2,MATCH($R$2,NILSM2!$C$1:$C$43,0),MATCH(A16&$I$13,NILSM2!$C$1:$FR$1,0)) -> 92 | J16: =INDEX(TABNILSM2,MATCH($R$2,NILSM2!$C$1:$C$43,0),MATCH(A16&$J$13,NILSM2!$C$1:$FR$1,0)) -> 93 | K16: =INDEX(TABNILSM2,MATCH($R$2,NILSM2!$C$1:$C$43,0),MATCH(A16&$K$13,NILSM2!$C$1:$FR$1,0)) -> 94 | L16: =INDEX(TABNILSM2,MATCH($R$2,NILSM2!$C$1:$C$43,0),MATCH(A16&$L$13,NILSM2!$C$1:$FR$1,0)) -> 95
A17: MTK | B17: 1 | C17: 4 | D17: Matematika | E17: 75 | F17: =INDEX(TABNILSM2,MATCH($R$2,NILSM2!$C$1:$C$43,0),MATCH(A17&$F$13,NILSM2!$C$1:$FR$1,0)) -> 96 | G17: =INDEX(TABNILSM2,MATCH($R$2,NILSM2!$C$1:$C$43,0),MATCH(A17&$G$13,NILSM2!$C$1:$FR$1,0)) -> 97 | H17: =INDEX(TABNILSM2,MATCH($R$2,NILSM2!$C$1:$C$43,0),MATCH(A17&$H$13,NILSM2!$C$1:$FR$1,0)) -> 98 | I17: =INDEX(TABNILSM2,MATCH($R$2,NILSM2!$C$1:$C$43,0),MATCH(A17&$I$13,NILSM2!$C$1:$FR$1,0)) -> 99 | J17: =INDEX(TABNILSM2,MATCH($R$2,NILSM2!$C$1:$C$43,0),MATCH(A17&$J$13,NILSM2!$C$1:$FR$1,0)) -> 100 | K17: =INDEX(TABNILSM2,MATCH($R$2,NILSM2!$C$1:$C$43,0),MATCH(A17&$K$13,NILSM2!$C$1:$FR$1,0)) -> 75 | L17: =INDEX(TABNILSM2,MATCH($R$2,NILSM2!$C$1:$C$43,0),MATCH(A17&$L$13,NILSM2!$C$1:$FR$1,0)) -> 76
A18: SJI | B18: 1 | C18: 5 | D18: Sejarah Indonesia | E18: 75 | F18: =INDEX(TABNILSM2,MATCH($R$2,NILSM2!$C$1:$C$43,0),MATCH(A18&$F$13,NILSM2!$C$1:$FR$1,0)) -> 77 | G18: =INDEX(TABNILSM2,MATCH($R$2,NILSM2!$C$1:$C$43,0),MATCH(A18&$G$13,NILSM2!$C$1:$FR$1,0)) -> 78 | H18: =INDEX(TABNILSM2,MATCH($R$2,NILSM2!$C$1:$C$43,0),MATCH(A18&$H$13,NILSM2!$C$1:$FR$1,0)) -> 79 | I18: =INDEX(TABNILSM2,MATCH($R$2,NILSM2!$C$1:$C$43,0),MATCH(A18&$I$13,NILSM2!$C$1:$FR$1,0)) -> 80 | J18: =INDEX(TABNILSM2,MATCH($R$2,NILSM2!$C$1:$C$43,0),MATCH(A18&$J$13,NILSM2!$C$1:$FR$1,0)) -> 81 | K18: =INDEX(TABNILSM2,MATCH($R$2,NILSM2!$C$1:$C$43,0),MATCH(A18&$K$13,NILSM2!$C$1:$FR$1,0)) -> 82 | L18: =INDEX(TABNILSM2,MATCH($R$2,NILSM2!$C$1:$C$43,0),MATCH(A18&$L$13,NILSM2!$C$1:$FR$1,0)) -> 83
A19: ING | B19: 1 | C19: 6 | D19: Bahasa Inggris | E19: 75 | F19: =INDEX(TABNILSM2,MATCH($R$2,NILSM2!$C$1:$C$43,0),MATCH(A19&$F$13,NILSM2!$C$1:$FR$1,0)) -> 84 | G19: =INDEX(TABNILSM2,MATCH($R$2,NILSM2!$C$1:$C$43,0),MATCH(A19&$G$13,NILSM2!$C$1:$FR$1,0)) -> 85 | H19: =INDEX(TABNILSM2,MATCH($R$2,NILSM2!$C$1:$C$43,0),MATCH(A19&$H$13,NILSM2!$C$1:$FR$1,0)) -> 86 | I19: =INDEX(TABNILSM2,MATCH($R$2,NILSM2!$C$1:$C$43,0),MATCH(A19&$I$13,NILSM2!$C$1:$FR$1,0)) -> 87 | J19: =INDEX(TABNILSM2,MATCH($R$2,NILSM2!$C$1:$C$43,0),MATCH(A19&$J$13,NILSM2!$C$1:$FR$1,0)) -> 88 | K19: =INDEX(TABNILSM2,MATCH($R$2,NILSM2!$C$1:$C$43,0),MATCH(A19&$K$13,NILSM2!$C$1:$FR$1,0)) -> 89 | L19: =INDEX(TABNILSM2,MATCH($R$2,NILSM2!$C$1:$C$43,0),MATCH(A19&$L$13,NILSM2!$C$1:$FR$1,0)) -> 90
A20: JER | B20: 0 | C20: 0 | D20: - | E20: 75 | F20: =INDEX(TABNILSM2,MATCH($R$2,NILSM2!$C$1:$C$43,0),MATCH(A20&$F$13,NILSM2!$C$1:$FR$1,0)) -> 91 | G20: =INDEX(TABNILSM2,MATCH($R$2,NILSM2!$C$1:$C$43,0),MATCH(A20&$G$13,NILSM2!$C$1:$FR$1,0)) -> 92 | H20: =INDEX(TABNILSM2,MATCH($R$2,NILSM2!$C$1:$C$43,0),MATCH(A20&$H$13,NILSM2!$C$1:$FR$1,0)) -> 93 | I20: =INDEX(TABNILSM2,MATCH($R$2,NILSM2!$C$1:$C$43,0),MATCH(A20&$I$13,NILSM2!$C$1:$FR$1,0)) -> 94 | J20: =INDEX(TABNILSM2,MATCH($R$2,NILSM2!$C$1:$C$43,0),MATCH(A20&$J$13,NILSM2!$C$1:$FR$1,0)) -> 95 | K20: =INDEX(TABNILSM2,MATCH($R$2,NILSM2!$C$1:$C$43,0),MATCH(A20&$K$13,NILSM2!$C$1:$FR$1,0)) -> 96 | L20: =INDEX(TABNILSM2,MATCH($R$2,NILSM2!$C$1:$C$43,0),MATCH(A20&$L$13,NILSM2!$C$1:$FR$1,0)) -> 97
B21: =IF(AND(COUNT(C21)=0,C23=0),0,1) -> 1 | C21: B. Muatan Kewilayahan
A22: SBD | B22: 1 | C22: =HLOOKUP(A22&$F$13,TABNILSM2,4,FALSE) -> 7 | D22: =HLOOKUP(A22&$F$13,TABNILSM2,2,FALSE) -> Seni Budaya | E22: =IFERROR(HLOOKUP(A22&$F$13,TABNILSM2,5,FALSE),"-") -> 75 | F22: =INDEX(TABNILSM2,MATCH($R$2,NILSM2!$C$1:$C$43,0),MATCH(A22&$F$13,NILSM2!$C$1:$FR$1,0)) -> 98 | G22: =INDEX(TABNILSM2,MATCH($R$2,NILSM2!$C$1:$C$43,0),MATCH(A22&$G$13,NILSM2!$C$1:$FR$1,0)) -> 99 | H22: =INDEX(TABNILSM2,MATCH($R$2,NILSM2!$C$1:$C$43,0),MATCH(A22&$H$13,NILSM2!$C$1:$FR$1,0)) -> 100 | I22: =INDEX(TABNILSM2,MATCH($R$2,NILSM2!$C$1:$C$43,0),MATCH(A22&$I$13,NILSM2!$C$1:$FR$1,0)) -> 75 | J22: =INDEX(TABNILSM2,MATCH($R$2,NILSM2!$C$1:$C$43,0),MATCH(A22&$J$13,NILSM2!$C$1:$FR$1,0)) -> 76 | K22: =INDEX(TABNILSM2,MATCH($R$2,NILSM2!$C$1:$C$43,0),MATCH(A22&$K$13,NILSM2!$C$1:$FR$1,0)) -> 77 | L22: =INDEX(TABNILSM2,MATCH($R$2,NILSM2!$C$1:$C$43,0),MATCH(A22&$L$13,NILSM2!$C$1:$FR$1,0)) -> 78
A23: PJO | B23: 1 | C23: =HLOOKUP(A23&$F$13,TABNILSM2,4,FALSE) -> 8 | D23: =HLOOKUP(A23&$F$13,TABNILSM2,2,FALSE) -> Pendidikan Jasmani, Olahraga dan Kesehatan | E23: =IFERROR(HLOOKUP(A23&$F$13,TABNILSM2,5,FALSE),"-") -> 75 | F23: =INDEX(TABNILSM2,MATCH($R$2,NILSM2!$C$1:$C$43,0),MATCH(A23&$F$13,NILSM2!$C$1:$FR$1,0)) -> 79 | G23: =INDEX(TABNILSM2,MATCH($R$2,NILSM2!$C$1:$C$43,0),MATCH(A23&$G$13,NILSM2!$C$1:$FR$1,0)) -> 80 | H23: =INDEX(TABNILSM2,MATCH($R$2,NILSM2!$C$1:$C$43,0),MATCH(A23&$H$13,NILSM2!$C$1:$FR$1,0)) -> 81 | I23: =INDEX(TABNILSM2,MATCH($R$2,NILSM2!$C$1:$C$43,0),MATCH(A23&$I$13,NILSM2!$C$1:$FR$1,0)) -> 82 | J23: =INDEX(TABNILSM2,MATCH($R$2,NILSM2!$C$1:$C$43,0),MATCH(A23&$J$13,NILSM2!$C$1:$FR$1,0)) -> 83 | K23: =INDEX(TABNILSM2,MATCH($R$2,NILSM2!$C$1:$C$43,0),MATCH(A23&$K$13,NILSM2!$C$1:$FR$1,0)) -> 84 | L23: =INDEX(TABNILSM2,MATCH($R$2,NILSM2!$C$1:$C$43,0),MATCH(A23&$L$13,NILSM2!$C$1:$FR$1,0)) -> 85
A24: - | B24: 1 | C24: C. Muatan Peminatan Kejuruan
B25: =IF(AND(COUNT(C25)=0,C26=0),0,1) -> 1 | C25: C1 | D25: Dasar Bidang Keahlian
A26: SKD | B26: =IF(C26>=1,1,0) -> 1 | C26: =HLOOKUP(A26&$F$13,TABNILSM2,4,FALSE) -> 9 | D26: =HLOOKUP(A26&$F$13,TABNILSM2,2,FALSE) -> Simulasi dan Komunikasi Digital | E26: =IFERROR(HLOOKUP(A26&$F$13,TABNILSM2,5,FALSE),"-") -> 75 | F26: =INDEX(TABNILSM2,MATCH($R$2,NILSM2!$C$1:$C$43,0),MATCH(A26&$F$13,NILSM2!$C$1:$FR$1,0)) -> 86 | G26: =INDEX(TABNILSM2,MATCH($R$2,NILSM2!$C$1:$C$43,0),MATCH(A26&$G$13,NILSM2!$C$1:$FR$1,0)) -> 87 | H26: =INDEX(TABNILSM2,MATCH($R$2,NILSM2!$C$1:$C$43,0),MATCH(A26&$H$13,NILSM2!$C$1:$FR$1,0)) -> 88 | I26: =INDEX(TABNILSM2,MATCH($R$2,NILSM2!$C$1:$C$43,0),MATCH(A26&$I$13,NILSM2!$C$1:$FR$1,0)) -> 89 | J26: =INDEX(TABNILSM2,MATCH($R$2,NILSM2!$C$1:$C$43,0),MATCH(A26&$J$13,NILSM2!$C$1:$FR$1,0)) -> 90 | K26: =INDEX(TABNILSM2,MATCH($R$2,NILSM2!$C$1:$C$43,0),MATCH(A26&$K$13,NILSM2!$C$1:$FR$1,0)) -> 91 | L26: =INDEX(TABNILSM2,MATCH($R$2,NILSM2!$C$1:$C$43,0),MATCH(A26&$L$13,NILSM2!$C$1:$FR$1,0)) -> 92
A27: FIS | B27: 1 | C27: =HLOOKUP(A27&$F$13,TABNILSM2,4,FALSE) -> 10 | D27: =HLOOKUP(A27&$F$13,TABNILSM2,2,FALSE) -> Fisika | E27: =IFERROR(HLOOKUP(A27&$F$13,TABNILSM2,5,FALSE),"-") -> 75 | F27: =INDEX(TABNILSM2,MATCH($R$2,NILSM2!$C$1:$C$43,0),MATCH(A27&$F$13,NILSM2!$C$1:$FR$1,0)) -> 93 | G27: =INDEX(TABNILSM2,MATCH($R$2,NILSM2!$C$1:$C$43,0),MATCH(A27&$G$13,NILSM2!$C$1:$FR$1,0)) -> 94 | H27: =INDEX(TABNILSM2,MATCH($R$2,NILSM2!$C$1:$C$43,0),MATCH(A27&$H$13,NILSM2!$C$1:$FR$1,0)) -> 95 | I27: =INDEX(TABNILSM2,MATCH($R$2,NILSM2!$C$1:$C$43,0),MATCH(A27&$I$13,NILSM2!$C$1:$FR$1,0)) -> 96 | J27: =INDEX(TABNILSM2,MATCH($R$2,NILSM2!$C$1:$C$43,0),MATCH(A27&$J$13,NILSM2!$C$1:$FR$1,0)) -> 97 | K27: =INDEX(TABNILSM2,MATCH($R$2,NILSM2!$C$1:$C$43,0),MATCH(A27&$K$13,NILSM2!$C$1:$FR$1,0)) -> 98 | L27: =INDEX(TABNILSM2,MATCH($R$2,NILSM2!$C$1:$C$43,0),MATCH(A27&$L$13,NILSM2!$C$1:$FR$1,0)) -> 99
A28: KIM | B28: 1 | C28: =HLOOKUP(A28&$F$13,TABNILSM2,4,FALSE) -> 11 | D28: =HLOOKUP(A28&$F$13,TABNILSM2,2,FALSE) -> Kimia | E28: =IFERROR(HLOOKUP(A28&$F$13,TABNILSM2,5,FALSE),"-") -> 75 | F28: =INDEX(TABNILSM2,MATCH($R$2,NILSM2!$C$1:$C$43,0),MATCH(A28&$F$13,NILSM2!$C$1:$FR$1,0)) -> 100 | G28: =INDEX(TABNILSM2,MATCH($R$2,NILSM2!$C$1:$C$43,0),MATCH(A28&$G$13,NILSM2!$C$1:$FR$1,0)) -> 75 | H28: =INDEX(TABNILSM2,MATCH($R$2,NILSM2!$C$1:$C$43,0),MATCH(A28&$H$13,NILSM2!$C$1:$FR$1,0)) -> 76 | I28: =INDEX(TABNILSM2,MATCH($R$2,NILSM2!$C$1:$C$43,0),MATCH(A28&$I$13,NILSM2!$C$1:$FR$1,0)) -> 77 | J28: =INDEX(TABNILSM2,MATCH($R$2,NILSM2!$C$1:$C$43,0),MATCH(A28&$J$13,NILSM2!$C$1:$FR$1,0)) -> 78 | K28: =INDEX(TABNILSM2,MATCH($R$2,NILSM2!$C$1:$C$43,0),MATCH(A28&$K$13,NILSM2!$C$1:$FR$1,0)) -> 79 | L28: =INDEX(TABNILSM2,MATCH($R$2,NILSM2!$C$1:$C$43,0),MATCH(A28&$L$13,NILSM2!$C$1:$FR$1,0)) -> 80
B29: =IF(AND(COUNT(C29)=0,C30=0),0,1) -> 1 | C29: C2 | D29: Dasar Program Keahlian
A30: C21 | B30: 1 | C30: =HLOOKUP(A30&$F$13,TABNILSM2,4,FALSE) -> 12 | D30: =HLOOKUP(A30&$F$13,TABNILSM2,2,FALSE) -> Gambar Teknik Otomotif | E30: =IFERROR(HLOOKUP(A30&$F$13,TABNILSM2,5,FALSE),"-") -> 75 | F30: =INDEX(TABNILSM2,MATCH($R$2,NILSM2!$C$1:$C$43,0),MATCH(A30&$F$13,NILSM2!$C$1:$FR$1,0)) -> 81 | G30: =INDEX(TABNILSM2,MATCH($R$2,NILSM2!$C$1:$C$43,0),MATCH(A30&$G$13,NILSM2!$C$1:$FR$1,0)) -> 82 | H30: =INDEX(TABNILSM2,MATCH($R$2,NILSM2!$C$1:$C$43,0),MATCH(A30&$H$13,NILSM2!$C$1:$FR$1,0)) -> 83 | I30: =INDEX(TABNILSM2,MATCH($R$2,NILSM2!$C$1:$C$43,0),MATCH(A30&$I$13,NILSM2!$C$1:$FR$1,0)) -> 84 | J30: =INDEX(TABNILSM2,MATCH($R$2,NILSM2!$C$1:$C$43,0),MATCH(A30&$J$13,NILSM2!$C$1:$FR$1,0)) -> 85 | K30: =INDEX(TABNILSM2,MATCH($R$2,NILSM2!$C$1:$C$43,0),MATCH(A30&$K$13,NILSM2!$C$1:$FR$1,0)) -> 86 | L30: =INDEX(TABNILSM2,MATCH($R$2,NILSM2!$C$1:$C$43,0),MATCH(A30&$L$13,NILSM2!$C$1:$FR$1,0)) -> 87
A31: C22 | B31: 1 | C31: =HLOOKUP(A31&$F$13,TABNILSM2,4,FALSE) -> 13 | D31: =HLOOKUP(A31&$F$13,TABNILSM2,2,FALSE) -> Teknologi Dasar Otomotif | E31: =IFERROR(HLOOKUP(A31&$F$13,TABNILSM2,5,FALSE),"-") -> 75 | F31: =INDEX(TABNILSM2,MATCH($R$2,NILSM2!$C$1:$C$43,0),MATCH(A31&$F$13,NILSM2!$C$1:$FR$1,0)) -> 88 | G31: =INDEX(TABNILSM2,MATCH($R$2,NILSM2!$C$1:$C$43,0),MATCH(A31&$G$13,NILSM2!$C$1:$FR$1,0)) -> 89 | H31: =INDEX(TABNILSM2,MATCH($R$2,NILSM2!$C$1:$C$43,0),MATCH(A31&$H$13,NILSM2!$C$1:$FR$1,0)) -> 90 | I31: =INDEX(TABNILSM2,MATCH($R$2,NILSM2!$C$1:$C$43,0),MATCH(A31&$I$13,NILSM2!$C$1:$FR$1,0)) -> 91 | J31: =INDEX(TABNILSM2,MATCH($R$2,NILSM2!$C$1:$C$43,0),MATCH(A31&$J$13,NILSM2!$C$1:$FR$1,0)) -> 92 | K31: =INDEX(TABNILSM2,MATCH($R$2,NILSM2!$C$1:$C$43,0),MATCH(A31&$K$13,NILSM2!$C$1:$FR$1,0)) -> 93 | L31: =INDEX(TABNILSM2,MATCH($R$2,NILSM2!$C$1:$C$43,0),MATCH(A31&$L$13,NILSM2!$C$1:$FR$1,0)) -> 94
A32: C23 | B32: 1 | C32: =HLOOKUP(A32&$F$13,TABNILSM2,4,FALSE) -> 14 | D32: =HLOOKUP(A32&$F$13,TABNILSM2,2,FALSE) -> Pekerjaan Dasar Teknik Otomotif | E32: =IFERROR(HLOOKUP(A32&$F$13,TABNILSM2,5,FALSE),"-") -> 75 | F32: =INDEX(TABNILSM2,MATCH($R$2,NILSM2!$C$1:$C$43,0),MATCH(A32&$F$13,NILSM2!$C$1:$FR$1,0)) -> 95 | G32: =INDEX(TABNILSM2,MATCH($R$2,NILSM2!$C$1:$C$43,0),MATCH(A32&$G$13,NILSM2!$C$1:$FR$1,0)) -> 96 | H32: =INDEX(TABNILSM2,MATCH($R$2,NILSM2!$C$1:$C$43,0),MATCH(A32&$H$13,NILSM2!$C$1:$FR$1,0)) -> 97 | I32: =INDEX(TABNILSM2,MATCH($R$2,NILSM2!$C$1:$C$43,0),MATCH(A32&$I$13,NILSM2!$C$1:$FR$1,0)) -> 98 | J32: =INDEX(TABNILSM2,MATCH($R$2,NILSM2!$C$1:$C$43,0),MATCH(A32&$J$13,NILSM2!$C$1:$FR$1,0)) -> 99 | K32: =INDEX(TABNILSM2,MATCH($R$2,NILSM2!$C$1:$C$43,0),MATCH(A32&$K$13,NILSM2!$C$1:$FR$1,0)) -> 100 | L32: =INDEX(TABNILSM2,MATCH($R$2,NILSM2!$C$1:$C$43,0),MATCH(A32&$L$13,NILSM2!$C$1:$FR$1,0)) -> 75
A33: C24 | B33: 0 | C33: =HLOOKUP(A33&$F$13,TABNILSM2,4,FALSE) -> 0 | D33: =HLOOKUP(A33&$F$13,TABNILSM2,2,FALSE) -> - | E33: =IFERROR(HLOOKUP(A33&$F$13,TABNILSM2,5,FALSE),"-") -> 75 | F33: =INDEX(TABNILSM2,MATCH($R$2,NILSM2!$C$1:$C$43,0),MATCH(A33&$F$13,NILSM2!$C$1:$FR$1,0)) -> 76 | G33: =INDEX(TABNILSM2,MATCH($R$2,NILSM2!$C$1:$C$43,0),MATCH(A33&$G$13,NILSM2!$C$1:$FR$1,0)) -> 77 | H33: =INDEX(TABNILSM2,MATCH($R$2,NILSM2!$C$1:$C$43,0),MATCH(A33&$H$13,NILSM2!$C$1:$FR$1,0)) -> 78 | I33: =INDEX(TABNILSM2,MATCH($R$2,NILSM2!$C$1:$C$43,0),MATCH(A33&$I$13,NILSM2!$C$1:$FR$1,0)) -> 79 | J33: =INDEX(TABNILSM2,MATCH($R$2,NILSM2!$C$1:$C$43,0),MATCH(A33&$J$13,NILSM2!$C$1:$FR$1,0)) -> 80 | K33: =INDEX(TABNILSM2,MATCH($R$2,NILSM2!$C$1:$C$43,0),MATCH(A33&$K$13,NILSM2!$C$1:$FR$1,0)) -> 81 | L33: =INDEX(TABNILSM2,MATCH($R$2,NILSM2!$C$1:$C$43,0),MATCH(A33&$L$13,NILSM2!$C$1:$FR$1,0)) -> 82
A34: - | B34: =IF(AND(COUNT(C34)=0,C37=0),0,1) -> 0 | C34: C3 | D34: Kompetensi Keahlian
A35: C31 | B35: 0 | C35: =HLOOKUP(A35&$F$13,TABNILSM2,4,FALSE) -> 0 | D35: =HLOOKUP(A35&$F$13,TABNILSM2,2,FALSE) -> - | E35: =IFERROR(HLOOKUP(A35&$F$13,TABNILSM2,5,FALSE),"-") -> 75 | F35: =INDEX(TABNILSM2,MATCH($R$2,NILSM2!$C$1:$C$43,0),MATCH(A35&$F$13,NILSM2!$C$1:$FR$1,0)) -> 83 | G35: =INDEX(TABNILSM2,MATCH($R$2,NILSM2!$C$1:$C$43,0),MATCH(A35&$G$13,NILSM2!$C$1:$FR$1,0)) -> 84 | H35: =INDEX(TABNILSM2,MATCH($R$2,NILSM2!$C$1:$C$43,0),MATCH(A35&$H$13,NILSM2!$C$1:$FR$1,0)) -> 85 | I35: =INDEX(TABNILSM2,MATCH($R$2,NILSM2!$C$1:$C$43,0),MATCH(A35&$I$13,NILSM2!$C$1:$FR$1,0)) -> 86 | J35: =INDEX(TABNILSM2,MATCH($R$2,NILSM2!$C$1:$C$43,0),MATCH(A35&$J$13,NILSM2!$C$1:$FR$1,0)) -> 87 | K35: =INDEX(TABNILSM2,MATCH($R$2,NILSM2!$C$1:$C$43,0),MATCH(A35&$K$13,NILSM2!$C$1:$FR$1,0)) -> 88 | L35: =INDEX(TABNILSM2,MATCH($R$2,NILSM2!$C$1:$C$43,0),MATCH(A35&$L$13,NILSM2!$C$1:$FR$1,0)) -> 89
A36: C32 | B36: 0 | C36: 0 | D36: - | E36: 75 | F36: =INDEX(TABNILSM2,MATCH($R$2,NILSM2!$C$1:$C$43,0),MATCH(A36&$F$13,NILSM2!$C$1:$FR$1,0)) -> 90 | G36: =INDEX(TABNILSM2,MATCH($R$2,NILSM2!$C$1:$C$43,0),MATCH(A36&$G$13,NILSM2!$C$1:$FR$1,0)) -> 91 | H36: =INDEX(TABNILSM2,MATCH($R$2,NILSM2!$C$1:$C$43,0),MATCH(A36&$H$13,NILSM2!$C$1:$FR$1,0)) -> 92 | I36: =INDEX(TABNILSM2,MATCH($R$2,NILSM2!$C$1:$C$43,0),MATCH(A36&$I$13,NILSM2!$C$1:$FR$1,0)) -> 93 | J36: =INDEX(TABNILSM2,MATCH($R$2,NILSM2!$C$1:$C$43,0),MATCH(A36&$J$13,NILSM2!$C$1:$FR$1,0)) -> 94 | K36: =INDEX(TABNILSM2,MATCH($R$2,NILSM2!$C$1:$C$43,0),MATCH(A36&$K$13,NILSM2!$C$1:$FR$1,0)) -> 95 | L36: =INDEX(TABNILSM2,MATCH($R$2,NILSM2!$C$1:$C$43,0),MATCH(A36&$L$13,NILSM2!$C$1:$FR$1,0)) -> 96
A37: C33 | B37: 0 | C37: 0 | D37: - | E37: 75 | F37: =INDEX(TABNILSM2,MATCH($R$2,NILSM2!$C$1:$C$43,0),MATCH(A37&$F$13,NILSM2!$C$1:$FR$1,0)) -> 97 | G37: =INDEX(TABNILSM2,MATCH($R$2,NILSM2!$C$1:$C$43,0),MATCH(A37&$G$13,NILSM2!$C$1:$FR$1,0)) -> 98 | H37: =INDEX(TABNILSM2,MATCH($R$2,NILSM2!$C$1:$C$43,0),MATCH(A37&$H$13,NILSM2!$C$1:$FR$1,0)) -> 99 | I37: =INDEX(TABNILSM2,MATCH($R$2,NILSM2!$C$1:$C$43,0),MATCH(A37&$I$13,NILSM2!$C$1:$FR$1,0)) -> 100 | J37: =INDEX(TABNILSM2,MATCH($R$2,NILSM2!$C$1:$C$43,0),MATCH(A37&$J$13,NILSM2!$C$1:$FR$1,0)) -> 75 | K37: =INDEX(TABNILSM2,MATCH($R$2,NILSM2!$C$1:$C$43,0),MATCH(A37&$K$13,NILSM2!$C$1:$FR$1,0)) -> 76 | L37: =INDEX(TABNILSM2,MATCH($R$2,NILSM2!$C$1:$C$43,0),MATCH(A37&$L$13,NILSM2!$C$1:$FR$1,0)) -> 77
A38: C34 | B38: 0 | C38: 0 | D38: - | E38: 75 | F38: =INDEX(TABNILSM2,MATCH($R$2,NILSM2!$C$1:$C$43,0),MATCH(A38&$F$13,NILSM2!$C$1:$FR$1,0)) -> 78 | G38: =INDEX(TABNILSM2,MATCH($R$2,NILSM2!$C$1:$C$43,0),MATCH(A38&$G$13,NILSM2!$C$1:$FR$1,0)) -> 79 | H38: =INDEX(TABNILSM2,MATCH($R$2,NILSM2!$C$1:$C$43,0),MATCH(A38&$H$13,NILSM2!$C$1:$FR$1,0)) -> 80 | I38: =INDEX(TABNILSM2,MATCH($R$2,NILSM2!$C$1:$C$43,0),MATCH(A38&$I$13,NILSM2!$C$1:$FR$1,0)) -> 81 | J38: =INDEX(TABNILSM2,MATCH($R$2,NILSM2!$C$1:$C$43,0),MATCH(A38&$J$13,NILSM2!$C$1:$FR$1,0)) -> 82 | K38: =INDEX(TABNILSM2,MATCH($R$2,NILSM2!$C$1:$C$43,0),MATCH(A38&$K$13,NILSM2!$C$1:$FR$1,0)) -> 83 | L38: =INDEX(TABNILSM2,MATCH($R$2,NILSM2!$C$1:$C$43,0),MATCH(A38&$L$13,NILSM2!$C$1:$FR$1,0)) -> 84
A39: C35 | B39: 0 | C39: 0 | D39: - | E39: 75 | F39: =INDEX(TABNILSM2,MATCH($R$2,NILSM2!$C$1:$C$43,0),MATCH(A39&$F$13,NILSM2!$C$1:$FR$1,0)) -> 85 | G39: =INDEX(TABNILSM2,MATCH($R$2,NILSM2!$C$1:$C$43,0),MATCH(A39&$G$13,NILSM2!$C$1:$FR$1,0)) -> 86 | H39: =INDEX(TABNILSM2,MATCH($R$2,NILSM2!$C$1:$C$43,0),MATCH(A39&$H$13,NILSM2!$C$1:$FR$1,0)) -> 87 | I39: =INDEX(TABNILSM2,MATCH($R$2,NILSM2!$C$1:$C$43,0),MATCH(A39&$I$13,NILSM2!$C$1:$FR$1,0)) -> 88 | J39: =INDEX(TABNILSM2,MATCH($R$2,NILSM2!$C$1:$C$43,0),MATCH(A39&$J$13,NILSM2!$C$1:$FR$1,0)) -> 89 | K39: =INDEX(TABNILSM2,MATCH($R$2,NILSM2!$C$1:$C$43,0),MATCH(A39&$K$13,NILSM2!$C$1:$FR$1,0)) -> 90 | L39: =INDEX(TABNILSM2,MATCH($R$2,NILSM2!$C$1:$C$43,0),MATCH(A39&$L$13,NILSM2!$C$1:$FR$1,0)) -> 91
A40: C36 | B40: 0 | C40: 0 | D40: - | E40: 75 | F40: =INDEX(TABNILSM2,MATCH($R$2,NILSM2!$C$1:$C$43,0),MATCH(A40&$F$13,NILSM2!$C$1:$FR$1,0)) -> 92 | G40: =INDEX(TABNILSM2,MATCH($R$2,NILSM2!$C$1:$C$43,0),MATCH(A40&$G$13,NILSM2!$C$1:$FR$1,0)) -> 93 | H40: =INDEX(TABNILSM2,MATCH($R$2,NILSM2!$C$1:$C$43,0),MATCH(A40&$H$13,NILSM2!$C$1:$FR$1,0)) -> 94 | I40: =INDEX(TABNILSM2,MATCH($R$2,NILSM2!$C$1:$C$43,0),MATCH(A40&$I$13,NILSM2!$C$1:$FR$1,0)) -> 95 | J40: =INDEX(TABNILSM2,MATCH($R$2,NILSM2!$C$1:$C$43,0),MATCH(A40&$J$13,NILSM2!$C$1:$FR$1,0)) -> 96 | K40: =INDEX(TABNILSM2,MATCH($R$2,NILSM2!$C$1:$C$43,0),MATCH(A40&$K$13,NILSM2!$C$1:$FR$1,0)) -> 97 | L40: =INDEX(TABNILSM2,MATCH($R$2,NILSM2!$C$1:$C$43,0),MATCH(A40&$L$13,NILSM2!$C$1:$FR$1,0)) -> 98
B41: =IF(AND(COUNT(C41)=0,C42=0),0,1) -> 1 | C41: Muatan Lokal
A42: SUN | B42: 1 | C42: =HLOOKUP(A42&$F$13,TABNILSM2,4,FALSE) -> 15 | D42: =HLOOKUP(A42&$F$13,TABNILSM2,2,FALSE) -> Bahasa dan Sastra Sunda | E42: =IFERROR(HLOOKUP(A42&$F$13,TABNILSM2,5,FALSE),"-") -> 75 | F42: =INDEX(TABNILSM2,MATCH($R$2,NILSM2!$C$1:$C$43,0),MATCH(A42&$F$13,NILSM2!$C$1:$FR$1,0)) -> 99 | G42: =INDEX(TABNILSM2,MATCH($R$2,NILSM2!$C$1:$C$43,0),MATCH(A42&$G$13,NILSM2!$C$1:$FR$1,0)) -> 100 | H42: =INDEX(TABNILSM2,MATCH($R$2,NILSM2!$C$1:$C$43,0),MATCH(A42&$H$13,NILSM2!$C$1:$FR$1,0)) -> 75 | I42: =INDEX(TABNILSM2,MATCH($R$2,NILSM2!$C$1:$C$43,0),MATCH(A42&$I$13,NILSM2!$C$1:$FR$1,0)) -> 76 | J42: =INDEX(TABNILSM2,MATCH($R$2,NILSM2!$C$1:$C$43,0),MATCH(A42&$J$13,NILSM2!$C$1:$FR$1,0)) -> 77 | K42: =INDEX(TABNILSM2,MATCH($R$2,NILSM2!$C$1:$C$43,0),MATCH(A42&$K$13,NILSM2!$C$1:$FR$1,0)) -> 78 | L42: =INDEX(TABNILSM2,MATCH($R$2,NILSM2!$C$1:$C$43,0),MATCH(A42&$L$13,NILSM2!$C$1:$FR$1,0)) -> 79
A43: PLH | B43: 1 | C43: =HLOOKUP(A43&$F$13,TABNILSM2,4,FALSE) -> 16 | D43: =HLOOKUP(A43&$F$13,TABNILSM2,2,FALSE) -> PLH | E43: =IFERROR(HLOOKUP(A43&$F$13,TABNILSM2,5,FALSE),"-") -> 75 | F43: =INDEX(TABNILSM2,MATCH($R$2,NILSM2!$C$1:$C$43,0),MATCH(A43&$F$13,NILSM2!$C$1:$FR$1,0)) -> 80 | G43: =INDEX(TABNILSM2,MATCH($R$2,NILSM2!$C$1:$C$43,0),MATCH(A43&$G$13,NILSM2!$C$1:$FR$1,0)) -> 81 | H43: =INDEX(TABNILSM2,MATCH($R$2,NILSM2!$C$1:$C$43,0),MATCH(A43&$H$13,NILSM2!$C$1:$FR$1,0)) -> 82 | I43: =INDEX(TABNILSM2,MATCH($R$2,NILSM2!$C$1:$C$43,0),MATCH(A43&$I$13,NILSM2!$C$1:$FR$1,0)) -> 83 | J43: =INDEX(TABNILSM2,MATCH($R$2,NILSM2!$C$1:$C$43,0),MATCH(A43&$J$13,NILSM2!$C$1:$FR$1,0)) -> 84 | K43: =INDEX(TABNILSM2,MATCH($R$2,NILSM2!$C$1:$C$43,0),MATCH(A43&$K$13,NILSM2!$C$1:$FR$1,0)) -> 85 | L43: =INDEX(TABNILSM2,MATCH($R$2,NILSM2!$C$1:$C$43,0),MATCH(A43&$L$13,NILSM2!$C$1:$FR$1,0)) -> 86
A45: CTT | C45: Bimbingan dan Konseling | G45: Catatan Akademik
A46: BKN | C46: =INDEX(TABNILSM2,MATCH($R$2,NILSM2!$C$1:$C$43,0),MATCH(A46,NILSM2!$C$1:$FR$1,0)) -> 0 | G46: =INDEX(TABNILSM2,MATCH($R$2,NILSM2!$C$1:$C$43,0),MATCH(A45,NILSM2!$C$1:$FR$1,0)) -> 0
C48: Catatan: Jika nilai 0, siswa belum mengupload tugas atau belum mengerjakan ulangan. Jika nilai - , materi KD (Kompetensi Dasar) tersebut dilaksanakan setelah pembagian KHS.
Q50: =VLOOKUP($R$13,TAB_BIODATA,BIODATA!C4,FALSE) -> BAGAS ADJI PRIANTOMO
D51: Mengetahui, | I51: =NILSM2!A5 -> 0
D52: Orang Tua/Wali, | I52: Wali Kelas, | Q52: ="Nomor Urut "&R13 -> Nomor Urut 3
I57: =NILSM2!B4 -> Amo Sisdianto, S.Kom
I58: =IF(NILSM2!B5=0,"","NIP "&NILSM2!B5) -> 

Sheet CETSM1
C1: KARTU HASIL STUDI (KHS) PESERTA DIDIK | Q1: JURUSAN | R1: =MENU!F8 -> TBSM
C2: SMK NEGERI 1 KARAWANG | Q2: NIS | R2: =VLOOKUP($R$13,TAB_BIODATA,BIODATA!D4,FALSE) -> 16170586
D4: Nama Peserta Didik | E4: : | F4: =VLOOKUP($R$13,TAB_BIODATA,BIODATA!C4,FALSE) -> CEPI YANWARI
D5: Nomor Induk/NISN | E5: : | F5: =IF(VLOOKUP($R$13,TAB_BIODATA,BIODATA!E4)="",VLOOKUP($R$13,TAB_BIODATA,BIODATA!D4,FALSE),VLOOKUP($R$13,TAB_BIODATA,BIODATA!D4)&" / "&VLOOKUP($R$13,TAB_BIODATA,BIODATA!E4,FALSE)) -> 16170586 / 0005649538 | Q5: DATA CETAK | S5: HALAMAN CETAK
D6: Kelas | E6: : | F6: =IF(OR(F8="1 (satu)",F8="2 (dua)"),"X "&MENU!F9,IF(OR(F8="3 (tiga)",F8="4 (empat)"),"XI "&MENU!F9,IF(OR(F8="5 (lima)",F8="6 (enam)"),"XII "&MENU!F9,IF(OR(F8="7 (tujuh)",F8="8 (delapan)"),"XIII "&MENU!F9,"")))) -> X TBSM 2 | Q6: Dari data ke | R6: 1 | S6: Dari | T6: 1
D7: Tahun Pelajaran | E7: : | F7: =RIGHT(NILSM1!A2,11) -> 2020 / 2021
D8: Semester | E8: : | F8: =NILSM1!B3 -> 1 (satu) | Q8: Sampai data ke | R8: 2 | S8: Ke | T8: 1
C10: Nilai Akademik
C11: No. | D11: Mata Pelajaran | E11: KKM | F11: KD 1 | H11: KD 2 | J11: KD 3 | L11: Kehadiran
F12: Tugas | G12: Ulangan | H12: Tugas | I12: Ulangan | J12: Tugas | K12: Ulangan | Q12: TAMPILAN DATA
C13: A. Muatan Nasional | F13: T1 | G13: U1 | H13: T2 | I13: U2 | J13: T3 | K13: U3 | L13: H | Q13: Nomor Urut | R13: 5
A14: PAB | B14: =IF(C14>=1,1,0) -> 1 | C14: =HLOOKUP(A14&$F$13,TABNILSM1,4,FALSE) -> 1 | D14: =HLOOKUP(A14&$F$13,TABNILSM1,2,FALSE) -> Pendidikan Agama dan Budi Pekerti | E14: =IFERROR(HLOOKUP(A14&$F$13,TABNILSM1,5,FALSE),"-") -> 75 | F14: =INDEX(TABNILSM1,MATCH($R$2,NILSM1!$C$1:$C$43,0),MATCH(A14&$F$13,NILSM1!$C$1:$FR$1,0)) -> 0 | G14: =INDEX(TABNILSM1,MATCH($R$2,NILSM1!$C$1:$C$43,0),MATCH(A14&$G$13,NILSM1!$C$1:$FR$1,0)) -> 0 | H14: =INDEX(TABNILSM1,MATCH($R$2,NILSM1!$C$1:$C$43,0),MATCH(A14&$H$13,NILSM1!$C$1:$FR$1,0)) -> 0 | I14: =INDEX(TABNILSM1,MATCH($R$2,NILSM1!$C$1:$C$43,0),MATCH(A14&$I$13,NILSM1!$C$1:$FR$1,0)) -> 0 | J14: =INDEX(TABNILSM1,MATCH($R$2,NILSM1!$C$1:$C$43,0),MATCH(A14&$J$13,NILSM1!$C$1:$FR$1,0)) -> 0 | K14: =INDEX(TABNILSM1,MATCH($R$2,NILSM1!$C$1:$C$43,0),MATCH(A14&$K$13,NILSM1!$C$1:$FR$1,0)) -> 0 | L14: =INDEX(TABNILSM1,MATCH($R$2,NILSM1!$C$1:$C$43,0),MATCH(A14&$L$13,NILSM1!$C$1:$FR$1,0)) -> 0
A15: PKN | B15: =IF(C15>=1,1,0) -> 1 | C15: 2 | D15: Pendidikan Pancasila dan Kewarganegaraan | E15: 75 | F15: =INDEX(TABNILSM1,MATCH($R$2,NILSM1!$C$1:$C$43,0),MATCH(A15&$F$13,NILSM1!$C$1:$FR$1,0)) -> 0 | G15: =INDEX(TABNILSM1,MATCH($R$2,NILSM1!$C$1:$C$43,0),MATCH(A15&$G$13,NILSM1!$C$1:$FR$1,0)) -> 0 | H15: =INDEX(TABNILSM1,MATCH($R$2,NILSM1!$C$1:$C$43,0),MATCH(A15&$H$13,NILSM1!$C$1:$FR$1,0)) -> 0 | I15: =INDEX(TABNILSM1,MATCH($R$2,NILSM1!$C$1:$C$43,0),MATCH(A15&$I$13,NILSM1!$C$1:$FR$1,0)) -> 0 | J15: =INDEX(TABNILSM1,MATCH($R$2,NILSM1!$C$1:$C$43,0),MATCH(A15&$J$13,NILSM1!$C$1:$FR$1,0)) -> 0 | K15: =INDEX(TABNILSM1,MATCH($R$2,NILSM1!$C$1:$C$43,0),MATCH(A15&$K$13,NILSM1!$C$1:$FR$1,0)) -> 0 | L15: =INDEX(TABNILSM1,MATCH($R$2,NILSM1!$C$1:$C$43,0),MATCH(A15&$L$13,NILSM1!$C$1:$FR$1,0)) -> 0
A16: IND | B16: 1 | C16: 3 | D16: Bahasa Indonesia | E16: 75 | F16: =INDEX(TABNILSM1,MATCH($R$2,NILSM1!$C$1:$C$43,0),MATCH(A16&$F$13,NILSM1!$C$1:$FR$1,0)) -> 0 | G16: =INDEX(TABNILSM1,MATCH($R$2,NILSM1!$C$1:$C$43,0),MATCH(A16&$G$13,NILSM1!$C$1:$FR$1,0)) -> 0 | H16: =INDEX(TABNILSM1,MATCH($R$2,NILSM1!$C$1:$C$43,0),MATCH(A16&$H$13,NILSM1!$C$1:$FR$1,0)) -> 0 | I16: =INDEX(TABNILSM1,MATCH($R$2,NILSM1!$C$1:$C$43,0),MATCH(A16&$I$13,NILSM1!$C$1:$FR$1,0)) -> 0 | J16: =INDEX(TABNILSM1,MATCH($R$2,NILSM1!$C$1:$C$43,0),MATCH(A16&$J$13,NILSM1!$C$1:$FR$1,0)) -> 0 | K16: =INDEX(TABNILSM1,MATCH($R$2,NILSM1!$C$1:$C$43,0),MATCH(A16&$K$13,NILSM1!$C$1:$FR$1,0)) -> 0 | L16: =INDEX(TABNILSM1,MATCH($R$2,NILSM1!$C$1:$C$43,0),MATCH(A16&$L$13,NILSM1!$C$1:$FR$1,0)) -> 0
A17: MTK | B17: 1 | C17: 4 | D17: Matematika | E17: 75 | F17: =INDEX(TABNILSM1,MATCH($R$2,NILSM1!$C$1:$C$43,0),MATCH(A17&$F$13,NILSM1!$C$1:$FR$1,0)) -> 0 | G17: =INDEX(TABNILSM1,MATCH($R$2,NILSM1!$C$1:$C$43,0),MATCH(A17&$G$13,NILSM1!$C$1:$FR$1,0)) -> 0 | H17: =INDEX(TABNILSM1,MATCH($R$2,NILSM1!$C$1:$C$43,0),MATCH(A17&$H$13,NILSM1!$C$1:$FR$1,0)) -> 0 | I17: =INDEX(TABNILSM1,MATCH($R$2,NILSM1!$C$1:$C$43,0),MATCH(A17&$I$13,NILSM1!$C$1:$FR$1,0)) -> 0 | J17: =INDEX(TABNILSM1,MATCH($R$2,NILSM1!$C$1:$C$43,0),MATCH(A17&$J$13,NILSM1!$C$1:$FR$1,0)) -> 0 | K17: =INDEX(TABNILSM1,MATCH($R$2,NILSM1!$C$1:$C$43,0),MATCH(A17&$K$13,NILSM1!$C$1:$FR$1,0)) -> 0 | L17: =INDEX(TABNILSM1,MATCH($R$2,NILSM1!$C$1:$C$43,0),MATCH(A17&$L$13,NILSM1!$C$1:$FR$1,0)) -> 0
A18: SJI | B18: 1 | C18: 5 | D18: Sejarah Indonesia | E18: 75 | F18: =INDEX(TABNILSM1,MATCH($R$2,NILSM1!$C$1:$C$43,0),MATCH(A18&$F$13,NILSM1!$C$1:$FR$1,0)) -> 0 | G18: =INDEX(TABNILSM1,MATCH($R$2,NILSM1!$C$1:$C$43,0),MATCH(A18&$G$13,NILSM1!$C$1:$FR$1,0)) -> 0 | H18: =INDEX(TABNILSM1,MATCH($R$2,NILSM1!$C$1:$C$43,0),MATCH(A18&$H$13,NILSM1!$C$1:$FR$1,0)) -> 0 | I18: =INDEX(TABNILSM1,MATCH($R$2,NILSM1!$C$1:$C$43,0),MATCH(A18&$I$13,NILSM1!$C$1:$FR$1,0)) -> 0 | J18: =INDEX(TABNILSM1,MATCH($R$2,NILSM1!$C$1:$C$43,0),MATCH(A18&$J$13,NILSM1!$C$1:$FR$1,0)) -> 0 | K18: =INDEX(TABNILSM1,MATCH($R$2,NILSM1!$C$1:$C$43,0),MATCH(A18&$K$13,NILSM1!$C$1:$FR$1,0)) -> 0 | L18: =INDEX(TABNILSM1,MATCH($R$2,NILSM1!$C$1:$C$43,0),MATCH(A18&$L$13,NILSM1!$C$1:$FR$1,0)) -> 0
A19: ING | B19: 1 | C19: 6 | D19: Bahasa Inggris | E19: 75 | F19: =INDEX(TABNILSM1,MATCH($R$2,NILSM1!$C$1:$C$43,0),MATCH(A19&$F$13,NILSM1!$C$1:$FR$1,0)) -> 0 | G19: =INDEX(TABNILSM1,MATCH($R$2,NILSM1!$C$1:$C$43,0),MATCH(A19&$G$13,NILSM1!$C$1:$FR$1,0)) -> 0 | H19: =INDEX(TABNILSM1,MATCH($R$2,NILSM1!$C$1:$C$43,0),MATCH(A19&$H$13,NILSM1!$C$1:$FR$1,0)) -> 0 | I19: =INDEX(TABNILSM1,MATCH($R$2,NILSM1!$C$1:$C$43,0),MATCH(A19&$I$13,NILSM1!$C$1:$FR$1,0)) -> 0 | J19: =INDEX(TABNILSM1,MATCH($R$2,NILSM1!$C$1:$C$43,0),MATCH(A19&$J$13,NILSM1!$C$1:$FR$1,0)) -> 0 | K19: =INDEX(TABNILSM1,MATCH($R$2,NILSM1!$C$1:$C$43,0),MATCH(A19&$K$13,NILSM1!$C$1:$FR$1,0)) -> 0 | L19: =INDEX(TABNILSM1,MATCH($R$2,NILSM1!$C$1:$C$43,0),MATCH(A19&$L$13,NILSM1!$C$1:$FR$1,0)) -> 0
A20: JER | B20: 0 | C20: 0 | D20: - | E20: 75 | F20: =INDEX(TABNILSM1,MATCH($R$2,NILSM1!$C$1:$C$43,0),MATCH(A20&$F$13,NILSM1!$C$1:$FR$1,0)) -> 0 | G20: =INDEX(TABNILSM1,MATCH($R$2,NILSM1!$C$1:$C$43,0),MATCH(A20&$G$13,NILSM1!$C$1:$FR$1,0)) -> 0 | H20: =INDEX(TABNILSM1,MATCH($R$2,NILSM1!$C$1:$C$43,0),MATCH(A20&$H$13,NILSM1!$C$1:$FR$1,0)) -> 0 | I20: =INDEX(TABNILSM1,MATCH($R$2,NILSM1!$C$1:$C$43,0),MATCH(A20&$I$13,NILSM1!$C$1:$FR$1,0)) -> 0 | J20: =INDEX(TABNILSM1,MATCH($R$2,NILSM1!$C$1:$C$43,0),MATCH(A20&$J$13,NILSM1!$C$1:$FR$1,0)) -> 0 | K20: =INDEX(TABNILSM1,MATCH($R$2,NILSM1!$C$1:$C$43,0),MATCH(A20&$K$13,NILSM1!$C$1:$FR$1,0)) -> 0 | L20: =INDEX(TABNILSM1,MATCH($R$2,NILSM1!$C$1:$C$43,0),MATCH(A20&$L$13,NILSM1!$C$1:$FR$1,0)) -> 0
B21: =IF(AND(COUNT(C21)=0,C23=0),0,1) -> 1 | C21: B. Muatan Kewilayahan
A22: SBD | B22: 1 | C22: =HLOOKUP(A22&$F$13,TABNILSM1,4,FALSE) -> 7 | D22: =HLOOKUP(A22&$F$13,TABNILSM1,2,FALSE) -> Seni Budaya | E22: =IFERROR(HLOOKUP(A22&$F$13,TABNILSM1,5,FALSE),"-") -> 75 | F22: =INDEX(TABNILSM1,MATCH($R$2,NILSM1!$C$1:$C$43,0),MATCH(A22&$F$13,NILSM1!$C$1:$FR$1,0)) -> 0 | G22: =INDEX(TABNILSM1,MATCH($R$2,NILSM1!$C$1:$C$43,0),MATCH(A22&$G$13,NILSM1!$C$1:$FR$1,0)) -> 0 | H22: =INDEX(TABNILSM1,MATCH($R$2,NILSM1!$C$1:$C$43,0),MATCH(A22&$H$13,NILSM1!$C$1:$FR$1,0)) -> 0 | I22: =INDEX(TABNILSM1,MATCH($R$2,NILSM1!$C$1:$C$43,0),MATCH(A22&$I$13,NILSM1!$C$1:$FR$1,0)) -> 0 | J22: =INDEX(TABNILSM1,MATCH($R$2,NILSM1!$C$1:$C$43,0),MATCH(A22&$J$13,NILSM1!$C$1:$FR$1,0)) -> 0 | K22: =INDEX(TABNILSM1,MATCH($R$2,NILSM1!$C$1:$C$43,0),MATCH(A22&$K$13,NILSM1!$C$1:$FR$1,0)) -> 0 | L22: =INDEX(TABNILSM1,MATCH($R$2,NILSM1!$C$1:$C$43,0),MATCH(A22&$L$13,NILSM1!$C$1:$FR$1,0)) -> 0
A23: PJO | B23: 1 | C23: =HLOOKUP(A23&$F$13,TABNILSM1,4,FALSE) -> 8 | D23: =HLOOKUP(A23&$F$13,TABNILSM1,2,FALSE) -> Pendidikan Jasmani, Olahraga dan Kesehatan | E23: =IFERROR(HLOOKUP(A23&$F$13,TABNILSM1,5,FALSE),"-") -> 75 | F23: =INDEX(TABNILSM1,MATCH($R$2,NILSM1!$C$1:$C$43,0),MATCH(A23&$F$13,NILSM1!$C$1:$FR$1,0)) -> 0 | G23: =INDEX(TABNILSM1,MATCH($R$2,NILSM1!$C$1:$C$43,0),MATCH(A23&$G$13,NILSM1!$C$1:$FR$1,0)) -> 0 | H23: =INDEX(TABNILSM1,MATCH($R$2,NILSM1!$C$1:$C$43,0),MATCH(A23&$H$13,NILSM1!$C$1:$FR$1,0)) -> 0 | I23: =INDEX(TABNILSM1,MATCH($R$2,NILSM1!$C$1:$C$43,0),MATCH(A23&$I$13,NILSM1!$C$1:$FR$1,0)) -> 0 | J23: =INDEX(TABNILSM1,MATCH($R$2,NILSM1!$C$1:$C$43,0),MATCH(A23&$J$13,NILSM1!$C$1:$FR$1,0)) -> 0 | K23: =INDEX(TABNILSM1,MATCH($R$2,NILSM1!$C$1:$C$43,0),MATCH(A23&$K$13,NILSM1!$C$1:$FR$1,0)) -> 0 | L23: =INDEX(TABNILSM1,MATCH($R$2,NILSM1!$C$1:$C$43,0),MATCH(A23&$L$13,NILSM1!$C$1:$FR$1,0)) -> 0
A24: - | B24: 1 | C24: C. Muatan Peminatan Kejuruan
B25: =IF(AND(COUNT(C25)=0,C26=0),0,1) -> 1 | C25: C1 | D25: Dasar Bidang Keahlian
A26: SKD | B26: =IF(C26>=1,1,0) -> 1 | C26: =HLOOKUP(A26&$F$13,TABNILSM1,4,FALSE) -> 9 | D26: =HLOOKUP(A26&$F$13,TABNILSM1,2,FALSE) -> Simulasi dan Komunikasi Digital | E26: =IFERROR(HLOOKUP(A26&$F$13,TABNILSM1,5,FALSE),"-") -> 75 | F26: =INDEX(TABNILSM1,MATCH($R$2,NILSM1!$C$1:$C$43,0),MATCH(A26&$F$13,NILSM1!$C$1:$FR$1,0)) -> 0 | G26: =INDEX(TABNILSM1,MATCH($R$2,NILSM1!$C$1:$C$43,0),MATCH(A26&$G$13,NILSM1!$C$1:$FR$1,0)) -> 0 | H26: =INDEX(TABNILSM1,MATCH($R$2,NILSM1!$C$1:$C$43,0),MATCH(A26&$H$13,NILSM1!$C$1:$FR$1,0)) -> 0 | I26: =INDEX(TABNILSM1,MATCH($R$2,NILSM1!$C$1:$C$43,0),MATCH(A26&$I$13,NILSM1!$C$1:$FR$1,0)) -> 0 | J26: =INDEX(TABNILSM1,MATCH($R$2,NILSM1!$C$1:$C$43,0),MATCH(A26&$J$13,NILSM1!$C$1:$FR$1,0)) -> 0 | K26: =INDEX(TABNILSM1,MATCH($R$2,NILSM1!$C$1:$C$43,0),MATCH(A26&$K$13,NILSM1!$C$1:$FR$1,0)) -> 0 | L26: =INDEX(TABNILSM1,MATCH($R$2,NILSM1!$C$1:$C$43,0),MATCH(A26&$L$13,NILSM1!$C$1:$FR$1,0)) -> 0
A27: FIS | B27: 1 | C27: =HLOOKUP(A27&$F$13,TABNILSM1,4,FALSE) -> 10 | D27: =HLOOKUP(A27&$F$13,TABNILSM1,2,FALSE) -> Fisika | E27: =IFERROR(HLOOKUP(A27&$F$13,TABNILSM1,5,FALSE),"-") -> 75 | F27: =INDEX(TABNILSM1,MATCH($R$2,NILSM1!$C$1:$C$43,0),MATCH(A27&$F$13,NILSM1!$C$1:$FR$1,0)) -> 0 | G27: =INDEX(TABNILSM1,MATCH($R$2,NILSM1!$C$1:$C$43,0),MATCH(A27&$G$13,NILSM1!$C$1:$FR$1,0)) -> 0 | H27: =INDEX(TABNILSM1,MATCH($R$2,NILSM1!$C$1:$C$43,0),MATCH(A27&$H$13,NILSM1!$C$1:$FR$1,0)) -> 0 | I27: =INDEX(TABNILSM1,MATCH($R$2,NILSM1!$C$1:$C$43,0),MATCH(A27&$I$13,NILSM1!$C$1:$FR$1,0)) -> 0 | J27: =INDEX(TABNILSM1,MATCH($R$2,NILSM1!$C$1:$C$43,0),MATCH(A27&$J$13,NILSM1!$C$1:$FR$1,0)) -> 0 | K27: =INDEX(TABNILSM1,MATCH($R$2,NILSM1!$C$1:$C$43,0),MATCH(A27&$K$13,NILSM1!$C$1:$FR$1,0)) -> 0 | L27: =INDEX(TABNILSM1,MATCH($R$2,NILSM1!$C$1:$C$43,0),MATCH(A27&$L$13,NILSM1!$C$1:$FR$1,0)) -> 0
A28: KIM | B28: 1 | C28: =HLOOKUP(A28&$F$13,TABNILSM1,4,FALSE) -> 11 | D28: =HLOOKUP(A28&$F$13,TABNILSM1,2,FALSE) -> Kimia | E28: =IFERROR(HLOOKUP(A28&$F$13,TABNILSM1,5,FALSE),"-") -> 75 | F28: =INDEX(TABNILSM1,MATCH($R$2,NILSM1!$C$1:$C$43,0),MATCH(A28&$F$13,NILSM1!$C$1:$FR$1,0)) -> 0 | G28: =INDEX(TABNILSM1,MATCH($R$2,NILSM1!$C$1:$C$43,0),MATCH(A28&$G$13,NILSM1!$C$1:$FR$1,0)) -> 0 | H28: =INDEX(TABNILSM1,MATCH($R$2,NILSM1!$C$1:$C$43,0),MATCH(A28&$H$13,NILSM1!$C$1:$FR$1,0)) -> 0 | I28: =INDEX(TABNILSM1,MATCH($R$2,NILSM1!$C$1:$C$43,0),MATCH(A28&$I$13,NILSM1!$C$1:$FR$1,0)) -> 0 | J28: =INDEX(TABNILSM1,MATCH($R$2,NILSM1!$C$1:$C$43,0),MATCH(A28&$J$13,NILSM1!$C$1:$FR$1,0)) -> 0 | K28: =INDEX(TABNILSM1,MATCH($R$2,NILSM1!$C$1:$C$43,0),MATCH(A28&$K$13,NILSM1!$C$1:$FR$1,0)) -> 0 | L28: =INDEX(TABNILSM1,MATCH($R$2,NILSM1!$C$1:$C$43,0),MATCH(A28&$L$13,NILSM1!$C$1:$FR$1,0)) -> 0
B29: =IF(AND(COUNT(C29)=0,C30=0),0,1) -> 1 | C29: C2 | D29: Dasar Program Keahlian
A30: C21 | B30: 1 | C30: =HLOOKUP(A30&$F$13,TABNILSM1,4,FALSE) -> 12 | D30: =HLOOKUP(A30&$F$13,TABNILSM1,2,FALSE) -> Gambar Teknik Otomotif | E30: =IFERROR(HLOOKUP(A30&$F$13,TABNILSM1,5,FALSE),"-") -> 75 | F30: =INDEX(TABNILSM1,MATCH($R$2,NILSM1!$C$1:$C$43,0),MATCH(A30&$F$13,NILSM1!$C$1:$FR$1,0)) -> 0 | G30: =INDEX(TABNILSM1,MATCH($R$2,NILSM1!$C$1:$C$43,0),MATCH(A30&$G$13,NILSM1!$C$1:$FR$1,0)) -> 0 | H30: =INDEX(TABNILSM1,MATCH($R$2,NILSM1!$C$1:$C$43,0),MATCH(A30&$H$13,NILSM1!$C$1:$FR$1,0)) -> 0 | I30: =INDEX(TABNILSM1,MATCH($R$2,NILSM1!$C$1:$C$43,0),MATCH(A30&$I$13,NILSM1!$C$1:$FR$1,0)) -> 0 | J30: =INDEX(TABNILSM1,MATCH($R$2,NILSM1!$C$1:$C$43,0),MATCH(A30&$J$13,NILSM1!$C$1:$FR$1,0)) -> 0 | K30: =INDEX(TABNILSM1,MATCH($R$2,NILSM1!$C$1:$C$43,0),MATCH(A30&$K$13,NILSM1!$C$1:$FR$1,0)) -> 0 | L30: =INDEX(TABNILSM1,MATCH($R$2,NILSM1!$C$1:$C$43,0),MATCH(A30&$L$13,NILSM1!$C$1:$FR$1,0)) -> 0
A31: C22 | B31: 1 | C31: =HLOOKUP(A31&$F$13,TABNILSM1,4,FALSE) -> 13 | D31: =HLOOKUP(A31&$F$13,TABNILSM1,2,FALSE) -> Teknologi Dasar Otomotif | E31: =IFERROR(HLOOKUP(A31&$F$13,TABNILSM1,5,FALSE),"-") -> 75 | F31: =INDEX(TABNILSM1,MATCH($R$2,NILSM1!$C$1:$C$43,0),MATCH(A31&$F$13,NILSM1!$C$1:$FR$1,0)) -> 0 | G31: =INDEX(TABNILSM1,MATCH($R$2,NILSM1!$C$1:$C$43,0),MATCH(A31&$G$13,NILSM1!$C$1:$FR$1,0)) -> 0 | H31: =INDEX(TABNILSM1,MATCH($R$2,NILSM1!$C$1:$C$43,0),MATCH(A31&$H$13,NILSM1!$C$1:$FR$1,0)) -> 0 | I31: =INDEX(TABNILSM1,MATCH($R$2,NILSM1!$C$1:$C$43,0),MATCH(A31&$I$13,NILSM1!$C$1:$FR$1,0)) -> 0 | J31: =INDEX(TABNILSM1,MATCH($R$2,NILSM1!$C$1:$C$43,0),MATCH(A31&$J$13,NILSM1!$C$1:$FR$1,0)) -> 0 | K31: =INDEX(TABNILSM1,MATCH($R$2,NILSM1!$C$1:$C$43,0),MATCH(A31&$K$13,NILSM1!$C$1:$FR$1,0)) -> 0 | L31: =INDEX(TABNILSM1,MATCH($R$2,NILSM1!$C$1:$C$43,0),MATCH(A31&$L$13,NILSM1!$C$1:$FR$1,0)) -> 0
A32: C23 | B32: 1 | C32: =HLOOKUP(A32&$F$13,TABNILSM1,4,FALSE) -> 14 | D32: =HLOOKUP(A32&$F$13,TABNILSM1,2,FALSE) -> Pekerjaan Dasar Teknik Otomotif | E32: =IFERROR(HLOOKUP(A32&$F$13,TABNILSM1,5,FALSE),"-") -> 75 | F32: =INDEX(TABNILSM1,MATCH($R$2,NILSM1!$C$1:$C$43,0),MATCH(A32&$F$13,NILSM1!$C$1:$FR$1,0)) -> 0 | G32: =INDEX(TABNILSM1,MATCH($R$2,NILSM1!$C$1:$C$43,0),MATCH(A32&$G$13,NILSM1!$C$1:$FR$1,0)) -> 0 | H32: =INDEX(TABNILSM1,MATCH($R$2,NILSM1!$C$1:$C$43,0),MATCH(A32&$H$13,NILSM1!$C$1:$FR$1,0)) -> 0 | I32: =INDEX(TABNILSM1,MATCH($R$2,NILSM1!$C$1:$C$43,0),MATCH(A32&$I$13,NILSM1!$C$1:$FR$1,0)) -> 0 | J32: =INDEX(TABNILSM1,MATCH($R$2,NILSM1!$C$1:$C$43,0),MATCH(A32&$J$13,NILSM1!$C$1:$FR$1,0)) -> 0 | K32: =INDEX(TABNILSM1,MATCH($R$2,NILSM1!$C$1:$C$43,0),MATCH(A32&$K$13,NILSM1!$C$1:$FR$1,0)) -> 0 | L32: =INDEX(TABNILSM1,MATCH($R$2,NILSM1!$C$1:$C$43,0),MATCH(A32&$L$13,NILSM1!$C$1:$FR$1,0)) -> 0
A33: C24 | B33: 0 | C33: =HLOOKUP(A33&$F$13,TABNILSM1,4,FALSE) -> 0 | D33: =HLOOKUP(A33&$F$13,TABNILSM1,2,FALSE) -> - | E33: =IFERROR(HLOOKUP(A33&$F$13,TABNILSM1,5,FALSE),"-") -> 75 | F33: =INDEX(TABNILSM1,MATCH($R$2,NILSM1!$C$1:$C$43,0),MATCH(A33&$F$13,NILSM1!$C$1:$FR$1,0)) -> 0 | G33: =INDEX(TABNILSM1,MATCH($R$2,NILSM1!$C$1:$C$43,0),MATCH(A33&$G$13,NILSM1!$C$1:$FR$1,0)) -> 0 | H33: =INDEX(TABNILSM1,MATCH($R$2,NILSM1!$C$1:$C$43,0),MATCH(A33&$H$13,NILSM1!$C$1:$FR$1,0)) -> 0 | I33: =INDEX(TABNILSM1,MATCH($R$2,NILSM1!$C$1:$C$43,0),MATCH(A33&$I$13,NILSM1!$C$1:$FR$1,0)) -> 0 | J33: =INDEX(TABNILSM1,MATCH($R$2,NILSM1!$C$1:$C$43,0),MATCH(A33&$J$13,NILSM1!$C$1:$FR$1,0)) -> 0 | K33: =INDEX(TABNILSM1,MATCH($R$2,NILSM1!$C$1:$C$43,0),MATCH(A33&$K$13,NILSM1!$C$1:$FR$1,0)) -> 0 | L33: =INDEX(TABNILSM1,MATCH($R$2,NILSM1!$C$1:$C$43,0),MATCH(A33&$L$13,NILSM1!$C$1:$FR$1,0)) -> 0
A34: - | B34: =IF(AND(COUNT(C34)=0,C37=0),0,1) -> 0 | C34: C3 | D34: Kompetensi Keahlian
A35: C31 | B35: 0 | C35: =HLOOKUP(A35&$F$13,TABNILSM1,4,FALSE) -> 0 | D35: =HLOOKUP(A35&$F$13,TABNILSM1,2,FALSE) -> - | E35: =IFERROR(HLOOKUP(A35&$F$13,TABNILSM1,5,FALSE),"-") -> 75 | F35: =INDEX(TABNILSM1,MATCH($R$2,NILSM1!$C$1:$C$43,0),MATCH(A35&$F$13,NILSM1!$C$1:$FR$1,0)) -> 0 | G35: =INDEX(TABNILSM1,MATCH($R$2,NILSM1!$C$1:$C$43,0),MATCH(A35&$G$13,NILSM1!$C$1:$FR$1,0)) -> 0 | H35: =INDEX(TABNILSM1,MATCH($R$2,NILSM1!$C$1:$C$43,0),MATCH(A35&$H$13,NILSM1!$C$1:$FR$1,0)) -> 0 | I35: =INDEX(TABNILSM1,MATCH($R$2,NILSM1!$C$1:$C$43,0),MATCH(A35&$I$13,NILSM1!$C$1:$FR$1,0)) -> 0 | J35: =INDEX(TABNILSM1,MATCH($R$2,NILSM1!$C$1:$C$43,0),MATCH(A35&$J$13,NILSM1!$C$1:$FR$1,0)) -> 0 | K35: =INDEX(TABNILSM1,MATCH($R$2,NILSM1!$C$1:$C$43,0),MATCH(A35&$K$13,NILSM1!$C$1:$FR$1,0)) -> 0 | L35: =INDEX(TABNILSM1,MATCH($R$2,NILSM1!$C$1:$C$43,0),MATCH(A35&$L$13,NILSM1!$C$1:$FR$1,0)) -> 0
A36: C32 | B36: 0 | C36: 0 | D36: - | E36: 75 | F36: =INDEX(TABNILSM1,MATCH($R$2,NILSM1!$C$1:$C$43,0),MATCH(A36&$F$13,NILSM1!$C$1:$FR$1,0)) -> 0 | G36: =INDEX(TABNILSM1,MATCH($R$2,NILSM1!$C$1:$C$43,0),MATCH(A36&$G$13,NILSM1!$C$1:$FR$1,0)) -> 0 | H36: =INDEX(TABNILSM1,MATCH($R$2,NILSM1!$C$1:$C$43,0),MATCH(A36&$H$13,NILSM1!$C$1:$FR$1,0)) -> 0 | I36: =INDEX(TABNILSM1,MATCH($R$2,NILSM1!$C$1:$C$43,0),MATCH(A36&$I$13,NILSM1!$C$1:$FR$1,0)) -> 0 | J36: =INDEX(TABNILSM1,MATCH($R$2,NILSM1!$C$1:$C$43,0),MATCH(A36&$J$13,NILSM1!$C$1:$FR$1,0)) -> 0 | K36: =INDEX(TABNILSM1,MATCH($R$2,NILSM1!$C$1:$C$43,0),MATCH(A36&$K$13,NILSM1!$C$1:$FR$1,0)) -> 0 | L36: =INDEX(TABNILSM1,MATCH($R$2,NILSM1!$C$1:$C$43,0),MATCH(A36&$L$13,NILSM1!$C$1:$FR$1,0)) -> 0
A37: C33 | B37: 0 | C37: 0 | D37: - | E37: 75 | F37: =INDEX(TABNILSM1,MATCH($R$2,NILSM1!$C$1:$C$43,0),MATCH(A37&$F$13,NILSM1!$C$1:$FR$1,0)) -> 0 | G37: =INDEX(TABNILSM1,MATCH($R$2,NILSM1!$C$1:$C$43,0),MATCH(A37&$G$13,NILSM1!$C$1:$FR$1,0)) -> 0 | H37: =INDEX(TABNILSM1,MATCH($R$2,NILSM1!$C$1:$C$43,0),MATCH(A37&$H$13,NILSM1!$C$1:$FR$1,0)) -> 0 | I37: =INDEX(TABNILSM1,MATCH($R$2,NILSM1!$C$1:$C$43,0),MATCH(A37&$I$13,NILSM1!$C$1:$FR$1,0)) -> 0 | J37: =INDEX(TABNILSM1,MATCH($R$2,NILSM1!$C$1:$C$43,0),MATCH(A37&$J$13,NILSM1!$C$1:$FR$1,0)) -> 0 | K37: =INDEX(TABNILSM1,MATCH($R$2,NILSM1!$C$1:$C$43,0),MATCH(A37&$K$13,NILSM1!$C$1:$FR$1,0)) -> 0 | L37: =INDEX(TABNILSM1,MATCH($R$2,NILSM1!$C$1:$C$43,0),MATCH(A37&$L$13,NILSM1!$C$1:$FR$1,0)) -> 0
A38: C34 | B38: 0 | C38: 0 | D38: - | E38: 75 | F38: =INDEX(TABNILSM1,MATCH($R$2,NILSM1!$C$1:$C$43,0),MATCH(A38&$F$13,NILSM1!$C$1:$FR$1,0)) -> 0 | G38: =INDEX(TABNILSM1,MATCH($R$2,NILSM1!$C$1:$C$43,0),MATCH(A38&$G$13,NILSM1!$C$1:$FR$1,0)) -> 0 | H38: =INDEX(TABNILSM1,MATCH($R$2,NILSM1!$C$1:$C$43,0),MATCH(A38&$H$13,NILSM1!$C$1:$FR$1,0)) -> 0 | I38: =INDEX(TABNILSM1,MATCH($R$2,NILSM1!$C$1:$C$43,0),MATCH(A38&$I$13,NILSM1!$C$1:$FR$1,0)) -> 0 | J38: =INDEX(TABNILSM1,MATCH($R$2,NILSM1!$C$1:$C$43,0),MATCH(A38&$J$13,NILSM1!$C$1:$FR$1,0)) -> 0 | K38: =INDEX(TABNILSM1,MATCH($R$2,NILSM1!$C$1:$C$43,0),MATCH(A38&$K$13,NILSM1!$C$1:$FR$1,0)) -> 0 | L38: =INDEX(TABNILSM1,MATCH($R$2,NILSM1!$C$1:$C$43,0),MATCH(A38&$L$13,NILSM1!$C$1:$FR$1,0)) -> 0
A39: C35 | B39: 0 | C39: 0 | D39: - | E39: 75 | F39: =INDEX(TABNILSM1,MATCH($R$2,NILSM1!$C$1:$C$43,0),MATCH(A39&$F$13,NILSM1!$C$1:$FR$1,0)) -> 0 | G39: =INDEX(TABNILSM1,MATCH($R$2,NILSM1!$C$1:$C$43,0),MATCH(A39&$G$13,NILSM1!$C$1:$FR$1,0)) -> 0 | H39: =INDEX(TABNILSM1,MATCH($R$2,NILSM1!$C$1:$C$43,0),MATCH(A39&$H$13,NILSM1!$C$1:$FR$1,0)) -> 0 | I39: =INDEX(TABNILSM1,MATCH($R$2,NILSM1!$C$1:$C$43,0),MATCH(A39&$I$13,NILSM1!$C$1:$FR$1,0)) -> 0 | J39: =INDEX(TABNILSM1,MATCH($R$2,NILSM1!$C$1:$C$43,0),MATCH(A39&$J$13,NILSM1!$C$1:$FR$1,0)) -> 0 | K39: =INDEX(TABNILSM1,MATCH($R$2,NILSM1!$C$1:$C$43,0),MATCH(A39&$K$13,NILSM1!$C$1:$FR$1,0)) -> 0 | L39: =INDEX(TABNILSM1,MATCH($R$2,NILSM1!$C$1:$C$43,0),MATCH(A39&$L$13,NILSM1!$C$1:$FR$1,0)) -> 0
A40: C36 | B40: 0 | C40: 0 | D40: - | E40: 75 | F40: =INDEX(TABNILSM1,MATCH($R$2,NILSM1!$C$1:$C$43,0),MATCH(A40&$F$13,NILSM1!$C$1:$FR$1,0)) -> 0 | G40: =INDEX(TABNILSM1,MATCH($R$2,NILSM1!$C$1:$C$43,0),MATCH(A40&$G$13,NILSM1!$C$1:$FR$1,0)) -> 0 | H40: =INDEX(TABNILSM1,MATCH($R$2,NILSM1!$C$1:$C$43,0),MATCH(A40&$H$13,NILSM1!$C$1:$FR$1,0)) -> 0 | I40: =INDEX(TABNILSM1,MATCH($R$2,NILSM1!$C$1:$C$43,0),MATCH(A40&$I$13,NILSM1!$C$1:$FR$1,0)) -> 0 | J40: =INDEX(TABNILSM1,MATCH($R$2,NILSM1!$C$1:$C$43,0),MATCH(A40&$J$13,NILSM1!$C$1:$FR$1,0)) -> 0 | K40: =INDEX(TABNILSM1,MATCH($R$2,NILSM1!$C$1:$C$43,0),MATCH(A40&$K$13,NILSM1!$C$1:$FR$1,0)) -> 0 | L40: =INDEX(TABNILSM1,MATCH($R$2,NILSM1!$C$1:$C$43,0),MATCH(A40&$L$13,NILSM1!$C$1:$FR$1,0)) -> 0
B41: =IF(AND(COUNT(C41)=0,C42=0),0,1) -> 1 | C41: Muatan Lokal
A42: SUN | B42: 1 | C42: =HLOOKUP(A42&$F$13,TABNILSM1,4,FALSE) -> 15 | D42: =HLOOKUP(A42&$F$13,TABNILSM1,2,FALSE) -> Bahasa dan Sastra Sunda | E42: =IFERROR(HLOOKUP(A42&$F$13,TABNILSM1,5,FALSE),"-") -> 75 | F42: =INDEX(TABNILSM1,MATCH($R$2,NILSM1!$C$1:$C$43,0),MATCH(A42&$F$13,NILSM1!$C$1:$FR$1,0)) -> 0 | G42: =INDEX(TABNILSM1,MATCH($R$2,NILSM1!$C$1:$C$43,0),MATCH(A42&$G$13,NILSM1!$C$1:$FR$1,0)) -> 0 | H42: =INDEX(TABNILSM1,MATCH($R$2,NILSM1!$C$1:$C$43,0),MATCH(A42&$H$13,NILSM1!$C$1:$FR$1,0)) -> 0 | I42: =INDEX(TABNILSM1,MATCH($R$2,NILSM1!$C$1:$C$43,0),MATCH(A42&$I$13,NILSM1!$C$1:$FR$1,0)) -> 0 | J42: =INDEX(TABNILSM1,MATCH($R$2,NILSM1!$C$1:$C$43,0),MATCH(A42&$J$13,NILSM1!$C$1:$FR$1,0)) -> 0 | K42: =INDEX(TABNILSM1,MATCH($R$2,NILSM1!$C$1:$C$43,0),MATCH(A42&$K$13,NILSM1!$C$1:$FR$1,0)) -> 0 | L42: =INDEX(TABNILSM1,MATCH($R$2,NILSM1!$C$1:$C$43,0),MATCH(A42&$L$13,NILSM1!$C$1:$FR$1,0)) -> 0
A43: PLH | B43: 1 | C43: =HLOOKUP(A43&$F$13,TABNILSM1,4,FALSE) -> 16 | D43: =HLOOKUP(A43&$F$13,TABNILSM1,2,FALSE) -> PLH | E43: =IFERROR(HLOOKUP(A43&$F$13,TABNILSM1,5,FALSE),"-") -> 75 | F43: =INDEX(TABNILSM1,MATCH($R$2,NILSM1!$C$1:$C$43,0),MATCH(A43&$F$13,NILSM1!$C$1:$FR$1,0)) -> 0 | G43: =INDEX(TABNILSM1,MATCH($R$2,NILSM1!$C$1:$C$43,0),MATCH(A43&$G$13,NILSM1!$C$1:$FR$1,0)) -> 0 | H43: =INDEX(TABNILSM1,MATCH($R$2,NILSM1!$C$1:$C$43,0),MATCH(A43&$H$13,NILSM1!$C$1:$FR$1,0)) -> 0 | I43: =INDEX(TABNILSM1,MATCH($R$2,NILSM1!$C$1:$C$43,0),MATCH(A43&$I$13,NILSM1!$C$1:$FR$1,0)) -> 0 | J43: =INDEX(TABNILSM1,MATCH($R$2,NILSM1!$C$1:$C$43,0),MATCH(A43&$J$13,NILSM1!$C$1:$FR$1,0)) -> 0 | K43: =INDEX(TABNILSM1,MATCH($R$2,NILSM1!$C$1:$C$43,0),MATCH(A43&$K$13,NILSM1!$C$1:$FR$1,0)) -> 0 | L43: =INDEX(TABNILSM1,MATCH($R$2,NILSM1!$C$1:$C$43,0),MATCH(A43&$L$13,NILSM1!$C$1:$FR$1,0)) -> 0
A45: CTT | C45: Bimbingan dan Konseling | G45: Catatan Akademik
A46: BKN | C46: =INDEX(TABNILSM1,MATCH($R$2,NILSM1!$C$1:$C$43,0),MATCH(A46,NILSM1!$C$1:$FR$1,0)) -> 0 | G46: =INDEX(TABNILSM1,MATCH($R$2,NILSM1!$C$1:$C$43,0),MATCH(A45,NILSM1!$C$1:$FR$1,0)) -> 0
C48: Catatan: Jika nilai 0, siswa belum mengupload tugas atau belum mengerjakan ulangan. Jika nilai - , materi KD (Kompetensi Dasar) tersebut dilaksanakan setelah pembagian KHS.
Q50: =VLOOKUP($R$13,TAB_BIODATA,BIODATA!C4,FALSE) -> CEPI YANWARI
D51: Mengetahui, | I51: =NILSM1!A5 -> Karawang, 18 Desember 2020
D52: Orang Tua/Wali, | I52: Wali Kelas, | Q52: ="Nomor Urut "&R13 -> Nomor Urut 5
I57: =NILSM1!B4 -> Abdul Hapid, S.P
I58: =IF(NILSM1!B5=0,"","NIP "&NILSM1!B5) -> NIP 19680917 200012 1 003
E59: Mengetahui :
E60: Kepala Sekolah,
E65: =MENU!F12 -> Drs. Makmur, M.T.
E66: ="NIP "&MENU!F13 -> NIP 19640423 199512 1 002

Sheet CETKD1
C1: DAFTAR TOPIK PER KOMPETENSI DASAR | Q1: JURUSAN | R1: =MENU!F8 -> TBSM
Q2: NIS | R2: =VLOOKUP($R$13,TAB_BIODATA,BIODATA!D4,FALSE) -> 16170535
D3: Bidang Keahlian | E3: : | F3: =VLOOKUP($R$1,TAB_JURUSAN,2,FALSE) -> Teknologi dan Rekayasa
A4: T1 | D4: Program Keahlian | E4: : | F4: =VLOOKUP($R$1,TAB_JURUSAN,3,FALSE) -> Teknik Otomotif
A5: T2 | D5: Kompetensi Keahlian | E5: : | F5: =VLOOKUP($R$1,TAB_JURUSAN,4,FALSE) -> Teknik dan Bisnis Sepeda Motor | Q5: DATA CETAK | S5: HALAMAN CETAK
A6: T3 | D6: Semester | E6: : | F6: =NILSM1!B3 -> 1 (satu) | Q6: Dari data ke | R6: 1 | S6: Dari | T6: 1
B8: 1 | C8: No. | D8: Mata Pelajaran | E8: KD | F8: Nama Topik | Q8: Sampai data ke | R8: 2 | S8: Ke | T8: 1
B9: 1 | C9: A. Muatan Nasional | F9: T1 | G9: U1 | H9: T2 | I9: U2 | J9: T3 | K9: U3 | L9: H
A10: PAB | B10: =IF(C10>=1,1,0) -> 1 | C10: =HLOOKUP(A10&$A$4,TABNILSM1,4,FALSE) -> 1 | D10: =HLOOKUP(A10&$A$4,TABNILSM1,2,FALSE) -> Pendidikan Agama dan Budi Pekerti | E10: 1 | F10: =HLOOKUP(A10&$A$4,TABNILSM1,6,FALSE) -> Syahadat
A11: PAB | B11: =IF(C10>=1,1,0) -> 1 | D11: Pendidikan Agama dan Budi Pekerti | E11: 2 | F11: =HLOOKUP(A11&$A$5,TABNILSM1,6,FALSE) -> 2
A12: PAB | B12: =IF(C10>=1,1,0) -> 1 | D12: Pendidikan Agama dan Budi Pekerti | E12: 3 | F12: =HLOOKUP(A12&$A$6,TABNILSM1,6,FALSE) -> 3 | Q12: TAMPILAN DATA
A13: PKN | B13: =IF(C13>=1,1,0) -> 1 | C13: =HLOOKUP(A13&$A$4,TABNILSM1,4,FALSE) -> 2 | D13: Pendidikan Pancasila dan Kewarganegaraan | E13: 1 | F13: =HLOOKUP(A13&$A$4,TABNILSM1,6,FALSE) -> 4 | Q13: Nomor Urut | R13: 1
A14: PKN | B14: =IF(C13>=1,1,0) -> 1 | D14: Pendidikan Pancasila dan Kewarganegaraan | E14: 2 | F14: =HLOOKUP(A14&$A$5,TABNILSM1,6,FALSE) -> 5
A15: PKN | B15: =IF(C13>=1,1,0) -> 1 | D15: Pendidikan Pancasila dan Kewarganegaraan | E15: 3 | F15: =HLOOKUP(A15&$A$6,TABNILSM1,6,FALSE) -> 6
A16: IND | B16: =IF(C16>=1,1,0) -> 1 | C16: =HLOOKUP(A16&$A$4,TABNILSM1,4,FALSE) -> 3 | D16: Bahasa Indonesia | E16: 1 | F16: =HLOOKUP(A16&$A$4,TABNILSM1,6,FALSE) -> 7
A17: IND | B17: =IF(C16>=1,1,0) -> 1 | D17: Bahasa Indonesia | E17: 2 | F17: =HLOOKUP(A17&$A$5,TABNILSM1,6,FALSE) -> 8
A18: IND | B18: =IF(C16>=1,1,0) -> 1 | D18: Bahasa Indonesia | E18: 3 | F18: =HLOOKUP(A18&$A$6,TABNILSM1,6,FALSE) -> 9
A19: MTK | B19: =IF(C19>=1,1,0) -> 1 | C19: =HLOOKUP(A19&$A$4,TABNILSM1,4,FALSE) -> 4 | D19: Matematika | E19: 1 | F19: =HLOOKUP(A19&$A$4,TABNILSM1,6,FALSE) -> 10
A20: MTK | B20: =IF(C19>=1,1,0) -> 1 | D20: Matematika | E20: 2 | F20: =HLOOKUP(A20&$A$5,TABNILSM1,6,FALSE) -> 11
A21: MTK | B21: =IF(C19>=1,1,0) -> 1 | D21: Matematika | E21: 3 | F21: =HLOOKUP(A21&$A$6,TABNILSM1,6,FALSE) -> 12
A22: SJI | B22: =IF(C22>=1,1,0) -> 1 | C22: =HLOOKUP(A22&$A$4,TABNILSM1,4,FALSE) -> 5 | D22: Sejarah Indonesia | E22: 1 | F22: =HLOOKUP(A22&$A$4,TABNILSM1,6,FALSE) -> 13
A23: SJI | B23: =IF(C22>=1,1,0) -> 1 | D23: Sejarah Indonesia | E23: 2 | F23: =HLOOKUP(A23&$A$5,TABNILSM1,6,FALSE) -> 14
A24: SJI | B24: =IF(C22>=1,1,0) -> 1 | D24: Sejarah Indonesia | E24: 3 | F24: =HLOOKUP(A24&$A$6,TABNILSM1,6,FALSE) -> 15
A25: ING | B25: =IF(C25>=1,1,0) -> 1 | C25: =HLOOKUP(A25&$A$4,TABNILSM1,4,FALSE) -> 6 | D25: Bahasa Inggris | E25: 1 | F25: =HLOOKUP(A25&$A$4,TABNILSM1,6,FALSE) -> 16
A26: ING | B26: =IF(C25>=1,1,0) -> 1 | D26: Bahasa Inggris | E26: 2 | F26: =HLOOKUP(A26&$A$5,TABNILSM1,6,FALSE) -> 17
A27: ING | B27: =IF(C25>=1,1,0) -> 1 | D27: Bahasa Inggris | E27: 3 | F27: =HLOOKUP(A27&$A$6,TABNILSM1,6,FALSE) -> 18
A28: JER | B28: =IF(C28>=1,1,0) -> 0 | C28: =HLOOKUP(A28&$A$4,TABNILSM1,4,FALSE) -> 0 | D28: - | E28: 1 | F28: =HLOOKUP(A28&$A$4,TABNILSM1,6,FALSE) -> 19
A29: JER | B29: 0 | D29: - | E29: 2 | F29: =HLOOKUP(A29&$A$5,TABNILSM1,6,FALSE) -> 20
A30: JER | B30: =IF(C28>=1,1,0) -> 0 | D30: - | E30: 3 | F30: =HLOOKUP(A30&$A$6,TABNILSM1,6,FALSE) -> 21
B31: =IF(AND(COUNT(C31)=0,C35=0),0,1) -> 1 | C31: B. Muatan Kewilayahan
A32: SBD | B32: =IF(C32>=1,1,0) -> 1 | C32: =HLOOKUP(A32&$A$4,TABNILSM1,4,FALSE) -> 7 | D32: =HLOOKUP(A32&$A$4,TABNILSM1,2,FALSE) -> Seni Budaya | E32: 1 | F32: =HLOOKUP(A32&$A$4,TABNILSM1,6,FALSE) -> 22
A33: SBD | B33: =IF(C32>=1,1,0) -> 1 | D33: Seni Budaya | E33: 2 | F33: =HLOOKUP(A33&$A$5,TABNILSM1,6,FALSE) -> 23
A34: SBD | B34: =IF(C32>=1,1,0) -> 1 | D34: Seni Budaya | E34: 3 | F34: =HLOOKUP(A34&$A$6,TABNILSM1,6,FALSE) -> 24
A35: PJO | B35: 1 | C35: =HLOOKUP(A35&$A$4,TABNILSM1,4,FALSE) -> 8 | D35: Pendidikan Jasmani, Olahraga dan Kesehatan | E35: 1 | F35: =HLOOKUP(A35&$A$4,TABNILSM1,6,FALSE) -> 25
A36: PJO | B36: 1 | D36: Pendidikan Jasmani, Olahraga dan Kesehatan | E36: 2 | F36: =HLOOKUP(A36&$A$5,TABNILSM1,6,FALSE) -> 26
A37: PJO | B37: 1 | D37: Pendidikan Jasmani, Olahraga dan Kesehatan | E37: 3 | F37: =HLOOKUP(A37&$A$6,TABNILSM1,6,FALSE) -> 27
A38: - | B38: 1 | C38: C. Muatan Peminatan Kejuruan
B39: =IF(AND(COUNT(C39)=0,C40=0),0,1) -> 1 | C39: C1 | D39: Dasar Bidang Keahlian
A40: SKD | B40: =IF(C40>=1,1,0) -> 1 | C40: =HLOOKUP(A40&$A$4,TABNILSM1,4,FALSE) -> 9 | D40: =HLOOKUP(A40&$A$4,TABNILSM1,2,FALSE) -> Simulasi dan Komunikasi Digital | E40: 1 | F40: =HLOOKUP(A40&$A$4,TABNILSM1,6,FALSE) -> 28
A41: SKD | B41: =IF(C40>=1,1,0) -> 1 | D41: Simulasi dan Komunikasi Digital | E41: 2 | F41: =HLOOKUP(A41&$A$5,TABNILSM1,6,FALSE) -> 29
A42: SKD | B42: =IF(C40>=1,1,0) -> 1 | D42: Simulasi dan Komunikasi Digital | E42: 3 | F42: =HLOOKUP(A42&$A$6,TABNILSM1,6,FALSE) -> 30
A43: FIS | B43: 1 | C43: =HLOOKUP(A43&$A$4,TABNILSM1,4,FALSE) -> 10 | D43: Fisika | E43: 1 | F43: =HLOOKUP(A43&$A$4,TABNILSM1,6,FALSE) -> 31
A44: FIS | B44: 1 | D44: Fisika | E44: 2 | F44: =HLOOKUP(A44&$A$5,TABNILSM1,6,FALSE) -> 32
A45: FIS | B45: 1 | D45: Fisika | E45: 3 | F45: =HLOOKUP(A45&$A$6,TABNILSM1,6,FALSE) -> 33
A46: KIM | B46: 1 | C46: =HLOOKUP(A46&$A$4,TABNILSM1,4,FALSE) -> 11 | D46: Kimia | E46: 1 | F46: =HLOOKUP(A46&$A$4,TABNILSM1,6,FALSE) -> 34
A47: KIM | B47: 1 | D47: Kimia | E47: 2 | F47: =HLOOKUP(A47&$A$5,TABNILSM1,6,FALSE) -> 35
A48: KIM | B48: 1 | D48: Kimia | E48: 3 | F48: =HLOOKUP(A48&$A$6,TABNILSM1,6,FALSE) -> 36
B49: =IF(AND(COUNT(C49)=0,C50=0),0,1) -> 1 | C49: C2 | D49: Dasar Program Keahlian | Q49: =VLOOKUP($R$13,TAB_BIODATA,BIODATA!C4,FALSE) -> ADAM ADIYAT HARTANTO
A50: C21 | B50: =IF(C50>=1,1,0) -> 1 | C50: =HLOOKUP(A50&$A$4,TABNILSM1,4,FALSE) -> 12 | D50: =HLOOKUP(A50&$A$4,TABNILSM1,2,FALSE) -> Gambar Teknik Otomotif | E50: 1 | F50: =HLOOKUP(A50&$A$4,TABNILSM1,6,FALSE) -> 37
A51: C21 | B51: =IF(C50>=1,1,0) -> 1 | D51: Gambar Teknik Otomotif | E51: 2 | F51: =HLOOKUP(A51&$A$5,TABNILSM1,6,FALSE) -> 38 | Q51: ="Nomor Urut "&R13 -> Nomor Urut 1
A52: C21 | B52: =IF(C50>=1,1,0) -> 1 | D52: Gambar Teknik Otomotif | E52: 3 | F52: =HLOOKUP(A52&$A$6,TABNILSM1,6,FALSE) -> 39
A53: C22 | B53: 1 | C53: =HLOOKUP(A53&$A$4,TABNILSM1,4,FALSE) -> 13 | D53: Teknologi Dasar Otomotif | E53: 1 | F53: =HLOOKUP(A53&$A$4,TABNILSM1,6,FALSE) -> 40
A54: C22 | B54: 1 | D54: Teknologi Dasar Otomotif | E54: 2 | F54: =HLOOKUP(A54&$A$5,TABNILSM1,6,FALSE) -> 41
A55: C22 | B55: 1 | D55: Teknologi Dasar Otomotif | E55: 3 | F55: =HLOOKUP(A55&$A$6,TABNILSM1,6,FALSE) -> 42
A56: C23 | B56: 1 | C56: =HLOOKUP(A56&$A$4,TABNILSM1,4,FALSE) -> 14 | D56: Pekerjaan Dasar Teknik Otomotif | E56: 1 | F56: =HLOOKUP(A56&$A$4,TABNILSM1,6,FALSE) -> 43
A57: C23 | B57: 1 | D57: Pekerjaan Dasar Teknik Otomotif | E57: 2 | F57: =HLOOKUP(A57&$A$5,TABNILSM1,6,FALSE) -> 44
A58: C23 | B58: 1 | D58: Pekerjaan Dasar Teknik Otomotif | E58: 3 | F58: =HLOOKUP(A58&$A$6,TABNILSM1,6,FALSE) -> 45
A59: C24 | B59: 0 | C59: =HLOOKUP(A59&$A$4,TABNILSM1,4,FALSE) -> 0 | D59: - | E59: 1 | F59: =HLOOKUP(A59&$A$4,TABNILSM1,6,FALSE) -> 46
A60: C24 | B60: 0 | D60: - | E60: 2 | F60: =HLOOKUP(A60&$A$5,TABNILSM1,6,FALSE) -> 47
A61: C24 | B61: 0 | D61: - | E61: 3 | F61: =HLOOKUP(A61&$A$6,TABNILSM1,6,FALSE) -> 48
A62: - | B62: =IF(AND(COUNT(C62)=0,C69=0),0,1) -> 0 | C62: C3 | D62: Kompetensi Keahlian
A63: C31 | B63: =IF(C63>=1,1,0) -> 0 | C63: =HLOOKUP(A63&$A$4,TABNILSM1,4,FALSE) -> 0 | D63: =HLOOKUP(A63&$A$4,TABNILSM1,2,FALSE) -> - | E63: 1 | F63: =HLOOKUP(A63&$A$4,TABNILSM1,6,FALSE) -> 49
A64: C31 | B64: =IF(C63>=1,1,0) -> 0 | D64: - | E64: 2 | F64: =HLOOKUP(A64&$A$5,TABNILSM1,6,FALSE) -> 50
A65: C31 | B65: =IF(C63>=1,1,0) -> 0 | D65: - | E65: 3 | F65: =HLOOKUP(A65&$A$6,TABNILSM1,6,FALSE) -> 51
A66: C32 | B66: 0 | C66: =HLOOKUP(A66&$A$4,TABNILSM1,4,FALSE) -> 0 | D66: - | E66: 1 | F66: =HLOOKUP(A66&$A$4,TABNILSM1,6,FALSE) -> 52
A67: C32 | B67: 0 | D67: - | E67: 2 | F67: =HLOOKUP(A67&$A$5,TABNILSM1,6,FALSE) -> 53
A68: C32 | B68: 0 | D68: - | E68: 3 | F68: =HLOOKUP(A68&$A$6,TABNILSM1,6,FALSE) -> 54
A69: C33 | B69: 0 | C69: =HLOOKUP(A69&$A$4,TABNILSM1,4,FALSE) -> 0 | D69: - | E69: 1 | F69: =HLOOKUP(A69&$A$4,TABNILSM1,6,FALSE) -> 55
A70: C33 | B70: 0 | D70: - | E70: 2 | F70: =HLOOKUP(A70&$A$5,TABNILSM1,6,FALSE) -> 56
A71: C33 | B71: 0 | D71: - | E71: 3 | F71: =HLOOKUP(A71&$A$6,TABNILSM1,6,FALSE) -> 57
A72: C34 | B72: 0 | C72: =HLOOKUP(A72&$A$4,TABNILSM1,4,FALSE) -> 0 | D72: - | E72: 1 | F72: =HLOOKUP(A72&$A$4,TABNILSM1,6,FALSE) -> 58
A73: C34 | B73: 0 | D73: - | E73: 2 | F73: =HLOOKUP(A73&$A$5,TABNILSM1,6,FALSE) -> 59
A74: C34 | B74: 0 | D74: - | E74: 3 | F74: =HLOOKUP(A74&$A$6,TABNILSM1,6,FALSE) -> 60
A75: C35 | B75: 0 | C75: =HLOOKUP(A75&$A$4,TABNILSM1,4,FALSE) -> 0 | D75: - | E75: 1 | F75: =HLOOKUP(A75&$A$4,TABNILSM1,6,FALSE) -> 61
A76: C35 | B76: 0 | D76: - | E76: 2 | F76: =HLOOKUP(A76&$A$5,TABNILSM1,6,FALSE) -> 62
A77: C35 | B77: 0 | D77: - | E77: 3 | F77: =HLOOKUP(A77&$A$6,TABNILSM1,6,FALSE) -> 63
A78: C36 | B78: 0 | C78: =HLOOKUP(A78&$A$4,TABNILSM1,4,FALSE) -> 0 | D78: - | E78: 1 | F78: =HLOOKUP(A78&$A$4,TABNILSM1,6,FALSE) -> 64
A79: C36 | B79: 0 | D79: - | E79: 2 | F79: =HLOOKUP(A79&$A$5,TABNILSM1,6,FALSE) -> 65
A80: C36 | B80: 0 | D80: - | E80: 3 | F80: =HLOOKUP(A80&$A$6,TABNILSM1,6,FALSE) -> 66
B81: =IF(AND(COUNT(C81)=0,C82=0),0,1) -> 1 | C81: Muatan Lokal
A82: SUN | B82: =IF(C82>=1,1,0) -> 1 | C82: =HLOOKUP(A82&$A$4,TABNILSM1,4,FALSE) -> 15 | D82: =HLOOKUP(A82&$A$4,TABNILSM1,2,FALSE) -> Bahasa dan Sastra Sunda | E82: 1 | F82: =HLOOKUP(A82&$A$4,TABNILSM1,6,FALSE) -> 67
A83: SUN | B83: =IF(C82>=1,1,0) -> 1 | D83: Bahasa dan Sastra Sunda | E83: 2 | F83: =HLOOKUP(A83&$A$5,TABNILSM1,6,FALSE) -> 68
A84: SUN | B84: =IF(C82>=1,1,0) -> 1 | D84: Bahasa dan Sastra Sunda | E84: 3 | F84: =HLOOKUP(A84&$A$6,TABNILSM1,6,FALSE) -> 69
A85: PLH | B85: =IF(C85>=1,1,0) -> 1 | C85: =HLOOKUP(A85&$A$4,TABNILSM1,4,FALSE) -> 16 | D85: PLH | E85: 1 | F85: =HLOOKUP(A85&$A$4,TABNILSM1,6,FALSE) -> 70
A86: PLH | B86: 1 | D86: PLH | E86: 2 | F86: =HLOOKUP(A86&$A$5,TABNILSM1,6,FALSE) -> 71
A87: PLH | B87: =IF(C85>=1,1,0) -> 1 | D87: PLH | E87: 3 | F87: =HLOOKUP(A87&$A$6,TABNILSM1,6,FALSE) -> 72

Sheet CETKD2
C1: DAFTAR TOPIK PER KOMPETENSI DASAR | Q1: JURUSAN | R1: =MENU!F8 -> TBSM
Q2: NIS | R2: =VLOOKUP($R$13,TAB_BIODATA,BIODATA!D4,FALSE) -> 16170535
D3: Bidang Keahlian | E3: : | F3: =VLOOKUP($R$1,TAB_JURUSAN,2,FALSE) -> Teknologi dan Rekayasa
A4: T1 | D4: Program Keahlian | E4: : | F4: =VLOOKUP($R$1,TAB_JURUSAN,3,FALSE) -> Teknik Otomotif
A5: T2 | D5: Kompetensi Keahlian | E5: : | F5: =VLOOKUP($R$1,TAB_JURUSAN,4,FALSE) -> Teknik dan Bisnis Sepeda Motor | Q5: DATA CETAK | S5: HALAMAN CETAK
A6: T3 | D6: Semester | E6: : | F6: =NILSM2!B3 -> 2 (dua) | Q6: Dari data ke | R6: 1 | S6: Dari | T6: 1
B8: 1 | C8: No. | D8: Mata Pelajaran | E8: KD | F8: Nama Topik | Q8: Sampai data ke | R8: 2 | S8: Ke | T8: 1
B9: 1 | C9: A. Muatan Nasional | F9: T1 | G9: U1 | H9: T2 | I9: U2 | J9: T3 | K9: U3 | L9: H
A10: PAB | B10: =IF(C10>=1,1,0) -> 1 | C10: =HLOOKUP(A10&$A$4,TABNILSM2,4,FALSE) -> 1 | D10: =HLOOKUP(A10&$A$4,TABNILSM2,2,FALSE) -> Pendidikan Agama dan Budi Pekerti | E10: 1 | F10: =HLOOKUP(A10&$A$4,TABNILSM2,6,FALSE) -> Shalat
A11: PAB | B11: =IF(C10>=1,1,0) -> 1 | D11: Pendidikan Agama dan Budi Pekerti | E11: 2 | F11: =HLOOKUP(A11&$A$5,TABNILSM2,6,FALSE) -> Zakat
A12: PAB | B12: =IF(C10>=1,1,0) -> 1 | D12: Pendidikan Agama dan Budi Pekerti | E12: 3 | F12: =HLOOKUP(A12&$A$6,TABNILSM2,6,FALSE) -> 3 | Q12: TAMPILAN DATA
A13: PKN | B13: =IF(C13>=1,1,0) -> 1 | C13: =HLOOKUP(A13&$A$4,TABNILSM2,4,FALSE) -> 2 | D13: Pendidikan Pancasila dan Kewarganegaraan | E13: 1 | F13: =HLOOKUP(A13&$A$4,TABNILSM2,6,FALSE) -> 4 | Q13: Nomor Urut | R13: 1
A14: PKN | B14: =IF(C13>=1,1,0) -> 1 | D14: Pendidikan Pancasila dan Kewarganegaraan | E14: 2 | F14: =HLOOKUP(A14&$A$5,TABNILSM2,6,FALSE) -> 5
A15: PKN | B15: =IF(C13>=1,1,0) -> 1 | D15: Pendidikan Pancasila dan Kewarganegaraan | E15: 3 | F15: =HLOOKUP(A15&$A$6,TABNILSM2,6,FALSE) -> 6
A16: IND | B16: =IF(C16>=1,1,0) -> 1 | C16: =HLOOKUP(A16&$A$4,TABNILSM2,4,FALSE) -> 3 | D16: Bahasa Indonesia | E16: 1 | F16: =HLOOKUP(A16&$A$4,TABNILSM2,6,FALSE) -> 7
A17: IND | B17: =IF(C16>=1,1,0) -> 1 | D17: Bahasa Indonesia | E17: 2 | F17: =HLOOKUP(A17&$A$5,TABNILSM2,6,FALSE) -> 8
A18: IND | B18: =IF(C16>=1,1,0) -> 1 | D18: Bahasa Indonesia | E18: 3 | F18: =HLOOKUP(A18&$A$6,TABNILSM2,6,FALSE) -> 9
A19: MTK | B19: =IF(C19>=1,1,0) -> 1 | C19: =HLOOKUP(A19&$A$4,TABNILSM2,4,FALSE) -> 4 | D19: Matematika | E19: 1 | F19: =HLOOKUP(A19&$A$4,TABNILSM2,6,FALSE) -> 10
A20: MTK | B20: =IF(C19>=1,1,0) -> 1 | D20: Matematika | E20: 2 | F20: =HLOOKUP(A20&$A$5,TABNILSM2,6,FALSE) -> 11
A21: MTK | B21: =IF(C19>=1,1,0) -> 1 | D21: Matematika | E21: 3 | F21: =HLOOKUP(A21&$A$6,TABNILSM2,6,FALSE) -> 12
A22: SJI | B22: =IF(C22>=1,1,0) -> 1 | C22: =HLOOKUP(A22&$A$4,TABNILSM2,4,FALSE) -> 5 | D22: Sejarah Indonesia | E22: 1 | F22: =HLOOKUP(A22&$A$4,TABNILSM2,6,FALSE) -> 13
A23: SJI | B23: =IF(C22>=1,1,0) -> 1 | D23: Sejarah Indonesia | E23: 2 | F23: =HLOOKUP(A23&$A$5,TABNILSM2,6,FALSE) -> 14
A24: SJI | B24: =IF(C22>=1,1,0) -> 1 | D24: Sejarah Indonesia | E24: 3 | F24: =HLOOKUP(A24&$A$6,TABNILSM2,6,FALSE) -> 15
A25: ING | B25: =IF(C25>=1,1,0) -> 1 | C25: =HLOOKUP(A25&$A$4,TABNILSM2,4,FALSE) -> 6 | D25: Bahasa Inggris | E25: 1 | F25: =HLOOKUP(A25&$A$4,TABNILSM2,6,FALSE) -> 16
A26: ING | B26: =IF(C25>=1,1,0) -> 1 | D26: Bahasa Inggris | E26: 2 | F26: =HLOOKUP(A26&$A$5,TABNILSM2,6,FALSE) -> 17
A27: ING | B27: =IF(C25>=1,1,0) -> 1 | D27: Bahasa Inggris | E27: 3 | F27: =HLOOKUP(A27&$A$6,TABNILSM2,6,FALSE) -> 18
A28: JER | B28: =IF(C28>=1,1,0) -> 0 | C28: =HLOOKUP(A28&$A$4,TABNILSM2,4,FALSE) -> 0 | D28: - | E28: 1 | F28: =HLOOKUP(A28&$A$4,TABNILSM2,6,FALSE) -> 19
A29: JER | B29: 0 | D29: - | E29: 2 | F29: =HLOOKUP(A29&$A$5,TABNILSM2,6,FALSE) -> 20
A30: JER | B30: =IF(C28>=1,1,0) -> 0 | D30: - | E30: 3 | F30: =HLOOKUP(A30&$A$6,TABNILSM2,6,FALSE) -> 21
B31: =IF(AND(COUNT(C31)=0,C35=0),0,1) -> 1 | C31: B. Muatan Kewilayahan
A32: SBD | B32: =IF(C32>=1,1,0) -> 1 | C32: =HLOOKUP(A32&$A$4,TABNILSM2,4,FALSE) -> 7 | D32: =HLOOKUP(A32&$A$4,TABNILSM2,2,FALSE) -> Seni Budaya | E32: 1 | F32: =HLOOKUP(A32&$A$4,TABNILSM2,6,FALSE) -> 22
A33: SBD | B33: =IF(C32>=1,1,0) -> 1 | D33: Seni Budaya | E33: 2 | F33: =HLOOKUP(A33&$A$5,TABNILSM2,6,FALSE) -> 23
A34: SBD | B34: =IF(C32>=1,1,0) -> 1 | D34: Seni Budaya | E34: 3 | F34: =HLOOKUP(A34&$A$6,TABNILSM2,6,FALSE) -> 24
A35: PJO | B35: 1 | C35: =HLOOKUP(A35&$A$4,TABNILSM2,4,FALSE) -> 8 | D35: Pendidikan Jasmani, Olahraga dan Kesehatan | E35: 1 | F35: =HLOOKUP(A35&$A$4,TABNILSM2,6,FALSE) -> 25
A36: PJO | B36: 1 | D36: Pendidikan Jasmani, Olahraga dan Kesehatan | E36: 2 | F36: =HLOOKUP(A36&$A$5,TABNILSM2,6,FALSE) -> 26
A37: PJO | B37: 1 | D37: Pendidikan Jasmani, Olahraga dan Kesehatan | E37: 3 | F37: =HLOOKUP(A37&$A$6,TABNILSM2,6,FALSE) -> 27
A38: - | B38: 1 | C38: C. Muatan Peminatan Kejuruan
B39: =IF(AND(COUNT(C39)=0,C40=0),0,1) -> 1 | C39: C1 | D39: Dasar Bidang Keahlian
A40: SKD | B40: =IF(C40>=1,1,0) -> 1 | C40: =HLOOKUP(A40&$A$4,TABNILSM2,4,FALSE) -> 9 | D40: =HLOOKUP(A40&$A$4,TABNILSM2,2,FALSE) -> Simulasi dan Komunikasi Digital | E40: 1 | F40: =HLOOKUP(A40&$A$4,TABNILSM2,6,FALSE) -> 28
A41: SKD | B41: =IF(C40>=1,1,0) -> 1 | D41: Simulasi dan Komunikasi Digital | E41: 2 | F41: =HLOOKUP(A41&$A$5,TABNILSM2,6,FALSE) -> 29
A42: SKD | B42: =IF(C40>=1,1,0) -> 1 | D42: Simulasi dan Komunikasi Digital | E42: 3 | F42: =HLOOKUP(A42&$A$6,TABNILSM2,6,FALSE) -> 30
A43: FIS | B43: 1 | C43: =HLOOKUP(A43&$A$4,TABNILSM2,4,FALSE) -> 10 | D43: Fisika | E43: 1 | F43: =HLOOKUP(A43&$A$4,TABNILSM2,6,FALSE) -> 31
A44: FIS | B44: 1 | D44: Fisika | E44: 2 | F44: =HLOOKUP(A44&$A$5,TABNILSM2,6,FALSE) -> 32
A45: FIS | B45: 1 | D45: Fisika | E45: 3 | F45: =HLOOKUP(A45&$A$6,TABNILSM2,6,FALSE) -> 33
A46: KIM | B46: 1 | C46: =HLOOKUP(A46&$A$4,TABNILSM2,4,FALSE) -> 11 | D46: Kimia | E46: 1 | F46: =HLOOKUP(A46&$A$4,TABNILSM2,6,FALSE) -> 34
A47: KIM | B47: 1 | D47: Kimia | E47: 2 | F47: =HLOOKUP(A47&$A$5,TABNILSM2,6,FALSE) -> 35
A48: KIM | B48: 1 | D48: Kimia | E48: 3 | F48: =HLOOKUP(A48&$A$6,TABNILSM2,6,FALSE) -> 36
B49: =IF(AND(COUNT(C49)=0,C50=0),0,1) -> 1 | C49: C2 | D49: Dasar Program Keahlian | Q49: =VLOOKUP($R$13,TAB_BIODATA,BIODATA!C4,FALSE) -> ADAM ADIYAT HARTANTO
A50: C21 | B50: =IF(C50>=1,1,0) -> 1 | C50: =HLOOKUP(A50&$A$4,TABNILSM2,4,FALSE) -> 12 | D50: =HLOOKUP(A50&$A$4,TABNILSM2,2,FALSE) -> Gambar Teknik Otomotif | E50: 1 | F50: =HLOOKUP(A50&$A$4,TABNILSM2,6,FALSE) -> 37
A51: C21 | B51: =IF(C50>=1,1,0) -> 1 | D51: Gambar Teknik Otomotif | E51: 2 | F51: =HLOOKUP(A51&$A$5,TABNILSM2,6,FALSE) -> 38 | Q51: ="Nomor Urut "&R13 -> Nomor Urut 1
A52: C21 | B52: =IF(C50>=1,1,0) -> 1 | D52: Gambar Teknik Otomotif | E52: 3 | F52: =HLOOKUP(A52&$A$6,TABNILSM2,6,FALSE) -> 39
A53: C22 | B53: 1 | C53: =HLOOKUP(A53&$A$4,TABNILSM2,4,FALSE) -> 13 | D53: Teknologi Dasar Otomotif | E53: 1 | F53: =HLOOKUP(A53&$A$4,TABNILSM2,6,FALSE) -> 40
A54: C22 | B54: 1 | D54: Teknologi Dasar Otomotif | E54: 2 | F54: =HLOOKUP(A54&$A$5,TABNILSM2,6,FALSE) -> 41
A55: C22 | B55: 1 | D55: Teknologi Dasar Otomotif | E55: 3 | F55: =HLOOKUP(A55&$A$6,TABNILSM2,6,FALSE) -> 42
A56: C23 | B56: 1 | C56: =HLOOKUP(A56&$A$4,TABNILSM2,4,FALSE) -> 14 | D56: Pekerjaan Dasar Teknik Otomotif | E56: 1 | F56: =HLOOKUP(A56&$A$4,TABNILSM2,6,FALSE) -> 43
A57: C23 | B57: 1 | D57: Pekerjaan Dasar Teknik Otomotif | E57: 2 | F57: =HLOOKUP(A57&$A$5,TABNILSM2,6,FALSE) -> 44
A58: C23 | B58: 1 | D58: Pekerjaan Dasar Teknik Otomotif | E58: 3 | F58: =HLOOKUP(A58&$A$6,TABNILSM2,6,FALSE) -> 45
A59: C24 | B59: 0 | C59: =HLOOKUP(A59&$A$4,TABNILSM2,4,FALSE) -> 0 | D59: - | E59: 1 | F59: =HLOOKUP(A59&$A$4,TABNILSM2,6,FALSE) -> 46
A60: C24 | B60: 0 | D60: - | E60: 2 | F60: =HLOOKUP(A60&$A$5,TABNILSM2,6,FALSE) -> 47
A61: C24 | B61: 0 | D61: - | E61: 3 | F61: =HLOOKUP(A61&$A$6,TABNILSM2,6,FALSE) -> 48
A62: - | B62: =IF(AND(COUNT(C62)=0,C69=0),0,1) -> 0 | C62: C3 | D62: Kompetensi Keahlian
A63: C31 | B63: =IF(C63>=1,1,0) -> 0 | C63: =HLOOKUP(A63&$A$4,TABNILSM2,4,FALSE) -> 0 | D63: =HLOOKUP(A63&$A$4,TABNILSM2,2,FALSE) -> - | E63: 1 | F63: =HLOOKUP(A63&$A$4,TABNILSM2,6,FALSE) -> 49
A64: C31 | B64: =IF(C63>=1,1,0) -> 0 | D64: - | E64: 2 | F64: =HLOOKUP(A64&$A$5,TABNILSM2,6,FALSE) -> 50
A65: C31 | B65: =IF(C63>=1,1,0) -> 0 | D65: - | E65: 3 | F65: =HLOOKUP(A65&$A$6,TABNILSM2,6,FALSE) -> 51
A66: C32 | B66: 0 | C66: =HLOOKUP(A66&$A$4,TABNILSM2,4,FALSE) -> 0 | D66: - | E66: 1 | F66: =HLOOKUP(A66&$A$4,TABNILSM2,6,FALSE) -> 52
A67: C32 | B67: 0 | D67: - | E67: 2 | F67: =HLOOKUP(A67&$A$5,TABNILSM2,6,FALSE) -> 53
A68: C32 | B68: 0 | D68: - | E68: 3 | F68: =HLOOKUP(A68&$A$6,TABNILSM2,6,FALSE) -> 54
A69: C33 | B69: 0 | C69: =HLOOKUP(A69&$A$4,TABNILSM2,4,FALSE) -> 0 | D69: - | E69: 1 | F69: =HLOOKUP(A69&$A$4,TABNILSM2,6,FALSE) -> 55
A70: C33 | B70: 0 | D70: - | E70: 2 | F70: =HLOOKUP(A70&$A$5,TABNILSM2,6,FALSE) -> 56
A71: C33 | B71: 0 | D71: - | E71: 3 | F71: =HLOOKUP(A71&$A$6,TABNILSM2,6,FALSE) -> 57
A72: C34 | B72: 0 | C72: =HLOOKUP(A72&$A$4,TABNILSM2,4,FALSE) -> 0 | D72: - | E72: 1 | F72: =HLOOKUP(A72&$A$4,TABNILSM2,6,FALSE) -> 58
A73: C34 | B73: 0 | D73: - | E73: 2 | F73: =HLOOKUP(A73&$A$5,TABNILSM2,6,FALSE) -> 59
A74: C34 | B74: 0 | D74: - | E74: 3 | F74: =HLOOKUP(A74&$A$6,TABNILSM2,6,FALSE) -> 60
A75: C35 | B75: 0 | C75: =HLOOKUP(A75&$A$4,TABNILSM2,4,FALSE) -> 0 | D75: - | E75: 1 | F75: =HLOOKUP(A75&$A$4,TABNILSM2,6,FALSE) -> 61
A76: C35 | B76: 0 | D76: - | E76: 2 | F76: =HLOOKUP(A76&$A$5,TABNILSM2,6,FALSE) -> 62
A77: C35 | B77: 0 | D77: - | E77: 3 | F77: =HLOOKUP(A77&$A$6,TABNILSM2,6,FALSE) -> 63
A78: C36 | B78: 0 | C78: =HLOOKUP(A78&$A$4,TABNILSM2,4,FALSE) -> 0 | D78: - | E78: 1 | F78: =HLOOKUP(A78&$A$4,TABNILSM2,6,FALSE) -> 64
A79: C36 | B79: 0 | D79: - | E79: 2 | F79: =HLOOKUP(A79&$A$5,TABNILSM2,6,FALSE) -> 65
A80: C36 | B80: 0 | D80: - | E80: 3 | F80: =HLOOKUP(A80&$A$6,TABNILSM2,6,FALSE) -> 66
B81: =IF(AND(COUNT(C81)=0,C82=0),0,1) -> 1 | C81: Muatan Lokal
A82: SUN | B82: =IF(C82>=1,1,0) -> 1 | C82: =HLOOKUP(A82&$A$4,TABNILSM2,4,FALSE) -> 15 | D82: =HLOOKUP(A82&$A$4,TABNILSM2,2,FALSE) -> Bahasa dan Sastra Sunda | E82: 1 | F82: =HLOOKUP(A82&$A$4,TABNILSM2,6,FALSE) -> 67
A83: SUN | B83: =IF(C82>=1,1,0) -> 1 | D83: Bahasa dan Sastra Sunda | E83: 2 | F83: =HLOOKUP(A83&$A$5,TABNILSM2,6,FALSE) -> 68
A84: SUN | B84: =IF(C82>=1,1,0) -> 1 | D84: Bahasa dan Sastra Sunda | E84: 3 | F84: =HLOOKUP(A84&$A$6,TABNILSM2,6,FALSE) -> 69
A85: PLH | B85: =IF(C85>=1,1,0) -> 1 | C85: =HLOOKUP(A85&$A$4,TABNILSM2,4,FALSE) -> 16 | D85: PLH | E85: 1 | F85: =HLOOKUP(A85&$A$4,TABNILSM2,6,FALSE) -> 70
A86: PLH | B86: 1 | D86: PLH | E86: 2 | F86: =HLOOKUP(A86&$A$5,TABNILSM2,6,FALSE) -> 71
A87: PLH | B87: =IF(C85>=1,1,0) -> 1 | D87: PLH | E87: 3 | F87: =HLOOKUP(A87&$A$6,TABNILSM2,6,FALSE) -> 72

Sheet CETKD3
C1: DAFTAR TOPIK PER KOMPETENSI DASAR | Q1: JURUSAN | R1: =MENU!F8 -> TBSM
Q2: NIS | R2: =VLOOKUP($R$13,TAB_BIODATA,BIODATA!D4,FALSE) -> 16170535
D3: Bidang Keahlian | E3: : | F3: =VLOOKUP($R$1,TAB_JURUSAN,2,FALSE) -> Teknologi dan Rekayasa
A4: T1 | D4: Program Keahlian | E4: : | F4: =VLOOKUP($R$1,TAB_JURUSAN,3,FALSE) -> Teknik Otomotif
A5: T2 | D5: Kompetensi Keahlian | E5: : | F5: =VLOOKUP($R$1,TAB_JURUSAN,4,FALSE) -> Teknik dan Bisnis Sepeda Motor | Q5: DATA CETAK | S5: HALAMAN CETAK
A6: T3 | D6: Semester | E6: : | F6: =NILSM3!B3 -> 3 (tiga) | Q6: Dari data ke | R6: 1 | S6: Dari | T6: 1
B8: 1 | C8: No. | D8: Mata Pelajaran | E8: KD | F8: Nama Topik | Q8: Sampai data ke | R8: 2 | S8: Ke | T8: 1
B9: 1 | C9: A. Muatan Nasional | F9: T1 | G9: U1 | H9: T2 | I9: U2 | J9: T3 | K9: U3 | L9: H
A10: PAB | B10: =IF(C10>=1,1,0) -> 1 | C10: =HLOOKUP(A10&$A$4,TABNILSM3,4,FALSE) -> 1 | D10: =HLOOKUP(A10&$A$4,TABNILSM3,2,FALSE) -> Pendidikan Agama dan Budi Pekerti | E10: 1 | F10: =HLOOKUP(A10&$A$4,TABNILSM3,6,FALSE) -> Zakat
A11: PAB | B11: =IF(C10>=1,1,0) -> 1 | D11: Pendidikan Agama dan Budi Pekerti | E11: 2 | F11: =HLOOKUP(A11&$A$5,TABNILSM3,6,FALSE) -> Puasa
A12: PAB | B12: =IF(C10>=1,1,0) -> 1 | D12: Pendidikan Agama dan Budi Pekerti | E12: 3 | F12: =HLOOKUP(A12&$A$6,TABNILSM3,6,FALSE) -> 3 | Q12: TAMPILAN DATA
A13: PKN | B13: =IF(C13>=1,1,0) -> 1 | C13: =HLOOKUP(A13&$A$4,TABNILSM3,4,FALSE) -> 2 | D13: Pendidikan Pancasila dan Kewarganegaraan | E13: 1 | F13: =HLOOKUP(A13&$A$4,TABNILSM3,6,FALSE) -> 4 | Q13: Nomor Urut | R13: 1
A14: PKN | B14: =IF(C13>=1,1,0) -> 1 | D14: Pendidikan Pancasila dan Kewarganegaraan | E14: 2 | F14: =HLOOKUP(A14&$A$5,TABNILSM3,6,FALSE) -> 5
A15: PKN | B15: =IF(C13>=1,1,0) -> 1 | D15: Pendidikan Pancasila dan Kewarganegaraan | E15: 3 | F15: =HLOOKUP(A15&$A$6,TABNILSM3,6,FALSE) -> 6
A16: IND | B16: =IF(C16>=1,1,0) -> 1 | C16: =HLOOKUP(A16&$A$4,TABNILSM3,4,FALSE) -> 3 | D16: Bahasa Indonesia | E16: 1 | F16: =HLOOKUP(A16&$A$4,TABNILSM3,6,FALSE) -> 7
A17: IND | B17: =IF(C16>=1,1,0) -> 1 | D17: Bahasa Indonesia | E17: 2 | F17: =HLOOKUP(A17&$A$5,TABNILSM3,6,FALSE) -> 8
A18: IND | B18: =IF(C16>=1,1,0) -> 1 | D18: Bahasa Indonesia | E18: 3 | F18: =HLOOKUP(A18&$A$6,TABNILSM3,6,FALSE) -> 9
A19: MTK | B19: =IF(C19>=1,1,0) -> 1 | C19: =HLOOKUP(A19&$A$4,TABNILSM3,4,FALSE) -> 4 | D19: Matematika | E19: 1 | F19: =HLOOKUP(A19&$A$4,TABNILSM3,6,FALSE) -> 10
A20: MTK | B20: =IF(C19>=1,1,0) -> 1 | D20: Matematika | E20: 2 | F20: =HLOOKUP(A20&$A$5,TABNILSM3,6,FALSE) -> 11
A21: MTK | B21: =IF(C19>=1,1,0) -> 1 | D21: Matematika | E21: 3 | F21: =HLOOKUP(A21&$A$6,TABNILSM3,6,FALSE) -> 12
A22: SJI | B22: =IF(C22>=1,1,0) -> 0 | C22: =HLOOKUP(A22&$A$4,TABNILSM3,4,FALSE) -> 0 | D22: - | E22: 1 | F22: =HLOOKUP(A22&$A$4,TABNILSM3,6,FALSE) -> 13
A23: SJI | B23: =IF(C22>=1,1,0) -> 0 | D23: - | E23: 2 | F23: =HLOOKUP(A23&$A$5,TABNILSM3,6,FALSE) -> 14
A24: SJI | B24: =IF(C22>=1,1,0) -> 0 | D24: - | E24: 3 | F24: =HLOOKUP(A24&$A$6,TABNILSM3,6,FALSE) -> 15
A25: ING | B25: =IF(C25>=1,1,0) -> 1 | C25: =HLOOKUP(A25&$A$4,TABNILSM3,4,FALSE) -> 5 | D25: Bahasa Inggris | E25: 1 | F25: =HLOOKUP(A25&$A$4,TABNILSM3,6,FALSE) -> 16
A26: ING | B26: =IF(C25>=1,1,0) -> 1 | D26: Bahasa Inggris | E26: 2 | F26: =HLOOKUP(A26&$A$5,TABNILSM3,6,FALSE) -> 17
A27: ING | B27: =IF(C25>=1,1,0) -> 1 | D27: Bahasa Inggris | E27: 3 | F27: =HLOOKUP(A27&$A$6,TABNILSM3,6,FALSE) -> 18
A28: JER | B28: =IF(C28>=1,1,0) -> 0 | C28: =HLOOKUP(A28&$A$4,TABNILSM3,4,FALSE) -> 0 | D28: - | E28: 1 | F28: =HLOOKUP(A28&$A$4,TABNILSM3,6,FALSE) -> 19
A29: JER | B29: 0 | D29: - | E29: 2 | F29: =HLOOKUP(A29&$A$5,TABNILSM3,6,FALSE) -> 20
A30: JER | B30: =IF(C28>=1,1,0) -> 0 | D30: - | E30: 3 | F30: =HLOOKUP(A30&$A$6,TABNILSM3,6,FALSE) -> 21
B31: =IF(AND(COUNT(C31)=0,C35=0),0,1) -> 1 | C31: B. Muatan Kewilayahan
A32: SBD | B32: =IF(C32>=1,1,0) -> 0 | C32: =HLOOKUP(A32&$A$4,TABNILSM3,4,FALSE) -> 0 | D32: =HLOOKUP(A32&$A$4,TABNILSM3,2,FALSE) -> - | E32: 1 | F32: =HLOOKUP(A32&$A$4,TABNILSM3,6,FALSE) -> 22
A33: SBD | B33: =IF(C32>=1,1,0) -> 0 | D33: - | E33: 2 | F33: =HLOOKUP(A33&$A$5,TABNILSM3,6,FALSE) -> 23
A34: SBD | B34: =IF(C32>=1,1,0) -> 0 | D34: - | E34: 3 | F34: =HLOOKUP(A34&$A$6,TABNILSM3,6,FALSE) -> 24
A35: PJO | B35: 1 | C35: =HLOOKUP(A35&$A$4,TABNILSM3,4,FALSE) -> 6 | D35: Pendidikan Jasmani, Olahraga dan Kesehatan | E35: 1 | F35: =HLOOKUP(A35&$A$4,TABNILSM3,6,FALSE) -> 25
A36: PJO | B36: 1 | D36: Pendidikan Jasmani, Olahraga dan Kesehatan | E36: 2 | F36: =HLOOKUP(A36&$A$5,TABNILSM3,6,FALSE) -> 26
A37: PJO | B37: 1 | D37: Pendidikan Jasmani, Olahraga dan Kesehatan | E37: 3 | F37: =HLOOKUP(A37&$A$6,TABNILSM3,6,FALSE) -> 27
A38: - | B38: 1 | C38: C. Muatan Peminatan Kejuruan
B39: =IF(AND(COUNT(C39)=0,C40=0),0,1) -> 0 | C39: C1 | D39: Dasar Bidang Keahlian
A40: SKD | B40: =IF(C40>=1,1,0) -> 0 | C40: =HLOOKUP(A40&$A$4,TABNILSM3,4,FALSE) -> 0 | D40: =HLOOKUP(A40&$A$4,TABNILSM3,2,FALSE) -> - | E40: 1 | F40: =HLOOKUP(A40&$A$4,TABNILSM3,6,FALSE) -> 28
A41: SKD | B41: =IF(C40>=1,1,0) -> 0 | D41: - | E41: 2 | F41: =HLOOKUP(A41&$A$5,TABNILSM3,6,FALSE) -> 29
A42: SKD | B42: =IF(C40>=1,1,0) -> 0 | D42: - | E42: 3 | F42: =HLOOKUP(A42&$A$6,TABNILSM3,6,FALSE) -> 30
A43: FIS | B43: 0 | C43: =HLOOKUP(A43&$A$4,TABNILSM3,4,FALSE) -> 0 | D43: - | E43: 1 | F43: =HLOOKUP(A43&$A$4,TABNILSM3,6,FALSE) -> 31
A44: FIS | B44: 0 | D44: - | E44: 2 | F44: =HLOOKUP(A44&$A$5,TABNILSM3,6,FALSE) -> 32
A45: FIS | B45: 0 | D45: - | E45: 3 | F45: =HLOOKUP(A45&$A$6,TABNILSM3,6,FALSE) -> 33
A46: KIM | B46: 0 | C46: =HLOOKUP(A46&$A$4,TABNILSM3,4,FALSE) -> 0 | D46: - | E46: 1 | F46: =HLOOKUP(A46&$A$4,TABNILSM3,6,FALSE) -> 34
A47: KIM | B47: 0 | D47: - | E47: 2 | F47: =HLOOKUP(A47&$A$5,TABNILSM3,6,FALSE) -> 35
A48: KIM | B48: 0 | D48: - | E48: 3 | F48: =HLOOKUP(A48&$A$6,TABNILSM3,6,FALSE) -> 36
B49: =IF(AND(COUNT(C49)=0,C50=0),0,1) -> 0 | C49: C2 | D49: Dasar Program Keahlian | Q49: =VLOOKUP($R$13,TAB_BIODATA,BIODATA!C4,FALSE) -> ADAM ADIYAT HARTANTO
A50: C21 | B50: =IF(C50>=1,1,0) -> 0 | C50: =HLOOKUP(A50&$A$4,TABNILSM3,4,FALSE) -> 0 | D50: =HLOOKUP(A50&$A$4,TABNILSM3,2,FALSE) -> - | E50: 1 | F50: =HLOOKUP(A50&$A$4,TABNILSM3,6,FALSE) -> 37
A51: C21 | B51: =IF(C50>=1,1,0) -> 0 | D51: - | E51: 2 | F51: =HLOOKUP(A51&$A$5,TABNILSM3,6,FALSE) -> 38 | Q51: ="Nomor Urut "&R13 -> Nomor Urut 1
A52: C21 | B52: =IF(C50>=1,1,0) -> 0 | D52: - | E52: 3 | F52: =HLOOKUP(A52&$A$6,TABNILSM3,6,FALSE) -> 39
A53: C22 | B53: 0 | C53: =HLOOKUP(A53&$A$4,TABNILSM3,4,FALSE) -> 0 | D53: - | E53: 1 | F53: =HLOOKUP(A53&$A$4,TABNILSM3,6,FALSE) -> 40
A54: C22 | B54: 0 | D54: - | E54: 2 | F54: =HLOOKUP(A54&$A$5,TABNILSM3,6,FALSE) -> 41
A55: C22 | B55: 0 | D55: - | E55: 3 | F55: =HLOOKUP(A55&$A$6,TABNILSM3,6,FALSE) -> 42
A56: C23 | B56: 0 | C56: =HLOOKUP(A56&$A$4,TABNILSM3,4,FALSE) -> 0 | D56: - | E56: 1 | F56: =HLOOKUP(A56&$A$4,TABNILSM3,6,FALSE) -> 43
A57: C23 | B57: 0 | D57: - | E57: 2 | F57: =HLOOKUP(A57&$A$5,TABNILSM3,6,FALSE) -> 44
A58: C23 | B58: 0 | D58: - | E58: 3 | F58: =HLOOKUP(A58&$A$6,TABNILSM3,6,FALSE) -> 45
A59: C24 | B59: 0 | C59: =HLOOKUP(A59&$A$4,TABNILSM3,4,FALSE) -> 0 | D59: - | E59: 1 | F59: =HLOOKUP(A59&$A$4,TABNILSM3,6,FALSE) -> 46
A60: C24 | B60: 0 | D60: - | E60: 2 | F60: =HLOOKUP(A60&$A$5,TABNILSM3,6,FALSE) -> 47
A61: C24 | B61: 0 | D61: - | E61: 3 | F61: =HLOOKUP(A61&$A$6,TABNILSM3,6,FALSE) -> 48
A62: - | B62: =IF(AND(COUNT(C62)=0,C69=0),0,1) -> 1 | C62: C3 | D62: Kompetensi Keahlian
A63: C31 | B63: =IF(C63>=1,1,0) -> 1 | C63: =HLOOKUP(A63&$A$4,TABNILSM3,4,FALSE) -> 7 | D63: =HLOOKUP(A63&$A$4,TABNILSM3,2,FALSE) -> Pemeliharaan Mesin Sepeda Motor | E63: 1 | F63: =HLOOKUP(A63&$A$4,TABNILSM3,6,FALSE) -> 49
A64: C31 | B64: =IF(C63>=1,1,0) -> 1 | D64: Pemeliharaan Mesin Sepeda Motor | E64: 2 | F64: =HLOOKUP(A64&$A$5,TABNILSM3,6,FALSE) -> 50
A65: C31 | B65: =IF(C63>=1,1,0) -> 1 | D65: Pemeliharaan Mesin Sepeda Motor | E65: 3 | F65: =HLOOKUP(A65&$A$6,TABNILSM3,6,FALSE) -> 51
A66: C32 | B66: 1 | C66: =HLOOKUP(A66&$A$4,TABNILSM3,4,FALSE) -> 8 | D66: Pemeliharaan Sasis Sepeda Motor | E66: 1 | F66: =HLOOKUP(A66&$A$4,TABNILSM3,6,FALSE) -> 52
A67: C32 | B67: 1 | D67: Pemeliharaan Sasis Sepeda Motor | E67: 2 | F67: =HLOOKUP(A67&$A$5,TABNILSM3,6,FALSE) -> 53
A68: C32 | B68: 1 | D68: Pemeliharaan Sasis Sepeda Motor | E68: 3 | F68: =HLOOKUP(A68&$A$6,TABNILSM3,6,FALSE) -> 54
A69: C33 | B69: 1 | C69: =HLOOKUP(A69&$A$4,TABNILSM3,4,FALSE) -> 9 | D69: Pemeliharaan Kelistrikan Sepeda Motor | E69: 1 | F69: =HLOOKUP(A69&$A$4,TABNILSM3,6,FALSE) -> 55
A70: C33 | B70: 1 | D70: Pemeliharaan Kelistrikan Sepeda Motor | E70: 2 | F70: =HLOOKUP(A70&$A$5,TABNILSM3,6,FALSE) -> 56
A71: C33 | B71: 1 | D71: Pemeliharaan Kelistrikan Sepeda Motor | E71: 3 | F71: =HLOOKUP(A71&$A$6,TABNILSM3,6,FALSE) -> 57
A72: C34 | B72: 0 | C72: =HLOOKUP(A72&$A$4,TABNILSM3,4,FALSE) -> 0 | D72: - | E72: 1 | F72: =HLOOKUP(A72&$A$4,TABNILSM3,6,FALSE) -> 58
A73: C34 | B73: 0 | D73: - | E73: 2 | F73: =HLOOKUP(A73&$A$5,TABNILSM3,6,FALSE) -> 59
A74: C34 | B74: 0 | D74: - | E74: 3 | F74: =HLOOKUP(A74&$A$6,TABNILSM3,6,FALSE) -> 60
A75: C35 | B75: 0 | C75: =HLOOKUP(A75&$A$4,TABNILSM3,4,FALSE) -> 0 | D75: - | E75: 1 | F75: =HLOOKUP(A75&$A$4,TABNILSM3,6,FALSE) -> 61
A76: C35 | B76: 0 | D76: - | E76: 2 | F76: =HLOOKUP(A76&$A$5,TABNILSM3,6,FALSE) -> 62
A77: C35 | B77: 0 | D77: - | E77: 3 | F77: =HLOOKUP(A77&$A$6,TABNILSM3,6,FALSE) -> 63
A78: C36 | B78: 1 | C78: =HLOOKUP(A78&$A$4,TABNILSM3,4,FALSE) -> 10 | D78: Produk Kreatif dan Kewirausahaan | E78: 1 | F78: =HLOOKUP(A78&$A$4,TABNILSM3,6,FALSE) -> 64
A79: C36 | B79: 1 | D79: Produk Kreatif dan Kewirausahaan | E79: 2 | F79: =HLOOKUP(A79&$A$5,TABNILSM3,6,FALSE) -> 65
A80: C36 | B80: 1 | D80: Produk Kreatif dan Kewirausahaan | E80: 3 | F80: =HLOOKUP(A80&$A$6,TABNILSM3,6,FALSE) -> 66
B81: =IF(AND(COUNT(C81)=0,C82=0),0,1) -> 0 | C81: Muatan Lokal
A82: SUN | B82: =IF(C82>=1,1,0) -> 0 | C82: =HLOOKUP(A82&$A$4,TABNILSM3,4,FALSE) -> 0 | D82: =HLOOKUP(A82&$A$4,TABNILSM3,2,FALSE) -> - | E82: 1 | F82: =HLOOKUP(A82&$A$4,TABNILSM3,6,FALSE) -> 67
A83: SUN | B83: =IF(C82>=1,1,0) -> 0 | D83: - | E83: 2 | F83: =HLOOKUP(A83&$A$5,TABNILSM3,6,FALSE) -> 68
A84: SUN | B84: =IF(C82>=1,1,0) -> 0 | D84: - | E84: 3 | F84: =HLOOKUP(A84&$A$6,TABNILSM3,6,FALSE) -> 69
A85: PLH | B85: =IF(C85>=1,1,0) -> 0 | C85: =HLOOKUP(A85&$A$4,TABNILSM3,4,FALSE) -> 0 | D85: - | E85: 1 | F85: =HLOOKUP(A85&$A$4,TABNILSM3,6,FALSE) -> 70
A86: PLH | B86: 0 | D86: - | E86: 2 | F86: =HLOOKUP(A86&$A$5,TABNILSM3,6,FALSE) -> 71
A87: PLH | B87: =IF(C85>=1,1,0) -> 0 | D87: - | E87: 3 | F87: =HLOOKUP(A87&$A$6,TABNILSM3,6,FALSE) -> 72

Sheet CETKD4
C1: DAFTAR TOPIK PER KOMPETENSI DASAR | Q1: JURUSAN | R1: =MENU!F8 -> TBSM
Q2: NIS | R2: =VLOOKUP($R$13,TAB_BIODATA,BIODATA!D4,FALSE) -> 16170535
D3: Bidang Keahlian | E3: : | F3: =VLOOKUP($R$1,TAB_JURUSAN,2,FALSE) -> Teknologi dan Rekayasa
A4: T1 | D4: Program Keahlian | E4: : | F4: =VLOOKUP($R$1,TAB_JURUSAN,3,FALSE) -> Teknik Otomotif
A5: T2 | D5: Kompetensi Keahlian | E5: : | F5: =VLOOKUP($R$1,TAB_JURUSAN,4,FALSE) -> Teknik dan Bisnis Sepeda Motor | Q5: DATA CETAK | S5: HALAMAN CETAK
A6: T3 | D6: Semester | E6: : | F6: =NILSM4!B3 -> 4 (empat) | Q6: Dari data ke | R6: 1 | S6: Dari | T6: 1
B8: 1 | C8: No. | D8: Mata Pelajaran | E8: KD | F8: Nama Topik | Q8: Sampai data ke | R8: 2 | S8: Ke | T8: 1
B9: 1 | C9: A. Muatan Nasional | F9: T1 | G9: U1 | H9: T2 | I9: U2 | J9: T3 | K9: U3 | L9: H
A10: PAB | B10: =IF(C10>=1,1,0) -> 1 | C10: =HLOOKUP(A10&$A$4,TABNILSM4,4,FALSE) -> 1 | D10: =HLOOKUP(A10&$A$4,TABNILSM4,2,FALSE) -> Pendidikan Agama dan Budi Pekerti | E10: 1 | F10: =HLOOKUP(A10&$A$4,TABNILSM4,6,FALSE) -> Haji, Zakat dan Wakaf
A11: PAB | B11: =IF(C10>=1,1,0) -> 1 | D11: Pendidikan Agama dan Budi Pekerti | E11: 2 | F11: =HLOOKUP(A11&$A$5,TABNILSM4,6,FALSE) -> Dakwah Nabi Muhammad SAW di Mekah
A12: PAB | B12: =IF(C10>=1,1,0) -> 1 | D12: Pendidikan Agama dan Budi Pekerti | E12: 3 | F12: =HLOOKUP(A12&$A$6,TABNILSM4,6,FALSE) -> Dakwah Nabi Muhammad SAW di Madinah | Q12: TAMPILAN DATA
A13: PKN | B13: =IF(C13>=1,1,0) -> 1 | C13: =HLOOKUP(A13&$A$4,TABNILSM4,4,FALSE) -> 2 | D13: Pendidikan Pancasila dan Kewarganegaraan | E13: 1 | F13: =HLOOKUP(A13&$A$4,TABNILSM4,6,FALSE) -> 4 | Q13: Nomor Urut | R13: 1
A14: PKN | B14: =IF(C13>=1,1,0) -> 1 | D14: Pendidikan Pancasila dan Kewarganegaraan | E14: 2 | F14: =HLOOKUP(A14&$A$5,TABNILSM4,6,FALSE) -> 5
A15: PKN | B15: =IF(C13>=1,1,0) -> 1 | D15: Pendidikan Pancasila dan Kewarganegaraan | E15: 3 | F15: =HLOOKUP(A15&$A$6,TABNILSM4,6,FALSE) -> 6
A16: IND | B16: =IF(C16>=1,1,0) -> 1 | C16: =HLOOKUP(A16&$A$4,TABNILSM4,4,FALSE) -> 3 | D16: Bahasa Indonesia | E16: 1 | F16: =HLOOKUP(A16&$A$4,TABNILSM4,6,FALSE) -> 7
A17: IND | B17: =IF(C16>=1,1,0) -> 1 | D17: Bahasa Indonesia | E17: 2 | F17: =HLOOKUP(A17&$A$5,TABNILSM4,6,FALSE) -> 8
A18: IND | B18: =IF(C16>=1,1,0) -> 1 | D18: Bahasa Indonesia | E18: 3 | F18: =HLOOKUP(A18&$A$6,TABNILSM4,6,FALSE) -> 9
A19: MTK | B19: =IF(C19>=1,1,0) -> 1 | C19: =HLOOKUP(A19&$A$4,TABNILSM4,4,FALSE) -> 4 | D19: Matematika | E19: 1 | F19: =HLOOKUP(A19&$A$4,TABNILSM4,6,FALSE) -> 10
A20: MTK | B20: =IF(C19>=1,1,0) -> 1 | D20: Matematika | E20: 2 | F20: =HLOOKUP(A20&$A$5,TABNILSM4,6,FALSE) -> 11
A21: MTK | B21: =IF(C19>=1,1,0) -> 1 | D21: Matematika | E21: 3 | F21: =HLOOKUP(A21&$A$6,TABNILSM4,6,FALSE) -> 12
A22: SJI | B22: =IF(C22>=1,1,0) -> 0 | C22: =HLOOKUP(A22&$A$4,TABNILSM4,4,FALSE) -> 0 | D22: - | E22: 1 | F22: =HLOOKUP(A22&$A$4,TABNILSM4,6,FALSE) -> 13
A23: SJI | B23: =IF(C22>=1,1,0) -> 0 | D23: - | E23: 2 | F23: =HLOOKUP(A23&$A$5,TABNILSM4,6,FALSE) -> 14
A24: SJI | B24: =IF(C22>=1,1,0) -> 0 | D24: - | E24: 3 | F24: =HLOOKUP(A24&$A$6,TABNILSM4,6,FALSE) -> 15
A25: ING | B25: =IF(C25>=1,1,0) -> 1 | C25: =HLOOKUP(A25&$A$4,TABNILSM4,4,FALSE) -> 5 | D25: Bahasa Inggris | E25: 1 | F25: =HLOOKUP(A25&$A$4,TABNILSM4,6,FALSE) -> 16
A26: ING | B26: =IF(C25>=1,1,0) -> 1 | D26: Bahasa Inggris | E26: 2 | F26: =HLOOKUP(A26&$A$5,TABNILSM4,6,FALSE) -> 17
A27: ING | B27: =IF(C25>=1,1,0) -> 1 | D27: Bahasa Inggris | E27: 3 | F27: =HLOOKUP(A27&$A$6,TABNILSM4,6,FALSE) -> 18
A28: JER | B28: =IF(C28>=1,1,0) -> 0 | C28: =HLOOKUP(A28&$A$4,TABNILSM4,4,FALSE) -> 0 | D28: - | E28: 1 | F28: =HLOOKUP(A28&$A$4,TABNILSM4,6,FALSE) -> 19
A29: JER | B29: 0 | D29: - | E29: 2 | F29: =HLOOKUP(A29&$A$5,TABNILSM4,6,FALSE) -> 20
A30: JER | B30: =IF(C28>=1,1,0) -> 0 | D30: - | E30: 3 | F30: =HLOOKUP(A30&$A$6,TABNILSM4,6,FALSE) -> 21
B31: =IF(AND(COUNT(C31)=0,C35=0),0,1) -> 1 | C31: B. Muatan Kewilayahan
A32: SBD | B32: =IF(C32>=1,1,0) -> 0 | C32: =HLOOKUP(A32&$A$4,TABNILSM4,4,FALSE) -> 0 | D32: =HLOOKUP(A32&$A$4,TABNILSM4,2,FALSE) -> - | E32: 1 | F32: =HLOOKUP(A32&$A$4,TABNILSM4,6,FALSE) -> 22
A33: SBD | B33: =IF(C32>=1,1,0) -> 0 | D33: - | E33: 2 | F33: =HLOOKUP(A33&$A$5,TABNILSM4,6,FALSE) -> 23
A34: SBD | B34: =IF(C32>=1,1,0) -> 0 | D34: - | E34: 3 | F34: =HLOOKUP(A34&$A$6,TABNILSM4,6,FALSE) -> 24
A35: PJO | B35: 1 | C35: =HLOOKUP(A35&$A$4,TABNILSM4,4,FALSE) -> 6 | D35: Pendidikan Jasmani, Olahraga dan Kesehatan | E35: 1 | F35: =HLOOKUP(A35&$A$4,TABNILSM4,6,FALSE) -> 25
A36: PJO | B36: 1 | D36: Pendidikan Jasmani, Olahraga dan Kesehatan | E36: 2 | F36: =HLOOKUP(A36&$A$5,TABNILSM4,6,FALSE) -> 26
A37: PJO | B37: 1 | D37: Pendidikan Jasmani, Olahraga dan Kesehatan | E37: 3 | F37: =HLOOKUP(A37&$A$6,TABNILSM4,6,FALSE) -> 27
A38: - | B38: 1 | C38: C. Muatan Peminatan Kejuruan
B39: =IF(AND(COUNT(C39)=0,C40=0),0,1) -> 0 | C39: C1 | D39: Dasar Bidang Keahlian
A40: SKD | B40: =IF(C40>=1,1,0) -> 0 | C40: =HLOOKUP(A40&$A$4,TABNILSM4,4,FALSE) -> 0 | D40: =HLOOKUP(A40&$A$4,TABNILSM4,2,FALSE) -> - | E40: 1 | F40: =HLOOKUP(A40&$A$4,TABNILSM4,6,FALSE) -> 28
A41: SKD | B41: =IF(C40>=1,1,0) -> 0 | D41: - | E41: 2 | F41: =HLOOKUP(A41&$A$5,TABNILSM4,6,FALSE) -> 29
A42: SKD | B42: =IF(C40>=1,1,0) -> 0 | D42: - | E42: 3 | F42: =HLOOKUP(A42&$A$6,TABNILSM4,6,FALSE) -> 30
A43: FIS | B43: 0 | C43: =HLOOKUP(A43&$A$4,TABNILSM4,4,FALSE) -> 0 | D43: - | E43: 1 | F43: =HLOOKUP(A43&$A$4,TABNILSM4,6,FALSE) -> 31
A44: FIS | B44: 0 | D44: - | E44: 2 | F44: =HLOOKUP(A44&$A$5,TABNILSM4,6,FALSE) -> 32
A45: FIS | B45: 0 | D45: - | E45: 3 | F45: =HLOOKUP(A45&$A$6,TABNILSM4,6,FALSE) -> 33
A46: KIM | B46: 0 | C46: =HLOOKUP(A46&$A$4,TABNILSM4,4,FALSE) -> 0 | D46: - | E46: 1 | F46: =HLOOKUP(A46&$A$4,TABNILSM4,6,FALSE) -> 34
A47: KIM | B47: 0 | D47: - | E47: 2 | F47: =HLOOKUP(A47&$A$5,TABNILSM4,6,FALSE) -> 35
A48: KIM | B48: 0 | D48: - | E48: 3 | F48: =HLOOKUP(A48&$A$6,TABNILSM4,6,FALSE) -> 36
B49: =IF(AND(COUNT(C49)=0,C50=0),0,1) -> 0 | C49: C2 | D49: Dasar Program Keahlian | Q49: =VLOOKUP($R$13,TAB_BIODATA,BIODATA!C4,FALSE) -> ADAM ADIYAT HARTANTO
A50: C21 | B50: =IF(C50>=1,1,0) -> 0 | C50: =HLOOKUP(A50&$A$4,TABNILSM4,4,FALSE) -> 0 | D50: =HLOOKUP(A50&$A$4,TABNILSM4,2,FALSE) -> - | E50: 1 | F50: =HLOOKUP(A50&$A$4,TABNILSM4,6,FALSE) -> 37
A51: C21 | B51: =IF(C50>=1,1,0) -> 0 | D51: - | E51: 2 | F51: =HLOOKUP(A51&$A$5,TABNILSM4,6,FALSE) -> 38 | Q51: ="Nomor Urut "&R13 -> Nomor Urut 1
A52: C21 | B52: =IF(C50>=1,1,0) -> 0 | D52: - | E52: 3 | F52: =HLOOKUP(A52&$A$6,TABNILSM4,6,FALSE) -> 39
A53: C22 | B53: 0 | C53: =HLOOKUP(A53&$A$4,TABNILSM4,4,FALSE) -> 0 | D53: - | E53: 1 | F53: =HLOOKUP(A53&$A$4,TABNILSM4,6,FALSE) -> 40
A54: C22 | B54: 0 | D54: - | E54: 2 | F54: =HLOOKUP(A54&$A$5,TABNILSM4,6,FALSE) -> 41
A55: C22 | B55: 0 | D55: - | E55: 3 | F55: =HLOOKUP(A55&$A$6,TABNILSM4,6,FALSE) -> 42
A56: C23 | B56: 0 | C56: =HLOOKUP(A56&$A$4,TABNILSM4,4,FALSE) -> 0 | D56: - | E56: 1 | F56: =HLOOKUP(A56&$A$4,TABNILSM4,6,FALSE) -> 43
A57: C23 | B57: 0 | D57: - | E57: 2 | F57: =HLOOKUP(A57&$A$5,TABNILSM4,6,FALSE) -> 44
A58: C23 | B58: 0 | D58: - | E58: 3 | F58: =HLOOKUP(A58&$A$6,TABNILSM4,6,FALSE) -> 45
A59: C24 | B59: 0 | C59: =HLOOKUP(A59&$A$4,TABNILSM4,4,FALSE) -> 0 | D59: - | E59: 1 | F59: =HLOOKUP(A59&$A$4,TABNILSM4,6,FALSE) -> 46
A60: C24 | B60: 0 | D60: - | E60: 2 | F60: =HLOOKUP(A60&$A$5,TABNILSM4,6,FALSE) -> 47
A61: C24 | B61: 0 | D61: - | E61: 3 | F61: =HLOOKUP(A61&$A$6,TABNILSM4,6,FALSE) -> 48
A62: - | B62: =IF(AND(COUNT(C62)=0,C69=0),0,1) -> 1 | C62: C3 | D62: Kompetensi Keahlian
A63: C31 | B63: =IF(C63>=1,1,0) -> 1 | C63: =HLOOKUP(A63&$A$4,TABNILSM4,4,FALSE) -> 7 | D63: =HLOOKUP(A63&$A$4,TABNILSM4,2,FALSE) -> Pemeliharaan Mesin Sepeda Motor | E63: 1 | F63: =HLOOKUP(A63&$A$4,TABNILSM4,6,FALSE) -> 49
A64: C31 | B64: =IF(C63>=1,1,0) -> 1 | D64: Pemeliharaan Mesin Sepeda Motor | E64: 2 | F64: =HLOOKUP(A64&$A$5,TABNILSM4,6,FALSE) -> 50
A65: C31 | B65: =IF(C63>=1,1,0) -> 1 | D65: Pemeliharaan Mesin Sepeda Motor | E65: 3 | F65: =HLOOKUP(A65&$A$6,TABNILSM4,6,FALSE) -> 51
A66: C32 | B66: 1 | C66: =HLOOKUP(A66&$A$4,TABNILSM4,4,FALSE) -> 8 | D66: Pemeliharaan Sasis Sepeda Motor | E66: 1 | F66: =HLOOKUP(A66&$A$4,TABNILSM4,6,FALSE) -> 52
A67: C32 | B67: 1 | D67: Pemeliharaan Sasis Sepeda Motor | E67: 2 | F67: =HLOOKUP(A67&$A$5,TABNILSM4,6,FALSE) -> 53
A68: C32 | B68: 1 | D68: Pemeliharaan Sasis Sepeda Motor | E68: 3 | F68: =HLOOKUP(A68&$A$6,TABNILSM4,6,FALSE) -> 54
A69: C33 | B69: 1 | C69: =HLOOKUP(A69&$A$4,TABNILSM4,4,FALSE) -> 9 | D69: Pemeliharaan Kelistrikan Sepeda Motor | E69: 1 | F69: =HLOOKUP(A69&$A$4,TABNILSM4,6,FALSE) -> 55
A70: C33 | B70: 1 | D70: Pemeliharaan Kelistrikan Sepeda Motor | E70: 2 | F70: =HLOOKUP(A70&$A$5,TABNILSM4,6,FALSE) -> 56
A71: C33 | B71: 1 | D71: Pemeliharaan Kelistrikan Sepeda Motor | E71: 3 | F71: =HLOOKUP(A71&$A$6,TABNILSM4,6,FALSE) -> 57
A72: C34 | B72: 0 | C72: =HLOOKUP(A72&$A$4,TABNILSM4,4,FALSE) -> 0 | D72: - | E72: 1 | F72: =HLOOKUP(A72&$A$4,TABNILSM4,6,FALSE) -> 58
A73: C34 | B73: 0 | D73: - | E73: 2 | F73: =HLOOKUP(A73&$A$5,TABNILSM4,6,FALSE) -> 59
A74: C34 | B74: 0 | D74: - | E74: 3 | F74: =HLOOKUP(A74&$A$6,TABNILSM4,6,FALSE) -> 60
A75: C35 | B75: 0 | C75: =HLOOKUP(A75&$A$4,TABNILSM4,4,FALSE) -> 0 | D75: - | E75: 1 | F75: =HLOOKUP(A75&$A$4,TABNILSM4,6,FALSE) -> 61
A76: C35 | B76: 0 | D76: - | E76: 2 | F76: =HLOOKUP(A76&$A$5,TABNILSM4,6,FALSE) -> 62
A77: C35 | B77: 0 | D77: - | E77: 3 | F77: =HLOOKUP(A77&$A$6,TABNILSM4,6,FALSE) -> 63
A78: C36 | B78: 1 | C78: =HLOOKUP(A78&$A$4,TABNILSM4,4,FALSE) -> 10 | D78: Produk Kreatif dan Kewirausahaan | E78: 1 | F78: =HLOOKUP(A78&$A$4,TABNILSM4,6,FALSE) -> 64
A79: C36 | B79: 1 | D79: Produk Kreatif dan Kewirausahaan | E79: 2 | F79: =HLOOKUP(A79&$A$5,TABNILSM4,6,FALSE) -> 65
A80: C36 | B80: 1 | D80: Produk Kreatif dan Kewirausahaan | E80: 3 | F80: =HLOOKUP(A80&$A$6,TABNILSM4,6,FALSE) -> 66
B81: =IF(AND(COUNT(C81)=0,C82=0),0,1) -> 0 | C81: Muatan Lokal
A82: SUN | B82: =IF(C82>=1,1,0) -> 0 | C82: =HLOOKUP(A82&$A$4,TABNILSM4,4,FALSE) -> 0 | D82: =HLOOKUP(A82&$A$4,TABNILSM4,2,FALSE) -> - | E82: 1 | F82: =HLOOKUP(A82&$A$4,TABNILSM4,6,FALSE) -> 67
A83: SUN | B83: =IF(C82>=1,1,0) -> 0 | D83: - | E83: 2 | F83: =HLOOKUP(A83&$A$5,TABNILSM4,6,FALSE) -> 68
A84: SUN | B84: =IF(C82>=1,1,0) -> 0 | D84: - | E84: 3 | F84: =HLOOKUP(A84&$A$6,TABNILSM4,6,FALSE) -> 69
A85: PLH | B85: =IF(C85>=1,1,0) -> 0 | C85: =HLOOKUP(A85&$A$4,TABNILSM4,4,FALSE) -> 0 | D85: - | E85: 1 | F85: =HLOOKUP(A85&$A$4,TABNILSM4,6,FALSE) -> 70
A86: PLH | B86: 0 | D86: - | E86: 2 | F86: =HLOOKUP(A86&$A$5,TABNILSM4,6,FALSE) -> 71
A87: PLH | B87: =IF(C85>=1,1,0) -> 0 | D87: - | E87: 3 | F87: =HLOOKUP(A87&$A$6,TABNILSM4,6,FALSE) -> 72

Sheet CETKD5
C1: DAFTAR TOPIK PER KOMPETENSI DASAR | Q1: JURUSAN | R1: =MENU!F8 -> TBSM
Q2: NIS | R2: =VLOOKUP($R$13,TAB_BIODATA,BIODATA!D4,FALSE) -> 16170535
D3: Bidang Keahlian | E3: : | F3: =VLOOKUP($R$1,TAB_JURUSAN,2,FALSE) -> Teknologi dan Rekayasa
A4: T1 | D4: Program Keahlian | E4: : | F4: =VLOOKUP($R$1,TAB_JURUSAN,3,FALSE) -> Teknik Otomotif
A5: T2 | D5: Kompetensi Keahlian | E5: : | F5: =VLOOKUP($R$1,TAB_JURUSAN,4,FALSE) -> Teknik dan Bisnis Sepeda Motor | Q5: DATA CETAK | S5: HALAMAN CETAK
A6: T3 | D6: Semester | E6: : | F6: =NILSM5!B3 -> 5 (lima) | Q6: Dari data ke | R6: 1 | S6: Dari | T6: 1
B8: 1 | C8: No. | D8: Mata Pelajaran | E8: KD | F8: Nama Topik | Q8: Sampai data ke | R8: 2 | S8: Ke | T8: 1
B9: 1 | C9: A. Muatan Nasional | F9: T1 | G9: U1 | H9: T2 | I9: U2 | J9: T3 | K9: U3 | L9: H
A10: PAB | B10: =IF(C10>=1,1,0) -> 1 | C10: =HLOOKUP(A10&$A$4,TABNILSM5,4,FALSE) -> 1 | D10: =HLOOKUP(A10&$A$4,TABNILSM5,2,FALSE) -> Pendidikan Agama dan Budi Pekerti | E10: 1 | F10: =HLOOKUP(A10&$A$4,TABNILSM5,6,FALSE) -> Ibadah Haji
A11: PAB | B11: =IF(C10>=1,1,0) -> 1 | D11: Pendidikan Agama dan Budi Pekerti | E11: 2 | F11: =HLOOKUP(A11&$A$5,TABNILSM5,6,FALSE) -> 2
A12: PAB | B12: =IF(C10>=1,1,0) -> 1 | D12: Pendidikan Agama dan Budi Pekerti | E12: 3 | F12: =HLOOKUP(A12&$A$6,TABNILSM5,6,FALSE) -> 3 | Q12: TAMPILAN DATA
A13: PKN | B13: =IF(C13>=1,1,0) -> 1 | C13: =HLOOKUP(A13&$A$4,TABNILSM5,4,FALSE) -> 2 | D13: Pendidikan Pancasila dan Kewarganegaraan | E13: 1 | F13: =HLOOKUP(A13&$A$4,TABNILSM5,6,FALSE) -> 4 | Q13: Nomor Urut | R13: 1
A14: PKN | B14: =IF(C13>=1,1,0) -> 1 | D14: Pendidikan Pancasila dan Kewarganegaraan | E14: 2 | F14: =HLOOKUP(A14&$A$5,TABNILSM5,6,FALSE) -> 5
A15: PKN | B15: =IF(C13>=1,1,0) -> 1 | D15: Pendidikan Pancasila dan Kewarganegaraan | E15: 3 | F15: =HLOOKUP(A15&$A$6,TABNILSM5,6,FALSE) -> 6
A16: IND | B16: =IF(C16>=1,1,0) -> 1 | C16: =HLOOKUP(A16&$A$4,TABNILSM5,4,FALSE) -> 3 | D16: Bahasa Indonesia | E16: 1 | F16: =HLOOKUP(A16&$A$4,TABNILSM5,6,FALSE) -> 7
A17: IND | B17: =IF(C16>=1,1,0) -> 1 | D17: Bahasa Indonesia | E17: 2 | F17: =HLOOKUP(A17&$A$5,TABNILSM5,6,FALSE) -> 8
A18: IND | B18: =IF(C16>=1,1,0) -> 1 | D18: Bahasa Indonesia | E18: 3 | F18: =HLOOKUP(A18&$A$6,TABNILSM5,6,FALSE) -> 9
A19: MTK | B19: =IF(C19>=1,1,0) -> 1 | C19: =HLOOKUP(A19&$A$4,TABNILSM5,4,FALSE) -> 4 | D19: Matematika | E19: 1 | F19: =HLOOKUP(A19&$A$4,TABNILSM5,6,FALSE) -> 10
A20: MTK | B20: =IF(C19>=1,1,0) -> 1 | D20: Matematika | E20: 2 | F20: =HLOOKUP(A20&$A$5,TABNILSM5,6,FALSE) -> 11
A21: MTK | B21: =IF(C19>=1,1,0) -> 1 | D21: Matematika | E21: 3 | F21: =HLOOKUP(A21&$A$6,TABNILSM5,6,FALSE) -> 12
A22: SJI | B22: =IF(C22>=1,1,0) -> 0 | C22: =HLOOKUP(A22&$A$4,TABNILSM5,4,FALSE) -> 0 | D22: - | E22: 1 | F22: =HLOOKUP(A22&$A$4,TABNILSM5,6,FALSE) -> 13
A23: SJI | B23: =IF(C22>=1,1,0) -> 0 | D23: - | E23: 2 | F23: =HLOOKUP(A23&$A$5,TABNILSM5,6,FALSE) -> 14
A24: SJI | B24: =IF(C22>=1,1,0) -> 0 | D24: - | E24: 3 | F24: =HLOOKUP(A24&$A$6,TABNILSM5,6,FALSE) -> 15
A25: ING | B25: =IF(C25>=1,1,0) -> 1 | C25: =HLOOKUP(A25&$A$4,TABNILSM5,4,FALSE) -> 5 | D25: Bahasa Inggris | E25: 1 | F25: =HLOOKUP(A25&$A$4,TABNILSM5,6,FALSE) -> 16
A26: ING | B26: =IF(C25>=1,1,0) -> 1 | D26: Bahasa Inggris | E26: 2 | F26: =HLOOKUP(A26&$A$5,TABNILSM5,6,FALSE) -> 17
A27: ING | B27: =IF(C25>=1,1,0) -> 1 | D27: Bahasa Inggris | E27: 3 | F27: =HLOOKUP(A27&$A$6,TABNILSM5,6,FALSE) -> 18
A28: JER | B28: =IF(C28>=1,1,0) -> 1 | C28: =HLOOKUP(A28&$A$4,TABNILSM5,4,FALSE) -> 6 | D28: Bahasa Jerman | E28: 1 | F28: =HLOOKUP(A28&$A$4,TABNILSM5,6,FALSE) -> 19
A29: JER | B29: 1 | D29: Bahasa Jerman | E29: 2 | F29: =HLOOKUP(A29&$A$5,TABNILSM5,6,FALSE) -> 20
A30: JER | B30: =IF(C28>=1,1,0) -> 1 | D30: Bahasa Jerman | E30: 3 | F30: =HLOOKUP(A30&$A$6,TABNILSM5,6,FALSE) -> 21
B31: =IF(AND(COUNT(C31)=0,C35=0),0,1) -> 0 | C31: B. Muatan Kewilayahan
A32: SBD | B32: =IF(C32>=1,1,0) -> 0 | C32: =HLOOKUP(A32&$A$4,TABNILSM5,4,FALSE) -> 0 | D32: =HLOOKUP(A32&$A$4,TABNILSM5,2,FALSE) -> - | E32: 1 | F32: =HLOOKUP(A32&$A$4,TABNILSM5,6,FALSE) -> 22
A33: SBD | B33: =IF(C32>=1,1,0) -> 0 | D33: - | E33: 2 | F33: =HLOOKUP(A33&$A$5,TABNILSM5,6,FALSE) -> 23
A34: SBD | B34: =IF(C32>=1,1,0) -> 0 | D34: - | E34: 3 | F34: =HLOOKUP(A34&$A$6,TABNILSM5,6,FALSE) -> 24
A35: PJO | B35: 0 | C35: =HLOOKUP(A35&$A$4,TABNILSM5,4,FALSE) -> 0 | D35: - | E35: 1 | F35: =HLOOKUP(A35&$A$4,TABNILSM5,6,FALSE) -> 25
A36: PJO | B36: 0 | D36: - | E36: 2 | F36: =HLOOKUP(A36&$A$5,TABNILSM5,6,FALSE) -> 26
A37: PJO | B37: 0 | D37: - | E37: 3 | F37: =HLOOKUP(A37&$A$6,TABNILSM5,6,FALSE) -> 27
A38: - | B38: 1 | C38: C. Muatan Peminatan Kejuruan
B39: =IF(AND(COUNT(C39)=0,C40=0),0,1) -> 0 | C39: C1 | D39: Dasar Bidang Keahlian
A40: SKD | B40: =IF(C40>=1,1,0) -> 0 | C40: =HLOOKUP(A40&$A$4,TABNILSM5,4,FALSE) -> 0 | D40: =HLOOKUP(A40&$A$4,TABNILSM5,2,FALSE) -> - | E40: 1 | F40: =HLOOKUP(A40&$A$4,TABNILSM5,6,FALSE) -> 28
A41: SKD | B41: =IF(C40>=1,1,0) -> 0 | D41: - | E41: 2 | F41: =HLOOKUP(A41&$A$5,TABNILSM5,6,FALSE) -> 29
A42: SKD | B42: =IF(C40>=1,1,0) -> 0 | D42: - | E42: 3 | F42: =HLOOKUP(A42&$A$6,TABNILSM5,6,FALSE) -> 30
A43: FIS | B43: 0 | C43: =HLOOKUP(A43&$A$4,TABNILSM5,4,FALSE) -> 0 | D43: - | E43: 1 | F43: =HLOOKUP(A43&$A$4,TABNILSM5,6,FALSE) -> 31
A44: FIS | B44: 0 | D44: - | E44: 2 | F44: =HLOOKUP(A44&$A$5,TABNILSM5,6,FALSE) -> 32
A45: FIS | B45: 0 | D45: - | E45: 3 | F45: =HLOOKUP(A45&$A$6,TABNILSM5,6,FALSE) -> 33
A46: KIM | B46: 0 | C46: =HLOOKUP(A46&$A$4,TABNILSM5,4,FALSE) -> 0 | D46: - | E46: 1 | F46: =HLOOKUP(A46&$A$4,TABNILSM5,6,FALSE) -> 34
A47: KIM | B47: 0 | D47: - | E47: 2 | F47: =HLOOKUP(A47&$A$5,TABNILSM5,6,FALSE) -> 35
A48: KIM | B48: 0 | D48: - | E48: 3 | F48: =HLOOKUP(A48&$A$6,TABNILSM5,6,FALSE) -> 36
B49: =IF(AND(COUNT(C49)=0,C50=0),0,1) -> 0 | C49: C2 | D49: Dasar Program Keahlian | Q49: =VLOOKUP($R$13,TAB_BIODATA,BIODATA!C4,FALSE) -> ADAM ADIYAT HARTANTO
A50: C21 | B50: =IF(C50>=1,1,0) -> 0 | C50: =HLOOKUP(A50&$A$4,TABNILSM5,4,FALSE) -> 0 | D50: =HLOOKUP(A50&$A$4,TABNILSM5,2,FALSE) -> - | E50: 1 | F50: =HLOOKUP(A50&$A$4,TABNILSM5,6,FALSE) -> 37
A51: C21 | B51: =IF(C50>=1,1,0) -> 0 | D51: - | E51: 2 | F51: =HLOOKUP(A51&$A$5,TABNILSM5,6,FALSE) -> 38 | Q51: ="Nomor Urut "&R13 -> Nomor Urut 1
A52: C21 | B52: =IF(C50>=1,1,0) -> 0 | D52: - | E52: 3 | F52: =HLOOKUP(A52&$A$6,TABNILSM5,6,FALSE) -> 39
A53: C22 | B53: 0 | C53: =HLOOKUP(A53&$A$4,TABNILSM5,4,FALSE) -> 0 | D53: - | E53: 1 | F53: =HLOOKUP(A53&$A$4,TABNILSM5,6,FALSE) -> 40
A54: C22 | B54: 0 | D54: - | E54: 2 | F54: =HLOOKUP(A54&$A$5,TABNILSM5,6,FALSE) -> 41
A55: C22 | B55: 0 | D55: - | E55: 3 | F55: =HLOOKUP(A55&$A$6,TABNILSM5,6,FALSE) -> 42
A56: C23 | B56: 0 | C56: =HLOOKUP(A56&$A$4,TABNILSM5,4,FALSE) -> 0 | D56: - | E56: 1 | F56: =HLOOKUP(A56&$A$4,TABNILSM5,6,FALSE) -> 43
A57: C23 | B57: 0 | D57: - | E57: 2 | F57: =HLOOKUP(A57&$A$5,TABNILSM5,6,FALSE) -> 44
A58: C23 | B58: 0 | D58: - | E58: 3 | F58: =HLOOKUP(A58&$A$6,TABNILSM5,6,FALSE) -> 45
A59: C24 | B59: 0 | C59: =HLOOKUP(A59&$A$4,TABNILSM5,4,FALSE) -> 0 | D59: - | E59: 1 | F59: =HLOOKUP(A59&$A$4,TABNILSM5,6,FALSE) -> 46
A60: C24 | B60: 0 | D60: - | E60: 2 | F60: =HLOOKUP(A60&$A$5,TABNILSM5,6,FALSE) -> 47
A61: C24 | B61: 0 | D61: - | E61: 3 | F61: =HLOOKUP(A61&$A$6,TABNILSM5,6,FALSE) -> 48
A62: - | B62: =IF(AND(COUNT(C62)=0,C69=0),0,1) -> 1 | C62: C3 | D62: Kompetensi Keahlian
A63: C31 | B63: =IF(C63>=1,1,0) -> 1 | C63: =HLOOKUP(A63&$A$4,TABNILSM5,4,FALSE) -> 7 | D63: =HLOOKUP(A63&$A$4,TABNILSM5,2,FALSE) -> Pemeliharaan Mesin Sepeda Motor | E63: 1 | F63: =HLOOKUP(A63&$A$4,TABNILSM5,6,FALSE) -> 49
A64: C31 | B64: =IF(C63>=1,1,0) -> 1 | D64: Pemeliharaan Mesin Sepeda Motor | E64: 2 | F64: =HLOOKUP(A64&$A$5,TABNILSM5,6,FALSE) -> 50
A65: C31 | B65: =IF(C63>=1,1,0) -> 1 | D65: Pemeliharaan Mesin Sepeda Motor | E65: 3 | F65: =HLOOKUP(A65&$A$6,TABNILSM5,6,FALSE) -> 51
A66: C32 | B66: 1 | C66: =HLOOKUP(A66&$A$4,TABNILSM5,4,FALSE) -> 8 | D66: Pemeliharaan Sasis Sepeda Motor | E66: 1 | F66: =HLOOKUP(A66&$A$4,TABNILSM5,6,FALSE) -> 52
A67: C32 | B67: 1 | D67: Pemeliharaan Sasis Sepeda Motor | E67: 2 | F67: =HLOOKUP(A67&$A$5,TABNILSM5,6,FALSE) -> 53
A68: C32 | B68: 1 | D68: Pemeliharaan Sasis Sepeda Motor | E68: 3 | F68: =HLOOKUP(A68&$A$6,TABNILSM5,6,FALSE) -> 54
A69: C33 | B69: 1 | C69: =HLOOKUP(A69&$A$4,TABNILSM5,4,FALSE) -> 9 | D69: Pemeliharaan Kelistrikan Sepeda Motor | E69: 1 | F69: =HLOOKUP(A69&$A$4,TABNILSM5,6,FALSE) -> 55
A70: C33 | B70: 1 | D70: Pemeliharaan Kelistrikan Sepeda Motor | E70: 2 | F70: =HLOOKUP(A70&$A$5,TABNILSM5,6,FALSE) -> 56
A71: C33 | B71: 1 | D71: Pemeliharaan Kelistrikan Sepeda Motor | E71: 3 | F71: =HLOOKUP(A71&$A$6,TABNILSM5,6,FALSE) -> 57
A72: C34 | B72: 1 | C72: =HLOOKUP(A72&$A$4,TABNILSM5,4,FALSE) -> 10 | D72: Pengelolaan Bengkel Sepeda Motor | E72: 1 | F72: =HLOOKUP(A72&$A$4,TABNILSM5,6,FALSE) -> 58
A73: C34 | B73: 1 | D73: Pengelolaan Bengkel Sepeda Motor | E73: 2 | F73: =HLOOKUP(A73&$A$5,TABNILSM5,6,FALSE) -> 59
A74: C34 | B74: 1 | D74: Pengelolaan Bengkel Sepeda Motor | E74: 3 | F74: =HLOOKUP(A74&$A$6,TABNILSM5,6,FALSE) -> 60
A75: C35 | B75: 0 | C75: =HLOOKUP(A75&$A$4,TABNILSM5,4,FALSE) -> 0 | D75: - | E75: 1 | F75: =HLOOKUP(A75&$A$4,TABNILSM5,6,FALSE) -> 61
A76: C35 | B76: 0 | D76: - | E76: 2 | F76: =HLOOKUP(A76&$A$5,TABNILSM5,6,FALSE) -> 62
A77: C35 | B77: 0 | D77: - | E77: 3 | F77: =HLOOKUP(A77&$A$6,TABNILSM5,6,FALSE) -> 63
A78: C36 | B78: 1 | C78: =HLOOKUP(A78&$A$4,TABNILSM5,4,FALSE) -> 11 | D78: Produk Kreatif dan Kewirausahaan | E78: 1 | F78: =HLOOKUP(A78&$A$4,TABNILSM5,6,FALSE) -> 64
A79: C36 | B79: 1 | D79: Produk Kreatif dan Kewirausahaan | E79: 2 | F79: =HLOOKUP(A79&$A$5,TABNILSM5,6,FALSE) -> 65
A80: C36 | B80: 1 | D80: Produk Kreatif dan Kewirausahaan | E80: 3 | F80: =HLOOKUP(A80&$A$6,TABNILSM5,6,FALSE) -> 66
B81: =IF(AND(COUNT(C81)=0,C82=0),0,1) -> 0 | C81: Muatan Lokal
A82: SUN | B82: =IF(C82>=1,1,0) -> 0 | C82: =HLOOKUP(A82&$A$4,TABNILSM5,4,FALSE) -> 0 | D82: =HLOOKUP(A82&$A$4,TABNILSM5,2,FALSE) -> - | E82: 1 | F82: =HLOOKUP(A82&$A$4,TABNILSM5,6,FALSE) -> 67
A83: SUN | B83: =IF(C82>=1,1,0) -> 0 | D83: - | E83: 2 | F83: =HLOOKUP(A83&$A$5,TABNILSM5,6,FALSE) -> 68
A84: SUN | B84: =IF(C82>=1,1,0) -> 0 | D84: - | E84: 3 | F84: =HLOOKUP(A84&$A$6,TABNILSM5,6,FALSE) -> 69
A85: PLH | B85: =IF(C85>=1,1,0) -> 0 | C85: =HLOOKUP(A85&$A$4,TABNILSM5,4,FALSE) -> 0 | D85: - | E85: 1 | F85: =HLOOKUP(A85&$A$4,TABNILSM5,6,FALSE) -> 70
A86: PLH | B86: 0 | D86: - | E86: 2 | F86: =HLOOKUP(A86&$A$5,TABNILSM5,6,FALSE) -> 71
A87: PLH | B87: =IF(C85>=1,1,0) -> 0 | D87: - | E87: 3 | F87: =HLOOKUP(A87&$A$6,TABNILSM5,6,FALSE) -> 72

Sheet CETKD6
C1: DAFTAR TOPIK PER KOMPETENSI DASAR | Q1: JURUSAN | R1: =MENU!F8 -> TBSM
Q2: NIS | R2: =VLOOKUP($R$13,TAB_BIODATA,BIODATA!D4,FALSE) -> 16170535
D3: Bidang Keahlian | E3: : | F3: =VLOOKUP($R$1,TAB_JURUSAN,2,FALSE) -> Teknologi dan Rekayasa
A4: T1 | D4: Program Keahlian | E4: : | F4: =VLOOKUP($R$1,TAB_JURUSAN,3,FALSE) -> Teknik Otomotif
A5: T2 | D5: Kompetensi Keahlian | E5: : | F5: =VLOOKUP($R$1,TAB_JURUSAN,4,FALSE) -> Teknik dan Bisnis Sepeda Motor | Q5: DATA CETAK | S5: HALAMAN CETAK
A6: T3 | D6: Semester | E6: : | F6: =NILSM6!B3 -> 6 (enam) | Q6: Dari data ke | R6: 1 | S6: Dari | T6: 1
B8: 1 | C8: No. | D8: Mata Pelajaran | E8: KD | F8: Nama Topik | Q8: Sampai data ke | R8: 2 | S8: Ke | T8: 1
B9: 1 | C9: A. Muatan Nasional | F9: T1 | G9: U1 | H9: T2 | I9: U2 | J9: T3 | K9: U3 | L9: H
A10: PAB | B10: =IF(C10>=1,1,0) -> 1 | C10: =HLOOKUP(A10&$A$4,TABNILSM6,4,FALSE) -> 1 | D10: =HLOOKUP(A10&$A$4,TABNILSM6,2,FALSE) -> Pendidikan Agama dan Budi Pekerti | E10: 1 | F10: =HLOOKUP(A10&$A$4,TABNILSM6,6,FALSE) -> Iman
A11: PAB | B11: =IF(C10>=1,1,0) -> 1 | D11: Pendidikan Agama dan Budi Pekerti | E11: 2 | F11: =HLOOKUP(A11&$A$5,TABNILSM6,6,FALSE) -> 2
A12: PAB | B12: =IF(C10>=1,1,0) -> 1 | D12: Pendidikan Agama dan Budi Pekerti | E12: 3 | F12: =HLOOKUP(A12&$A$6,TABNILSM6,6,FALSE) -> 3 | Q12: TAMPILAN DATA
A13: PKN | B13: =IF(C13>=1,1,0) -> 1 | C13: =HLOOKUP(A13&$A$4,TABNILSM6,4,FALSE) -> 2 | D13: Pendidikan Pancasila dan Kewarganegaraan | E13: 1 | F13: =HLOOKUP(A13&$A$4,TABNILSM6,6,FALSE) -> 4 | Q13: Nomor Urut | R13: 1
A14: PKN | B14: =IF(C13>=1,1,0) -> 1 | D14: Pendidikan Pancasila dan Kewarganegaraan | E14: 2 | F14: =HLOOKUP(A14&$A$5,TABNILSM6,6,FALSE) -> 5
A15: PKN | B15: =IF(C13>=1,1,0) -> 1 | D15: Pendidikan Pancasila dan Kewarganegaraan | E15: 3 | F15: =HLOOKUP(A15&$A$6,TABNILSM6,6,FALSE) -> 6
A16: IND | B16: =IF(C16>=1,1,0) -> 1 | C16: =HLOOKUP(A16&$A$4,TABNILSM6,4,FALSE) -> 3 | D16: Bahasa Indonesia | E16: 1 | F16: =HLOOKUP(A16&$A$4,TABNILSM6,6,FALSE) -> 7
A17: IND | B17: =IF(C16>=1,1,0) -> 1 | D17: Bahasa Indonesia | E17: 2 | F17: =HLOOKUP(A17&$A$5,TABNILSM6,6,FALSE) -> 8
A18: IND | B18: =IF(C16>=1,1,0) -> 1 | D18: Bahasa Indonesia | E18: 3 | F18: =HLOOKUP(A18&$A$6,TABNILSM6,6,FALSE) -> 9
A19: MTK | B19: =IF(C19>=1,1,0) -> 1 | C19: =HLOOKUP(A19&$A$4,TABNILSM6,4,FALSE) -> 4 | D19: Matematika | E19: 1 | F19: =HLOOKUP(A19&$A$4,TABNILSM6,6,FALSE) -> 10
A20: MTK | B20: =IF(C19>=1,1,0) -> 1 | D20: Matematika | E20: 2 | F20: =HLOOKUP(A20&$A$5,TABNILSM6,6,FALSE) -> 11
A21: MTK | B21: =IF(C19>=1,1,0) -> 1 | D21: Matematika | E21: 3 | F21: =HLOOKUP(A21&$A$6,TABNILSM6,6,FALSE) -> 12
A22: SJI | B22: =IF(C22>=1,1,0) -> 0 | C22: =HLOOKUP(A22&$A$4,TABNILSM6,4,FALSE) -> 0 | D22: - | E22: 1 | F22: =HLOOKUP(A22&$A$4,TABNILSM6,6,FALSE) -> 13
A23: SJI | B23: =IF(C22>=1,1,0) -> 0 | D23: - | E23: 2 | F23: =HLOOKUP(A23&$A$5,TABNILSM6,6,FALSE) -> 14
A24: SJI | B24: =IF(C22>=1,1,0) -> 0 | D24: - | E24: 3 | F24: =HLOOKUP(A24&$A$6,TABNILSM6,6,FALSE) -> 15
A25: ING | B25: =IF(C25>=1,1,0) -> 1 | C25: =HLOOKUP(A25&$A$4,TABNILSM6,4,FALSE) -> 5 | D25: Bahasa Inggris | E25: 1 | F25: =HLOOKUP(A25&$A$4,TABNILSM6,6,FALSE) -> 16
A26: ING | B26: =IF(C25>=1,1,0) -> 1 | D26: Bahasa Inggris | E26: 2 | F26: =HLOOKUP(A26&$A$5,TABNILSM6,6,FALSE) -> 17
A27: ING | B27: =IF(C25>=1,1,0) -> 1 | D27: Bahasa Inggris | E27: 3 | F27: =HLOOKUP(A27&$A$6,TABNILSM6,6,FALSE) -> 18
A28: JER | B28: =IF(C28>=1,1,0) -> 1 | C28: =HLOOKUP(A28&$A$4,TABNILSM6,4,FALSE) -> 6 | D28: Bahasa Jerman | E28: 1 | F28: =HLOOKUP(A28&$A$4,TABNILSM6,6,FALSE) -> 19
A29: JER | B29: 1 | D29: Bahasa Jerman | E29: 2 | F29: =HLOOKUP(A29&$A$5,TABNILSM6,6,FALSE) -> 20
A30: JER | B30: =IF(C28>=1,1,0) -> 1 | D30: Bahasa Jerman | E30: 3 | F30: =HLOOKUP(A30&$A$6,TABNILSM6,6,FALSE) -> 21
B31: =IF(AND(COUNT(C31)=0,C35=0),0,1) -> 0 | C31: B. Muatan Kewilayahan
A32: SBD | B32: =IF(C32>=1,1,0) -> 0 | C32: =HLOOKUP(A32&$A$4,TABNILSM6,4,FALSE) -> 0 | D32: =HLOOKUP(A32&$A$4,TABNILSM6,2,FALSE) -> - | E32: 1 | F32: =HLOOKUP(A32&$A$4,TABNILSM6,6,FALSE) -> 22
A33: SBD | B33: =IF(C32>=1,1,0) -> 0 | D33: - | E33: 2 | F33: =HLOOKUP(A33&$A$5,TABNILSM6,6,FALSE) -> 23
A34: SBD | B34: =IF(C32>=1,1,0) -> 0 | D34: - | E34: 3 | F34: =HLOOKUP(A34&$A$6,TABNILSM6,6,FALSE) -> 24
A35: PJO | B35: 0 | C35: =HLOOKUP(A35&$A$4,TABNILSM6,4,FALSE) -> 0 | D35: - | E35: 1 | F35: =HLOOKUP(A35&$A$4,TABNILSM6,6,FALSE) -> 25
A36: PJO | B36: 0 | D36: - | E36: 2 | F36: =HLOOKUP(A36&$A$5,TABNILSM6,6,FALSE) -> 26
A37: PJO | B37: 0 | D37: - | E37: 3 | F37: =HLOOKUP(A37&$A$6,TABNILSM6,6,FALSE) -> 27
A38: - | B38: 1 | C38: C. Muatan Peminatan Kejuruan
B39: =IF(AND(COUNT(C39)=0,C40=0),0,1) -> 0 | C39: C1 | D39: Dasar Bidang Keahlian
A40: SKD | B40: =IF(C40>=1,1,0) -> 0 | C40: =HLOOKUP(A40&$A$4,TABNILSM6,4,FALSE) -> 0 | D40: =HLOOKUP(A40&$A$4,TABNILSM6,2,FALSE) -> - | E40: 1 | F40: =HLOOKUP(A40&$A$4,TABNILSM6,6,FALSE) -> 28
A41: SKD | B41: =IF(C40>=1,1,0) -> 0 | D41: - | E41: 2 | F41: =HLOOKUP(A41&$A$5,TABNILSM6,6,FALSE) -> 29
A42: SKD | B42: =IF(C40>=1,1,0) -> 0 | D42: - | E42: 3 | F42: =HLOOKUP(A42&$A$6,TABNILSM6,6,FALSE) -> 30
A43: FIS | B43: 0 | C43: =HLOOKUP(A43&$A$4,TABNILSM6,4,FALSE) -> 0 | D43: - | E43: 1 | F43: =HLOOKUP(A43&$A$4,TABNILSM6,6,FALSE) -> 31
A44: FIS | B44: 0 | D44: - | E44: 2 | F44: =HLOOKUP(A44&$A$5,TABNILSM6,6,FALSE) -> 32
A45: FIS | B45: 0 | D45: - | E45: 3 | F45: =HLOOKUP(A45&$A$6,TABNILSM6,6,FALSE) -> 33
A46: KIM | B46: 0 | C46: =HLOOKUP(A46&$A$4,TABNILSM6,4,FALSE) -> 0 | D46: - | E46: 1 | F46: =HLOOKUP(A46&$A$4,TABNILSM6,6,FALSE) -> 34
A47: KIM | B47: 0 | D47: - | E47: 2 | F47: =HLOOKUP(A47&$A$5,TABNILSM6,6,FALSE) -> 35
A48: KIM | B48: 0 | D48: - | E48: 3 | F48: =HLOOKUP(A48&$A$6,TABNILSM6,6,FALSE) -> 36
B49: =IF(AND(COUNT(C49)=0,C50=0),0,1) -> 0 | C49: C2 | D49: Dasar Program Keahlian | Q49: =VLOOKUP($R$13,TAB_BIODATA,BIODATA!C4,FALSE) -> ADAM ADIYAT HARTANTO
A50: C21 | B50: =IF(C50>=1,1,0) -> 0 | C50: =HLOOKUP(A50&$A$4,TABNILSM6,4,FALSE) -> 0 | D50: =HLOOKUP(A50&$A$4,TABNILSM6,2,FALSE) -> - | E50: 1 | F50: =HLOOKUP(A50&$A$4,TABNILSM6,6,FALSE) -> 37
A51: C21 | B51: =IF(C50>=1,1,0) -> 0 | D51: - | E51: 2 | F51: =HLOOKUP(A51&$A$5,TABNILSM6,6,FALSE) -> 38 | Q51: ="Nomor Urut "&R13 -> Nomor Urut 1
A52: C21 | B52: =IF(C50>=1,1,0) -> 0 | D52: - | E52: 3 | F52: =HLOOKUP(A52&$A$6,TABNILSM6,6,FALSE) -> 39
A53: C22 | B53: 0 | C53: =HLOOKUP(A53&$A$4,TABNILSM6,4,FALSE) -> 0 | D53: - | E53: 1 | F53: =HLOOKUP(A53&$A$4,TABNILSM6,6,FALSE) -> 40
A54: C22 | B54: 0 | D54: - | E54: 2 | F54: =HLOOKUP(A54&$A$5,TABNILSM6,6,FALSE) -> 41
A55: C22 | B55: 0 | D55: - | E55: 3 | F55: =HLOOKUP(A55&$A$6,TABNILSM6,6,FALSE) -> 42
A56: C23 | B56: 0 | C56: =HLOOKUP(A56&$A$4,TABNILSM6,4,FALSE) -> 0 | D56: - | E56: 1 | F56: =HLOOKUP(A56&$A$4,TABNILSM6,6,FALSE) -> 43
A57: C23 | B57: 0 | D57: - | E57: 2 | F57: =HLOOKUP(A57&$A$5,TABNILSM6,6,FALSE) -> 44
A58: C23 | B58: 0 | D58: - | E58: 3 | F58: =HLOOKUP(A58&$A$6,TABNILSM6,6,FALSE) -> 45
A59: C24 | B59: 0 | C59: =HLOOKUP(A59&$A$4,TABNILSM6,4,FALSE) -> 0 | D59: - | E59: 1 | F59: =HLOOKUP(A59&$A$4,TABNILSM6,6,FALSE) -> 46
A60: C24 | B60: 0 | D60: - | E60: 2 | F60: =HLOOKUP(A60&$A$5,TABNILSM6,6,FALSE) -> 47
A61: C24 | B61: 0 | D61: - | E61: 3 | F61: =HLOOKUP(A61&$A$6,TABNILSM6,6,FALSE) -> 48
A62: - | B62: =IF(AND(COUNT(C62)=0,C69=0),0,1) -> 1 | C62: C3 | D62: Kompetensi Keahlian
A63: C31 | B63: =IF(C63>=1,1,0) -> 1 | C63: =HLOOKUP(A63&$A$4,TABNILSM6,4,FALSE) -> 7 | D63: =HLOOKUP(A63&$A$4,TABNILSM6,2,FALSE) -> Pemeliharaan Mesin Sepeda Motor | E63: 1 | F63: =HLOOKUP(A63&$A$4,TABNILSM6,6,FALSE) -> 49
A64: C31 | B64: =IF(C63>=1,1,0) -> 1 | D64: Pemeliharaan Mesin Sepeda Motor | E64: 2 | F64: =HLOOKUP(A64&$A$5,TABNILSM6,6,FALSE) -> 50
A65: C31 | B65: =IF(C63>=1,1,0) -> 1 | D65: Pemeliharaan Mesin Sepeda Motor | E65: 3 | F65: =HLOOKUP(A65&$A$6,TABNILSM6,6,FALSE) -> 51
A66: C32 | B66: 1 | C66: =HLOOKUP(A66&$A$4,TABNILSM6,4,FALSE) -> 8 | D66: Pemeliharaan Sasis Sepeda Motor | E66: 1 | F66: =HLOOKUP(A66&$A$4,TABNILSM6,6,FALSE) -> 52
A67: C32 | B67: 1 | D67: Pemeliharaan Sasis Sepeda Motor | E67: 2 | F67: =HLOOKUP(A67&$A$5,TABNILSM6,6,FALSE) -> 53
A68: C32 | B68: 1 | D68: Pemeliharaan Sasis Sepeda Motor | E68: 3 | F68: =HLOOKUP(A68&$A$6,TABNILSM6,6,FALSE) -> 54
A69: C33 | B69: 1 | C69: =HLOOKUP(A69&$A$4,TABNILSM6,4,FALSE) -> 9 | D69: Pemeliharaan Kelistrikan Sepeda Motor | E69: 1 | F69: =HLOOKUP(A69&$A$4,TABNILSM6,6,FALSE) -> 55
A70: C33 | B70: 1 | D70: Pemeliharaan Kelistrikan Sepeda Motor | E70: 2 | F70: =HLOOKUP(A70&$A$5,TABNILSM6,6,FALSE) -> 56
A71: C33 | B71: 1 | D71: Pemeliharaan Kelistrikan Sepeda Motor | E71: 3 | F71: =HLOOKUP(A71&$A$6,TABNILSM6,6,FALSE) -> 57
A72: C34 | B72: 1 | C72: =HLOOKUP(A72&$A$4,TABNILSM6,4,FALSE) -> 10 | D72: Pengelolaan Bengkel Sepeda Motor | E72: 1 | F72: =HLOOKUP(A72&$A$4,TABNILSM6,6,FALSE) -> 58
A73: C34 | B73: 1 | D73: Pengelolaan Bengkel Sepeda Motor | E73: 2 | F73: =HLOOKUP(A73&$A$5,TABNILSM6,6,FALSE) -> 59
A74: C34 | B74: 1 | D74: Pengelolaan Bengkel Sepeda Motor | E74: 3 | F74: =HLOOKUP(A74&$A$6,TABNILSM6,6,FALSE) -> 60
A75: C35 | B75: 0 | C75: =HLOOKUP(A75&$A$4,TABNILSM6,4,FALSE) -> 0 | D75: - | E75: 1 | F75: =HLOOKUP(A75&$A$4,TABNILSM6,6,FALSE) -> 61
A76: C35 | B76: 0 | D76: - | E76: 2 | F76: =HLOOKUP(A76&$A$5,TABNILSM6,6,FALSE) -> 62
A77: C35 | B77: 0 | D77: - | E77: 3 | F77: =HLOOKUP(A77&$A$6,TABNILSM6,6,FALSE) -> 63
A78: C36 | B78: 1 | C78: =HLOOKUP(A78&$A$4,TABNILSM6,4,FALSE) -> 11 | D78: Produk Kreatif dan Kewirausahaan | E78: 1 | F78: =HLOOKUP(A78&$A$4,TABNILSM6,6,FALSE) -> 64
A79: C36 | B79: 1 | D79: Produk Kreatif dan Kewirausahaan | E79: 2 | F79: =HLOOKUP(A79&$A$5,TABNILSM6,6,FALSE) -> 65
A80: C36 | B80: 1 | D80: Produk Kreatif dan Kewirausahaan | E80: 3 | F80: =HLOOKUP(A80&$A$6,TABNILSM6,6,FALSE) -> 66
B81: =IF(AND(COUNT(C81)=0,C82=0),0,1) -> 0 | C81: Muatan Lokal
A82: SUN | B82: =IF(C82>=1,1,0) -> 0 | C82: =HLOOKUP(A82&$A$4,TABNILSM6,4,FALSE) -> 0 | D82: =HLOOKUP(A82&$A$4,TABNILSM6,2,FALSE) -> - | E82: 1 | F82: =HLOOKUP(A82&$A$4,TABNILSM6,6,FALSE) -> 67
A83: SUN | B83: =IF(C82>=1,1,0) -> 0 | D83: - | E83: 2 | F83: =HLOOKUP(A83&$A$5,TABNILSM6,6,FALSE) -> 68
A84: SUN | B84: =IF(C82>=1,1,0) -> 0 | D84: - | E84: 3 | F84: =HLOOKUP(A84&$A$6,TABNILSM6,6,FALSE) -> 69
A85: PLH | B85: =IF(C85>=1,1,0) -> 0 | C85: =HLOOKUP(A85&$A$4,TABNILSM6,4,FALSE) -> 0 | D85: - | E85: 1 | F85: =HLOOKUP(A85&$A$4,TABNILSM6,6,FALSE) -> 70
A86: PLH | B86: 0 | D86: - | E86: 2 | F86: =HLOOKUP(A86&$A$5,TABNILSM6,6,FALSE) -> 71
A87: PLH | B87: =IF(C85>=1,1,0) -> 0 | D87: - | E87: 3 | F87: =HLOOKUP(A87&$A$6,TABNILSM6,6,FALSE) -> 72

Sheet CETKD7
C1: DAFTAR TOPIK PER KOMPETENSI DASAR | Q1: JURUSAN | R1: =MENU!F8 -> TBSM
Q2: NIS | R2: =VLOOKUP($R$27,TAB_BIODATA,BIODATA!D4,FALSE) -> 16170535
D3: Bidang Keahlian | E3: : | F3: =VLOOKUP($R$1,TAB_JURUSAN,2,FALSE) -> Teknologi dan Rekayasa
A4: T1 | D4: Program Keahlian | E4: : | F4: =VLOOKUP($R$1,TAB_JURUSAN,3,FALSE) -> Teknik Otomotif
A5: T2 | D5: Kompetensi Keahlian | E5: : | F5: =VLOOKUP($R$1,TAB_JURUSAN,4,FALSE) -> Teknik dan Bisnis Sepeda Motor | Q5: DATA CETAK | S5: HALAMAN CETAK
A6: T3 | D6: Semester | E6: : | F6: =NILSM7!B3 -> 7 (tujuh) | Q6: Dari data ke | R6: 1 | S6: Dari | T6: 1
B8: 1 | C8: No. | D8: Mata Pelajaran | E8: KD | F8: Nama Topik | Q8: Sampai data ke | R8: 2 | S8: Ke | T8: 1
B9: 1 | C9: A. Muatan Nasional | F9: T1 | G9: U1 | H9: T2 | I9: U2 | J9: T3 | K9: U3 | L9: H
A10: PAB | B10: =IF(C10>=1,1,0) -> 0 | C10: =HLOOKUP(A10&$A$4,TABNILSM7,4,FALSE) -> 0 | D10: =HLOOKUP(A10&$A$4,TABNILSM7,2,FALSE) ->  | E10: 1 | F10: =HLOOKUP(A10&$A$4,TABNILSM7,6,FALSE) -> Ihsan
A11: PAB | B11: =IF(C10>=1,1,0) -> 0 | E11: 2 | F11: =HLOOKUP(A11&$A$5,TABNILSM7,6,FALSE) -> 2
A12: PAB | B12: =IF(C10>=1,1,0) -> 0 | E12: 3 | F12: =HLOOKUP(A12&$A$6,TABNILSM7,6,FALSE) -> 3
A13: PKN | B13: =IF(C13>=1,1,0) ->  | C13: =HLOOKUP(A13&$A$4,TABNILSM7,4,FALSE) ->  | E13: 1 | F13: =HLOOKUP(A13&$A$4,TABNILSM7,6,FALSE) -> 4
A14: PKN | B14: =IF(C13>=1,1,0) ->  | E14: 2 | F14: =HLOOKUP(A14&$A$5,TABNILSM7,6,FALSE) -> 5
A15: PKN | B15: =IF(C13>=1,1,0) ->  | E15: 3 | F15: =HLOOKUP(A15&$A$6,TABNILSM7,6,FALSE) -> 6
A16: IND | B16: =IF(C16>=1,1,0) ->  | C16: =HLOOKUP(A16&$A$4,TABNILSM7,4,FALSE) ->  | E16: 1 | F16: =HLOOKUP(A16&$A$4,TABNILSM7,6,FALSE) -> 7
A17: IND | B17: =IF(C16>=1,1,0) ->  | E17: 2 | F17: =HLOOKUP(A17&$A$5,TABNILSM7,6,FALSE) -> 8
A18: IND | B18: =IF(C16>=1,1,0) ->  | E18: 3 | F18: =HLOOKUP(A18&$A$6,TABNILSM7,6,FALSE) -> 9
A19: MTK | B19: =IF(C19>=1,1,0) ->  | C19: =HLOOKUP(A19&$A$4,TABNILSM7,4,FALSE) ->  | E19: 1 | F19: =HLOOKUP(A19&$A$4,TABNILSM7,6,FALSE) -> 10
A20: MTK | B20: =IF(C19>=1,1,0) ->  | E20: 2 | F20: =HLOOKUP(A20&$A$5,TABNILSM7,6,FALSE) -> 11
A21: MTK | B21: =IF(C19>=1,1,0) ->  | E21: 3 | F21: =HLOOKUP(A21&$A$6,TABNILSM7,6,FALSE) -> 12
A22: SJI | B22: =IF(C22>=1,1,0) ->  | C22: =HLOOKUP(A22&$A$4,TABNILSM7,4,FALSE) ->  | E22: 1 | F22: =HLOOKUP(A22&$A$4,TABNILSM7,6,FALSE) -> 13
A23: SJI | B23: =IF(C22>=1,1,0) ->  | E23: 2 | F23: =HLOOKUP(A23&$A$5,TABNILSM7,6,FALSE) -> 14
A24: SJI | B24: =IF(C22>=1,1,0) ->  | E24: 3 | F24: =HLOOKUP(A24&$A$6,TABNILSM7,6,FALSE) -> 15
A25: ING | B25: =IF(C25>=1,1,0) ->  | C25: =HLOOKUP(A25&$A$4,TABNILSM7,4,FALSE) ->  | E25: 1 | F25: =HLOOKUP(A25&$A$4,TABNILSM7,6,FALSE) -> 16
A26: ING | B26: =IF(C25>=1,1,0) ->  | E26: 2 | F26: =HLOOKUP(A26&$A$5,TABNILSM7,6,FALSE) -> 17 | Q26: TAMPILAN DATA
A27: ING | B27: =IF(C25>=1,1,0) ->  | E27: 3 | F27: =HLOOKUP(A27&$A$6,TABNILSM7,6,FALSE) -> 18 | Q27: Nomor Urut | R27: 1
A28: JER | B28: =IF(C28>=1,1,0) ->  | C28: =HLOOKUP(A28&$A$4,TABNILSM7,4,FALSE) ->  | E28: 1 | F28: =HLOOKUP(A28&$A$4,TABNILSM7,6,FALSE) -> 19
A29: JER | E29: 2 | F29: =HLOOKUP(A29&$A$5,TABNILSM7,6,FALSE) -> 20
A30: JER | B30: =IF(C28>=1,1,0) ->  | E30: 3 | F30: =HLOOKUP(A30&$A$6,TABNILSM7,6,FALSE) -> 21
B31: =IF(AND(COUNT(C31)=0,C35=0),0,1) ->  | C31: B. Muatan Kewilayahan
A32: SBD | B32: =IF(C32>=1,1,0) ->  | C32: =HLOOKUP(A32&$A$4,TABNILSM7,4,FALSE) ->  | D32: =HLOOKUP(A32&$A$4,TABNILSM7,2,FALSE) ->  | E32: 1 | F32: =HLOOKUP(A32&$A$4,TABNILSM7,6,FALSE) -> 22
A33: SBD | B33: =IF(C32>=1,1,0) ->  | E33: 2 | F33: =HLOOKUP(A33&$A$5,TABNILSM7,6,FALSE) -> 23
A34: SBD | B34: =IF(C32>=1,1,0) ->  | E34: 3 | F34: =HLOOKUP(A34&$A$6,TABNILSM7,6,FALSE) -> 24
A35: PJO | C35: =HLOOKUP(A35&$A$4,TABNILSM7,4,FALSE) ->  | E35: 1 | F35: =HLOOKUP(A35&$A$4,TABNILSM7,6,FALSE) -> 25
A36: PJO | E36: 2 | F36: =HLOOKUP(A36&$A$5,TABNILSM7,6,FALSE) -> 26
A37: PJO | E37: 3 | F37: =HLOOKUP(A37&$A$6,TABNILSM7,6,FALSE) -> 27
A38: - | B38: 1 | C38: C. Muatan Peminatan Kejuruan
B39: =IF(AND(COUNT(C39)=0,C40=0),0,1) ->  | C39: C1 | D39: Dasar Bidang Keahlian
A40: SKD | B40: =IF(C40>=1,1,0) ->  | C40: =HLOOKUP(A40&$A$4,TABNILSM7,4,FALSE) ->  | D40: =HLOOKUP(A40&$A$4,TABNILSM7,2,FALSE) ->  | E40: 1 | F40: =HLOOKUP(A40&$A$4,TABNILSM7,6,FALSE) -> 28
A41: SKD | B41: =IF(C40>=1,1,0) ->  | E41: 2 | F41: =HLOOKUP(A41&$A$5,TABNILSM7,6,FALSE) -> 29
A42: SKD | B42: =IF(C40>=1,1,0) ->  | E42: 3 | F42: =HLOOKUP(A42&$A$6,TABNILSM7,6,FALSE) -> 30
A43: FIS | C43: =HLOOKUP(A43&$A$4,TABNILSM7,4,FALSE) ->  | E43: 1 | F43: =HLOOKUP(A43&$A$4,TABNILSM7,6,FALSE) -> 31
A44: FIS | E44: 2 | F44: =HLOOKUP(A44&$A$5,TABNILSM7,6,FALSE) -> 32
A45: FIS | E45: 3 | F45: =HLOOKUP(A45&$A$6,TABNILSM7,6,FALSE) -> 33
A46: KIM | C46: =HLOOKUP(A46&$A$4,TABNILSM7,4,FALSE) ->  | E46: 1 | F46: =HLOOKUP(A46&$A$4,TABNILSM7,6,FALSE) -> 34
A47: KIM | E47: 2 | F47: =HLOOKUP(A47&$A$5,TABNILSM7,6,FALSE) -> 35
A48: KIM | E48: 3 | F48: =HLOOKUP(A48&$A$6,TABNILSM7,6,FALSE) -> 36
B49: =IF(AND(COUNT(C49)=0,C50=0),0,1) ->  | C49: C2 | D49: Dasar Program Keahlian
A50: C21 | B50: =IF(C50>=1,1,0) ->  | C50: =HLOOKUP(A50&$A$4,TABNILSM7,4,FALSE) ->  | D50: =HLOOKUP(A50&$A$4,TABNILSM7,2,FALSE) ->  | E50: 1 | F50: =HLOOKUP(A50&$A$4,TABNILSM7,6,FALSE) -> 37
A51: C21 | B51: =IF(C50>=1,1,0) ->  | E51: 2 | F51: =HLOOKUP(A51&$A$5,TABNILSM7,6,FALSE) -> 38
A52: C21 | B52: =IF(C50>=1,1,0) ->  | E52: 3 | F52: =HLOOKUP(A52&$A$6,TABNILSM7,6,FALSE) -> 39
A53: C22 | C53: =HLOOKUP(A53&$A$4,TABNILSM7,4,FALSE) ->  | E53: 1 | F53: =HLOOKUP(A53&$A$4,TABNILSM7,6,FALSE) -> 40
A54: C22 | E54: 2 | F54: =HLOOKUP(A54&$A$5,TABNILSM7,6,FALSE) -> 41
A55: C22 | E55: 3 | F55: =HLOOKUP(A55&$A$6,TABNILSM7,6,FALSE) -> 42
A56: C23 | C56: =HLOOKUP(A56&$A$4,TABNILSM7,4,FALSE) ->  | E56: 1 | F56: =HLOOKUP(A56&$A$4,TABNILSM7,6,FALSE) -> 43
A57: C23 | E57: 2 | F57: =HLOOKUP(A57&$A$5,TABNILSM7,6,FALSE) -> 44
A58: C23 | E58: 3 | F58: =HLOOKUP(A58&$A$6,TABNILSM7,6,FALSE) -> 45
A59: C24 | C59: =HLOOKUP(A59&$A$4,TABNILSM7,4,FALSE) ->  | E59: 1 | F59: =HLOOKUP(A59&$A$4,TABNILSM7,6,FALSE) -> 46
A60: C24 | E60: 2 | F60: =HLOOKUP(A60&$A$5,TABNILSM7,6,FALSE) -> 47
A61: C24 | E61: 3 | F61: =HLOOKUP(A61&$A$6,TABNILSM7,6,FALSE) -> 48
A62: - | B62: =IF(AND(COUNT(C62)=0,C69=0),0,1) ->  | C62: C3 | D62: Kompetensi Keahlian
A63: C31 | B63: =IF(C63>=1,1,0) ->  | C63: =HLOOKUP(A63&$A$4,TABNILSM7,4,FALSE) ->  | D63: =HLOOKUP(A63&$A$4,TABNILSM7,2,FALSE) ->  | E63: 1 | F63: =HLOOKUP(A63&$A$4,TABNILSM7,6,FALSE) -> 49 | Q63: =VLOOKUP($R$27,TAB_BIODATA,BIODATA!C4,FALSE) -> ADAM ADIYAT HARTANTO
A64: C31 | B64: =IF(C63>=1,1,0) ->  | E64: 2 | F64: =HLOOKUP(A64&$A$5,TABNILSM7,6,FALSE) -> 50
A65: C31 | B65: =IF(C63>=1,1,0) ->  | E65: 3 | F65: =HLOOKUP(A65&$A$6,TABNILSM7,6,FALSE) -> 51 | Q65: ="Nomor Urut "&R27 -> Nomor Urut 1
A66: C32 | C66: =HLOOKUP(A66&$A$4,TABNILSM7,4,FALSE) ->  | E66: 1 | F66: =HLOOKUP(A66&$A$4,TABNILSM7,6,FALSE) -> 52
A67: C32 | E67: 2 | F67: =HLOOKUP(A67&$A$5,TABNILSM7,6,FALSE) -> 53
A68: C32 | E68: 3 | F68: =HLOOKUP(A68&$A$6,TABNILSM7,6,FALSE) -> 54
A69: C33 | C69: =HLOOKUP(A69&$A$4,TABNILSM7,4,FALSE) ->  | E69: 1 | F69: =HLOOKUP(A69&$A$4,TABNILSM7,6,FALSE) -> 55
A70: C33 | E70: 2 | F70: =HLOOKUP(A70&$A$5,TABNILSM7,6,FALSE) -> 56
A71: C33 | E71: 3 | F71: =HLOOKUP(A71&$A$6,TABNILSM7,6,FALSE) -> 57
A72: C34 | C72: =HLOOKUP(A72&$A$4,TABNILSM7,4,FALSE) ->  | E72: 1 | F72: =HLOOKUP(A72&$A$4,TABNILSM7,6,FALSE) -> 58
A73: C34 | E73: 2 | F73: =HLOOKUP(A73&$A$5,TABNILSM7,6,FALSE) -> 59
A74: C34 | E74: 3 | F74: =HLOOKUP(A74&$A$6,TABNILSM7,6,FALSE) -> 60
A75: C35 | C75: =HLOOKUP(A75&$A$4,TABNILSM7,4,FALSE) ->  | E75: 1 | F75: =HLOOKUP(A75&$A$4,TABNILSM7,6,FALSE) -> 61
A76: C35 | E76: 2 | F76: =HLOOKUP(A76&$A$5,TABNILSM7,6,FALSE) -> 62
A77: C35 | E77: 3 | F77: =HLOOKUP(A77&$A$6,TABNILSM7,6,FALSE) -> 63
A78: C36 | C78: =HLOOKUP(A78&$A$4,TABNILSM7,4,FALSE) ->  | E78: 1 | F78: =HLOOKUP(A78&$A$4,TABNILSM7,6,FALSE) -> 64
A79: C36 | E79: 2 | F79: =HLOOKUP(A79&$A$5,TABNILSM7,6,FALSE) -> 65
A80: C36 | E80: 3 | F80: =HLOOKUP(A80&$A$6,TABNILSM7,6,FALSE) -> 66
B81: =IF(AND(COUNT(C81)=0,C82=0),0,1) ->  | C81: Muatan Lokal
A82: SUN | B82: =IF(C82>=1,1,0) ->  | C82: =HLOOKUP(A82&$A$4,TABNILSM7,4,FALSE) ->  | D82: =HLOOKUP(A82&$A$4,TABNILSM7,2,FALSE) ->  | E82: 1 | F82: =HLOOKUP(A82&$A$4,TABNILSM7,6,FALSE) -> 67
A83: SUN | B83: =IF(C82>=1,1,0) ->  | E83: 2 | F83: =HLOOKUP(A83&$A$5,TABNILSM7,6,FALSE) -> 68
A84: SUN | B84: =IF(C82>=1,1,0) ->  | E84: 3 | F84: =HLOOKUP(A84&$A$6,TABNILSM7,6,FALSE) -> 69
A85: PLH | B85: =IF(C85>=1,1,0) ->  | C85: =HLOOKUP(A85&$A$4,TABNILSM7,4,FALSE) ->  | E85: 1 | F85: =HLOOKUP(A85&$A$4,TABNILSM7,6,FALSE) -> 70
A86: PLH | E86: 2 | F86: =HLOOKUP(A86&$A$5,TABNILSM7,6,FALSE) -> 71
A87: PLH | B87: =IF(C85>=1,1,0) ->  | E87: 3 | F87: =HLOOKUP(A87&$A$6,TABNILSM7,6,FALSE) -> 72

Sheet CETKD8
C1: DAFTAR TOPIK PER KOMPETENSI DASAR | Q1: JURUSAN | R1: =MENU!F8 -> TBSM
Q2: NIS | R2: =VLOOKUP($R$27,TAB_BIODATA,BIODATA!D4,FALSE) -> 16170535
D3: Bidang Keahlian | E3: : | F3: =VLOOKUP($R$1,TAB_JURUSAN,2,FALSE) -> Teknologi dan Rekayasa
A4: T1 | D4: Program Keahlian | E4: : | F4: =VLOOKUP($R$1,TAB_JURUSAN,3,FALSE) -> Teknik Otomotif
A5: T2 | D5: Kompetensi Keahlian | E5: : | F5: =VLOOKUP($R$1,TAB_JURUSAN,4,FALSE) -> Teknik dan Bisnis Sepeda Motor | Q5: DATA CETAK | S5: HALAMAN CETAK
A6: T3 | D6: Semester | E6: : | F6: =NILSM8!B3 -> 8 (delapan) | Q6: Dari data ke | R6: 1 | S6: Dari | T6: 1
B8: 1 | C8: No. | D8: Mata Pelajaran | E8: KD | F8: Nama Topik | Q8: Sampai data ke | R8: 2 | S8: Ke | T8: 1
B9: 1 | C9: A. Muatan Nasional | F9: T1 | G9: U1 | H9: T2 | I9: U2 | J9: T3 | K9: U3 | L9: H
A10: PAB | B10: =IF(C10>=1,1,0) -> 0 | C10: =HLOOKUP(A10&$A$4,TABNILSM8,4,FALSE) -> 0 | D10: =HLOOKUP(A10&$A$4,TABNILSM8,2,FALSE) ->  | E10: 1 | F10: =HLOOKUP(A10&$A$4,TABNILSM8,6,FALSE) -> 1
A11: PAB | B11: =IF(C10>=1,1,0) -> 0 | E11: 2 | F11: =HLOOKUP(A11&$A$5,TABNILSM8,6,FALSE) -> 2
A12: PAB | B12: =IF(C10>=1,1,0) -> 0 | E12: 3 | F12: =HLOOKUP(A12&$A$6,TABNILSM8,6,FALSE) -> 3
A13: PKN | B13: =IF(C13>=1,1,0) ->  | C13: =HLOOKUP(A13&$A$4,TABNILSM8,4,FALSE) ->  | E13: 1 | F13: =HLOOKUP(A13&$A$4,TABNILSM8,6,FALSE) -> 4
A14: PKN | B14: =IF(C13>=1,1,0) ->  | E14: 2 | F14: =HLOOKUP(A14&$A$5,TABNILSM8,6,FALSE) -> 5
A15: PKN | B15: =IF(C13>=1,1,0) ->  | E15: 3 | F15: =HLOOKUP(A15&$A$6,TABNILSM8,6,FALSE) -> 6
A16: IND | B16: =IF(C16>=1,1,0) ->  | C16: =HLOOKUP(A16&$A$4,TABNILSM8,4,FALSE) ->  | E16: 1 | F16: =HLOOKUP(A16&$A$4,TABNILSM8,6,FALSE) -> 7
A17: IND | B17: =IF(C16>=1,1,0) ->  | E17: 2 | F17: =HLOOKUP(A17&$A$5,TABNILSM8,6,FALSE) -> 8
A18: IND | B18: =IF(C16>=1,1,0) ->  | E18: 3 | F18: =HLOOKUP(A18&$A$6,TABNILSM8,6,FALSE) -> 9
A19: MTK | B19: =IF(C19>=1,1,0) ->  | C19: =HLOOKUP(A19&$A$4,TABNILSM8,4,FALSE) ->  | E19: 1 | F19: =HLOOKUP(A19&$A$4,TABNILSM8,6,FALSE) -> 10
A20: MTK | B20: =IF(C19>=1,1,0) ->  | E20: 2 | F20: =HLOOKUP(A20&$A$5,TABNILSM8,6,FALSE) -> 11
A21: MTK | B21: =IF(C19>=1,1,0) ->  | E21: 3 | F21: =HLOOKUP(A21&$A$6,TABNILSM8,6,FALSE) -> 12
A22: SJI | B22: =IF(C22>=1,1,0) ->  | C22: =HLOOKUP(A22&$A$4,TABNILSM8,4,FALSE) ->  | E22: 1 | F22: =HLOOKUP(A22&$A$4,TABNILSM8,6,FALSE) -> 13
A23: SJI | B23: =IF(C22>=1,1,0) ->  | E23: 2 | F23: =HLOOKUP(A23&$A$5,TABNILSM8,6,FALSE) -> 14
A24: SJI | B24: =IF(C22>=1,1,0) ->  | E24: 3 | F24: =HLOOKUP(A24&$A$6,TABNILSM8,6,FALSE) -> 15
A25: ING | B25: =IF(C25>=1,1,0) ->  | C25: =HLOOKUP(A25&$A$4,TABNILSM8,4,FALSE) ->  | E25: 1 | F25: =HLOOKUP(A25&$A$4,TABNILSM8,6,FALSE) -> 16
A26: ING | B26: =IF(C25>=1,1,0) ->  | E26: 2 | F26: =HLOOKUP(A26&$A$5,TABNILSM8,6,FALSE) -> 17 | Q26: TAMPILAN DATA
A27: ING | B27: =IF(C25>=1,1,0) ->  | E27: 3 | F27: =HLOOKUP(A27&$A$6,TABNILSM8,6,FALSE) -> 18 | Q27: Nomor Urut | R27: 1
A28: JER | B28: =IF(C28>=1,1,0) ->  | C28: =HLOOKUP(A28&$A$4,TABNILSM8,4,FALSE) ->  | E28: 1 | F28: =HLOOKUP(A28&$A$4,TABNILSM8,6,FALSE) -> 19
A29: JER | E29: 2 | F29: =HLOOKUP(A29&$A$5,TABNILSM8,6,FALSE) -> 20
A30: JER | B30: =IF(C28>=1,1,0) ->  | E30: 3 | F30: =HLOOKUP(A30&$A$6,TABNILSM8,6,FALSE) -> 21
B31: =IF(AND(COUNT(C31)=0,C35=0),0,1) ->  | C31: B. Muatan Kewilayahan
A32: SBD | B32: =IF(C32>=1,1,0) ->  | C32: =HLOOKUP(A32&$A$4,TABNILSM8,4,FALSE) ->  | D32: =HLOOKUP(A32&$A$4,TABNILSM8,2,FALSE) ->  | E32: 1 | F32: =HLOOKUP(A32&$A$4,TABNILSM8,6,FALSE) -> 22
A33: SBD | B33: =IF(C32>=1,1,0) ->  | E33: 2 | F33: =HLOOKUP(A33&$A$5,TABNILSM8,6,FALSE) -> 23
A34: SBD | B34: =IF(C32>=1,1,0) ->  | E34: 3 | F34: =HLOOKUP(A34&$A$6,TABNILSM8,6,FALSE) -> 24
